Workbook

Sheet READ ME
D11: =Translate!$C$24 -> Select language | G11: English
D13: =Translate!$C$25 -> Read Me Sheet
D18: =Translate!$C$26 -> IRRIGATE – Soil Tool
D20: =Translate!$C$27 -> Introduction
D21: =Translate!$C$28 -> This tool serves to determine your soil profile and to find an irrigation schedule for a selected crop. It complements the "SAFEGUARD WATER – Water Requirement Tool". A further complimentary tool is available under:
D25: http://www.fao.org/nr/water/aquastat/climateinfotool/index.stm
D27: =Translate!$C$29 -> Tips & Tricks
D28: =Translate!$C30 -> ● Make sure that macro is always enabled for the proper functioning of this tool
D29: =Translate!$C31 -> ● Only enter values into white cells
D30: =Translate!$C32 -> ● This tool comprises drop down lists and macros to simplify data entry and results review.
D31: =Translate!$C33 -> ● For the multilanguage option to work properly, do NOT delete sheets
D32: =Translate!$C34 -> ● Make sure that this file is always saved as ".xlsm"
D34: =Translate!$C$35 -> Overview
D35: =Translate!$C$36 -> This tool comprises the following sheet:
D37: =Translate!$C$9 -> 1 Geographic Data | G37: =Translate!$C$37 -> for adding basic site information and entering climatic data
D39: =Translate!$C$10 -> 2 Soil Texture Calculator | G39: =Translate!$C$38 -> for calculation of your soil type
D41: =Translate!$C$11 -> 3 Irrigation Schedule | G41: =Translate!$C$39 -> for selecting a crop and planting period; for automatic calculation of water requirement for a single crop; for calculation of an irrigation schedule
D45: =Translate!$C$12 -> 4 Summary | G45: =Translate!$C$40 -> Summary of outputs for irrigation quantity and frequency, and water storage requirements
D47: =Translate!$C$13 -> 5 How this tool works | G47: =Translate!$C$41 -> for understanding the way this tool works and on which data it is based on
D50: =Translate!$C$14 -> Crop Information | G50: =Translate!$C$42 -> for adjusting and adding the necessary crops information
D53: =Translate!$C$43 -> This tool is based on the FAO Irrigation and Drainage Paper No. 56. Crop Evapotranspiration (guidelines for computing crop water requirements), available at:
D56: http://www.fao.org/3/x0490e/x0490e00.htm
D58: =Translate!$C$44 -> About
D59: =Translate!$C$45 -> Published by: | F59: =Translate!$C$51 -> GIZ & FAO
D60: =Translate!$C$46 -> Resposible: | F60: =Translate!$C$52 -> GIZ project "Water and Energy for Food (WE4F)"
D62: =Translate!$C$47 -> Contact: | F62: we4f@giz.de
D63: =Translate!$C$48 -> Download link: | F63: https://energypedia.info/wiki/Toolbox_on_SPIS
D64: =Translate!$C$49 -> About: | F64: =Translate!$C$53 -> Water and Energy for Food Grand Challenge at:
F66: https://we4f.org/
D67: =Translate!$C$50 -> Version: | F67: =Translate!$C$54 -> 3.0 (June 2021)
D69: =Translate!$C$55 -> The Toolbox on Solar Powered Irrigation Systems (SPIS) is a legacy project of the global initiative Powering Agriculture: An Energy Grand Challenge for Development (PAEGC). In 2012, the United States Agency for International Development (USAID), the Swedish International Development Cooperation Agency (Sida), the German Federal Ministry for Economic Cooperation and Development (BMZ), Duke Energy, and the Overseas Private Investment Corporation (OPIC) combined resources to support new and sustainable approaches to accelerate the development and deployment of clean energy solutions for increasing agriculture productivity. The Toolbox on SPIS has now been embraced for further development by PAEGC's successor program Water and Energy for Food (WE4F). WE4F is a joint international initiative of the European Union (EU), the German Federal Ministry for Economic Cooperation and Development (BMZ), the Ministry of Foreign Affairs of the Kingdom of the Netherlands, Sweden through the Swedish International Development Cooperation Agency (Sida), and the U.S. Agency for International Development (USAID). WE4F aims to increase food production along the value chain through a more sustainable and efficient usage of water and/or energy.
D89: =Translate!$C$56 -> The designations employed and the presentation of material in this information product do not imply the expression of any opinion whatsoever on the part of Deutsche Gesellschaft für Internationale Zusammenarbeit (GIZ) GmbH, Food and Agriculture Organization of the United Nations (FAO) or any of the PAEGC Founding Partners concerning the legal or development status of any country, territory, city or area or of its authorities, or concerning the delimitation of its frontiers or boundaries. The mention of specific companies or products of manufacturers, whether or not these have been patented, does not imply that these have been endorsed or recommended by GIZ, FAO, or any of the PAEGC Founding Partners in preference to others of a similar nature that are not mentioned. The views expressed in this information product are those of the author and do not necessarily reflect the views or policies of GIZ, FAO, or any of the PAEGC Founding Partners.
D104: =Translate!$C$57 -> GIZ, FAO and the PAEGC Founding Partners encourage the use, reproduction and dissemination of material in this information product. Except where otherwise indicated, material may be copied, downloaded and printed for private study, research and teaching purposes, or for use in non-commercial products or services, provided that appropriate acknowledgement of GIZ and FAO as the source and copyright holder is given.
D112: =Translate!$C$58 -> © GIZ and FAO, 2021

Sheet 1 Geographic Data
A1: =Translate!$C$72 -> IRRIGATE – Soil Tool
A2: =Translate!$C$73 -> Enter basic rainfall and climatic data for you location.
A4: =Translate!$C$74 -> 1 GENERAL GEOGRAPHIC INFORMATION
A7: =Translate!$C$75 -> Country | C7: Kenya | G7: =Translate!$C$77 -> Region
A8: =Translate!$C$76 -> Farm code | G8: =Translate!$C$78 -> Date
A10: =Translate!$C$79 -> Name of the farm | C10: Mary
A11: =Translate!$C$80 -> Village
A12: =Translate!$C$81 -> Division
A13: =Translate!$C$82 -> District
A16: =Translate!$C$83 -> Select available climatic data:
A17: =Translate!$C$84 -> Option 1: | C17: =Translate!C85 -> Only mean temperature
A18: =Translate!$C$86 -> Option 2: | C18: =Translate!$C$87 -> Maximum and minimum temperature
A19: =Translate!$C$88 -> Option 3: | C19: =Translate!$C$89 -> Maximum and minimum temperature; humidity; wind speed; and sun hours
A20: =Translate!$C$90 -> Option 4: | C20: =Translate!$C$91 -> Reference evapotranspiration
C22: =TRANSPOSE(Translate!$C$60:$C$71) -> January | D22: February | E22: March | F22: April | G22: May | H22: June | I22: July | J22: August | K22: September | L22: October | M22: November | N22: December
A23: =Translate!$C$92 -> Mean daily temperature [°C] | C23: 25.5 | D23: 25 | E23: 24.6 | F23: 23.8 | G23: 23.9 | H23: 23.5 | I23: 23 | J23: 23 | K23: 23.6 | L23: 23.9 | M23: 23.6 | N23: 24
A24: =Translate!$C$93 -> Maximum daily temperature [°C]
A25: =Translate!$C$94 -> Minimum daily temperature [°C]
A26: =Translate!$C$95 -> Relative humidity [%]
A27: =Translate!$C$96 -> Wind speed [m/s]
A28: =Translate!$C$97 -> Sunshine [hours]
A29: =Translate!$C$98 -> Reference evapotranspiration [mm/day]
A30: =Translate!$C$99 -> Rainfall [mm/month] | C30: 45 | D30: 33 | E30: 69.3 | F30: 142.8 | G30: 109.8 | H30: 38.1 | I30: 27 | J30: 21.6 | K30: 18.3 | L30: 48.3 | M30: 97.2 | N30: 86.1
A31: =Translate!$C$100 -> Use the following links to obtain indicative monthly rainfall and climatic data for the site:
G32: http://www.worldclimate.com | J32: http://www.weatherbase.com/
A34: =Translate!$C$101 -> Select geographic location:
C35: =Translate!$C$112 -> Altitude: | E35: =Translate!$C$113 -> meter
F36: =Translate!$C$105 -> Hemisphere:
C37: =Translate!$C$102 -> Latitude: | D37: 3.33 | E37: =Translate!$C$104 -> decimal degree | G37: North
C38: =Translate!$C$103 -> Longitude: | D38: 38.55 | E38: =Translate!$C$104 -> decimal degree | G38: East
J40: =Translate!$C$110 -> Notes:
A56: =Translate!$C$111 -> Use the link to identify the exact coordinates of the site: | D56: https://www.google.de/maps

Sheet 2 Soil Texture Calculator
A1: =Translate!$C$115 -> IRRIGATE – Soil Tool
A2: =Translate!$C$116 -> Put in values to determine your soil type
A4: =Translate!$C$117 -> 2 SOIL TEXTURE CALCULATOR
M6: =Translate!$C$118 -> Farm code/name: | P6: ='1 Geographic Data'!$C$10 -> Mary
B10: =Translate!$C$119 -> Percentage of sand: | E10: 0.15
G11: =IF(E10+E13>1,Translate!$C$529,"") -> 
B13: =Translate!$C$120 -> Percentage of clay: | E13: 0.3
B16: =Translate!$C$121 -> Percentage of silt: | E16: =IF(1-E10-E13<0,"",1-E10-E13) -> 0.55
B21: =Translate!$C$122 -> Soil Texture: | E21: =IFERROR(IF(E10+E13>1,"",VLOOKUP(TRUE,'Soil Information-Calculations'!$D$4:$E$15,2,FALSE)),Translate!$C$530) -> SILTY CLAY LOAM
B29: =Translate!C155&" "&IFERROR(VLOOKUP($E$21,'Soil Information-Calculations'!$B$23:$D$34,1,FALSE),"") -> Characteristics of soils of the type: Silty clay loam
B31: =Translate!$C$123 -> Field Capacity (FC): | F31: =IFERROR(VLOOKUP($E$21,'Soil Information-Calculations'!$B$23:$D$34,2,FALSE),"") -> 38
B33: =Translate!$C$124 -> Permanent Wilting Point (PWP): | F33: =IFERROR(VLOOKUP($E$21,'Soil Information-Calculations'!$B$23:$D$34,3,FALSE),"") -> 22
B37: =Translate!$C$125 -> Definitions:
B39: =Translate!$C$126 -> Field Capacity is the amount of soil moisture or water content held in the soil after excess water has drained.
B42: =Translate!$C$127 -> Permanent wilting point is the minimal point of soil moisture the plant requires not to wilt.
K47: =Translate!$C$128 -> Calculator adapted from: | N47: =Translate!C129 -> United States Department of Agriculture

Sheet 3 Irrigation Schedule
A1: =Translate!C157 -> IRRIGATE – Soil Tool
A2: =Translate!$C$158 -> Select crop intended for planting at your location, for automatic indication of water requirements
A4: =Translate!$C$159 -> 3 IRRIGATION SCHEDULE
L6: =Translate!$C$160 -> Farm code/name: | O6: ='1 Geographic Data'!$C$10 -> Mary
B8: =Translate!$C$162 -> Area measurement unit: | C8: ha | E8: =Translate!$C$161 -> Conversion factor to 1 ha: | H8: =INDEX('Data Validation Sheet'!C1:$C$6,MATCH($C$8,'Data Validation Sheet'!$B$1:$B$6,0)) -> 1
D11: ='General Calculation'!D132 -> March | E11: ='General Calculation'!E132 -> April | F11: ='General Calculation'!F132 -> May | G11: ='General Calculation'!G132 -> June | H11: ='General Calculation'!H132 -> July | I11: ='General Calculation'!I132 -> August | J11: ='General Calculation'!J132 -> September | K11: ='General Calculation'!K132 -> October | L11: ='General Calculation'!L132 -> November | M11: ='General Calculation'!M132 -> December | N11: ='General Calculation'!N132 -> January | O11: ='General Calculation'!O132 -> February
B12: ='1 Geographic Data'!A23 -> Mean daily temperature [°C] | D12: ='General Calculation'!D126 -> 24.6 | E12: ='General Calculation'!E126 -> 23.8 | F12: ='General Calculation'!F126 -> 23.9 | G12: ='General Calculation'!G126 -> 23.5 | H12: ='General Calculation'!H126 -> 23 | I12: ='General Calculation'!I126 -> 23 | J12: ='General Calculation'!J126 -> 23.6 | K12: ='General Calculation'!K126 -> 23.9 | L12: ='General Calculation'!L126 -> 23.6 | M12: ='General Calculation'!M126 -> 24 | N12: ='General Calculation'!N126 -> 25.5 | O12: ='General Calculation'!O126 -> 25 | P12: =Translate!$C$170 -> °C | Q12: =Translate!$C$172 -> Above average temperature
B13: ='1 Geographic Data'!A30 -> Rainfall [mm/month] | D13: ='General Calculation'!D127 -> 69.3 | E13: ='General Calculation'!E127 -> 142.8 | F13: ='General Calculation'!F127 -> 109.8 | G13: ='General Calculation'!G127 -> 38.1 | H13: ='General Calculation'!H127 -> 27 | I13: ='General Calculation'!I127 -> 21.6 | J13: ='General Calculation'!J127 -> 18.3 | K13: ='General Calculation'!K127 -> 48.3 | L13: ='General Calculation'!L127 -> 97.2 | M13: ='General Calculation'!M127 -> 86.1 | N13: ='General Calculation'!N127 -> 45 | O13: ='General Calculation'!O127 -> 33 | P13: =Translate!$C$171 -> mm/month | Q13: =Translate!$C$173 -> Above average rainfall
B14: =Translate!C233&" "&'Crop Calculation Sheet'!$H$17 &" "&Translate!C234 -> Gross irrigation water requirement for [mm/month] | D14: ='General Calculation'!D133 -> 0 | E14: ='General Calculation'!E133 -> 0 | F14: ='General Calculation'!F133 -> 0 | G14: ='General Calculation'!G133 -> 0 | H14: ='General Calculation'!H133 -> 0 | I14: ='General Calculation'!I133 -> 0 | J14: ='General Calculation'!J133 -> 0 | K14: ='General Calculation'!K133 -> 0 | L14: ='General Calculation'!L133 -> 0 | M14: ='General Calculation'!M133 -> 0 | N14: ='General Calculation'!N133 -> 0 | O14: ='General Calculation'!O133 -> 0 | P14: =Translate!$C$171 -> mm/month
A16: =Translate!C174 -> Estimation of crop uptake | T16: =Translate!$C$196 -> Indicative values for application depths of the various irrigation methods
B17: =Translate!$C$175 -> Crop to be irrigated | E17: =Translate!$C$176 -> Area | G17: =Translate!$C$177 -> Planting Date | I17: =Translate!$C$178 -> Irrigation method | L17: =Translate!$C$179 -> Irrigation Efficiency | N17: =Translate!$C$180 -> Maximum possible irrigation application
E18: =$C$8 -> ha | G18: =TODAY() -> 2021-08-02 | T18: =Translate!$C$178 -> Irrigation method | U18: =Translate!$C$197 -> Application Depth (mm)
E19: 1 | G19: 2020-03-15 | M19: =IFERROR(VLOOKUP($I$19,'General Calculation'!$B$142:$C$159,2,FALSE)/100,"") ->  | P19: 10 | Q19: =Translate!$C$204 -> mm | T19: =Translate!C198 -> Small basins (<200 m2) | U19: 40 - 80
T20: =Translate!$C$199 -> Large basins (>500 m2) | U20: 80 - 150
T21: =Translate!$C$200 -> Furrows | U21: 30 - 60
T22: =Translate!$C$201 -> Borders | U22: 40 - 80
T23: =Translate!$C$202 -> Sprinkler | U23: 30 - 60
A24: =Translate!$C$205 -> Estimation of soil reservoir | T24: =Translate!$C$203 -> Drip | U24: 10 - 20
B25: =Translate!$C$206 -> Soil: | T25: http://www.fao.org/tempref/agl/AGLW/Morini/07_IRRIGATION.pdf
B27: =Translate!$C$207 -> Initial water content (% TAW): | C27: 0.5
B29: =Translate!$C$208 -> Field Capacity (FC): | C29: =IFERROR(VLOOKUP($C$25,'Soil Information-Calculations'!$B$23:$D$34,2,FALSE),"") -> 
B31: =Translate!$C$209 -> Permanent Wilting Point (PWP): | C31: =IFERROR(VLOOKUP($C$25,'Soil Information-Calculations'!$B$23:$D$34,3,FALSE),"") -> 
B33: =Translate!$C$210 -> Maximum rooting depth [m]: | C33: ='Crop Calculation Sheet'!$M$28 -> 1.2
B36: =Translate!$C$221 -> Irrigation Schedule for | D36: ='Crop Calculation Sheet'!$H$17 ->  | G36: =Translate!$C$222 -> for soil type | I36: =C25 -> 0 | L36: =Translate!$C$223 -> in | M36: ='1 Geographic Data'!$C$7 -> Kenya
D38: =D11 -> March | E38: =E11 -> April | F38: May | G38: June | H38: July | I38: August | J38: September | K38: October | L38: November | M38: December | N38: January | O38: February
B39: =Translate!$C$224 -> Irrigation amount (m³): | D39: ='General Calculation'!D134 -> 0 | E39: ='General Calculation'!E134 -> 0 | F39: ='General Calculation'!F134 -> 0 | G39: ='General Calculation'!G134 -> 0 | H39: ='General Calculation'!H134 -> 0 | I39: ='General Calculation'!I134 -> 0 | J39: ='General Calculation'!J134 -> 0 | K39: ='General Calculation'!K134 -> 0 | L39: ='General Calculation'!L134 -> 0 | M39: ='General Calculation'!M134 -> 0 | N39: ='General Calculation'!N134 -> 0 | O39: ='General Calculation'!O134 -> 0
B40: =Translate!$C$225 -> Number of irrigation events (number of days): | D40: ='General Calculation'!D137 -> 0 | E40: ='General Calculation'!E137 -> 0 | F40: ='General Calculation'!F137 -> 0 | G40: ='General Calculation'!G137 -> 0 | H40: ='General Calculation'!H137 -> 0 | I40: ='General Calculation'!I137 -> 0 | J40: ='General Calculation'!J137 -> 0 | K40: ='General Calculation'!K137 -> 0 | L40: ='General Calculation'!L137 -> 0 | M40: ='General Calculation'!M137 -> 0 | N40: ='General Calculation'!N137 -> 0 | O40: ='General Calculation'!O137 -> 0
B42: =Translate!$C$226 -> Minimum water storage reservoir capacity for an irrigation event [m³]: | D42: ='General Calculation'!D136 -> 0 | E42: ='General Calculation'!E136 -> 0 | F42: ='General Calculation'!F136 -> 0 | G42: ='General Calculation'!G136 -> 0 | H42: ='General Calculation'!H136 -> 0 | I42: ='General Calculation'!I136 -> 0 | J42: ='General Calculation'!J136 -> 0 | K42: ='General Calculation'!K136 -> 0 | L42: ='General Calculation'!L136 -> 0 | M42: ='General Calculation'!M136 -> 0 | N42: ='General Calculation'!N136 -> 0 | O42: ='General Calculation'!O136 -> 0

Sheet 4 Summary
A1: =Translate!$C$237 -> IRRIGATE – Soil Tool
A2: =Translate!$C$238 -> Summary of Crop Water Requirements
A4: =Translate!$C$239 -> 4 Summary
K6: =Translate!$C$240 -> Farm code/name: | N6: ='1 Geographic Data'!$C$10 -> Mary
A8: =Translate!$C$241 -> Soil type: | D8: ='2 Soil Texture Calculator'!E21 -> SILTY CLAY LOAM | G8: =Translate!$C$244 -> from sheet: | H8: =Translate!$C$245 -> Soil texture calculator
A9: =Translate!$C$242 -> Selected soil type: | D9: ='3 Irrigation Schedule'!C25 -> 0 | G9: =Translate!$C$244 -> from sheet: | H9: =Translate!$C$246 -> Irrigation schedule
A10: =Translate!$C$243 -> Crop root depth: | D10: ='3 Irrigation Schedule'!C33 -> 1.2 | G10: =Translate!$C$244 -> from sheet: | H10: =Translate!$C$246 -> Irrigation schedule
B12: =Translate!$C$249 -> Irrigation quantity and number of irrigation events: | H12: =Translate!$C$248&" " & '3 Irrigation Schedule'!$C$8 &": " -> Area in ha: | J12: ='3 Irrigation Schedule'!$E$19 -> 1
B14: =Translate!$C$247 -> Crop | E14: ='3 Irrigation Schedule'!D38 -> March | F14: ='3 Irrigation Schedule'!E38 -> April | G14: ='3 Irrigation Schedule'!F38 -> May | H14: ='3 Irrigation Schedule'!G38 -> June | I14: ='3 Irrigation Schedule'!H38 -> July | J14: ='3 Irrigation Schedule'!I38 -> August | K14: ='3 Irrigation Schedule'!J38 -> September | L14: ='3 Irrigation Schedule'!K38 -> October | M14: ='3 Irrigation Schedule'!L38 -> November | N14: ='3 Irrigation Schedule'!M38 -> December | O14: ='3 Irrigation Schedule'!N38 -> January | P14: ='3 Irrigation Schedule'!O38 -> February
B15: ='Crop Calculation Sheet'!$H$17 ->  | D15: =Translate!$C$250 -> m3/month | E15: ='3 Irrigation Schedule'!D39 -> 0 | F15: ='3 Irrigation Schedule'!E39 -> 0 | G15: ='3 Irrigation Schedule'!F39 -> 0 | H15: ='3 Irrigation Schedule'!G39 -> 0 | I15: ='3 Irrigation Schedule'!H39 -> 0 | J15: ='3 Irrigation Schedule'!I39 -> 0 | K15: ='3 Irrigation Schedule'!J39 -> 0 | L15: ='3 Irrigation Schedule'!K39 -> 0 | M15: ='3 Irrigation Schedule'!L39 -> 0 | N15: ='3 Irrigation Schedule'!M39 -> 0 | O15: ='3 Irrigation Schedule'!N39 -> 0 | P15: ='3 Irrigation Schedule'!O39 -> 0
D16: =Translate!$C$251 -> № of events | E16: ='3 Irrigation Schedule'!D40 -> 0 | F16: ='3 Irrigation Schedule'!E40 -> 0 | G16: ='3 Irrigation Schedule'!F40 -> 0 | H16: ='3 Irrigation Schedule'!G40 -> 0 | I16: ='3 Irrigation Schedule'!H40 -> 0 | J16: ='3 Irrigation Schedule'!I40 -> 0 | K16: ='3 Irrigation Schedule'!J40 -> 0 | L16: ='3 Irrigation Schedule'!K40 -> 0 | M16: ='3 Irrigation Schedule'!L40 -> 0 | N16: ='3 Irrigation Schedule'!M40 -> 0 | O16: ='3 Irrigation Schedule'!N40 -> 0 | P16: ='3 Irrigation Schedule'!O40 -> 0
B18: =Translate!C252 -> Required water storage reservoir capacity for an irrigation event: | K18: =MAX('3 Irrigation Schedule'!D42:O42) -> 0 | L18: =Translate!$C$253 -> m3

Sheet 5 How this tool works
A1: =Translate!$C$255 -> How the Soil Tool works
E4: =Translate!$C$256 -> This tool is based on the Water Requirement Tool. To understand how the water requirement is calculated, please check the Water Requirement Tool.
C6: =Translate!$C$257 -> Overview
F8: 1 | H8: =Translate!$C$258 -> The soil type
F9: 2 | H9: =Translate!$C$259 -> Determination the soil type
F10: 3 | H10: =Translate!$C$260 -> Calculation of the irrigation schedule
A14: 1 | C14: =Translate!$C$258 -> The soil type
D17: =Translate!$C$261 -> The soil type is an important factor in determining how fast and how often irrigation should be scheduled. Like a sponge, the soil absorbs and holds water, depending on the percentage of the three main components:
E20: =Translate!$C$262 -> Sand
E21: =Translate!$C$263 -> Silt
E22: =Translate!$C$264 -> Clay
D24: =Translate!$C$265 -> With different percentages of the main components, the soil type changes it's bevavior, as shown in table 2.
AI28: =Translate!$C$282 -> Figure 1: Water distribution in different soil types
D32: =Translate!$C$266 -> Name of the particle | J32: =Translate!$C$267 -> Size limit in mm | P32: =Translate!$C$268 -> Distinguisable with the naked eye
D34: =Translate!$C$269 -> gravel | K34: =Translate!$C$273 -> larger than 1 | Q34: =Translate!$C$277 -> obviously
D35: =Translate!$C$270 -> sand | K35: =Translate!$C$274 -> 1 to 0.5 | Q35: =Translate!$C$278 -> easily
D36: =Translate!$C$271 -> silt | K36: =Translate!$C$275 -> 0.5 to 0.002 | Q36: =Translate!$C$279 -> barely
D37: =Translate!$C$272 -> clay | K37: =Translate!$C$276 -> less than 0.002 | Q37: =Translate!$C$280 -> impossible
D39: =Translate!$C$281 -> Table 1: Classification of mineral particles, from: | U39: FAO
AC48: =Translate!$C$283 -> Table 2: Characteristics of the different soil components, from:
AC49: Michigan State University
A55: 2 | C55: =Translate!$C$259 -> Determination the soil type
D58: =Translate!$C$284 -> The soil type can be determined in the laboratory using a particle size analysis. Sand, silt and clay have different diameters, by sieving them their distribution delivers information about the soil type.
D60: =Translate!$C$285 -> Another way to determine the soil type is the "Jar Test":
D61: 1 | E61: =Translate!$C$286 -> Remove soil from the zone to be irrigated
D62: 2 | E62: =Translate!$C$287 -> Place the soil sample into the jar and fill it with water
D63: 3 | E63: =Translate!$C$288 -> Shake the jar and let it sit for two hours, the particles will settle to the bottom, in their different layers
D64: 4 | E64: =Translate!$C$289 -> Measure the total height of all layers, than the height of each layer.
D65: 5 | E65: =Translate!$C$290 -> Divide the height of each layer by the total height which gives you the percentage of clay, silt and sand.
D68: =Translate!$C$291 -> Putting in the obtained percentages of clay, silt and sand, soil texture triangles as seen in Figure 3 show the type of soil you have.
AN75: =Translate!$C$292 -> Figure 2: The Jar Test
I91: =Translate!$C$294 -> Figure 3: The Soil Texture Triangle from: | V91: United States Department of Agriculture
A95: 3 | C95: =Translate!$C$260 -> Calculation of the irrigation schedule
B96: =Translate!$C$295 -> This tool is based on the FAO Irrigation and Drainage Paper No. 56. Crop Evapotranspiration (guidelines for computing crop water requirements), available at:
M98: http://www.fao.org/docrep/t7202e/t7202e00.htm
D110: =Translate!$C$296 -> Soil water balance is estimated on a daily basis using the following steps: | AH110: =Translate!$C$297 -> Figure 4: Soil water balance components
E112: 1 | F112: =Translate!$C$298 -> Calculate daily reference evapotranspiration
E113: 2 | F113: =Translate!$C$299 -> Calculate Total Available Water (TAW) in the root zone considering the Field Capacity (FC), the Permanent Wilting Point (PWP), and the rooting depth
E115: 3 | F115: =Translate!$C$300 -> Calculate Readily Available Water (RAW) considering the depletion factor;
G127: =Translate!$C$301 -> Table 2: Example for ranges of maximum effective rooting depth and soil water depletion fraction for no stress
E129: 4 | F129: =Translate!$C$302 -> Calculate water stress coefficient
E130: 5 | F130: =Translate!$C$303 -> Calculate daily soil water balance
F131: * | G131: =Translate!$C$304 -> estimating daily root zone depletion
F132: * | G132: =Translate!$C$305 -> when the depletion exceeds a certain threshold, it is time to irrigate
F133: * | G133: =Translate!$C$306 -> if the maximum possible irrigation method application is lower than RAW, then the threshold is the maximum application for the irrigation system
F134: * | G134: =Translate!$C$307 -> else if the maximum possible irrigation method application is greater than RAW, then the threshold is RAW
F135: * | G135: =Translate!$C$308 -> these considerations thus, allow irrigation considering the capacity of the irrigation system and avoid at the same time water stress
X145: =Translate!$C$309 -> Figure 5: Soil water balance
E151: 6 | F151: =Translate!$C$310 -> The amount of irrigation water and the irrigation day are determined for the entire crop growth period
E152: 7 | F152: =Translate!$C$311 -> Water storage size is determined by taking into account the greatest amount of water for an irrigation event

Sheet Crop Information
B2: =Translate!$C$313 -> This data is based on the FAO Irrigation and Drainage Paper No. 56: Crop Evapotranspiration (guidelines for computing crop water requirements), available at: | M2: http://www.fao.org/3/x0490e/x0490e00.htm
B3: =Translate!$C$314 -> Information on row and plant spacing, planting depth and date of seeds can be found at: | M3: https://www.edenseeds.com.au/flux-content/eden/pdf/EdenSeeds-PlantingGuide.pdf
D5: =Translate!$C$317 -> Crop Growing Period | I5: =Translate!$C$318 -> Crop factor of the development stages | L5: =Translate!$C$324 -> Maximum Root Depth | N5: =Translate!$C$327 -> Depletion Fraction
B6: =Translate!$C$315 -> Crop | C6: # | D6: =Translate!$C$319 -> Initial stage | E6: =Translate!$C$320 -> Crop development stage | F6: =Translate!$C$321 -> Mid-season stage | G6: =Translate!$C$322 -> late season stage | H6: =Translate!$C$323 -> Total | I6: =Translate!$C$319 -> Initial stage | J6: =Translate!$C$321 -> Mid-season stage | K6: =Translate!$C$322 -> late season stage | L6: =Translate!$C$325 -> Initial | M6: =Translate!$C$326 -> Maximum
B7: =Translate!$C$316 -> none | C7: 1
B8: =Translate!C328 -> Alfalfa (1st cutting cycle - Jan/Apr - USA) | C8: 2 | D8: 10 | E8: 25 | F8: 23 | G8: 10 | H8: =SUM(D8:G8) -> 68 | I8: 0.4 | J8: 1.1 | K8: 1 | L8: 1.2 | M8: 1.2 | N8: 0.55
B9: =Translate!C329 -> Alfalfa (other cutting cycle - Mar/Jun - USA) | C9: 3 | D9: 5 | E9: 15 | F9: 10 | G9: 8 | H9: =SUM(D9:G9) -> 38 | I9: 0.4 | J9: 1.1 | K9: 1 | L9: 1.2 | M9: 1.2 | N9: 0.55
B10: =Translate!C330 -> Alfalfa (seeds - Mar/Jun - USA) | C10: 4 | D10: 5 | E10: 15 | F10: 10 | G10: 8 | H10: 38 | I10: 0.4 | J10: 0.5 | K10: 0.5 | L10: 1.2 | M10: 1.2 | N10: 0.6
B11: =Translate!C331 -> Almond (no ground cover - Apr - USA) | C11: 5 | D11: 20 | E11: 10 | F11: 130 | G11: 30 | H11: 190 | I11: 0.4 | J11: 0.9 | K11: 0.65 | L11: 1.5 | M11: 1.5 | N11: 0.5
B12: =Translate!C332 -> Artichoke (1st year - Apr - California) | C12: 6 | D12: 40 | E12: 40 | F12: 250 | G12: 30 | H12: 360 | I12: 0.5 | J12: 1 | K12: 0.95 | L12: 0.25 | M12: 0.9 | N12: 0.45
B13: =Translate!C333 -> Artichoke (2nd year - May - cut in May) | C13: 7 | D13: 20 | E13: 25 | F13: 250 | G13: 30 | H13: 325 | I13: 0.5 | J13: 1 | K13: 0.95 | L13: 0.9 | M13: 0.9 | N13: 0.45
B14: =Translate!C334 -> Asparagus (Feb - warm winter) | C14: 8 | D14: 50 | E14: 30 | F14: 100 | G14: 50 | H14: 230 | I14: 0.5 | J14: 0.95 | K14: 0.3 | L14: 0.25 | M14: 1.5 | N14: 0.45
B15: =Translate!C335 -> Asparagus (Feb - Mediterranean) | C15: 9 | D15: 90 | E15: 30 | F15: 200 | G15: 45 | H15: 365 | I15: 0.5 | J15: 0.95 | K15: 0.3 | L15: 0.25 | M15: 1.5 | N15: 0.45
B16: =Translate!C336 -> Avocado (Jan - Florida, USA) | C16: 10 | D16: 60 | E16: 60 | F16: 120 | G16: 120 | H16: 360 | I16: 0.7 | J16: 0.98 | K16: 0.7 | L16: 0.25 | M16: 1 | N16: 0.7
B17: =Translate!C337 -> Banana (1st year - Mar - Mediterranean) | C17: 11 | D17: 120 | E17: 90 | F17: 120 | G17: 60 | H17: 390 | I17: 0.5 | J17: 1.1 | K17: 1 | L17: 0.3 | M17: 0.9 | N17: 0.45
B18: =Translate!C338 -> Banana (1st year - Mar - subtropical/humid/light to moderate wind) | C18: 12 | D18: 120 | E18: 90 | F18: 120 | G18: 60 | H18: 390 | I18: 0.6 | J18: 1 | K18: 0.8 | L18: 0.3 | M18: 0.9 | N18: 0.45
B19: =Translate!C339 -> Banana (1st year - Mar - subtropical/tropical) | C19: 13 | D19: 90 | E19: 165 | F19: 45 | G19: 30 | H19: 330 | I19: 0.5 | J19: 1.1 | K19: 1 | L19: 0.3 | M19: 0.9 | N19: 0.45
B20: =Translate!C340 -> Banana (2nd year - Mar - Mediterranean) | C20: 14 | D20: 120 | E20: 60 | F20: 180 | G20: 5 | H20: 365 | I20: 1 | J20: 1.2 | K20: 1.1 | L20: 0.9 | M20: 0.9 | N20: 0.45
B21: =Translate!C341 -> Banana (2nd year - Feb - subtropical/tropical) | C21: 15 | D21: 60 | E21: 60 | F21: 75 | G21: 45 | H21: 240 | I21: 1 | J21: 1.2 | K21: 1.1 | L21: 0.9 | M21: 0.9 | N21: 0.45
B22: =Translate!C342 -> Barley/Oats/Wheat (Nov - central India) | C22: 16 | D22: 15 | E22: 25 | F22: 50 | G22: 30 | H22: 120 | I22: 0.3 | J22: 1.15 | K22: 0.25 | L22: 0.3 | M22: 1.1 | N22: 0.55
B23: =Translate!C343 -> Barley/Oats/Wheat (Mar/Apr - 35/45 °L)) | C23: 17 | D23: 20 | E23: 25 | F23: 60 | G23: 30 | H23: 135 | I23: 0.3 | J23: 1.15 | K23: 0.25 | L23: 0.3 | M23: 1.1 | N23: 0.55
B24: =Translate!C344 -> Barley/Oats/Wheat (Jul - East Africa) | C24: 18 | D24: 15 | E24: 30 | F24: 65 | G24: 40 | H24: 150 | I24: 0.3 | J24: 1.15 | K24: 0.25 | L24: 0.3 | M24: 1.1 | N24: 0.55
B25: =Translate!C345 -> Barley/Oats/Wheat (Nov) | C25: 19 | D25: 40 | E25: 60 | F25: 60 | G25: 40 | H25: 200 | I25: 0.4 | J25: 1.15 | K25: 0.3 | L25: 0.3 | M25: 1.1 | N25: 0.55
B26: =Translate!C346 -> Barley/Oats/Wheat (Dec - California desert) | C26: 20 | D26: 20 | E26: 50 | F26: 60 | G26: 30 | H26: 160 | I26: 0.7 | J26: 1.15 | K26: 0.3 | L26: 0.3 | M26: 1.1 | N26: 0.55
B27: =Translate!C347 -> Beans (dry - May/Jun - central climates) | C27: 21 | D27: 20 | E27: 30 | F27: 40 | G27: 20 | H27: 110 | I27: 0.4 | J27: 1.15 | K27: 0.35 | L27: 0.3 | M27: 0.9 | N27: 0.45
B28: =Translate!C348 -> Beans (dry - Jun - Pakistan/California) | C28: 22 | D28: 15 | E28: 25 | F28: 35 | G28: 20 | H28: 95 | I28: 0.4 | J28: 1.15 | K28: 0.35 | L28: 0.3 | M28: 0.9 | N28: 0.45
B29: =Translate!C349 -> Beans (dry - Jun - Idaho) | C29: 23 | D29: 25 | E29: 25 | F29: 30 | G29: 20 | H29: 100 | I29: 0.4 | J29: 1.15 | K29: 0.35 | L29: 0.3 | M29: 0.9 | N29: 0.45
B30: =Translate!C350 -> Beans (green - Feb/Mar - California/Mediterranean) | C30: 24 | D30: 20 | E30: 30 | F30: 30 | G30: 10 | H30: 90 | I30: 0.5 | J30: 1.05 | K30: 0.9 | L30: 0.3 | M30: 0.7 | N30: 0.45
B31: =Translate!C351 -> Beans (green - Aug/Sep - California/Egypt/Lebanon) | C31: 25 | D31: 15 | E31: 25 | F31: 25 | G31: 10 | H31: 75 | I31: 0.5 | J31: 1.05 | K31: 0.9 | L31: 0.3 | M31: 0.7 | N31: 0.45
B32: =Translate!C352 -> Beets (table - Apr/May - Mediterranean) | C32: 26 | D32: 15 | E32: 25 | F32: 20 | G32: 10 | H32: 70 | I32: 0.5 | J32: 1.05 | K32: 0.95 | L32: 0.25 | M32: 0.8 | N32: 0.5
B33: =Translate!C353 -> Beets (table - Feb/Mar - Mediterranean/Arid) | C33: 27 | D33: 25 | E33: 30 | F33: 25 | G33: 10 | H33: 90 | I33: 0.5 | J33: 1.05 | K33: 0.95 | L33: 0.25 | M33: 0.8 | N33: 0.5
B34: =Translate!C354 -> Broccoli (Sept - California desert) | C34: 28 | D34: 35 | E34: 45 | F34: 40 | G34: 15 | H34: 135 | I34: 0.7 | J34: 1.05 | K34: 0.95 | L34: 0.25 | M34: 0.5 | N34: 0.45
B35: =Translate!C355 -> Cabbage (Sept - California desert) | C35: 29 | D35: 40 | E35: 60 | F35: 50 | G35: 15 | H35: 165 | I35: 0.7 | J35: 1.05 | K35: 0.95 | L35: 0.25 | M35: 0.5 | N35: 0.45
B36: =Translate!C356 -> Cantaloupe (Jan - California ) | C36: 30 | D36: 30 | E36: 45 | F36: 35 | G36: 10 | H36: 120 | I36: 0.5 | J36: 0.85 | K36: 0.6 | L36: 0.25 | M36: 1.2 | N36: 0.45
B37: =Translate!C357 -> Cantaloupe (Aug - California ) | C37: 31 | D37: 10 | E37: 60 | F37: 25 | G37: 25 | H37: 120 | I37: 0.5 | J37: 0.85 | K37: 0.6 | L37: 0.25 | M37: 1.2 | N37: 0.45
B38: =Translate!C358 -> Carrots (Oct/Jan - Arid climate ) | C38: 32 | D38: 20 | E38: 30 | F38: 30 | G38: 20 | H38: 100 | I38: 0.7 | J38: 1.05 | K38: 0.95 | L38: 0.25 | M38: 0.8 | N38: 0.35
B39: =Translate!C359 -> Carrots (Feb/Mar - Mediterranean ) | C39: 33 | D39: 30 | E39: 40 | F39: 60 | G39: 20 | H39: 150 | I39: 0.7 | J39: 1.05 | K39: 0.95 | L39: 0.25 | M39: 0.8 | N39: 0.35
B40: =Translate!C360 -> Carrots (Oct - California desert) | C40: 34 | D40: 30 | E40: 50 | F40: 90 | G40: 30 | H40: 200 | I40: 0.7 | J40: 1.05 | K40: 0.95 | L40: 0.25 | M40: 0.8 | N40: 0.35
B41: =Translate!C361 -> Cassava ( 1st year - rainy season - Tropical regions) | C41: 35 | D41: 20 | E41: 40 | F41: 90 | G41: 60 | H41: 210 | I41: 0.3 | J41: 0.8 | K41: 0.3 | L41: 0.25 | M41: 0.8 | N41: 0.35
B42: =Translate!C362 -> Cassava ( 2nd year - season - Tropical regions) | C42: 36 | D42: 150 | E42: 40 | F42: 110 | G42: 60 | H42: 360 | I42: 0.3 | J42: 1.1 | K42: 0.5 | L42: 0.8 | M42: 0.8 | N42: 0.4
B43: =Translate!C363 -> Castor beans (Mar - semiarid climates ) | C43: 37 | D43: 25 | E43: 40 | F43: 65 | G43: 50 | H43: 180 | I43: 0.35 | J43: 1.15 | K43: 0.55 | L43: 0.25 | M43: 1 | N43: 0.5
B44: =Translate!C364 -> Castor beans (Nov - Indonesia ) | C44: 38 | D44: 20 | E44: 40 | F44: 50 | G44: 25 | H44: 135 | I44: 0.35 | J44: 1.15 | K44: 0.55 | L44: 0.25 | M44: 1 | N44: 0.5
B45: =Translate!C365 -> Cauliflower (Sept - California desert) | C45: 39 | D45: 35 | E45: 50 | F45: 40 | G45: 15 | H45: 140 | I45: 0.7 | J45: 1.05 | K45: 0.95 | L45: 0.25 | M45: 0.7 | N45: 0.45
B46: =Translate!C366 -> Celery (Oct- semiarid) | C46: 40 | D46: 25 | E46: 40 | F46: 95 | G46: 20 | H46: 180 | I46: 0.7 | J46: 1.05 | K46: 1 | L46: 0.2 | M46: 0.5 | N46: 0.2
B47: =Translate!C367 -> Celery (Apr - Mediterranean) | C47: 41 | D47: 25 | E47: 40 | F47: 45 | G47: 15 | H47: 125 | I47: 0.7 | J47: 1.05 | K47: 1 | L47: 0.2 | M47: 0.5 | N47: 0.2
B48: =Translate!C368 -> Celery (Jan - semiarid) | C48: 42 | D48: 30 | E48: 55 | F48: 105 | G48: 20 | H48: 210 | I48: 0.7 | J48: 1.05 | K48: 1 | L48: 0.2 | M48: 0.5 | N48: 0.2
B49: =Translate!C369 -> Chilli pepper (Brazil/Tropical) | C49: 43 | D49: 30 | E49: 15 | F49: 20 | G49: 10 | H49: 75 | I49: 0.63 | J49: 1.4 | K49: 0.86 | L49: 0.25 | M49: 0.8 | N49: 0.3
B50: =Translate!C370 -> Citrus (no ground cover/70% canopy - Jan - Mediterranean) | C50: 44 | D50: 60 | E50: 90 | F50: 120 | G50: 95 | H50: 365 | I50: 0.7 | J50: 0.65 | K50: 0.7 | L50: 1.5 | M50: 1.5 | N50: 0.5
B51: =Translate!C371 -> Citrus (no ground cover/50% canopy - Jan - Mediterranean) | C51: 45 | D51: 60 | E51: 90 | F51: 120 | G51: 95 | H51: 365 | I51: 0.65 | J51: 0.6 | K51: 0.65 | L51: 1.3 | M51: 1.3 | N51: 0.5
B52: =Translate!C372 -> Citrus (no ground cover/20% canopy - Jan - Mediterranean) | C52: 46 | D52: 60 | E52: 90 | F52: 120 | G52: 95 | H52: 365 | I52: 0.5 | J52: 0.45 | K52: 0.55 | L52: 1 | M52: 1 | N52: 0.5
B53: =Translate!C373 -> Citrus (with active ground cover or weeds/70% canopy - Jan - Mediterranean) | C53: 47 | D53: 60 | E53: 90 | F53: 120 | G53: 95 | H53: 365 | I53: 0.75 | J53: 0.7 | K53: 0.75 | L53: 1.5 | M53: 1.5 | N53: 0.5
B54: =Translate!C374 -> Citrus (with active ground cover or weeds/50% canopy - Jan - Mediterranean) | C54: 48 | D54: 60 | E54: 90 | F54: 120 | G54: 95 | H54: 365 | I54: 0.8 | J54: 0.8 | K54: 0.8 | L54: 1.3 | M54: 1.3 | N54: 0.5
B55: =Translate!C375 -> Citrus (with active ground cover or weeds/20% canopy - Jan - Mediterranean) | C55: 49 | D55: 60 | E55: 90 | F55: 120 | G55: 95 | H55: 365 | I55: 0.85 | J55: 0.85 | K55: 0.85 | L55: 1 | M55: 1 | N55: 0.5
B56: =Translate!C376 -> Cotton (Mar/May - Egypt/Pakistan/California) | C56: 50 | D56: 30 | E56: 50 | F56: 60 | G56: 55 | H56: 195 | I56: 0.35 | J56: 1.2 | K56: 0.6 | L56: 0.3 | M56: 1.4 | N56: 0.65
B57: =Translate!C377 -> Cotton (Mar - California desert) | C57: 51 | D57: 45 | E57: 90 | F57: 45 | G57: 45 | H57: 225 | I57: 0.35 | J57: 1.2 | K57: 0.6 | L57: 0.3 | M57: 1.4 | N57: 0.65
B58: =Translate!C378 -> Cotton (Sept - Yemen ) | C58: 52 | D58: 30 | E58: 50 | F58: 60 | G58: 55 | H58: 195 | I58: 0.35 | J58: 1.2 | K58: 0.6 | L58: 0.3 | M58: 1.4 | N58: 0.65
B59: =Translate!C379 -> Cotton (Apr - Texas ) | C59: 53 | D59: 30 | E59: 50 | F59: 55 | G59: 45 | H59: 180 | I59: 0.35 | J59: 1.2 | K59: 0.6 | L59: 0.3 | M59: 1.4 | N59: 0.65
B60: =Translate!C380 -> Cucumber (Jun/Aug - arid region ) | C60: 54 | D60: 20 | E60: 30 | F60: 40 | G60: 15 | H60: 105 | I60: 0.6 | J60: 1 | K60: 0.75 | L60: 0.25 | M60: 1 | N60: 0.5
B61: =Translate!C381 -> Cucumber (Nov/Feb - arid region ) | C61: 55 | D61: 25 | E61: 35 | F61: 50 | G61: 20 | H61: 130 | I61: 0.6 | J61: 1 | K61: 0.75 | L61: 0.25 | M61: 1 | N61: 0.5
B62: =Translate!C382 -> Deciduous Orchard (no ground cover/killing frost - Mar - high latitudes) | C62: 56 | D62: 20 | E62: 70 | F62: 90 | G62: 30 | H62: 210 | I62: 0.45 | J62: 0.93 | K62: 0.68 | L62: 1.5 | M62: 1.5 | N62: 0.5
B63: =Translate!C383 -> Deciduous Orchard (no ground cover/no frosts - Mar - high latitudes) | C63: 57 | D63: 20 | E63: 70 | F63: 90 | G63: 30 | H63: 210 | I63: 0.58 | J63: 0.93 | K63: 0.7 | L63: 1.5 | M63: 1.5 | N63: 0.5
B64: =Translate!C384 -> Deciduous Orchard (active ground cover/killing frost - Mar - high latitudes) | C64: 58 | D64: 20 | E64: 70 | F64: 90 | G64: 30 | H64: 210 | I64: 0.5 | J64: 1.18 | K64: 0.93 | L64: 1.5 | M64: 1.5 | N64: 0.5
B65: =Translate!C385 -> Deciduous Orchard (active ground cover/no frosts - Mar - high latitudes) | C65: 59 | D65: 20 | E65: 70 | F65: 90 | G65: 30 | H65: 210 | I65: 0.8 | J65: 1.18 | K65: 0.85 | L65: 1.5 | M65: 1.5 | N65: 0.5
B66: =Translate!C386 -> Deciduous Orchard (no ground cover/killing frost - Mar - low latitudes) | C66: 60 | D66: 20 | E66: 70 | F66: 120 | G66: 60 | H66: 270 | I66: 0.45 | J66: 0.93 | K66: 0.68 | L66: 1.5 | M66: 1.5 | N66: 0.5
B67: =Translate!C387 -> Deciduous Orchard (no ground cover/no frosts - Mar - low latitudes) | C67: 61 | D67: 20 | E67: 70 | F67: 120 | G67: 60 | H67: 270 | I67: 0.58 | J67: 0.93 | K67: 0.7 | L67: 1.5 | M67: 1.5 | N67: 0.5
B68: =Translate!C388 -> Deciduous Orchard (active ground cover/killing frost - Mar - low latitudes) | C68: 62 | D68: 20 | E68: 70 | F68: 120 | G68: 60 | H68: 270 | I68: 0.5 | J68: 1.18 | K68: 0.93 | L68: 1.5 | M68: 1.5 | N68: 0.5
B69: =Translate!C389 -> Deciduous Orchard (active ground cover/no frosts - Mar - low latitudes) | C69: 63 | D69: 20 | E69: 70 | F69: 120 | G69: 60 | H69: 270 | I69: 0.8 | J69: 1.18 | K69: 0.85 | L69: 1.5 | M69: 1.5 | N69: 0.5
B70: =Translate!C390 -> Deciduous Orchard (no ground cover/killing frost - Mar - California) | C70: 64 | D70: 30 | E70: 50 | F70: 130 | G70: 30 | H70: 240 | I70: 0.45 | J70: 0.93 | K70: 0.68 | L70: 1.5 | M70: 1.5 | N70: 0.5
B71: =Translate!C391 -> Deciduous Orchard (no ground cover/no frosts - Mar - California) | C71: 65 | D71: 30 | E71: 50 | F71: 130 | G71: 30 | H71: 240 | I71: 0.58 | J71: 0.93 | K71: 0.7 | L71: 1.5 | M71: 1.5 | N71: 0.5
B72: =Translate!C392 -> Deciduous Orchard (active ground cover/killing frost - California) | C72: 66 | D72: 30 | E72: 50 | F72: 130 | G72: 30 | H72: 240 | I72: 0.5 | J72: 1.18 | K72: 0.93 | L72: 1.5 | M72: 1.5 | N72: 0.5
B73: =Translate!C393 -> Deciduous Orchard (active ground cover/no frosts - Mar - California) | C73: 67 | D73: 30 | E73: 50 | F73: 130 | G73: 30 | H73: =SUM(D73:G73) -> 240 | I73: 0.8 | J73: 1.18 | K73: 0.85 | L73: 1.5 | M73: 1.5 | N73: 0.5
B74: =Translate!C394 -> Eggplant (Oct - arid region) | C74: 68 | D74: 30 | E74: 40 | F74: 40 | G74: 20 | H74: 130 | I74: 0.6 | J74: 1.05 | K74: 0.9 | L74: 0.25 | M74: 1 | N74: 0.45
B75: =Translate!C395 -> Eggplant (May/Jun - Mediterranean) | C75: 69 | D75: 30 | E75: 45 | F75: 40 | G75: 25 | H75: 140 | I75: 0.6 | J75: 1.05 | K75: 0.9 | L75: 0.25 | M75: 1 | N75: 0.45
B76: =Translate!C396 -> Faba bean, broad bean (May - Europe) | C76: 70 | D76: 15 | E76: 25 | F76: 35 | G76: 15 | H76: 90 | I76: 0.5 | J76: 1.15 | K76: 1.1 | L76: 0.25 | M76: 1 | N76: 0.5
B77: =Translate!C397 -> Faba bean, broad bean (Mar/Apr - Mediterranean) | C77: 71 | D77: 20 | E77: 30 | F77: 35 | G77: 15 | H77: 100 | I77: 0.5 | J77: 1.15 | K77: 1.1 | L77: 0.25 | M77: 1 | N77: 0.5
B78: =Translate!C398 -> Faba bean, broad bean (dry - Nov - Europe) | C78: 72 | D78: 90 | E78: 45 | F78: 40 | G78: 60 | H78: 235 | I78: 0.5 | J78: 1.15 | K78: 1.1 | L78: 0.25 | M78: 1 | N78: 0.5
B79: =Translate!C399 -> Faba bean, broad bean (green - Nov - Europe) | C79: 73 | D79: 90 | E79: 45 | F79: 40 | G79: 0 | H79: 175 | I79: 0.5 | J79: 1.15 | K79: 0.3 | L79: 0.25 | M79: 1 | N79: 0.5
B80: =Translate!C400 -> Flax (Apr - Europe) | C80: 74 | D80: 25 | E80: 35 | F80: 50 | G80: 40 | H80: 150 | I80: 0.35 | J80: 1.1 | K80: 0.25 | L80: 0.3 | M80: 1.2 | N80: 0.5
B81: =Translate!C401 -> Flax (Oct - Arizona) | C81: 75 | D81: 30 | E81: 40 | F81: 100 | G81: 50 | H81: 220 | I81: 0.35 | J81: 1.1 | K81: 0.25 | L81: 0.3 | M81: 1.2 | N81: 0.5
B82: =Translate!C402 -> Grapes (Apr - low latitudes) | C82: 76 | D82: 20 | E82: 40 | F82: 120 | G82: 60 | H82: 240 | I82: 0.3 | J82: 0.85 | K82: 0.45 | L82: 1.5 | M82: 1.5 | N82: 0.35
B83: =Translate!C403 -> Grapes (Mar - California) | C83: 77 | D83: 20 | E83: 50 | F83: 75 | G83: 60 | H83: 205 | I83: 0.3 | J83: 0.85 | K83: 0.45 | L83: 1.5 | M83: 1.5 | N83: 0.35
B84: =Translate!C404 -> Grapes (May - high latitudes ) | C84: 78 | D84: 20 | E84: 50 | F84: 90 | G84: 20 | H84: 180 | I84: 0.3 | J84: 0.85 | K84: 0.45 | L84: 1.5 | M84: 1.5 | N84: 0.35
B85: =Translate!C405 -> Grapes (wine - Apr - mid latitudes) | C85: 79 | D85: 30 | E85: 60 | F85: 40 | G85: 80 | H85: 210 | I85: 0.3 | J85: 0.7 | K85: 0.45 | L85: 1.5 | M85: 1.5 | N85: 0.45
B86: =Translate!C406 -> Green gram, cowpeas (harvest fresh - Mar -Mediterranean) | C86: 80 | D86: 20 | E86: 30 | F86: 30 | G86: 20 | H86: 100 | I86: 0.4 | J86: 1.05 | K86: 0.6 | L86: 0.3 | M86: 1 | N86: 0.45
B87: =Translate!C407 -> Green gram, cowpeas (harvest dry - Mar -Mediterranean) | C87: 81 | D87: 20 | E87: 30 | F87: 30 | G87: 20 | H87: 100 | I87: 0.4 | J87: 1.05 | K87: 0.35 | L87: 0.3 | M87: 1 | N87: 0.45
B88: =Translate!C408 -> Groundnut (Dry - West Africa ) | C88: 82 | D88: 25 | E88: 35 | F88: 45 | G88: 25 | H88: 130 | I88: 0.4 | J88: 1.15 | K88: 0.6 | L88: 0.3 | M88: 0.8 | N88: 0.45
B89: =Translate!C409 -> Groundnut (season - high latitudes) | C89: 83 | D89: 35 | E89: 35 | F89: 35 | G89: 35 | H89: 140 | I89: 0.4 | J89: 1.15 | K89: 0.6 | L89: 0.3 | M89: 0.8 | N89: 0.45
B90: =Translate!C410 -> Groundnut (May/Jun - Mediterranean) | C90: 84 | D90: 35 | E90: 45 | F90: 35 | G90: 25 | H90: 140 | I90: 0.4 | J90: 1.15 | K90: 0.6 | L90: 0.3 | M90: 0.8 | N90: 0.45
B91: =Translate!C411 -> Hops (Apr - Idaho) | C91: 85 | D91: 25 | E91: 40 | F91: 80 | G91: 10 | H91: 155 | I91: 0.3 | J91: 1.05 | K91: 0.85 | L91: 0.3 | M91: 1 | N91: 0.5
B92: =Translate!C412 -> Kale, Rape | C92: 86 | D92: 20 | E92: 20 | F92: 30 | G92: 50 | H92: 120 | I92: 0.7 | J92: 1 | K92: 0.95 | L92: 0.2 | M92: 0.4 | N92: 0.5
B93: =Translate!C413 -> Lentil (Apr - Europe) | C93: 87 | D93: 20 | E93: 30 | F93: 60 | G93: 40 | H93: 150 | I93: 0.4 | J93: 1.1 | K93: 0.3 | L93: 0.3 | M93: 0.8 | N93: 0.5
B94: =Translate!C414 -> Lentil (Oct/Nov -arid region) | C94: 88 | D94: 25 | E94: 35 | F94: 70 | G94: 40 | H94: 170 | I94: 0.4 | J94: 1.1 | K94: 0.3 | L94: 0.3 | M94: 0.8 | N94: 0.5
B95: =Translate!C415 -> Lettuce (Apr - Mediterranean) | C95: 89 | D95: 20 | E95: 30 | F95: 15 | G95: 10 | H95: 75 | I95: 0.7 | J95: 1 | K95: 0.95 | L95: 0.2 | M95: 0.5 | N95: 0.3
B96: =Translate!C416 -> Lettuce (Nov/Jan - Mediterranean) | C96: 90 | D96: 30 | E96: 40 | F96: 25 | G96: 10 | H96: 105 | I96: 0.7 | J96: 1 | K96: 0.95 | L96: 0.2 | M96: 0.5 | N96: 0.3
B97: =Translate!C417 -> Lettuce (Oct/Nov - arid region) | C97: 91 | D97: 25 | E97: 35 | F97: 30 | G97: 10 | H97: 100 | I97: 0.7 | J97: 1 | K97: 0.95 | L97: 0.2 | M97: 0.5 | N97: 0.3
B98: =Translate!C418 -> Lettuce (Feb - Mediterranean) | C98: 92 | D98: 35 | E98: 50 | F98: 45 | G98: 10 | H98: 140 | I98: 0.7 | J98: 1 | K98: 0.95 | L98: 0.2 | M98: 0.5 | N98: 0.3
B99: =Translate!C419 -> Maize (grain - Apr - East Africa (alt.)) | C99: 93 | D99: 30 | E99: 50 | F99: 60 | G99: 40 | H99: 180 | I99: 0.3 | J99: 1.2 | K99: 0.5 | L99: 0.3 | M99: 1 | N99: 0.55
B100: =Translate!C420 -> Maize (grain - Dec/Jan - arid climate) | C100: 94 | D100: 25 | E100: 40 | F100: 45 | G100: 30 | H100: 140 | I100: 0.3 | J100: 1.2 | K100: 0.5 | L100: 0.3 | M100: 1 | N100: 0.55
B101: =Translate!C421 -> Maize (grain - Jun - Nigeria (humid)) | C101: 95 | D101: 20 | E101: 35 | F101: 40 | G101: 30 | H101: 125 | I101: 0.3 | J101: 1.2 | K101: 0.5 | L101: 0.3 | M101: 1 | N101: 0.55
B102: =Translate!C422 -> Maize (grain - Oct - India (dry, cool)) | C102: 96 | D102: 20 | E102: 35 | F102: 40 | G102: 30 | H102: 125 | I102: 0.3 | J102: 1.2 | K102: 0.5 | L102: 0.3 | M102: 1 | N102: 0.55
B103: =Translate!C423 -> Maize (grain - Apr - Spain (spring, summer)/California) | C103: 97 | D103: 30 | E103: 40 | F103: 50 | G103: 30 | H103: 150 | I103: 0.3 | J103: 1.2 | K103: 0.5 | L103: 0.3 | M103: 1 | N103: 0.55
B104: =Translate!C424 -> Maize (grain - Apr - Idaho) | C104: 98 | D104: 30 | E104: 40 | F104: 50 | G104: 50 | H104: 170 | I104: 0.3 | J104: 1.2 | K104: 0.5 | L104: 0.3 | M104: 1 | N104: 0.55
B105: =Translate!C425 -> Maize (sweet - Mar - Philippines) | C105: 99 | D105: 20 | E105: 20 | F105: 30 | G105: 10 | H105: 80 | I105: 0.3 | J105: 1.15 | K105: 1.05 | L105: 0.3 | M105: 1 | N105: 0.55
B106: =Translate!C426 -> Maize (sweet - May/Jun - Mediterranean) | C106: 100 | D106: 20 | E106: 25 | F106: 25 | G106: 10 | H106: 80 | I106: 0.3 | J106: 1.15 | K106: 1.05 | L106: 0.3 | M106: 1 | N106: 0.55
B107: =Translate!C427 -> Maize (sweet - Oct/Dec - arid climate) | C107: 101 | D107: 20 | E107: 30 | F107: 40 | G107: 10 | H107: 100 | I107: 0.3 | J107: 1.15 | K107: 1.05 | L107: 0.3 | M107: 1 | N107: 0.55
B108: =Translate!C428 -> Maize (sweet - Apr - Idaho) | C108: 102 | D108: 30 | E108: 30 | F108: 30 | G108: 103 | H108: 193 | I108: 0.3 | J108: 1.15 | K108: 1.05 | L108: 0.3 | M108: 1 | N108: 0.55
B109: =Translate!C429 -> Maize (sweet - Jan - California desert) | C109: 103 | D109: 20 | E109: 40 | F109: 70 | G109: 10 | H109: 140 | I109: 0.3 | J109: 1.15 | K109: 1.05 | L109: 0.3 | M109: 1 | N109: 0.55
B110: =Translate!C430 -> Mango (Jun) | C110: 104 | D110: 90 | E110: 90 | F110: 90 | G110: 95 | H110: 365 | I110: 0.9 | J110: 1.1 | K110: 0.9 | L110: 2 | M110: 2 | N110: 0.6
B111: =Translate!C431 -> Millet (Jun - Pakistan) | C111: 105 | D111: 15 | E111: 25 | F111: 40 | G111: 25 | H111: 105 | I111: 0.3 | J111: 1 | K111: 0.3 | L111: 0.3 | M111: 1.2 | N111: 0.6
B112: =Translate!C432 -> Millet (Apr - Central USA) | C112: 106 | D112: 20 | E112: 30 | F112: 55 | G112: 35 | H112: 140 | I112: 0.3 | J112: 1 | K112: 0.3 | L112: 0.3 | M112: 1.2 | N112: 0.6
B113: =Translate!C433 -> Okra (sub humid) | C113: 107 | D113: 20 | E113: 20 | F113: 40 | G113: 20 | H113: 100 | I113: 0.5 | J113: 0.95 | K113: 0.55 | L113: 0.3 | M113: 0.5 | N113: 0.5
B114: =Translate!C434 -> Olives (Mar - Mediterranean) | C114: 108 | D114: 30 | E114: 90 | F114: 60 | G114: 90 | H114: 270 | I114: 0.65 | J114: 0.7 | K114: 0.7 | L114: 1.5 | M114: 1.5 | N114: 0.65
B115: =Translate!C435 -> Onion (dry - Apr - Mediterranean) | C115: 109 | D115: 15 | E115: 25 | F115: 70 | G115: 40 | H115: 150 | I115: 0.7 | J115: 1.05 | K115: 0.75 | L115: 0.3 | M115: 0.6 | N115: 0.3
B116: =Translate!C436 -> Onion (dry - Oct/Jan - arid region/California) | C116: 110 | D116: 20 | E116: 35 | F116: 110 | G116: 45 | H116: 210 | I116: 0.7 | J116: 1.05 | K116: 0.75 | L116: 0.3 | M116: 0.6 | N116: 0.3
B117: =Translate!C437 -> Onion (green - Apr/May - Mediterranean) | C117: 111 | D117: 25 | E117: 30 | F117: 10 | G117: 5 | H117: 70 | I117: 0.7 | J117: 1 | K117: 1 | L117: 0.3 | M117: 0.6 | N117: 0.3
B118: =Translate!C438 -> Onion (green - Oct - arid region) | C118: 112 | D118: 20 | E118: 45 | F118: 20 | G118: 10 | H118: 95 | I118: 0.7 | J118: 1 | K118: 1 | L118: 0.3 | M118: 0.6 | N118: 0.3
B119: =Translate!C439 -> Onion (green - Mar - California) | C119: 113 | D119: 30 | E119: 55 | F119: 55 | G119: 40 | H119: 180 | I119: 0.7 | J119: 1 | K119: 1 | L119: 0.3 | M119: 0.6 | N119: 0.3
B120: =Translate!C440 -> Onion (seed - Sept - California desert) | C120: 114 | D120: 20 | E120: 45 | F120: 165 | G120: 45 | H120: 275 | I120: 0.7 | J120: 1.05 | K120: 0.8 | L120: 0.3 | M120: 0.6 | N120: 0.3
B121: =Translate!C441 -> Peas (fresh - May - Europe) | C121: 115 | D121: 15 | E121: 25 | F121: 35 | G121: 15 | H121: 90 | I121: 0.5 | J121: 1.152 | K121: 1.1 | L121: 0.3 | M121: 1 | N121: 0.35
B122: =Translate!C442 -> Peas (fresh - Mar/Apr - Mediterranean) | C122: 116 | D122: 20 | E122: 30 | F122: 35 | G122: 15 | H122: 100 | I122: 0.5 | J122: 1.152 | K122: 1.1 | L122: 0.3 | M122: 1 | N122: 0.35
B123: =Translate!C443 -> Peas (fresh - Apr - Idaho) | C123: 117 | D123: 35 | E123: 25 | F123: 30 | G123: 20 | H123: 110 | I123: 0.5 | J123: 1.152 | K123: 1.1 | L123: 0.3 | M123: 1 | N123: 0.35
B124: =Translate!C444 -> Peas (dry - May - Europe) | C124: 118 | D124: 15 | E124: 25 | F124: 35 | G124: 15 | H124: 90 | I124: 0.4 | J124: 1.15 | K124: 0.3 | L124: 0.3 | M124: 1 | N124: 0.4
B125: =Translate!C445 -> Peas (dry - Mar/Apr - Mediterranean) | C125: 119 | D125: 20 | E125: 30 | F125: 35 | G125: 15 | H125: 100 | I125: 0.4 | J125: 1.15 | K125: 0.3 | L125: 0.3 | M125: 1 | N125: 0.4
B126: =Translate!C446 -> Peas (dry - Apr - Idaho) | C126: 120 | D126: 35 | E126: 25 | F126: 30 | G126: 20 | H126: 110 | I126: 0.4 | J126: 1.15 | K126: 0.3 | L126: 0.3 | M126: 1 | N126: 0.4
B127: =Translate!C447 -> Pigeon peas | C127: 121 | D127: 20 | E127: 30 | F127: 30 | G127: 20 | H127: 100 | I127: 0.4 | J127: 1.05 | K127: 0.35 | L127: 0.3 | M127: 1 | N127: 0.4
B128: =Translate!C448 -> Pineapple (bare soil - Hawaii) | C128: 122 | D128: 60 | E128: 120 | F128: 600 | G128: 10 | H128: 790 | I128: 0.5 | J128: 0.3 | K128: 0.3 | L128: 0.3 | M128: 0.6 | N128: 0.5
B129: =Translate!C449 -> Pineapple (with grass cover - Hawaii) | C129: 123 | D129: 60 | E129: 120 | F129: 600 | G129: 10 | H129: 790 | I129: 0.5 | J129: 0.5 | K129: 0.5 | L129: 0.3 | M129: 0.6 | N129: 0.5
B130: =Translate!C450 -> Pistachios (no ground cover - Feb - Mediterranean) | C130: 124 | D130: 20 | E130: 60 | F130: 30 | G130: 40 | H130: 150 | I130: 0.4 | J130: 1.1 | K130: 0.45 | L130: 1.2 | M130: 1.2 | N130: 0.4
B131: =Translate!C451 -> Potato (Jan/Nov - semiarid climate) | C131: 125 | D131: 25 | E131: 30 | F131: 47 | G131: 30 | H131: 132 | I131: 0.5 | J131: 1.15 | K131: 0.75 | L131: 0.25 | M131: 0.6 | N131: 0.35
B132: =Translate!C452 -> Potato (May - Continental Climate ) | C132: 126 | D132: 25 | E132: 30 | F132: 45 | G132: 30 | H132: 130 | I132: 0.5 | J132: 1.15 | K132: 0.75 | L132: 0.25 | M132: 0.6 | N132: 0.35
B133: =Translate!C453 -> Potato (Apr - Europe) | C133: 127 | D133: 30 | E133: 35 | F133: 50 | G133: 30 | H133: 145 | I133: 0.5 | J133: 1.15 | K133: 0.75 | L133: 0.25 | M133: 0.6 | N133: 0.35
B134: =Translate!C454 -> Potato (Apr/May - Idaho, USA ) | C134: 128 | D134: 45 | E134: 30 | F134: 70 | G134: 20 | H134: 165 | I134: 0.5 | J134: 1.15 | K134: 0.75 | L134: 0.25 | M134: 0.6 | N134: 0.35
B135: =Translate!C455 -> Potato (Dec - California desert) | C135: 129 | D135: 30 | E135: 35 | F135: 50 | G135: 25 | H135: 140 | I135: 0.5 | J135: 1.15 | K135: 0.75 | L135: 0.25 | M135: 0.6 | N135: 0.35
B136: =Translate!C456 -> Pumpkin, Winter squash (Mar/Aug - Mediterranean) | C136: 130 | D136: 20 | E136: 30 | F136: 30 | G136: 20 | H136: 100 | I136: 0.5 | J136: 1 | K136: 0.8 | L136: 0.3 | M136: 1.2 | N136: 0.35
B137: =Translate!C457 -> Pumpkin, Winter squash (Jun - Europe) | C137: 131 | D137: 25 | E137: 35 | F137: 35 | G137: 25 | H137: =SUM(D137:G137) -> 120 | I137: 0.5 | J137: 1 | K137: 0.8 | L137: 0.3 | M137: 1.2 | N137: 0.35
B138: =Translate!C458 -> Radish (Mar/Apr - Mediterranean/Europe) | C138: 132 | D138: 5 | E138: 10 | F138: 15 | G138: 5 | H138: 35 | I138: 0.7 | J138: 0.9 | K138: 0.85 | L138: 0.2 | M138: 0.5 | N138: 0.3
B139: =Translate!C459 -> Radish (Winter - arid region) | C139: 133 | D139: 10 | E139: 10 | F139: 15 | G139: 5 | H139: 40 | I139: 0.7 | J139: 0.9 | K139: 0.85 | L139: 0.2 | M139: 0.5 | N139: 0.3
B140: =Translate!C460 -> Rice (Dec/May - Tropics/Mediterranean) | C140: 134 | D140: 30 | E140: 30 | F140: 60 | G140: 30 | H140: 150 | I140: 1.05 | J140: 1.2 | K140: 0.75 | L140: 0.1 | M140: 0.6 | N140: 0.2
B141: =Translate!C461 -> Safflower (Apr - California) | C141: 135 | D141: 20 | E141: 35 | F141: 45 | G141: 25 | H141: 125 | I141: 0.35 | J141: 1.1 | K141: 0.25 | L141: 0.3 | M141: 1.2 | N141: 0.6
B142: =Translate!C462 -> Safflower (Mar - high latitudes) | C142: 136 | D142: 25 | E142: 35 | F142: 55 | G142: 30 | H142: 145 | I142: 0.35 | J142: 1.1 | K142: 0.25 | L142: 0.3 | M142: 1.2 | N142: 0.6
B143: =Translate!C463 -> Safflower (Oct/Nov - arid region) | C143: 137 | D143: 35 | E143: 55 | F143: 60 | G143: 40 | H143: 190 | I143: 0.35 | J143: 1.1 | K143: 0.25 | L143: 0.3 | M143: 1.2 | N143: 0.6
B144: =Translate!C464 -> Sesame (Jun - China) | C144: 138 | D144: 20 | E144: 30 | F144: 40 | G144: 20 | H144: 110 | I144: 0.35 | J144: 1.1 | K144: 0.25 | L144: 0.3 | M144: 1.2 | N144: 0.6
B145: =Translate!C465 -> Sorghum (grain - May/Jun - USA/Pakistan/Mediterranean) | C145: 139 | D145: 20 | E145: 35 | F145: 40 | G145: 30 | H145: 125 | I145: 0.3 | J145: 1.05 | K145: 0.55 | L145: 0.3 | M145: 1.4 | N145: 0.55
B146: =Translate!C466 -> Sorghum (grain - Mar/Apr - arid region) | C146: 140 | D146: 20 | E146: 35 | F146: 45 | G146: 30 | H146: 130 | I146: 0.3 | J146: 1.05 | K146: 0.55 | L146: 0.3 | M146: 1.4 | N146: 0.55
B147: =Translate!C467 -> Sorghum (sweet - May/Jun - USA/Pakistan/Mediterranean) | C147: 141 | D147: 20 | E147: 35 | F147: 40 | G147: 30 | H147: 125 | I147: 0.3 | J147: 1.2 | K147: 1.05 | L147: 0.3 | M147: 1.4 | N147: 0.5
B148: =Translate!C468 -> Sorghum (sweet - Mar/Apr - arid region) | C148: 142 | D148: 20 | E148: 35 | F148: 45 | G148: 30 | H148: 130 | I148: 0.3 | J148: 1.2 | K148: 1.05 | L148: 0.3 | M148: 1.4 | N148: 0.5
B149: =Translate!C469 -> Soybeans (Dec - Tropics) | C149: 143 | D149: 15 | E149: 15 | F149: 40 | G149: 15 | H149: 85 | I149: 0.4 | J149: 1.15 | K149: 0.5 | L149: 0.3 | M149: 1 | N149: 0.5
B150: =Translate!C470 -> Soybeans (May - Central USA) | C150: 144 | D150: 20 | E150: 32 | F150: 60 | G150: 25 | H150: 137 | I150: 0.4 | J150: 1.15 | K150: 0.5 | L150: 0.3 | M150: 1 | N150: 0.5
B151: =Translate!C471 -> Soybeans (Jun - Japan ) | C151: 145 | D151: 20 | E151: 25 | F151: 75 | G151: 30 | H151: 150 | I151: 0.4 | J151: 1.15 | K151: 0.5 | L151: 0.3 | M151: 1 | N151: 0.5
B152: =Translate!C472 -> Spinach (Apr/Sep/Oct - Mediterranean) | C152: 146 | D152: 20 | E152: 20 | F152: 20 | G152: 5 | H152: 65 | I152: 0.7 | J152: 1 | K152: 0.95 | L152: 0.1 | M152: 0.5 | N152: 0.2
B153: =Translate!C473 -> Spinach (Nov - arid region) | C153: 147 | D153: 20 | E153: 30 | F153: 40 | G153: 10 | H153: 100 | I153: 0.7 | J153: 1 | K153: 0.95 | L153: 0.1 | M153: 0.5 | N153: 0.2
B154: =Translate!C474 -> Squash, Zucchini (Apr/Dec - Mediterranean/arid region) | C154: 148 | D154: 25 | E154: 35 | F154: 25 | G154: 15 | H154: 100 | I154: 0.5 | J154: 0.95 | K154: 0.75 | L154: 0.3 | M154: 0.8 | N154: 0.5
B155: =Translate!C475 -> Squash, Zucchini (May/Jun - Mediterranean/Europe) | C155: 149 | D155: 20 | E155: 30 | F155: 25 | G155: 15 | H155: 90 | I155: 0.5 | J155: 0.95 | K155: 0.75 | L155: 0.3 | M155: 0.8 | N155: 0.5
B156: =Translate!C476 -> Sudan (1st cutting cycle - Apr - California desert) | C156: 150 | D156: 25 | E156: 25 | F156: 15 | G156: 10 | H156: 75 | I156: 0.5 | J156: 1 | K156: 0.95 | L156: 1 | M156: 1 | N156: 0.55
B157: =Translate!C477 -> Sudan (other cutting cycles - Jun -California desert) | C157: 151 | D157: 3 | E157: 15 | F157: 12 | G157: 7 | H157: 37 | I157: 0.5 | J157: 1 | K157: 0.95 | L157: 1 | M157: 1 | N157: 0.55
B158: =Translate!C478 -> Sugarbeet (Mar - California) | C158: 152 | D158: 30 | E158: 45 | F158: 90 | G158: 15 | H158: 180 | I158: 0.35 | J158: 1.2 | K158: 0.7 | L158: 0.3 | M158: 1 | N158: 0.6
B159: =Translate!C479 -> Sugarbeet (Jun - California) | C159: 153 | D159: 25 | E159: 30 | F159: 90 | G159: 10 | H159: 155 | I159: 0.35 | J159: 1.2 | K159: 0.7 | L159: 0.3 | M159: 1 | N159: 0.6
B160: =Translate!C480 -> Sugarbeet (Sep - California desert) | C160: 154 | D160: 25 | E160: 65 | F160: 100 | G160: 65 | H160: 255 | I160: 0.35 | J160: 1.2 | K160: 0.7 | L160: 0.3 | M160: 1 | N160: 0.6
B161: =Translate!C481 -> Sugarbeet (Apr - Idaho) | C161: 155 | D161: 50 | E161: 40 | F161: 50 | G161: 40 | H161: 180 | I161: 0.35 | J161: 1.2 | K161: 0.7 | L161: 0.3 | M161: 1 | N161: 0.6
B162: =Translate!C482 -> Sugarbeet (May - Mediterranean) | C162: 156 | D162: 25 | E162: 35 | F162: 50 | G162: 50 | H162: 160 | I162: 0.35 | J162: 1.2 | K162: 0.7 | L162: 0.3 | M162: 1 | N162: 0.6
B163: =Translate!C483 -> Sugarbeet (Nov - Mediterranean) | C163: 157 | D163: 45 | E163: 75 | F163: 80 | G163: 30 | H163: 230 | I163: 0.35 | J163: 1.2 | K163: 0.7 | L163: 0.3 | M163: 1 | N163: 0.6
B164: =Translate!C484 -> Sugarbeet (Nov - arid regions) | C164: 158 | D164: 35 | E164: 60 | F164: 70 | G164: 40 | H164: 205 | I164: 0.35 | J164: 1.2 | K164: 0.7 | L164: 0.3 | M164: 1 | N164: 0.6
B165: =Translate!C485 -> Sugarcane (ratoon - low latitudes) | C165: 159 | D165: 25 | E165: 70 | F165: 135 | G165: 50 | H165: 280 | I165: 0.4 | J165: 1.25 | K165: 0.75 | L165: 1.5 | M165: 1.5 | N165: 0.65
B166: =Translate!C486 -> Sugarcane (ratoon - Tropics) | C166: 160 | D166: 30 | E166: 50 | F166: 180 | G166: 60 | H166: 320 | I166: 0.4 | J166: 1.25 | K166: 0.75 | L166: 1.5 | M166: 1.5 | N166: 0.65
B167: =Translate!C487 -> Sugarcane (ratoon - Hawaii) | C167: 161 | D167: 35 | E167: 105 | F167: 210 | G167: 70 | H167: 420 | I167: 0.4 | J167: 1.25 | K167: 0.75 | L167: 1.5 | M167: 1.5 | N167: 0.65
B168: =Translate!C488 -> Sugarcane (virgin - low latitudes) | C168: 162 | D168: 35 | E168: 60 | F168: 190 | G168: 120 | H168: 405 | I168: 0.4 | J168: 1.25 | K168: 0.75 | L168: 1.5 | M168: 1.5 | N168: 0.65
B169: =Translate!C489 -> Sugarcane (virgin - Tropics) | C169: 163 | D169: 50 | E169: 70 | F169: 220 | G169: 140 | H169: 480 | I169: 0.4 | J169: 1.25 | K169: 0.75 | L169: 1.5 | M169: 1.5 | N169: 0.65
B170: =Translate!C490 -> Sugarcane (virgin - Hawaii) | C170: 164 | D170: 75 | E170: 105 | F170: 330 | G170: 210 | H170: 720 | I170: 0.4 | J170: 1.25 | K170: 0.75 | L170: 1.5 | M170: 1.5 | N170: 0.65
B171: =Translate!C491 -> Sunflower (Apr/May - Mediterranean/California) | C171: 165 | D171: 25 | E171: 35 | F171: 45 | G171: 25 | H171: 130 | I171: 0.35 | J171: 1.1 | K171: 0.35 | L171: 0.3 | M171: 1.3 | N171: 0.5
B172: =Translate!C492 -> Sweet melons (May - Mediterranean) | C172: 166 | D172: 25 | E172: 35 | F172: 40 | G172: 20 | H172: 120 | I172: 0.5 | J172: 1.05 | K172: 0.75 | L172: 0.3 | M172: 1 | N172: 0.4
B173: =Translate!C493 -> Sweet melons (Mar - California) | C173: 167 | D173: 30 | E173: 30 | F173: 50 | G173: 30 | H173: 140 | I173: 0.5 | J173: 1.05 | K173: 0.75 | L173: 0.3 | M173: 1 | N173: 0.4
B174: =Translate!C494 -> Sweet melons (Aug - California desert) | C174: 168 | D174: 15 | E174: 40 | F174: 65 | G174: 15 | H174: 135 | I174: 0.5 | J174: 1.05 | K174: 0.75 | L174: 0.3 | M174: 1 | N174: 0.4
B175: =Translate!C495 -> Sweet melons (Dec/Jan - arid region) | C175: 169 | D175: 30 | E175: 45 | F175: 65 | G175: 20 | H175: 160 | I175: 0.5 | J175: 1.05 | K175: 0.75 | L175: 0.3 | M175: 1 | N175: 0.4
B176: =Translate!C496 -> Sweet peppers (Apr/Jun - Europe/Mediterranean) | C176: 170 | D176: 28 | E176: 35 | F176: 40 | G176: 20 | H176: 123 | I176: 0.6 | J176: 1.05 | K176: 0.9 | L176: 0.25 | M176: 0.8 | N176: 0.3
B177: =Translate!C497 -> Sweet peppers (Oct - arid region) | C177: 171 | D177: 30 | E177: 40 | F177: 110 | G177: 30 | H177: 210 | I177: 0.6 | J177: 1.05 | K177: 0.9 | L177: 0.25 | M177: 0.8 | N177: 0.3
B178: =Translate!C498 -> Sweet potato (Apr - Mediterranean) | C178: 172 | D178: 20 | E178: 30 | F178: 60 | G178: 40 | H178: 150 | I178: 0.5 | J178: 1.15 | K178: 0.65 | L178: 0.3 | M178: 1 | N178: 0.65
B179: =Translate!C499 -> Sweet potato (rainy season - Tropical regions) | C179: 173 | D179: 15 | E179: 30 | F179: 50 | G179: 30 | H179: 125 | I179: 0.5 | J179: 1.15 | K179: 0.65 | L179: 0.3 | M179: 1 | N179: 0.65
B180: =Translate!C500 -> Tomato (Jan - arid region) | C180: 174 | D180: 30 | E180: 40 | F180: 40 | G180: 25 | H180: 135 | I180: 0.6 | J180: 1.15 | K180: 0.8 | L180: 0.25 | M180: 0.8 | N180: 0.5
B181: =Translate!C501 -> Tomato (Apr/May - California) | C181: 175 | D181: 35 | E181: 40 | F181: 50 | G181: 30 | H181: 155 | I181: 0.6 | J181: 1.15 | K181: 0.8 | L181: 0.25 | M181: 0.8 | N181: 0.5
B182: =Translate!C502 -> Tomato (Jan - California desert) | C182: 176 | D182: 25 | E182: 40 | F182: 60 | G182: 30 | H182: 155 | I182: 0.6 | J182: 1.15 | K182: 0.8 | L182: 0.25 | M182: 0.8 | N182: 0.5
B183: =Translate!C503 -> Tomato (Oct/Nov - arid region) | C183: 177 | D183: 35 | E183: 45 | F183: 70 | G183: 30 | H183: 180 | I183: 0.6 | J183: 1.15 | K183: 0.8 | L183: 0.25 | M183: 0.8 | N183: 0.5
B184: =Translate!C504 -> Tomato (Apr/May - Mediterranean) | C184: 178 | D184: 30 | E184: 40 | F184: 45 | G184: 30 | H184: 145 | I184: 0.6 | J184: 1.15 | K184: 0.8 | L184: 0.25 | M184: 0.8 | N184: 0.5
B185: =Translate!C505 -> Walnuts (Apr - Utah) | C185: 179 | D185: 20 | E185: 10 | F185: 130 | G185: 30 | H185: 190 | I185: 0.5 | J185: 1.1 | K185: 0.65 | L185: 2 | M185: 2 | N185: 0.5
B186: =Translate!C506 -> Water melons (Apr - Italy) | C186: 180 | D186: 20 | E186: 30 | F186: 30 | G186: 30 | H186: 110 | I186: 0.4 | J186: 1 | K186: 0.75 | L186: 0.3 | M186: 1 | N186: 0.4
B187: =Translate!C507 -> Water melons (Mat/Aug - Near East (desert)) | C187: 181 | D187: 10 | E187: 20 | F187: 20 | G187: 30 | H187: 80 | I187: 0.4 | J187: 1 | K187: 0.75 | L187: 0.3 | M187: 1 | N187: 0.4
B188: =Translate!C508 -> Winter Wheat (Dec - California) | C188: 182 | D188: 202 | E188: 602 | F188: 70 | G188: 30 | H188: 904 | I188: 0.4 | J188: 1.15 | K188: 0.35 | L188: 0.3 | M188: 1.5 | N188: 0.55
B189: =Translate!C509 -> Winter Wheat (Nov - Mediterranean) | C189: 183 | D189: 30 | E189: 140 | F189: 40 | G189: 30 | H189: 240 | I189: 0.4 | J189: 1.15 | K189: 0.35 | L189: 0.3 | M189: 1.5 | N189: 0.55
B190: =Translate!C510 -> Winter Wheat (Oct - Idaho) | C190: 184 | D190: 160 | E190: 75 | F190: 75 | G190: 25 | H190: 335 | I190: 0.7 | J190: 1.15 | K190: 0.35 | L190: 0.3 | M190: 1.5 | N190: 0.55
B191: =Translate!$C$511 -> New crop | C191: 185 | D191: =Translate!$C$512 -> Insert value | E191: =Translate!$C$512 -> Insert value | F191: =Translate!$C$512 -> Insert value | G191: =Translate!$C$512 -> Insert value | H191: 0 | I191: =Translate!$C$512 -> Insert value | J191: =Translate!$C$512 -> Insert value | K191: =Translate!$C$512 -> Insert value | L191: =Translate!$C$512 -> Insert value | M191: =Translate!$C$512 -> Insert value | N191: =Translate!$C$512 -> Insert value
B192: =Translate!$C$511 -> New crop | C192: 186 | D192: =Translate!$C$512 -> Insert value | E192: =Translate!$C$512 -> Insert value | F192: =Translate!$C$512 -> Insert value | G192: =Translate!$C$512 -> Insert value | H192: 0 | I192: =Translate!$C$512 -> Insert value | J192: =Translate!$C$512 -> Insert value | K192: =Translate!$C$512 -> Insert value | L192: =Translate!$C$512 -> Insert value | M192: =Translate!$C$512 -> Insert value | N192: =Translate!$C$512 -> Insert value
B193: =Translate!$C$511 -> New crop | C193: 187 | D193: =Translate!$C$512 -> Insert value | E193: =Translate!$C$512 -> Insert value | F193: =Translate!$C$512 -> Insert value | G193: =Translate!$C$512 -> Insert value | H193: 0 | I193: =Translate!$C$512 -> Insert value | J193: =Translate!$C$512 -> Insert value | K193: =Translate!$C$512 -> Insert value | L193: =Translate!$C$512 -> Insert value | M193: =Translate!$C$512 -> Insert value | N193: =Translate!$C$512 -> Insert value
B194: =Translate!$C$511 -> New crop | C194: 188 | D194: =Translate!$C$512 -> Insert value | E194: =Translate!$C$512 -> Insert value | F194: =Translate!$C$512 -> Insert value | G194: =Translate!$C$512 -> Insert value | H194: 0 | I194: =Translate!$C$512 -> Insert value | J194: =Translate!$C$512 -> Insert value | K194: =Translate!$C$512 -> Insert value | L194: =Translate!$C$512 -> Insert value | M194: =Translate!$C$512 -> Insert value | N194: =Translate!$C$512 -> Insert value
B195: =Translate!$C$511 -> New crop | C195: 189 | D195: =Translate!$C$512 -> Insert value | E195: =Translate!$C$512 -> Insert value | F195: =Translate!$C$512 -> Insert value | G195: =Translate!$C$512 -> Insert value | H195: 0 | I195: =Translate!$C$512 -> Insert value | J195: =Translate!$C$512 -> Insert value | K195: =Translate!$C$512 -> Insert value | L195: =Translate!$C$512 -> Insert value | M195: =Translate!$C$512 -> Insert value | N195: =Translate!$C$512 -> Insert value
B196: =Translate!$C$511 -> New crop | C196: 190 | D196: =Translate!$C$512 -> Insert value | E196: =Translate!$C$512 -> Insert value | F196: =Translate!$C$512 -> Insert value | G196: =Translate!$C$512 -> Insert value | H196: 0 | I196: =Translate!$C$512 -> Insert value | J196: =Translate!$C$512 -> Insert value | K196: =Translate!$C$512 -> Insert value | L196: =Translate!$C$512 -> Insert value | M196: =Translate!$C$512 -> Insert value | N196: =Translate!$C$512 -> Insert value
B197: =Translate!$C$511 -> New crop | C197: 191 | D197: =Translate!$C$512 -> Insert value | E197: =Translate!$C$512 -> Insert value | F197: =Translate!$C$512 -> Insert value | G197: =Translate!$C$512 -> Insert value | H197: 0 | I197: =Translate!$C$512 -> Insert value | J197: =Translate!$C$512 -> Insert value | K197: =Translate!$C$512 -> Insert value | L197: =Translate!$C$512 -> Insert value | M197: =Translate!$C$512 -> Insert value | N197: =Translate!$C$512 -> Insert value
B198: =Translate!$C$511 -> New crop | C198: 192 | D198: =Translate!$C$512 -> Insert value | E198: =Translate!$C$512 -> Insert value | F198: =Translate!$C$512 -> Insert value | G198: =Translate!$C$512 -> Insert value | H198: 0 | I198: =Translate!$C$512 -> Insert value | J198: =Translate!$C$512 -> Insert value | K198: =Translate!$C$512 -> Insert value | L198: =Translate!$C$512 -> Insert value | M198: =Translate!$C$512 -> Insert value | N198: =Translate!$C$512 -> Insert value
B199: =Translate!$C$511 -> New crop | C199: 193 | D199: =Translate!$C$512 -> Insert value | E199: =Translate!$C$512 -> Insert value | F199: =Translate!$C$512 -> Insert value | G199: =Translate!$C$512 -> Insert value | H199: 0 | I199: =Translate!$C$512 -> Insert value | J199: =Translate!$C$512 -> Insert value | K199: =Translate!$C$512 -> Insert value | L199: =Translate!$C$512 -> Insert value | M199: =Translate!$C$512 -> Insert value | N199: =Translate!$C$512 -> Insert value
B200: =Translate!$C$511 -> New crop | C200: 194 | D200: =Translate!$C$512 -> Insert value | E200: =Translate!$C$512 -> Insert value | F200: =Translate!$C$512 -> Insert value | G200: =Translate!$C$512 -> Insert value | H200: 0 | I200: =Translate!$C$512 -> Insert value | J200: =Translate!$C$512 -> Insert value | K200: =Translate!$C$512 -> Insert value | L200: =Translate!$C$512 -> Insert value | M200: =Translate!$C$512 -> Insert value | N200: =Translate!$C$512 -> Insert value
B201: =Translate!$C$511 -> New crop | C201: 195 | D201: =Translate!$C$512 -> Insert value | E201: =Translate!$C$512 -> Insert value | F201: =Translate!$C$512 -> Insert value | G201: =Translate!$C$512 -> Insert value | H201: =SUM(D201:G201) -> 0 | I201: =Translate!$C$512 -> Insert value | J201: =Translate!$C$512 -> Insert value | K201: =Translate!$C$512 -> Insert value | L201: =Translate!$C$512 -> Insert value | M201: =Translate!$C$512 -> Insert value | N201: =Translate!$C$512 -> Insert value
B202: =Translate!$C$511 -> New crop | C202: 196 | D202: =Translate!$C$512 -> Insert value | E202: =Translate!$C$512 -> Insert value | F202: =Translate!$C$512 -> Insert value | G202: =Translate!$C$512 -> Insert value | H202: 0 | I202: =Translate!$C$512 -> Insert value | J202: =Translate!$C$512 -> Insert value | K202: =Translate!$C$512 -> Insert value | L202: =Translate!$C$512 -> Insert value | M202: =Translate!$C$512 -> Insert value | N202: =Translate!$C$512 -> Insert value
... 14 more rows

Sheet Translate
B2: =$C$17 -> Do not modify this sheet
B5: =$C$18 -> Reference Row
B6: =$C$19 -> Selected Language: | C6: ='READ ME'!$G$11 -> English | D6: English | E6: Français | F6: Español | G6: العربية
B7: =C21 -> Language code: | C7: =$C$22 -> Must specify language code (as indicated in the existing languages) to format dates | D7: [$-409] | E7: [$-40C] | F7: [$-C0A] | G7: [$-401]
B8: =$C$20 -> Sheet name | C8: =HLOOKUP($C$6,$D$6:$I$585,ROW()-ROW($B$5),FALSE) -> READ ME | D8: READ ME | E8: LISER MOI | F8: LÉEME | G8: اقرأ هذه الصفحة
C9: 1 Geographic Data | D9: 1 Geographic Data | E9: 1 Données géographiques | F9: 1 Datos geográficos | G9: 1 البيانات الجغرافية
C10: 2 Soil Texture Calculator | D10: 2 Soil Texture Calculator | E10: 2 Calculateur de texture du sol | F10: 2 Calculadora de textura del suelo | G10: 2 الحاسبة الآلية لقوام التربة
C11: 3 Irrigation Schedule | D11: 3 Irrigation Schedule | E11: 3 Calendrier de l’irrigation | F11: 3 Programación de riego | G11: 3 جدولة الري
C12: 4 Summary | D12: 4 Summary | E12: 4 Bilan | F12: 4 Resumen | G12: 4 ملخص
C13: 5 How this tool works | D13: 5 How this tool works | E13: 5 Comment ça fonctionne | F13: 5 Funcionamiento | G13: 5 كيف تعمل هذه الأداة
C14: Crop Information | D14: Crop Information | E14: Information sur les cultures | F14: Información sobre cultivos | G14: معلومات المحاصيل
C15: Translate | D15: Translate | E15: Traduire | F15: Traducción | G15: ترجمة
B17: =$C$15 -> Translate | C17: =HLOOKUP($C$6,$D$6:$I$585,ROW()-ROW($B$5),FALSE) -> Do not modify this sheet | D17: Do not modify this sheet | E17: Ne modifiez pas cette feuille | F17: No modifique esta hoja | G17: لا تعدل هذه الصفحة
C18: Reference Row | D18: Reference Row | E18: Ligne de référence | F18: Fila de referencia | G18: صف مرجعي
C19: Selected Language: | D19: Selected Language: | E19: Langue sélectionnée: | F19: Idioma seleccionado: | G19: اللغة المختارة:
C20: Sheet name | D20: Sheet name | E20: Nom de la feuille | F20: Nombre de la hoja | G20: اسم الصفحة
C21: Language code: | D21: Language code: | E21: Code langue : | F21: Código de lenguaje: | G21: رمز اللغة:
C22: Must specify language code (as indicated in the existing languages) to format dates | D22: Must specify language code (as indicated in the existing languages) to format dates | E22: Doit spécifier le code de langue (comme indiqué dans les langues existantes) pour formater les dates | F22: Debe especificar el código de idioma (como se indica en los idiomas existentes) para formatear las fechas | G22: يجب تحديد رمز اللغة (كما هو موضح في اللغات الموجودة) لضبط التواريخ
B24: =$C$8 -> READ ME | C24: =HLOOKUP($C$6,$D$6:$I$585,ROW()-ROW($B$5),FALSE) -> Select language | D24: Select language | E24: Sélectionner la langue | F24: Seleccione el idioma | G24: اختار اللغة
C25: Read Me Sheet | D25: Read Me Sheet | E25: Feuille Lisez-moi | F25: Léeme | G25: اقرأ هذه الصفحة
C26: IRRIGATE – Soil Tool | D26: IRRIGATE – Soil Tool | E26: IRRIGUER – Outil "Sol" | F26: RIEGA – Herramienta de suelos | G26: الري - أداة التربة
C27: Introduction | D27: Introduction | E27: Introduction | F27: Introducción | G27: مقدمة
C28: This tool serves to determine your soil profile and to find an irrigation schedule for a selected crop. It complements the "SAFEGUARD WATER – Water Requirement Tool". A further complimentary tool is available under: | D28: This tool serves to determine your soil profile and to find an irrigation schedule for a selected crop. It complements the "SAFEGUARD WATER – Water Requirement Tool". A further complimentary tool is available under: | E28: Cet outil vous aide déterminer le profil de votre sol et trouver un calendrier d'irrigation pour une culture sélectionnée. Il complète le "PRÉSERVER L'EAU - Outil d'évaluation des besoins en eau". Un autre outil complémentaire est disponible sous : | F28: Esta herramienta sirve para determinar el perfil del suelo y para encontrar un programa de riego para un cultivo seleccionado. Viene a complementar a "SALVAGUARDA EL AGUA - Herramienta de Estimación de las Necesidades de Agua". Otra herramienta complementaria está disponible en: | G28: تعمل هذه الأداة على تحديد خصائص التربة و جدولة الري المناسبة وفقا للمحصول المحدد. هذه الأداة مكمّلة لأداة "حماية المياه: أداة احتياجات المياه". تتوفر أداة إضافية أخرى تحت:
C29: Tips & Tricks | D29: Tips & Tricks | E29: Conseils et Astuces | F29: Consejos y trucos | G29: نصائح وحيل
C30: ● Make sure that macro is always enabled for the proper functioning of this tool | D30: ● Make sure that macro is always enabled for the proper functioning of this tool | E30: ● Assurez-vous que les macros sont toujours activées pour le bon fonctionnement de cet outil | F30: ● Asegúrese de que la macro esté siempre habilitada para el correcto funcionamiento de esta herramienta. | G30: ● تأكد من تمكين الماكرو دائمًا من أجل حسن سير هذه الأداة
C31: ● Only enter values into white cells | D31: ● Only enter values into white cells | E31: ● Saisissez des valeurs uniquement dans les cellules blanches | F31: ● Solo ingrese valores en las celdas blancas. | G31: ● أدخل القيم فقط في الخلايا البيضاء
C32: ● This tool comprises drop down lists and macros to simplify data entry and results review. | D32: ● This tool comprises drop down lists and macros to simplify data entry and results review. | E32: ● Cet outil contient des listes déroulantes et des macros pour simplifier la saisie des données et la présentation des résultats. | F32: ● Esta herramienta incluye listas desplegables y macros para simplificar la entrada de datos y la revisión de resultados. | G32: ● تتضمن هذه الأداة قوائم منسدلة ووحدات ماكرو لتبسيط إدخال البيانات ومراجعة النتائج.
C33: ● For the multilanguage option to work properly, do NOT delete sheets | D33: ● For the multilanguage option to work properly, do NOT delete sheets | E33: ● Pour que l'option multilingue fonctionne correctement, ne supprimez PAS les feuilles | F33: ● Para que la opción de varios idiomas funcione correctamente, NO elimine las hojas. | G33: ● لكي يعمل خيار اللغات المتعددة بشكل صحيح ، لا تحذف الصفحات
C34: ● Make sure that this file is always saved as ".xlsm" | D34: ● Make sure that this file is always saved as ".xlsm" | E34: ● Assurez-vous que ce fichier est toujours enregistré sous ".xlsm" | F34: ● Asegúrese de que este archivo siempre se guarde como ".xlsm" | G34: ● تأكد من حفظ هذا الملف دائمًا باسم ".xlsm"
C35: Overview | D35: Overview | E35: Aperçu | F35: Sinopsis | G35: نظرة عامة
C36: This tool comprises the following sheet: | D36: This tool comprises the following sheet: | E36: Cet outil est composé des feuilles suivantes: | F36: Esta herramienta incluye las siguientes hojas: | G36: تتكون هذه الأداة من الصفحات التالية:
C37: for adding basic site information and entering climatic data | D37: for adding basic site information and entering climatic data | E37: pour ajouter des informations de base sur le site et entrer les données climatique | F37: Información básica del lugar y datos de precipitación y temperatura | G37: لإضافة معلومات الموقع الأساسية وإدخال البيانات المناخية
C38: for calculation of your soil type | D38: for calculation of your soil type | E38: pour le calcul de votre type de sol | F38: para calcular tipo de suelo | G38: لحساب نوع التربة الخاصة بك
C39: for selecting a crop and planting period; for automatic calculation of water requirement for a single crop; for calculation of an irrigation schedule | D39: for selecting a crop and planting period; for automatic calculation of water requirement for a single crop; for calculation of an irrigation schedule | E39: pour le choix d'une culture et d'une période de plantation ; pour le calcul automatique des besoins en eau d'une seule culture ; pour le calcul d'un calendrier d'irrigation | F39: seleccionar un cultivo y un período de siembra; para el cálculo automático de las necesidades de agua de un solo cultivo; para el cálculo de un planificación de riego | G39: لاختيار المحصول وفترة الزرع ؛ للحساب التلقائي للاحتياجات المائية لمحصول واحد ؛ لحساب جدول الري
C40: Summary of outputs for irrigation quantity and frequency, and water storage requirements | D40: Summary of outputs for irrigation quantity and frequency, and water storage requirements | E40: Résumé des apports pour la quantité et la fréquence d'irrigation, et les besoins de stockage de l'eau d'irrigation | F40: Resumen de la cantidad y frecuencia de riego, y las necesidades de almacenamiento de agua de riego | G40: ملخص كمية ووتيرة الري، ومتطلبات تخزين المياه
C41: for understanding the way this tool works and on which data it is based on | D41: for understanding the way this tool works and on which data it is based on | E41: pour comprendre le fonctionnement de l'outil Sols & Irrigation | F41: Explicación del funcionamiento de esta herramienta y en qué datos se basa | G41: لفهم طريقة عمل هذه الأداة والبيانات التي تستند إليها
C42: for adjusting and adding the necessary crops information | D42: for adjusting and adding the necessary crops information | E42: pour ajuster et ajouter les informations nécessaires sur les cultures | F42: Con posibilidad de adaptar y añadir cultivos y sus respectivas necesidades de agua | G42: لضبط وإضافة معلومات المحاصيل اللازمة
C43: This tool is based on the FAO Irrigation and Drainage Paper No. 56. Crop Evapotranspiration (guidelines for computing crop water requirements), available at: | D43: This tool is based on the FAO Irrigation and Drainage Paper No. 56. Crop Evapotranspiration (guidelines for computing crop water requirements), available at: | E43: Cet outil est basé sur le document n° 56 de la FAO sur l'irrigation et le drainage. Evapotranspiration des cultures (directives pour le calcul des besoins en eau des cultures), disponible sur: | F43: Esta herramienta se basa en el documento de riego y drenaje de la FAO n° 56: Evapotranspiración de cultivos (directrices para calcular los necesidades de agua de los cultivos), disponible en: | G43: تعتمد هذه الأداة على ورقة الري والصرف رقم 56 الصادرة عن منظمة الأغذية والزراعة: البخر- نتح المحاصيل (مبادئ توجيهية لحساب الإحتياجات المائية للمحاصيل) ، وهي متاحة على الموقع:
C44: About | D44: About | E44: En savoir plus | F44: Acerca de | G44: حول
C45: Published by: | D45: Published by: | E45: Publié par: | F45: Publicado por: | G45: نشرت من قبل:
C46: Resposible: | D46: Resposible: | E46: Responsables: | F46: Responsable: | G46: مسؤول:
C47: Contact: | D47: Contact: | E47: Contact: | F47: Contacto: | G47: اتصال:
C48: Download link: | D48: Download link: | E48: Lien de téléchargement: | F48: Enlace descarga: | G48: رابط التحميل:
C49: About: | D49: About: | E49: À propos de: | F49: Acerca de: | G49: حول:
C50: Version: | D50: Version: | E50: Version: | F50: Versión: | G50: إصدار:
C51: GIZ & FAO | D51: GIZ & FAO | E51: GIZ et FAO | F51: GIZ & FAO | G51: الوكالة الألمانية للتعاون الدولي (GIZ) ومنظمة الأغذية والزراعة (FAO)
C52: GIZ project "Water and Energy for Food (WE4F)" | D52: GIZ project "Water and Energy for Food (WE4F)" | E52: Projet de la GIZ « Les innovations dans l’agriculture et la production alimentaire protègent le climat (PEEPA/WE4F) » (Water and Energy for Food) | F52: GIZ project "Water and Energy for Food (WE4F)" | G52: مشروع الوكالة الألمانية للتعاون الدولي "المياه والطاقة من أجل الغذاء Water and Energy for Food (WE4F)"
C53: Water and Energy for Food Grand Challenge at: | D53: Water and Energy for Food Grand Challenge at: | E53: Eau et Energie pour l'Alimentation (PEEPA). Disponible à l’adresse : | F53: Water and Energy for Food Grand Challenge at: | G53: التحدي الكبير للمياه والطاقة من أجل الغذاء في:
C54: 3.0 (June 2021) | D54: 3.0 (June 2021) | E54: 3.0 (Juin 2021) | F54: 3.0 (Junio 2021) | G54: 3.0 (يونيو 2021)
C55: The Toolbox on Solar Powered Irrigation Systems (SPIS) is a legacy project of the global initiative Powering Agriculture: An Energy Grand Challenge for Development (PAEGC). In 2012, the United States Agency for International Development (USAID), the Swedish International Development Cooperation Agency (Sida), the German Federal Ministry for Economic Cooperation and Development (BMZ), Duke Energy, and the Overseas Private Investment Corporation (OPIC) combined resources to support new and sustainable approaches to accelerate the development and deployment of clean energy solutions for increasing agriculture productivity. The Toolbox on SPIS has now been embraced for further development by PAEGC's successor program Water and Energy for Food (WE4F). WE4F is a joint international initiative of the European Union (EU), the German Federal Ministry for Economic Cooperation and Development (BMZ), the Ministry of Foreign Affairs of the Kingdom of the Netherlands, Sweden through the Swedish International Development Cooperation Agency (Sida), and the U.S. Agency for International Development (USAID). WE4F aims to increase food production along the value chain through a more sustainable and efficient usage of water and/or energy. | D55: The Toolbox on Solar Powered Irrigation Systems (SPIS) is a legacy project of the global initiative Powering Agriculture: An Energy Grand Challenge for Development (PAEGC). In 2012, the United States Agency for International Development (USAID), the Swedish International Development Cooperation Agency (Sida), the German Federal Ministry for Economic Cooperation and Development (BMZ), Duke Energy, and the Overseas Private Investment Corporation (OPIC) combined resources to support new and sustainable approaches to accelerate the development and deployment of clean energy solutions for increasing agriculture productivity. The Toolbox on SPIS has now been embraced for further development by PAEGC's successor program Water and Energy for Food (WE4F). WE4F is a joint international initiative of the European Union (EU), the German Federal Ministry for Economic Cooperation and Development (BMZ), the Ministry of Foreign Affairs of the Kingdom of the Netherlands, Sweden through the Swedish International Development Cooperation Agency (Sida), and the U.S. Agency for International Development (USAID). WE4F aims to increase food production along the value chain through a more sustainable and efficient usage of water and/or energy. | E55: La boîte à outils pour les systèmes d’irrigation à énergie solaire (Solar Powered Irrigation Systems, SPIS) est un projet hérité de l'initiative mondiale « Propulser l’agriculture : un grand défi énergétique pour le développement » (Powering Agriculture: An Energy Grand Challenge for Development – PAEGC). En 2012, l’Agence des États-Unis pour le développement international (USAID), l’Agence suédoise de coopération internationale au développement (Sida), le ministère fédéral allemand de la Coopération économique et du Développement (BMZ), Duke Energy et l’Overseas Private Investment Cooperation (OPIC) ont mis leurs ressources en commun pour soutenir des approches nouvelles et durables afin d'accélérer le développement et le déploiement des solutions énergétiques propres pour accroître la productivité agricole. La boîte à outils sur les SPIS a maintenant été adoptée pour un développement ultérieur par le programme successeur du PAEGC, Eau et Energie pour l'Alimentation (PEEPA) - Water and Energy for Food (WE4F). WE4F/PEEPA est une initiative commune de l'Union européenne, du Ministère fédéral allemand de la coopération économique et du développement (BMZ), du Ministère des affaires étrangères du royaume des Pays-Bas, de l’Agence suédoise de développement (Sida) et de l’Agence de développement des États-Unis (USAID). WE4F/PEEPA vise à accroître la production alimentaire tout au long de la chaîne de valeur grâce à une utilisation plus durable et plus efficace de l'eau et/ou de l'énergie. | F55: La publicación de la Caja de herramientas de sistemas de riego solar ha sido posible gracias al apoyo brindado por la iniciativa mundial Powering Agriculture: An Energy Grand Challenge for Development (PAEGC) (Energización Rural: Un gran desafío energético para el desarrollo). En 2012, la Agencia de los Estados Unidos para el Desarrollo Internacional (USAID), la Agencia Sueca de Cooperación Internacional para el Desarrollo (Sida), el Ministerio Federal de Cooperación Económica y Desarrollo (BMZ) de Alemania, la empresa de energía Duke Energy Corporation y la Corporación de Inversiones Privadas en el Extranjero (OPIC) juntaron recursos para crear la iniciativa PAEGC. El objetivo de PAEGC es fomentar nuevos enfoques sostenibles con el fin de acelerar el desarrollo y asegurar el establecimiento de energías limpias que incrementen la productividad y/o el valor de la agricultura en países en desarrollo y regiones emergentes sin acceso a fuentes de energía confiables, asequibles y limpias. | G55: يعتبر صندوق الأدوات الخاص بأنظمة الري التي تعمل بالطاقة الشمسية (SPIS) مشروعًا هاما للمبادرة العالمية "دعم الزراعة: تحدي الطاقة الكبير من أجل التنمية" Powering Agriculture: An Energy Grand Challenge for Development (PAEGC). في عام 2012 ، قامت الوكالة الأمريكية للتنمية الدولية (USAID) ، والوكالة السويدية للتعاون الإنمائي الدولي (ٍSida) ، والوزارة الفيدرالية الألمانية للتعاون الاقتصادي والتنمية (BMZ) ، وشركة Duke Energy ، ومؤسسة الاستثمار الخاص لما وراء البحار (OPIC) بجهود مشتركة لدعم الأساليب الجديدة والمستدامة لتسريع تطوير ونشر حلول الطاقة النظيفة لزيادة الإنتاجية الزراعية. تم اعتماد صندوق SPIS الآن لمزيد من التطوير من قبل البرنامج اللاحق لـ PAEGC "الماء والطاقة من اجل الغذاء" Water and Energy for Food (WE4F). الاخير هو مبادرة دولية مشتركة من الاتحاد الأوروبي (EU) ، والوزارة الاتحادية الألمانية للتعاون الاقتصادي والتنمية (BMZ) ، ووزارة الشؤون الخارجية لمملكة هولندا ، والسويد من خلال الوكالة السويدية للتعاون الإنمائي الدولي (Sida) ، والوكالة الأمريكية للتنمية الدولية (USAID). تهدف WE4F إلى زيادة إنتاج الغذاء على امتداد سلاسل القيمة الغذائية من خلال استخدام المياه و / أو الطاقة بطريقة أكثر استدامة وكفاءة.
C56: The designations employed and the presentation of material in this information product do not imply the expression of any opinion whatsoever on the part of Deutsche Gesellschaft für Internationale Zusammenarbeit (GIZ) GmbH, Food and Agriculture Organization of the United Nations (FAO) or any of the PAEGC Founding Partners concerning the legal or development status of any country, territory, city or area or of its authorities, or concerning the delimitation of its frontiers or boundaries. The mention of specific companies or products of manufacturers, whether or not these have been patented, does not imply that these have been endorsed or recommended by GIZ, FAO, or any of the PAEGC Founding Partners in preference to others of a similar nature that are not mentioned. The views expressed in this information product are those of the author and do not necessarily reflect the views or policies of GIZ, FAO, or any of the PAEGC Founding Partners. | D56: The designations employed and the presentation of material in this information product do not imply the expression of any opinion whatsoever on the part of Deutsche Gesellschaft für Internationale Zusammenarbeit (GIZ) GmbH, Food and Agriculture Organization of the United Nations (FAO) or any of the PAEGC Founding Partners concerning the legal or development status of any country, territory, city or area or of its authorities, or concerning the delimitation of its frontiers or boundaries. The mention of specific companies or products of manufacturers, whether or not these have been patented, does not imply that these have been endorsed or recommended by GIZ, FAO, or any of the PAEGC Founding Partners in preference to others of a similar nature that are not mentioned. The views expressed in this information product are those of the author and do not necessarily reflect the views or policies of GIZ, FAO, or any of the PAEGC Founding Partners. | E56: Les appellations employées dans ce produit d’information et la présentation des documents qui y figurent n’impliquent de la part de la Deutsche Gesellschaft für Internationale Zusammenarbeit (GIZ) GmbH, de l’Organisation des Nations unies pour l’alimentation et l’agriculture (FAO) ou de l’un des partenaires fondateurs de l’initiative PAEGC aucune prise de position quant au statut juridique ou au stade de développement des pays, territoires, villes ou zones ou de leurs autorités, ni quant au tracé de leurs frontières ou limites. La mention de sociétés déterminées ou de produits de fabricants, qu’ils soient ou non brevetés, n’entraîne de la part de la GIZ, de la FAO ou de l’un des partenaires fondateurs du PAEGC aucune approbation ou recommandation desdits produits de préférence à d’autres de nature analogue qui ne sont pas cités. Les opinions exprimées dans ce produit d’information sont celles des auteurs et ne reflètent pas nécessairement celles de la GIZ, de la FAO, ou de l’un des partenaires fondateurs du PAEGC. | F56: Las denominaciones empleadas y la presentación del material en este producto informativo no implican juicio alguno por parte de la Deutsche Gesellschaft für Internationale Zusammenarbeit (GIZ) GmbH, la Organización de las Naciones Unidas para la Alimentación y la Agricultura (FAO), o los socios fundadores de la iniciativa PAEGC, sobre la condición jurídica o el grado de desarrollo de ninguno de los países, territorios, ciudades o zonas citados o de sus autoridades, ni respecto de la delimitación de sus fronteras o límites. La mención de empresas o productos de fabricantes en particular, estén o no patentados, no implica que la GIZ, la FAO o alguno de los socios fundadores de la iniciativa PAEGC los aprueben o recomienden, dándoles preferencia sobre otros de naturaleza similar que no se mencionan. Las opiniones expresadas en este producto informativo son las de su(s) autor(es) o autora(s), y no reflejan necesariamente los puntos de vista o las políticas de la GIZ, la FAO o ninguno de los socios fundadores de la iniciativa PAEGC. | G56: التسميات المستخدمة وطريقة عرض المواد في هذا المنتج المعلوماتي لا تعبر عن أي رأي من جانب Deutsche Gesellschaft für Internationale Zusammenarbeit (GIZ) GmbH أو منظمة الأغذية والزراعة للأمم المتحدة (FAO) أو أي من الشركاء المؤسسين لـ PAEGC فيما يتعلق بالوضع القانوني أو التنموي لأي بلد أو إقليم أو مدينة أو منطقة أو لسلطاتها ، أو فيما يتعلق بترسيم حدودها أو نطاقاتها. إن ذكر شركات أو منتجات معينة من الشركات المصنعة ، سواء تم تسجيل براءات اختراع لها أم لا ، لا يعني أن هذه الشركات أو المنتجات قد تم اعتمادها أو التوصية بها من قبل GIZ أو منظمة الأغذية والزراعة أو أي من الشركاء المؤسسين لـ PAEGC او تفضيلها على الشركات أو المنتجات الاخرى غير مذكورة من نفس الطبيعة. الآراء الواردة في هذا المنتج المعلوماتي هي آراء المؤلف ولا تعكس بالضرورة آراء أو سياسات الوكالة الألمانية للتعاون الدولي أو منظمة الأغذية والزراعة أو أي من الشركاء المؤسسين لـ PAEGC.
C57: GIZ, FAO and the PAEGC Founding Partners encourage the use, reproduction and dissemination of material in this information product. Except where otherwise indicated, material may be copied, downloaded and printed for private study, research and teaching purposes, or for use in non-commercial products or services, provided that appropriate acknowledgement of GIZ and FAO as the source and copyright holder is given. | D57: GIZ, FAO and the PAEGC Founding Partners encourage the use, reproduction and dissemination of material in this information product. Except where otherwise indicated, material may be copied, downloaded and printed for private study, research and teaching purposes, or for use in non-commercial products or services, provided that appropriate acknowledgement of GIZ and FAO as the source and copyright holder is given. | E57: La GIZ, la FAO et les partenaires fondateurs du PAEGC encouragent l’utilisation, la reproduction et la diffusion des informations contenues dans ce document. Sauf indication contraire, ces dernières peuvent être copiées, téléchargées et imprimées à des fins privées d’étude, de recherche et d’enseignement, ou pour être utilisées dans des produits ou services non commerciaux, à condition que la GIZ et la FAO soient clairement indiquées en tant que sources des informations et détentrices du droit d’auteur. | F57: La GIZ, la FAO y los socios fundadores de la iniciativa PAEGC fomentan la utilización, la reproducción y la difusión del material presentado en este producto informativo. A menos que se indique lo contrario, el material puede ser copiado, descargado e impreso con fines de estudio privado, enseñanza e investigación científica, o para su utilización en productos o servicios no comerciales, siempre que se otorgue a la GIZ y la FAO el debido reconocimiento como fuentes y como titulares de los derechos de autor. | G57: تشجع الوكالة الألمانية للتعاون الدولي ومنظمة الأغذية والزراعة والشركاء المؤسسين لـ PAEGC على استخدام واستنساخ ونشر المواد في هذا المنتج المعلوماتي. يمكن نسخ المواد وتنزيلها وطباعتها للدراسة الخاصة ، ولأغراض البحث والتعليم ، أو لاستخدامها في المنتجات أو الخدمات غير التجارية ، ما لم يُذكر خلاف ذلك ، شريطة تقديم إقرار مناسب من الوكالة الألمانية للتعاون الدولي ومنظمة الأغذية والزراعة كمصدر وصاحب حقوق التأليف والنشر.
C58: © GIZ and FAO, 2021 | D58: © GIZ and FAO, 2021 | E58: © GIZ et FAO, 2021 | F58: © GIZ & FAO, 2021 | G58: © GIZ و FAO, 2021
B60: =$C$9 -> 1 Geographic Data | C60: =HLOOKUP($C$6,$D$6:$I$585,ROW()-ROW($B$5),FALSE) -> January | D60: January | E60: Janvier | F60: Enero | G60: يناير
C61: February | D61: February | E61: Février | F61: Febrero | G61: فبراير
C62: March | D62: March | E62: Mars | F62: Marzo | G62: مارس
C63: April | D63: April | E63: Avril | F63: Abril | G63: أبريل
C64: May | D64: May | E64: Mai | F64: Mayo | G64: مايو
C65: June | D65: June | E65: Juin | F65: Junio | G65: يونيو
C66: July | D66: July | E66: Juillet | F66: Julio | G66: يوليو
C67: August | D67: August | E67: Août | F67: Agosto | G67: أغسطس
C68: September | D68: September | E68: Septembre | F68: Septiembre | G68: سبتمبر
C69: October | D69: October | E69: Octobre | F69: Octubre | G69: أكتوبر
C70: November | D70: November | E70: Novembre | F70: Noviembre | G70: نوفمبر
C71: December | D71: December | E71: Décembre | F71: Diciembre | G71: ديسمبر
C72: IRRIGATE – Soil Tool | D72: IRRIGATE – Soil Tool | E72: IRRIGUER – Outil "Sol" | F72: RIEGA – Herramienta de suelos | G72: الري - أداة التربة
C73: Enter basic rainfall and climatic data for you location. | D73: Enter basic rainfall and climatic data for you location. | E73: Saisissez les données pluviométriques et climatiques de base de votre site. | F73: Introduzca los datos climáticos de su ubicación. | G73: أدخل البيانات الأساسية للأمطار والمناخ للموقع الخاص بك.
C74: 1 GENERAL GEOGRAPHIC INFORMATION | D74: 1 GENERAL GEOGRAPHIC INFORMATION | E74: 1 INFORMATIONS GÉOGRAPHIQUES D’ORDRE GÉNÉRAL | F74: 1 INFORMACIÓN GEOGRÁFICA GENERAL | G74: 1 معلومات جغرافية عامة
C75: Country | D75: Country | E75: Pays | F75: País | G75: الدولة
C76: Farm code | D76: Farm code | E76: Code de l’exploitation | F76: Código de la granja | G76: رمز المزرعة
C77: Region | D77: Region | E77: Région | F77: Región | G77: المنطقة
C78: Date | D78: Date | E78: Date | F78: Fecha | G78: التاريخ
C79: Name of the farm | D79: Name of the farm | E79: Nom de l’exploitation | F79: Nombre de la granja | G79: اسم المزرعة
C80: Village | D80: Village | E80: Village | F80: Localidad | G80: القرية
C81: Division | D81: Division | E81: Division | F81: División | G81: القسم
C82: District | D82: District | E82: District | F82: Distrito | G82: الحي
C83: Select available climatic data: | D83: Select available climatic data: | E83: Sélectionnez les données climatiques disponibles : | F83: Seleccione los datos climáticos disponibles: | G83: حدد البيانات المناخية المتاحة:
C84: Option 1: | D84: Option 1: | E84: Option 1: | F84: Opción 1: | G84: الخيار 1:
C85: Only mean temperature | D85: Only mean temperature | E85: Seulement température moyenne | F85: Solo temperatura media | G85: فقط متوسط درجات الحرارة
C86: Option 2: | D86: Option 2: | E86: Option 2: | F86: Opcion 2: | G86: الخيار 2:
C87: Maximum and minimum temperature | D87: Maximum and minimum temperature | E87: Température maximale et minimale | F87: Temperatura máxima y mínima | G87: درجة الحرارة العظمى والصغرى
C88: Option 3: | D88: Option 3: | E88: Option 3: | F88: Opcion 3: | G88: الخيار 3:
C89: Maximum and minimum temperature; humidity; wind speed; and sun hours | D89: Maximum and minimum temperature; humidity; wind speed; and sun hours | E89: Température maximale et minimale ; humidité; vitesse du vent; et heures d'ensoleillement | F89: Temperatura máxima y mínima; humedad; velocidad del viento; y horas de insolación | G89: درجتي الحرارة العظمى والصغرى؛ الرطوبة؛ سرعة الرياح؛ وساعات سطوع الشمس
C90: Option 4: | D90: Option 4: | E90: Option 4: | F90: Opcion 4: | G90: الخيار 4:
C91: Reference evapotranspiration | D91: Reference evapotranspiration | E91: Évapotranspiration de référence | F91: Evapotranspiración de referencia | G91: البخر- نتح المرجعي
C92: =HLOOKUP($C$6,$D$6:$I$585,ROW()-ROW($B$5),FALSE) -> Mean daily temperature [°C] | D92: Mean daily temperature [°C] | E92: Température quotidienne moyenne [°C] | F92: Temperatura media diaria [°C] | G92: المتوسط اليومي لدرجة الحرارة [درجة مئوية]
C93: Maximum daily temperature [°C] | D93: Maximum daily temperature [°C] | E93: Température maximale quotidienne [°C] | F93: Temperatura máxima diaria [°C] | G93: درجة الحرارة العظمى اليومية [درجة مئوية]
C94: Minimum daily temperature [°C] | D94: Minimum daily temperature [°C] | E94: Température minimale quotidienne [°C] | F94: Temperatura mínima diaria [°C] | G94: درجة الحرارة الصغرى اليومية [درجة مئوية]
C95: Relative humidity [%] | D95: Relative humidity [%] | E95: Humidité relative [%] | F95: Humedad relativa [%] | G95: الرطوبة النسبية [٪]
C96: Wind speed [m/s] | D96: Wind speed [m/s] | E96: Vitesse du vent [m/s] | F96: Velocidad del viento [m / s] | G96: سرعة الرياح [م / ث]
C97: Sunshine [hours] | D97: Sunshine [hours] | E97: Heures d'ensoleillement [heures] | F97: Horas de insolación [horas] | G97: سطوع الشمس [عدد الساعات]
C98: Reference evapotranspiration [mm/day] | D98: Reference evapotranspiration [mm/day] | E98: Evapotranspiration de référence [mm/jour] | F98: Evapotranspiración de referencia [mm/día] | G98: البخر- نتح المرجعي [ملم / اليوم]
C99: Rainfall [mm/month] | D99: Rainfall [mm/month] | E99: Pluviométrie [mm/mois] | F99: Lluvias [mm/mes] | G99: الأمطار [ملم / الشهر]
C100: Use the following links to obtain indicative monthly rainfall and climatic data for the site: | D100: Use the following links to obtain indicative monthly rainfall and climatic data for the site: | E100: Utilisez les liens suivants pour obtenir les données des précipitations mensuelles et les données climatiques indicatives du site : | F100: Usar los siguientes enlaces para obtener datos indicativos de precipitaciones mensuales y datos climáticos del lugar: | G100: استخدم الروابط التالية للحصول على بيانات إرشادية شهرية عن الأمطار و المناخ للموقع:
C101: Select geographic location: | D101: Select geographic location: | E101: Sélectionnez l'emplacement géographique: | F101: Seleccionar ubicación geográfica: | G101: حدد الموقع الجغرافي:
C102: Latitude: | D102: Latitude: | E102: Latitude: | F102: Latitud: | G102: خط العرض:
C103: Longitude: | D103: Longitude: | E103: Longitude: | F103: Longitud: | G103: خط الطول:
C104: decimal degree | D104: decimal degree | E104: degré décimal | F104: grado decimal | G104: درجة عشرية
C105: Hemisphere: | D105: Hemisphere: | E105: Hémisphère: | F105: Hemisferio: | G105: نصف الكرة الأرضية:
C106: North | D106: North | E106: Nord | F106: Norte | G106: الشمالي | H106: North | I106: North
C107: South | D107: South | E107: Sud | F107: Sur | G107: الجنوبي | H107: South | I107: South
C108: East | D108: East | E108: Est | F108: Este | G108: الشرقي | H108: East | I108: East
C109: West | D109: West | E109: Ouest | F109: Oeste | G109: الغربي | H109: West | I109: West
C110: Notes: | D110: Notes: | E110: Remarques: | F110: Notas: | G110: ملاحظات:
C111: Use the link to identify the exact coordinates of the site: | D111: Use the link to identify the exact coordinates of the site: | E111: Utilisez le lien pour identifier les coordonnées exactes du site : | F111: Usar el enlace para la identificación exacta de coordenadas: | G111: استخدم الرابط لتحديد الإحداثيات الدقيقة للموقع:
C112: Altitude: | D112: Altitude: | E112: Altitude: | F112: Altitud: | G112: ارتفاع:
C113: meter | D113: meter | E113: mètre | F113: metro | G113: متر
B115: =$C$10 -> 2 Soil Texture Calculator | C115: =HLOOKUP($C$6,$D$6:$I$585,ROW()-ROW($B$5),FALSE) -> IRRIGATE – Soil Tool | D115: IRRIGATE – Soil Tool | E115: IRRIGUER – Outil "Sol" | F115: RIEGA – Herramienta de suelos | G115: الري - أداة التربة
C116: Put in values to determine your soil type | D116: Put in values to determine your soil type | E116: Mettez des valeurs pour déterminer votre type de sol | F116: Introduzca valores para determinar su tipo de suelo | G116: ضع القيم لتحديد نوع التربة
C117: 2 SOIL TEXTURE CALCULATOR | D117: 2 SOIL TEXTURE CALCULATOR | E117: 2 CALCULATEUR DE TEXTURE DU SOL | F117: 2 CALCULADORA DE TEXTURA DEL SUELO | G117: 2 الحاسبة الآلية لقوام التربة
C118: Farm code/name: | D118: Farm code/name: | E118: Code/Nom de l’exploitation: | F118: Código/nombre de la granja: | G118: رمز / اسم المزرعة:
C119: Percentage of sand: | D119: Percentage of sand: | E119: Pourcentage de sable : | F119: Porcentaje de arena: | G119: نسبة الرمل
C120: Percentage of clay: | D120: Percentage of clay: | E120: Pourcentage d'argile : | F120: Porcentaje de arcilla: | G120: نسبة الطين
C121: Percentage of silt: | D121: Percentage of silt: | E121: Pourcentage de limon : | F121: Porcentaje de limo: | G121: نسبة الطمي
C122: Soil Texture: | D122: Soil Texture: | E122: Texture du sol: | F122: Textura del suelo: | G122: قوام التربة
C123: Field Capacity (FC): | D123: Field Capacity (FC): | E123: Capacité au Champ (CC) | F123: Capacidad de Campo (CC) | G123: السعة الحقلية
C124: Permanent Wilting Point (PWP): | D124: Permanent Wilting Point (PWP): | E124: Point de Flétrissement Permanent (PFP) | F124: Punto de Marchitez Permanente (PMP) | G124: نقطة الذبول الدائم
C125: Definitions: | D125: Definitions: | E125: Définitions : | F125: Definiciones: | G125: تعريفات:
C126: Field Capacity is the amount of soil moisture or water content held in the soil after excess water has drained. | D126: Field Capacity is the amount of soil moisture or water content held in the soil after excess water has drained. | E126: La Capacité au Champ correspond à la quantité d'eau retenue ans le sol après le drainage de l'excès d'eau. | F126: La Capacidad de Campo es la cantidad de humedad del suelo o el contenido de agua que se mantiene en el suelo una vez se ha drenado el exceso de agua y ha disminuido la velocidad del movimiento descendente. | G126: السعة الحقلية هي كمية رطوبة التربة أو محتوى الماء المحتفظ بها في التربة بعد تصريف المياه الزائدة.
C127: Permanent wilting point is the minimal point of soil moisture the plant requires not to wilt. | D127: Permanent wilting point is the minimal point of soil moisture the plant requires not to wilt. | E127: Le point de flétrissement permanent correspond au seuil en dessus duquel l’humidité du sol ne permet plus à la plante de prélever l'eau dont elle a besoin, car la réserve utile en eau du sol a été entièrement consommée. | F127: El punto de marchitez permanente es el punto mínimo de humedad del suelo que necesita para que la planta no se marchite. | G127: نقطة الذبول الدائمة هي النقطة الدنيا لرطوبة التربة التي يحتاجها النبات حتى لا يذبل.
C128: Calculator adapted from: | D128: Calculator adapted from: | E128: Calculateur adapté de: | F128: Calculador adaptado de: | G128: حاسبة مقتبسة من:
C129: United States Department of Agriculture | D129: United States Department of Agriculture | E129: Département de l'Agriculture des États-Unis | F129: Departamento de Agricultura de los Estados Unidos | G129: وزارة الزراعة في الولايات المتحدة
C130: Soil Texture Triangle | D130: Soil Texture Triangle | E130: Triangle de texture de sol | F130: Triángulo de textura del suelo | G130: مثلث قوام التربة
C131: SAND | D131: SAND | E131: SABLE | F131: ARENA | G131: رمل
C132: LOAMY SAND | D132: LOAMY SAND | E132: SABLE LIMONEUX | F132: ARENA FRANCO | G132: رمل طًفلي
C133: SANDY LOAM | D133: SANDY LOAM | E133: LIMON SABLEUX | F133: FRANCO ARENOSO | G133: طًفل رملي
C134: LOAM | D134: LOAM | E134: LIMON | F134: FRANCO | G134: طًفل
C135: SILT LOAM | D135: SILT LOAM | E135: LIMON FIN | F135: FRANCO LIMOSO | G135: طًفل طميي
C136: SILT | D136: SILT | E136: LIMON TRES FIN | F136: LIMO | G136: طمي
C137: SANDY CLAY LOAM | D137: SANDY CLAY LOAM | E137: LIMON ARGILO-SABLEUSE | F137: FRANCO ARCILLO-ARENOSA | G137: طًفل طيني رملي
C138: CLAY LOAM | D138: CLAY LOAM | E138: LIMON ARGILEUX | F138: FRANCO ARCILLOSO | G138: طًفل طيني
C139: SILTY CLAY LOAM | D139: SILTY CLAY LOAM | E139: LIMON ARGILEUX FIN | F139: FRANCO ARCILLO-LIMOSO | G139: طًفل طيني طميي
C140: SANDY CLAY | D140: SANDY CLAY | E140: ARGILE SABLEUSE | F140: ARCILLO ARENOSO | G140: طين رملي
C141: SILTY CLAY | D141: SILTY CLAY | E141: ARGILE LIMONEUSE | F141: ARCILLO LIMOSO | G141: طين طميي
C142: CLAY | D142: CLAY | E142: ARGILE | F142: ARCILLA | G142: طين
C143: Sand | D143: Sand | E143: Sable | F143: Arena | G143: رمل
C144: Loamy sand | D144: Loamy sand | E144: Sable limoneux | F144: Arena franco | G144: رمل طًفلي
C145: Sandy loam | D145: Sandy loam | E145: Limon sableux | F145: Franco arenoso | G145: طًفل رملي
C146: Sandy clay loam | D146: Sandy clay loam | E146: Limon argilo-sableuse | F146: Franco arcillo-arenosa | G146: طًفل طيني رملي
C147: Loam | D147: Loam | E147: Limon | F147: Franco | G147: طًفل
C148: Sandy clay | D148: Sandy clay | E148: Argile sableuse | F148: Arcillo arenoso | G148: طين رملي
C149: Silt loam | D149: Silt loam | E149: Limon fin | F149: Franco limoso | G149: طًفل طميي
C150: Silt | D150: Silt | E150: Limon très fin | F150: Limo | G150: طمي
C151: Clay loam | D151: Clay loam | E151: Limon argileux | F151: Franco arcilloso | G151: طًفل طيني
C152: Silty clay loam | D152: Silty clay loam | E152: Limon argileux fin | F152: Franco arcillo-limoso | G152: طًفل طيني طميي
C153: Silty clay | D153: Silty clay | E153: Argile limoneuse | F153: Arcillo limoso | G153: طين طميي
C154: Clay | D154: Clay | E154: Argile | F154: Arcilla | G154: طين
C155: Characteristics of soils of the type: | D155: Characteristics of soils of the type: | E155: Caractéristiques des sols de type : | F155: Características de los suelos de tipo: | G155: خصائص التربة من النوع:
B157: =$C$11 -> 3 Irrigation Schedule | C157: =HLOOKUP($C$6,$D$6:$I$585,ROW()-ROW($B$5),FALSE) -> IRRIGATE – Soil Tool | D157: IRRIGATE – Soil Tool | E157: IRRIGUER – Outil "Sol" | F157: RIEGA – Herramienta de suelos | G157: الري - أداة التربة
C158: Select crop intended for planting at your location, for automatic indication of water requirements | D158: Select crop intended for planting at your location, for automatic indication of water requirements | E158: Sélectionnez la culture qui va être plantée sur votre site afin d’obtenir une indication requirements | F158: Seleccione el cultivo que desee plantar para indicación automática de necesidades de agua | G158: حدد المحاصيل المخصصة للزراعة في موقعك ، للإشارة التلقائية لمتطلبات المياه
C159: 3 IRRIGATION SCHEDULE | D159: 3 IRRIGATION SCHEDULE | E159: 3 CALENDRIER DE L’IRRIGATION | F159: 3 PROGRAMACIÓN DEL RIEGO | G159: 3 جدولة الري
C160: Farm code/name: | D160: Farm code/name: | E160: Code/Nom de l’exploitation: | F160: Código/nombre de la granja: | G160: رمز / اسم المزرعة:
C161: Conversion factor to 1 ha: | D161: Conversion factor to 1 ha: | E161: Facteur de conversion pour 1 ha : | F161: Factor de conversión a 1 ha: | G161: عامل التحويل إلى 1 هكتار:
C162: Area measurement unit: | D162: Area measurement unit: | E162: Unité de mesure de surface : | F162: Unidad de medida del área: | G162: وحدة قياس المساحة:
C163: ha | D163: ha | E163: ha | F163: ha | G163: هكتار
C164: acre | D164: acre | E164: acre | F164: acre | G164: أكر
C165: Sq. km | D165: Sq. km | E165: km carré | F165: km cuad. | G165: كيلومتر مربع
C166: Sq. m | D166: Sq. m | E166: m carré | F166: m cuad. | G166: متر مربع
C167: Sq. yard | D167: Sq. yard | E167: verge carrée | F167: yarda cuad. | G167: ياردة مربعة
C168: Sq. ft | D168: Sq. ft | E168: pied carré | F168: pie cuad. | G168: قدم مربع
C169: Irrigation water need [mm/day] | D169: Irrigation water need [mm/day] | E169: Besoin en eau d'irrigation [mm/mois] | F169: Necesidad de agua de riego [mm/mes] | G169: الإحتياجات المائية للري [مم / الشهر]
C170: °C | D170: °C | E170: °C | F170: °C | G170: درجة مئوية
C171: mm/month | D171: mm/month | E171: mm/mois | F171: mm/mes | G171: مم / الشهر
C172: Above average temperature | D172: Above average temperature | E172: Température au dessus de la moyenne | F172: Temperatura por encima del promedio | G172: درجة الحرارة فوق المتوسط
C173: Above average rainfall | D173: Above average rainfall | E173: Pluviométrie supérieure à la moyenne | F173: Lluvia por encima del promedio | G173: تساقط الأمطار فوق المتوسط
C174: Estimation of crop uptake | D174: Estimation of crop uptake | E174: Estimation de l’absorption de la culture | F174: Estimación de la absorción del cultivo | G174: تقدير امتصاص المحاصيل
C175: Crop to be irrigated | D175: Crop to be irrigated | E175: Culture à irriguer | F175: Cultivo a regar | G175: المحاصيل المراد ريها
C176: Area | D176: Area | E176: Superficie | F176: Área | G176: المساحة
C177: Planting Date | D177: Planting Date | E177: Date de plantation | F177: Fecha de siembra | G177: تاريخ الزراعة
C178: Irrigation method | D178: Irrigation method | E178: Méthode d'irrigation | F178: Método de riego | G178: طريقة الري
C179: Irrigation Efficiency | D179: Irrigation Efficiency | E179: Efficacité de l'irrigation | F179: Eficiencia de riego | G179: كفاءة الري
C180: Maximum possible irrigation application | D180: Maximum possible irrigation application | E180: Application d'irrigation maximale possible | F180: Aplicación máxima posible de riego | G180: الحد الأقصى من المياه الممكن إضافتها
C181: Surface: Graded furrow | D181: Surface: Graded furrow | E181: Surface: Irrigation à la raie (inclinée) | F181: Superficie: Riego por surcos (inclinado) | G181: الري السطحي: الري على الخطوط
C182: Surface: with tailwater reuse | D182: Surface: with tailwater reuse | E182: Surface: avec réutilisation des eaux en aval | F182: Superficie: con reutilización de agua de drenaje | G182: الري السطحي: مع اعادة استخدام مياه الصرف الزراعي
C183: Surface: Graded border/basins | D183: Surface: Graded border/basins | E183: Surface: Bassins/planches (inclinées) | F183: Superficie: Riego por fajas/tablares (inclinado) | G183: الري السطحي: الري بالاحواض و الري الشريطي
C184: Sprinkler: Periodic move | D184: Sprinkler: Periodic move | E184: Aspersion: Déplacement périodique | F184: Aspersión: Desplazamiento periódico | G184: الري بالرش: النقالي
C185: Sprinkler: Side roll | D185: Sprinkler: Side roll | E185: Aspersion: Rouleau latéral | F185: Aspersión: Side Roll | G185: الري بالرش: المتدحرج
C186: Sprinkler: Moving big gun | D186: Sprinkler: Moving big gun | E186: Aspersion: Canon déplaçable | F186: Aspersión: Cañón movible | G186: الري بالرش: الري المدفعي
C187: Center pivot: Impact heads with end gun | D187: Center pivot: Impact heads with end gun | E187: Pivot central: Asperseurs à batteur avec canon d'extrémité | F187: Pivote central: Aspersores de impacto con cañón final | G187: الري المحوري: رشاش ارتدادي مع رشاش مدفعي على الطرف
C188: Center pivot: Spray heads without end gun | D188: Center pivot: Spray heads without end gun | E188: Pivot central: Arroseur sans canon d'extrémité | F188: Pivote central: Rociador sin cañón final | G188: الري المحوري: رشاش بدون رشاش مدفعي على الطرف
C189: =HLOOKUP($C$6,$D$6:$I$585,ROW()-ROW($B$5),FALSE) -> Center pivot: LEPA without end gun | D189: Center pivot: LEPA without end gun | E189: Pivot central : Système LEPA sans canon d'extrémité | F189: Pivote central: LEPA sin cañón final | G189: الري المحوري: تدفق المياه منخفضة الطاقة (LEPA) بدون رشاش مدفعي على الطرف
C190: Lateral move: Spray heads with hose feed | D190: Lateral move: Spray heads with hose feed | E190: Mouvement latéral: Arroseur avec alimentation par tuyau | F190: Movimiento lateral: Rociador con alimentación por manguera | G190: الري الجانبي: بخاخ - مغدى من خرطوم
C191: Lateral move: Spray heads with canal feed | D191: Lateral move: Spray heads with canal feed | E191: Mouvement latéral: Arroseur avec alimentation par canal | F191: Movimiento lateral: Rociador con alimentación del canal | G191: الري الجانبي: بخاخ - مغدى من قناة
C192: Microirrigation: Drip irrigation | D192: Microirrigation: Drip irrigation | E192: Microirrigation: Goutte à goutte | F192: microirrigación: Goteo | G192: الري الدقيق: الري بالتنقيط السطحي
C193: Microirrigation: Subsurface drip | D193: Microirrigation: Subsurface drip | E193: Microirrigation: Goutte à goutte enterrée | F193: microirrigación: Sub-Irrigación | G193: الري الدقيق: الري بالتنقيط تحت السطحي
C194: Microirrigation: Microspray | D194: Microirrigation: Microspray | E194: Microirrigation: Micro-asperseur | F194: microirrigación: Micro-aspersión | G194: الري الدقيق: رشاشات متناهية الصغر
C195: Garden hose | D195: Garden hose | E195: Tuyau d'arrosage | F195: Manguera de riego | G195: الري بالخرطوم
C196: Indicative values for application depths of the various irrigation methods | D196: Indicative values for application depths of the various irrigation methods | E196: Valeurs indicatives pour les profondeurs d'application des différentes méthodes d'irrigation | F196: Valores indicativos para las profundidades de aplicación de los distintos métodos de riego | G196: القيم الإرشادية لمياه الري الممكن إضافتها
C197: Application Depth (mm) | D197: Application Depth (mm) | E197: Profondeur d'application (mm) | F197: Profundidad de aplicación (mm) | G197: مياه الري (مم)
C198: Small basins (<200 m2) | D198: Small basins (<200 m2) | E198: Petits bassins (<200 m2) | F198: Tablares pequeñas (<200 m2) | G198: الري بالاحواض الصغيرة (<200 م2)
C199: Large basins (>500 m2) | D199: Large basins (>500 m2) | E199: Grands bassins (>500 m2) | F199: Tablares grandes (>500 m2) | G199: الري بالاحواض الكبيرة (>500 م2)
C200: Furrows | D200: Furrows | E200: A la raie | F200: Surcos | G200: الري على الخطوط
C201: Borders | D201: Borders | E201: Planches | F201: Fajas | G201: الري الشريطي
C202: Sprinkler | D202: Sprinkler | E202: Aspersion | F202: Aspersión | G202: الري بالرش
C203: Drip | D203: Drip | E203: Goutte à goutte | F203: Goteo | G203: الري بالتنقيط
C204: mm | D204: mm | E204: mm | F204: mm | G204: مم
C205: Estimation of soil reservoir | D205: Estimation of soil reservoir | E205: Estimation du réservoir de sol | F205: Estimación de reservorio en suelo | G205: تقدير محتوى الرطوبة في التربة
C206: Soil: | D206: Soil: | E206: Sol: | F206: Suelo: | G206: التربة:
C207: Initial water content (% TAW): | D207: Initial water content (% TAW): | E207: Teneur en eau initiale (% RU): | F207: Contenido de agua inicial (% ADP): | G207: محتوى الرطوبة الأولي:
C208: Field Capacity (FC): | D208: Field Capacity (FC): | E208: Capacité au Champ (CC): | F208: Capacidad de Campo (CC): | G208: السعة الحقلية:
... 370 more rows

Sheet General Calculation (hidden)
B1: Available climatic Data | C1: Option | D1: Status
C2: Option 1 | D2: TRUE | E2: Blaney-Criddle method
C3: Option 2 | D3: FALSE | E3: Hargreaves method
C4: Option 3 | D4: FALSE | E4: FAO Penman-Monteith method
C5: Option 4 | D5: FALSE | E5: Reference evapotranspiration
B7: Hemisphere | C7: =Translate!$C$106 -> North | D7: =Translate!$C$108 -> East
C8: =Translate!$C$107 -> South | D8: =Translate!$C$109 -> West
B10: Option 1 | C10: Blaney-Criddle method
C11: latitude | D11: =IF($D$2=TRUE,MROUND('1 Geographic Data'!$D$37,5),"") -> 5 | E11: degree | G11: Translate Hemisphere to be used in formula
C12: Hemisphere | D12: =IF($D$2=TRUE,'1 Geographic Data'!$G$37,"") -> North | E12: =IF(OR(D12=$G$12,D12=$H$12,D12=$I$12,D12=$J$12,D12=$K$12,D12=$L$12),$G$12,"South") -> North | G12: =Translate!D106 -> North | H12: =Translate!E106 -> Nord | I12: =Translate!F106 -> Norte | J12: =Translate!G106 -> الشمالي | K12: =Translate!H106 -> North | L12: =Translate!I106 -> North
D14: ='1 Geographic Data'!C22 -> January | E14: ='1 Geographic Data'!D22 -> February | F14: ='1 Geographic Data'!E22 -> March | G14: ='1 Geographic Data'!F22 -> April | H14: ='1 Geographic Data'!G22 -> May | I14: ='1 Geographic Data'!H22 -> June | J14: ='1 Geographic Data'!I22 -> July | K14: ='1 Geographic Data'!J22 -> August | L14: ='1 Geographic Data'!K22 -> September | M14: ='1 Geographic Data'!L22 -> October | N14: ='1 Geographic Data'!M22 -> November | O14: ='1 Geographic Data'!N22 -> December
C15: =IF($D$2= TRUE,'1 Geographic Data'!A23,'1 Geographic Data'!A23) -> Mean daily temperature [°C] | D15: =IF($D$2= TRUE,'1 Geographic Data'!C23,"") -> 25.5 | E15: =IF($D$2= TRUE,'1 Geographic Data'!D23,"") -> 25 | F15: =IF($D$2= TRUE,'1 Geographic Data'!E23,"") -> 24.6 | G15: =IF($D$2= TRUE,'1 Geographic Data'!F23,"") -> 23.8 | H15: =IF($D$2= TRUE,'1 Geographic Data'!G23,"") -> 23.9 | I15: =IF($D$2= TRUE,'1 Geographic Data'!H23,"") -> 23.5 | J15: =IF($D$2= TRUE,'1 Geographic Data'!I23,"") -> 23 | K15: =IF($D$2= TRUE,'1 Geographic Data'!J23,"") -> 23 | L15: =IF($D$2= TRUE,'1 Geographic Data'!K23,"") -> 23.6 | M15: =IF($D$2= TRUE,'1 Geographic Data'!L23,"") -> 23.9 | N15: =IF($D$2= TRUE,'1 Geographic Data'!M23,"") -> 23.6 | O15: =IF($D$2= TRUE,'1 Geographic Data'!N23,"") -> 24
C16: Daytime hours: | D16: =IF($D$2= TRUE, IF($E$12="North",INDEX(F21:F33,VLOOKUP($D$11,$D$21:$E$33,2,FALSE)),INDEX(F35:F47,VLOOKUP($D$11,$D$21:$E$33,2,FALSE))),"") -> 0.27 | E16: =IF($D$2= TRUE, IF($E$12="North",INDEX(G21:G33,VLOOKUP($D$11,$D$21:$E$33,2,FALSE)),INDEX(G35:G47,VLOOKUP($D$11,$D$21:$E$33,2,FALSE))),"") -> 0.27 | F16: 0.27 | G16: 0.28 | H16: 0.28 | I16: 0.28 | J16: 0.28 | K16: 0.28 | L16: 0.28 | M16: 0.27 | N16: 0.27 | O16: 0.27
C17: Reference Evapotranspiration | D17: =IF($D$2= TRUE, D16*(0.46*D15+8),"") -> 5.3271 | E17: =IF($D$2= TRUE, E16*(0.46*E15+8),"") -> 5.265 | F17: 5.21532 | G17: 5.30544 | H17: 5.31832 | I17: 5.2668 | J17: 5.2024 | K17: 5.2024 | L17: 5.27968 | M17: 5.12838 | N17: 5.09112 | O17: =IF($D$2= TRUE, O16*(0.46*O15+8),"") -> 5.1408
C19: Mean daily percentage (p) of annual daytime hours for different latitudes
C20: North | D20: Latitude | E20: # | F20: =D14 -> January | G20: =E14 -> February | H20: March | I20: April | J20: May | K20: June | L20: July | M20: August | N20: September | O20: October | P20: November | Q20: December
D21: 60 | E21: 1 | F21: 0.15 | G21: 0.2 | H21: 0.26 | I21: 0.32 | J21: 0.38 | K21: 0.41 | L21: 0.4 | M21: 0.34 | N21: 0.28 | O21: 0.22 | P21: 0.17 | Q21: 0.13
D22: 55 | E22: 2 | F22: 0.17 | G22: 0.21 | H22: 0.26 | I22: 0.32 | J22: 0.36 | K22: 0.39 | L22: 0.38 | M22: 0.33 | N22: 0.28 | O22: 0.23 | P22: 0.18 | Q22: 0.16
D23: 50 | E23: 3 | F23: 0.19 | G23: 0.23 | H23: 0.27 | I23: 0.31 | J23: 0.34 | K23: 0.36 | L23: 0.35 | M23: 0.32 | N23: 0.28 | O23: 0.24 | P23: 0.2 | Q23: 0.18
D24: 45 | E24: 4 | F24: 0.2 | G24: 0.23 | H24: 0.27 | I24: 0.3 | J24: 0.34 | K24: 0.35 | L24: 0.34 | M24: 0.32 | N24: 0.28 | O24: 0.24 | P24: 0.21 | Q24: 0.2
D25: 40 | E25: 5 | F25: 0.22 | G25: 0.24 | H25: 0.27 | I25: 0.3 | J25: 0.32 | K25: 0.34 | L25: 0.33 | M25: 0.31 | N25: 0.28 | O25: 0.25 | P25: 0.22 | Q25: 0.21
D26: 35 | E26: 6 | F26: 0.23 | G26: 0.25 | H26: 0.27 | I26: 0.29 | J26: 0.31 | K26: 0.32 | L26: 0.32 | M26: 0.3 | N26: 0.28 | O26: 0.25 | P26: 0.23 | Q26: 0.22
D27: 30 | E27: 7 | F27: 0.24 | G27: 0.25 | H27: 0.27 | I27: 0.29 | J27: 0.31 | K27: 0.32 | L27: 0.31 | M27: 0.3 | N27: 0.28 | O27: 0.26 | P27: 0.24 | Q27: 0.23
D28: 25 | E28: 8 | F28: 0.24 | G28: 0.26 | H28: 0.27 | I28: 0.29 | J28: 0.3 | K28: 0.31 | L28: 0.31 | M28: 0.29 | N28: 0.28 | O28: 0.26 | P28: 0.25 | Q28: 0.24
D29: 20 | E29: 9 | F29: 0.25 | G29: 0.26 | H29: 0.27 | I29: 0.28 | J29: 0.29 | K29: 0.3 | L29: 0.3 | M29: 0.29 | N29: 0.28 | O29: 0.26 | P29: 0.25 | Q29: 0.25
D30: 15 | E30: 10 | F30: 0.26 | G30: 0.26 | H30: 0.27 | I30: 0.28 | J30: 0.29 | K30: 0.29 | L30: 0.29 | M30: 0.28 | N30: 0.28 | O30: 0.27 | P30: 0.26 | Q30: 0.25
D31: 10 | E31: 11 | F31: 0.26 | G31: 0.27 | H31: 0.27 | I31: 0.28 | J31: 0.28 | K31: 0.29 | L31: 0.29 | M31: 0.28 | N31: 0.28 | O31: 0.27 | P31: 0.26 | Q31: 0.26
D32: 5 | E32: 12 | F32: 0.27 | G32: 0.27 | H32: 0.27 | I32: 0.28 | J32: 0.28 | K32: 0.28 | L32: 0.28 | M32: 0.28 | N32: 0.28 | O32: 0.27 | P32: 0.27 | Q32: 0.27
D33: 0 | E33: 13 | F33: 0.27 | G33: 0.27 | H33: 0.27 | I33: 0.27 | J33: 0.27 | K33: 0.27 | L33: 0.27 | M33: 0.27 | N33: 0.27 | O33: 0.27 | P33: 0.27 | Q33: 0.27
C34: South | D34: Latitude | E34: # | F34: =D14 -> January | G34: =E14 -> February | H34: March | I34: April | J34: May | K34: June | L34: July | M34: August | N34: September | O34: October | P34: November | Q34: December
D35: 60 | E35: 1 | F35: 0.4 | G35: 0.34 | H35: 0.28 | I35: 0.22 | J35: 0.17 | K35: 0.13 | L35: 0.15 | M35: 0.2 | N35: 0.26 | O35: 0.32 | P35: 0.38 | Q35: 0.41
D36: 55 | E36: 2 | F36: 0.38 | G36: 0.33 | H36: 0.28 | I36: 0.23 | J36: 0.18 | K36: 0.16 | L36: 0.17 | M36: 0.21 | N36: 0.26 | O36: 0.32 | P36: 0.36 | Q36: 0.39
D37: 50 | E37: 3 | F37: 0.35 | G37: 0.32 | H37: 0.28 | I37: 0.24 | J37: 0.2 | K37: 0.18 | L37: 0.19 | M37: 0.23 | N37: 0.27 | O37: 0.31 | P37: 0.34 | Q37: 0.36
D38: 45 | E38: 4 | F38: 0.34 | G38: 0.32 | H38: 0.28 | I38: 0.24 | J38: 0.21 | K38: 0.2 | L38: 0.2 | M38: 0.23 | N38: 0.27 | O38: 0.3 | P38: 0.34 | Q38: 0.35
D39: 40 | E39: 5 | F39: 0.33 | G39: 0.31 | H39: 0.28 | I39: 0.25 | J39: 0.22 | K39: 0.21 | L39: 0.22 | M39: 0.24 | N39: 0.27 | O39: 0.3 | P39: 0.32 | Q39: 0.34
D40: 35 | E40: 6 | F40: 0.32 | G40: 0.3 | H40: 0.28 | I40: 0.25 | J40: 0.23 | K40: 0.22 | L40: 0.23 | M40: 0.25 | N40: 0.27 | O40: 0.29 | P40: 0.31 | Q40: 0.32
D41: 30 | E41: 7 | F41: 0.31 | G41: 0.3 | H41: 0.28 | I41: 0.26 | J41: 0.24 | K41: 0.23 | L41: 0.24 | M41: 0.25 | N41: 0.27 | O41: 0.29 | P41: 0.31 | Q41: 0.32
D42: 25 | E42: 8 | F42: 0.31 | G42: 0.29 | H42: 0.28 | I42: 0.26 | J42: 0.25 | K42: 0.24 | L42: 0.24 | M42: 0.26 | N42: 0.27 | O42: 0.29 | P42: 0.3 | Q42: 0.31
D43: 20 | E43: 9 | F43: 0.3 | G43: 0.29 | H43: 0.28 | I43: 0.26 | J43: 0.25 | K43: 0.25 | L43: 0.25 | M43: 0.26 | N43: 0.27 | O43: 0.28 | P43: 0.29 | Q43: 0.3
D44: 15 | E44: 10 | F44: 0.29 | G44: 0.28 | H44: 0.28 | I44: 0.27 | J44: 0.26 | K44: 0.25 | L44: 0.26 | M44: 0.26 | N44: 0.27 | O44: 0.28 | P44: 0.29 | Q44: 0.29
D45: 10 | E45: 11 | F45: 0.29 | G45: 0.28 | H45: 0.28 | I45: 0.27 | J45: 0.26 | K45: 0.26 | L45: 0.26 | M45: 0.27 | N45: 0.27 | O45: 0.28 | P45: 0.28 | Q45: 0.29
D46: 5 | E46: 12 | F46: 0.28 | G46: 0.28 | H46: 0.28 | I46: 0.27 | J46: 0.27 | K46: 0.27 | L46: 0.27 | M46: 0.27 | N46: 0.27 | O46: 0.28 | P46: 0.28 | Q46: 0.28
D47: 0 | E47: 13 | F47: 0.27 | G47: 0.27 | H47: 0.27 | I47: 0.27 | J47: 0.27 | K47: 0.27 | L47: 0.27 | M47: 0.27 | N47: 0.27 | O47: 0.27 | P47: 0.27 | Q47: 0.27
B49: Option 2 | C49: Hargreaves method
C50: latitude | D50: =IF($D$3=TRUE,'1 Geographic Data'!$D$37,"") ->  | E50: degree | F50: =IF($D$3=TRUE,'1 Geographic Data'!$G$37,"") ->  | G50: =IF(OR(F50=$G$12,F50=$H$12,F50=$I$12,F50=$J$12,F50=$K$12,F50=$L$12),$G$12,"South") -> South | H50: ="==>" -> ==> | I50: =IF($D$3= TRUE, IF(G50="North",PI()*$D$50/180, PI()*-$D$50/180),"") ->  | J50: Radians
C51: Longitude | D51: =IF($D$3=TRUE,'1 Geographic Data'!$D$38,"") ->  | E51: degree | F51: =IF($D$3=TRUE,'1 Geographic Data'!$G$38,"") -> 
D53: =D14 -> January | E53: February | F53: March | G53: April | H53: May | I53: June | J53: July | K53: August | L53: September | M53: October | N53: November | O53: December
C54: =IF($D$4= TRUE,'1 Geographic Data'!A24,'1 Geographic Data'!A24) -> Maximum daily temperature [°C] | D54: =IF($D$3= TRUE,'1 Geographic Data'!C24, "") ->  | E54: =IF($D$3= TRUE,'1 Geographic Data'!D24, "") ->  | F54: =IF($D$3= TRUE,'1 Geographic Data'!E24, "") ->  | G54: =IF($D$3= TRUE,'1 Geographic Data'!F24, "") ->  | H54: =IF($D$3= TRUE,'1 Geographic Data'!G24, "") ->  | I54: =IF($D$3= TRUE,'1 Geographic Data'!H24, "") ->  | J54: =IF($D$3= TRUE,'1 Geographic Data'!I24, "") ->  | K54: =IF($D$3= TRUE,'1 Geographic Data'!J24, "") ->  | L54: =IF($D$3= TRUE,'1 Geographic Data'!K24, "") ->  | M54: =IF($D$3= TRUE,'1 Geographic Data'!L24, "") ->  | N54: =IF($D$3= TRUE,'1 Geographic Data'!M24, "") ->  | O54: =IF($D$3= TRUE,'1 Geographic Data'!N24, "") -> 
C55: =IF($D$4= TRUE,'1 Geographic Data'!A25,'1 Geographic Data'!A25) -> Minimum daily temperature [°C] | D55: =IF($D$3= TRUE,'1 Geographic Data'!C25, "") ->  | E55: =IF($D$3= TRUE,'1 Geographic Data'!D25, "") ->  | F55: =IF($D$3= TRUE,'1 Geographic Data'!E25, "") ->  | G55: =IF($D$3= TRUE,'1 Geographic Data'!F25, "") ->  | H55: =IF($D$3= TRUE,'1 Geographic Data'!G25, "") ->  | I55: =IF($D$3= TRUE,'1 Geographic Data'!H25, "") ->  | J55: =IF($D$3= TRUE,'1 Geographic Data'!I25, "") ->  | K55: =IF($D$3= TRUE,'1 Geographic Data'!J25, "") ->  | L55: =IF($D$3= TRUE,'1 Geographic Data'!K25, "") ->  | M55: =IF($D$3= TRUE,'1 Geographic Data'!L25, "") ->  | N55: =IF($D$3= TRUE,'1 Geographic Data'!M25, "") ->  | O55: =IF($D$3= TRUE,'1 Geographic Data'!N25, "") -> 
C56: Reference Evapotranspiration | D56: =D65 ->  | E56: =E65 -> 
C58: Mean Temp. [°C] | D58: =IF($D$3= TRUE,(D54+D55)/2,"") ->  | E58: =IF($D$3= TRUE,(E54+E55)/2,"") -> 
C59: Month | D59: 1 | E59: 2 | F59: 3 | G59: 4 | H59: 5 | I59: 6 | J59: 7 | K59: 8 | L59: 9 | M59: 10 | N59: 11 | O59: 12
C60: J | D60: =IF($D$3= TRUE,TRUNC((30.4*D59)-15),"") ->  | E60: =IF($D$3= TRUE,TRUNC((30.4*E59)-15),"") -> 
C61: dr | D61: =IF($D$3= TRUE,1+(0.033*COS(2*PI()*D60/365)),"") ->  | E61: =IF($D$3= TRUE,1+(0.033*COS(2*PI()*E60/365)),"") -> 
C62: Solar Decl. δ [Rad] | D62: =IF($D$3= TRUE,0.4093*SIN((2*PI()*D60/365)-1.39),"") ->  | E62: =IF($D$3= TRUE,0.4093*SIN((2*PI()*E60/365)-1.39),"") -> 
C63: Sunset Angle [Rad] | D63: =IF($D$3= TRUE,ACOS(-TAN($I$50)*TAN(D62)),"") -> 
C64: Ra [MJ m-2 day-1] | D64: =IF($D$3= TRUE,(24*60*0.082*D61/PI())*((D63*SIN($I$50)*SIN(D62))+(COS($I$50)*COS(D62)*SIN(D63))),"") -> 
C65: ETo [mm day-1] | D65: =IF($D$3= TRUE,0.408*0.0023*(D58+17.8)*(D54-D55)^0.5*D64,"") ->  | E65: =IF($D$3= TRUE,0.408*0.0023*(E58+17.8)*(E54-E55)^0.5*E64,"") -> 
B68: Option 3 | C68: FAO Penman-Monteith method
C69: latitude | D69: =IF($D$4=TRUE,'1 Geographic Data'!$D$37,"") ->  | E69: degree | F69: =IF($D$4=TRUE,'1 Geographic Data'!$G$37,"") ->  | G69: =IF(OR(F69=$G$12,F69=$H$12,F69=$I$12,F69=$J$12,F69=$K$12,F69=$L$12),$G$12,"South") -> South | H69: ="==>" -> ==> | I69: =IF($D$4= TRUE,IF(G69="North",PI()*$D$69/180, PI()*-$D$69/180),"") ->  | J69: Radians
C70: Longitude | D70: =IF($D$4=TRUE,'1 Geographic Data'!$D$38,"") ->  | E70: degree | F70: =IF($D$4=TRUE,'1 Geographic Data'!$G$38,"") -> 
C71: Altitude | D71: =IF($D$4=TRUE,'1 Geographic Data'!$D$35,"") ->  | E71: meter
C73: Angstrom values | D73: as | E73: 0.25 | G73: albedo α | H73: 0.23
D74: bs | E74: 0.5
D76: =D14 -> January | E76: February | F76: March | G76: April | H76: May | I76: June | J76: July | K76: August | L76: September | M76: October | N76: November | O76: December
C77: =IF($D$4= TRUE,'1 Geographic Data'!A24,'1 Geographic Data'!A24) -> Maximum daily temperature [°C] | D77: =IF($D$4= TRUE,'1 Geographic Data'!C24,"") ->  | E77: =IF($D$4= TRUE,'1 Geographic Data'!D24,"") ->  | F77: =IF($D$4= TRUE,'1 Geographic Data'!E24,"") ->  | G77: =IF($D$4= TRUE,'1 Geographic Data'!F24,"") ->  | H77: =IF($D$4= TRUE,'1 Geographic Data'!G24,"") ->  | I77: =IF($D$4= TRUE,'1 Geographic Data'!H24,"") ->  | J77: =IF($D$4= TRUE,'1 Geographic Data'!I24,"") ->  | K77: =IF($D$4= TRUE,'1 Geographic Data'!J24,"") ->  | L77: =IF($D$4= TRUE,'1 Geographic Data'!K24,"") ->  | M77: =IF($D$4= TRUE,'1 Geographic Data'!L24,"") ->  | N77: =IF($D$4= TRUE,'1 Geographic Data'!M24,"") ->  | O77: =IF($D$4= TRUE,'1 Geographic Data'!N24,"") -> 
C78: =IF($D$4= TRUE,'1 Geographic Data'!A25,'1 Geographic Data'!A25) -> Minimum daily temperature [°C] | D78: =IF($D$4= TRUE,'1 Geographic Data'!C25,"") ->  | E78: =IF($D$4= TRUE,'1 Geographic Data'!D25,"") ->  | F78: =IF($D$4= TRUE,'1 Geographic Data'!E25,"") ->  | G78: =IF($D$4= TRUE,'1 Geographic Data'!F25,"") ->  | H78: =IF($D$4= TRUE,'1 Geographic Data'!G25,"") ->  | I78: =IF($D$4= TRUE,'1 Geographic Data'!H25,"") ->  | J78: =IF($D$4= TRUE,'1 Geographic Data'!I25,"") ->  | K78: =IF($D$4= TRUE,'1 Geographic Data'!J25,"") ->  | L78: =IF($D$4= TRUE,'1 Geographic Data'!K25,"") ->  | M78: =IF($D$4= TRUE,'1 Geographic Data'!L25,"") ->  | N78: =IF($D$4= TRUE,'1 Geographic Data'!M25,"") ->  | O78: =IF($D$4= TRUE,'1 Geographic Data'!N25,"") -> 
C79: =IF($D$4= TRUE,'1 Geographic Data'!A26,'1 Geographic Data'!A26) -> Relative humidity [%] | D79: =IF($D$4= TRUE,'1 Geographic Data'!C26,"") ->  | E79: =IF($D$4= TRUE,'1 Geographic Data'!D26,"") ->  | F79: =IF($D$4= TRUE,'1 Geographic Data'!E26,"") ->  | G79: =IF($D$4= TRUE,'1 Geographic Data'!F26,"") ->  | H79: =IF($D$4= TRUE,'1 Geographic Data'!G26,"") ->  | I79: =IF($D$4= TRUE,'1 Geographic Data'!H26,"") ->  | J79: =IF($D$4= TRUE,'1 Geographic Data'!I26,"") ->  | K79: =IF($D$4= TRUE,'1 Geographic Data'!J26,"") ->  | L79: =IF($D$4= TRUE,'1 Geographic Data'!K26,"") ->  | M79: =IF($D$4= TRUE,'1 Geographic Data'!L26,"") ->  | N79: =IF($D$4= TRUE,'1 Geographic Data'!M26,"") ->  | O79: =IF($D$4= TRUE,'1 Geographic Data'!N26,"") -> 
C80: =IF($D$4= TRUE,'1 Geographic Data'!A27,'1 Geographic Data'!A27) -> Wind speed [m/s] | D80: =IF($D$4= TRUE,'1 Geographic Data'!C27,"") ->  | E80: =IF($D$4= TRUE,'1 Geographic Data'!D27,"") ->  | F80: =IF($D$4= TRUE,'1 Geographic Data'!E27,"") ->  | G80: =IF($D$4= TRUE,'1 Geographic Data'!F27,"") ->  | H80: =IF($D$4= TRUE,'1 Geographic Data'!G27,"") ->  | I80: =IF($D$4= TRUE,'1 Geographic Data'!H27,"") ->  | J80: =IF($D$4= TRUE,'1 Geographic Data'!I27,"") ->  | K80: =IF($D$4= TRUE,'1 Geographic Data'!J27,"") ->  | L80: =IF($D$4= TRUE,'1 Geographic Data'!K27,"") ->  | M80: =IF($D$4= TRUE,'1 Geographic Data'!L27,"") ->  | N80: =IF($D$4= TRUE,'1 Geographic Data'!M27,"") ->  | O80: =IF($D$4= TRUE,'1 Geographic Data'!N27,"") -> 
C81: =IF($D$4= TRUE,'1 Geographic Data'!A28,'1 Geographic Data'!A28) -> Sunshine [hours] | D81: =IF($D$4= TRUE,'1 Geographic Data'!C28,"") ->  | E81: =IF($D$4= TRUE,'1 Geographic Data'!D28,"") ->  | F81: =IF($D$4= TRUE,'1 Geographic Data'!E28,"") ->  | G81: =IF($D$4= TRUE,'1 Geographic Data'!F28,"") ->  | H81: =IF($D$4= TRUE,'1 Geographic Data'!G28,"") ->  | I81: =IF($D$4= TRUE,'1 Geographic Data'!H28,"") ->  | J81: =IF($D$4= TRUE,'1 Geographic Data'!I28,"") ->  | K81: =IF($D$4= TRUE,'1 Geographic Data'!J28,"") ->  | L81: =IF($D$4= TRUE,'1 Geographic Data'!K28,"") ->  | M81: =IF($D$4= TRUE,'1 Geographic Data'!L28,"") ->  | N81: =IF($D$4= TRUE,'1 Geographic Data'!M28,"") ->  | O81: =IF($D$4= TRUE,'1 Geographic Data'!N28,"") -> 
C82: Reference Evapotranspiration | D82: =D106 ->  | E82: =E106 -> 
C84: Mean Temp. [°C] | D84: =IF($D$4= TRUE,(D77+D78)/2,"") ->  | E84: =IF($D$4= TRUE,(E77+E78)/2,"") -> 
C85: Delta [kPa °C-1] | D85: =IF($D$4= TRUE,4098*(0.6108*EXP((17.27*D84)/(D84+237.3)))/(D84+237.3)^2,"") -> 
C86: e° (Tmax) [KPa] | D86: =IF($D$4= TRUE,0.6108*EXP((17.27*D77)/(D77+237.3)),"") -> 
C87: e° (Tmin) [KPa]
C88: es [KPa] | D88: =IF($D$4= TRUE,(D86+D87)/2,"") ->  | E88: =IF($D$4= TRUE,(E86+E87)/2,"") -> 
C89: ea [KPa] | D89: =IF($D$4= TRUE,D79*D88/100,"") -> 
C90: (es - ea) [KPa] | D90: =IF($D$4= TRUE,D88-D89,"") ->  | E90: =IF($D$4= TRUE,E88-E89,"") -> 
C91: Atm. P [KPa] | D91: =IF($D$4= TRUE,101.3*((293-0.0065*$D$71)/293)^5.26,"") -> 
C92: Gamma, γ [kPa °C-1] | D92: =IF($D$4= TRUE,0.000665*D91,"") ->  | E92: =IF($D$4= TRUE,0.000665*E91,"") -> 
C93: Month | D93: 1 | E93: 2 | F93: 3 | G93: 4 | H93: 5 | I93: 6 | J93: 7 | K93: 8 | L93: 9 | M93: 10 | N93: 11 | O93: 12
C94: J | D94: =IF($D$4= TRUE,TRUNC((30.4*D93)-15),"") ->  | E94: =IF($D$4= TRUE,TRUNC((30.4*E93)-15),"") -> 
C95: dr | D95: =IF($D$4= TRUE,1+(0.033*COS(2*PI()*D94/365)),"") ->  | E95: =IF($D$4= TRUE,1+(0.033*COS(2*PI()*E94/365)),"") -> 
C96: Solar Decl. δ [Rad] | D96: =IF($D$4= TRUE,0.4093*SIN((2*PI()*D94/365)-1.39),"") ->  | E96: =IF($D$4= TRUE,0.4093*SIN((2*PI()*E94/365)-1.39),"") -> 
C97: Sunset Angle [Rad] | D97: =IF($D$4= TRUE,ACOS(-TAN($I$69)*TAN(D96)),"") -> 
C98: Ra [MJ m-2 day-1] | D98: =IF($D$4= TRUE,(24*60*0.082*D95/PI())*((D97*SIN($I$69)*SIN(D96))+(COS($I$69)*COS(D96)*SIN(D97))),"") -> 
C99: Daylight hours N | D99: =IF($D$4= TRUE,24*D97/PI(),"") ->  | E99: =IF($D$4= TRUE,24*E97/PI(),"") -> 
C100: Rs [MJ m-2 day-1] | D100: =IF($D$4= TRUE,($E$73+($E$74*D81/D99))*D98,"") -> 
C101: Rso [MJ m-2 day-1] | D101: =IF($D$4= TRUE,($E$73+$E$74)*D98,"") -> 
C102: Rns [MJ m-2 day-1] | D102: =IF($D$4= TRUE,(1-$H$73)*D100,"") -> 
C103: Rnl [MJ m-2 day-1] | D103: =IF($D$4= TRUE,4.903*10^-9*(((D77+273.16)^4+(D78+273.16)^4)/2)*(0.34-(0.14*SQRT(D89)))*((1.35*D100/D101)-0.35),"") -> 
C104: Rn [MJ m-2 day-1] | D104: =IF($D$4= TRUE,D102-D103,"") ->  | E104: =IF($D$4= TRUE,E102-E103,"") -> 
C105: Gmonth [MJ m-2 day-1] | D105: =IF($D$4= TRUE,0.14*(D84-O84),"") ->  | E105: =IF($D$4= TRUE,0.14*(E84-D84),"") -> 
C106: ETo [mm day-1] | D106: =IF($D$4= TRUE,((0.408*D85*(D104-D105))+(D92*900*D80*D90/(D84+273)))/(D85+(D92*(1+(0.34*D80)))),"") -> 
B108: Option 4 | C108: Reference evapotranspiration
D109: =D14 -> January | E109: February | F109: March | G109: April | H109: May | I109: June | J109: July | K109: August | L109: September | M109: October | N109: November | O109: December
C110: =IF($D$5= TRUE,'1 Geographic Data'!A23,'1 Geographic Data'!A23) -> Mean daily temperature [°C] | D110: =IF($D$5= TRUE,'1 Geographic Data'!C23,'1 Geographic Data'!C23) -> 25.5 | E110: =IF($D$5= TRUE,'1 Geographic Data'!D23,'1 Geographic Data'!D23) -> 25 | F110: =IF($D$5= TRUE,'1 Geographic Data'!E23,'1 Geographic Data'!E23) -> 24.6 | G110: =IF($D$5= TRUE,'1 Geographic Data'!F23,'1 Geographic Data'!F23) -> 23.8 | H110: =IF($D$5= TRUE,'1 Geographic Data'!G23,'1 Geographic Data'!G23) -> 23.9 | I110: =IF($D$5= TRUE,'1 Geographic Data'!H23,'1 Geographic Data'!H23) -> 23.5 | J110: =IF($D$5= TRUE,'1 Geographic Data'!I23,'1 Geographic Data'!I23) -> 23 | K110: =IF($D$5= TRUE,'1 Geographic Data'!J23,'1 Geographic Data'!J23) -> 23 | L110: =IF($D$5= TRUE,'1 Geographic Data'!K23,'1 Geographic Data'!K23) -> 23.6 | M110: =IF($D$5= TRUE,'1 Geographic Data'!L23,'1 Geographic Data'!L23) -> 23.9 | N110: =IF($D$5= TRUE,'1 Geographic Data'!M23,'1 Geographic Data'!M23) -> 23.6 | O110: =IF($D$5= TRUE,'1 Geographic Data'!N23,'1 Geographic Data'!N23) -> 24
C111: =IF($D$5= TRUE,'1 Geographic Data'!A29,'1 Geographic Data'!A29) -> Reference evapotranspiration [mm/day] | D111: =IF($D$5= TRUE,'1 Geographic Data'!C29,"") ->  | E111: =IF($D$5= TRUE,'1 Geographic Data'!D29,"") ->  | F111: =IF($D$5= TRUE,'1 Geographic Data'!E29,"") ->  | G111: =IF($D$5= TRUE,'1 Geographic Data'!F29,"") ->  | H111: =IF($D$5= TRUE,'1 Geographic Data'!G29,"") ->  | I111: =IF($D$5= TRUE,'1 Geographic Data'!H29,"") ->  | J111: =IF($D$5= TRUE,'1 Geographic Data'!I29,"") ->  | K111: =IF($D$5= TRUE,'1 Geographic Data'!J29,"") ->  | L111: =IF($D$5= TRUE,'1 Geographic Data'!K29,"") ->  | M111: =IF($D$5= TRUE,'1 Geographic Data'!L29,"") ->  | N111: =IF($D$5= TRUE,'1 Geographic Data'!M29,"") ->  | O111: =IF($D$5= TRUE,'1 Geographic Data'!N29,"") -> 
D114: =D14 -> January | E114: February | F114: March | G114: April | H114: May | I114: June | J114: July | K114: August | L114: September | M114: October | N114: November | O114: December
B115: Final Values | C115: Reference Evapotranspiration | D115: =IF($D$2= TRUE, D17, IF($D$3= TRUE, D56,IF($D$4= TRUE, D82,D111))) -> 5.3271 | E115: 5.265 | F115: 5.21532 | G115: 5.30544 | H115: 5.31832 | I115: 5.2668 | J115: 5.2024 | K115: 5.2024 | L115: 5.27968 | M115: 5.12838 | N115: 5.09112 | O115: 5.1408
C116: ='1 Geographic Data'!$A$23 -> Mean daily temperature [°C] | D116: =IF($D$2= TRUE, D15, IF($D$3= TRUE, D58,IF($D$4= TRUE, D84,D110))) -> 25.5 | E116: 25 | F116: 24.6 | G116: 23.8 | H116: 23.9 | I116: 23.5 | J116: 23 | K116: 23 | L116: 23.6 | M116: 23.9 | N116: 23.6 | O116: 24
C117: ='1 Geographic Data'!A30 -> Rainfall [mm/month] | D117: ='1 Geographic Data'!C30 -> 45 | E117: ='1 Geographic Data'!D30 -> 33 | F117: ='1 Geographic Data'!E30 -> 69.3 | G117: ='1 Geographic Data'!F30 -> 142.8 | H117: ='1 Geographic Data'!G30 -> 109.8 | I117: ='1 Geographic Data'!H30 -> 38.1 | J117: ='1 Geographic Data'!I30 -> 27 | K117: ='1 Geographic Data'!J30 -> 21.6 | L117: ='1 Geographic Data'!K30 -> 18.3 | M117: ='1 Geographic Data'!L30 -> 48.3 | N117: ='1 Geographic Data'!M30 -> 97.2 | O117: ='1 Geographic Data'!N30 -> 86.1
A120: Calculation of crop water requiremnet and irrigation requirement
C122: Year | D122: ='Crop Calculation Sheet'!J11 -> 2020 | E122: ='Crop Calculation Sheet'!K11 -> 2020 | F122: ='Crop Calculation Sheet'!L11 -> 2020 | G122: ='Crop Calculation Sheet'!M11 -> 2020 | H122: ='Crop Calculation Sheet'!N11 -> 2020 | I122: ='Crop Calculation Sheet'!O11 -> 2020 | J122: ='Crop Calculation Sheet'!P11 -> 2020 | K122: ='Crop Calculation Sheet'!Q11 -> 2020 | L122: ='Crop Calculation Sheet'!R11 -> 2020 | M122: ='Crop Calculation Sheet'!S11 -> 2020 | N122: ='Crop Calculation Sheet'!T11 -> 2021 | O122: ='Crop Calculation Sheet'!U11 -> 2021
C123: Month of the year | D123: ='Crop Calculation Sheet'!J12 -> March | E123: ='Crop Calculation Sheet'!K12 -> April | F123: ='Crop Calculation Sheet'!L12 -> May | G123: ='Crop Calculation Sheet'!M12 -> June | H123: ='Crop Calculation Sheet'!N12 -> July | I123: ='Crop Calculation Sheet'!O12 -> August | J123: ='Crop Calculation Sheet'!P12 -> September | K123: ='Crop Calculation Sheet'!Q12 -> October | L123: ='Crop Calculation Sheet'!R12 -> November | M123: ='Crop Calculation Sheet'!S12 -> December | N123: ='Crop Calculation Sheet'!T12 -> January | O123: ='Crop Calculation Sheet'!U12 -> February
C124: Days per month | D124: ='Crop Calculation Sheet'!J14 -> 31 | E124: ='Crop Calculation Sheet'!K14 -> 30 | F124: ='Crop Calculation Sheet'!L14 -> 31 | G124: ='Crop Calculation Sheet'!M14 -> 30 | H124: ='Crop Calculation Sheet'!N14 -> 31 | I124: ='Crop Calculation Sheet'!O14 -> 31 | J124: ='Crop Calculation Sheet'!P14 -> 30 | K124: ='Crop Calculation Sheet'!Q14 -> 31 | L124: ='Crop Calculation Sheet'!R14 -> 30 | M124: ='Crop Calculation Sheet'!S14 -> 31 | N124: ='Crop Calculation Sheet'!T14 -> 31 | O124: ='Crop Calculation Sheet'!U14 -> 28
C125: =$C$115 -> Reference Evapotranspiration | D125: ='Crop Calculation Sheet'!J15 -> 5.21532 | E125: ='Crop Calculation Sheet'!K15 -> 5.30544 | F125: ='Crop Calculation Sheet'!L15 -> 5.31832 | G125: ='Crop Calculation Sheet'!M15 -> 5.2668 | H125: ='Crop Calculation Sheet'!N15 -> 5.2024 | I125: ='Crop Calculation Sheet'!O15 -> 5.2024 | J125: ='Crop Calculation Sheet'!P15 -> 5.27968 | K125: ='Crop Calculation Sheet'!Q15 -> 5.12838 | L125: ='Crop Calculation Sheet'!R15 -> 5.09112 | M125: ='Crop Calculation Sheet'!S15 -> 5.1408 | N125: ='Crop Calculation Sheet'!T15 -> 5.3271 | O125: ='Crop Calculation Sheet'!U15 -> 5.265
C126: =C116 -> Mean daily temperature [°C] | D126: =VLOOKUP($C$126,$C$114:$O$117,MATCH(D$123,$C$114:$O$114,0),FALSE) -> 24.6 | E126: 23.8 | F126: 23.9 | G126: 23.5 | H126: 23 | I126: 23 | J126: 23.6 | K126: 23.9 | L126: 23.6 | M126: 24 | N126: 25.5 | O126: 25
C127: =C117 -> Rainfall [mm/month] | D127: =VLOOKUP($C$127,$C$114:$O$117,MATCH(D$123,$C$114:$O$114,0),FALSE) -> 69.3 | E127: 142.8 | F127: 109.8 | G127: 38.1 | H127: 27 | I127: 21.6 | J127: 18.3 | K127: 48.3 | L127: 97.2 | M127: 86.1 | N127: 45 | O127: 33
C128: Effective rainfall [mm/month] | D128: =IF(D127<=70,IF(0.6*D127-10>0,0.6*D127-10,0),IF(0.8*D127-24>0,0.8*D127-24,0)) -> 31.58 | E128: 90.24 | F128: 63.84 | G128: 12.86 | H128: 6.2 | I128: 2.96 | J128: 0.98 | K128: 18.98 | L128: 53.76 | M128: 44.88 | N128: 17 | O128: 9.8
C129: Average daily effective rainfall [mm/day] | D129: =D128/D124 -> 1.018709677 | E129: =E128/E124 -> 3.008 | F129: 2.059354839 | G129: 0.4286666667 | H129: 0.2 | I129: 0.09548387097 | J129: 0.03266666667 | K129: 0.6122580645 | L129: 1.792 | M129: 1.447741935 | N129: 0.5483870968 | O129: 0.35
B132: Water Need | D132: =PROPER(D123) -> March | E132: =PROPER(E123) -> April | F132: May | G132: June | H132: July | I132: August | J132: September | K132: October | L132: November | M132: December | N132: January | O132: February
B133: mm/month | C133: =IF('Data Validation Sheet'!$H$12=TRUE,'Crop Calculation Sheet'!I19,0) -> 0 | D133: =IF('Data Validation Sheet'!$H$12=TRUE,'Crop Calculation Sheet'!J19,0) -> 0 | E133: =IF('Data Validation Sheet'!$H$12=TRUE,'Crop Calculation Sheet'!K19,0) -> 0 | F133: =IF('Data Validation Sheet'!$H$12=TRUE,'Crop Calculation Sheet'!L19,0) -> 0 | G133: =IF('Data Validation Sheet'!$H$12=TRUE,'Crop Calculation Sheet'!M19,0) -> 0 | H133: =IF('Data Validation Sheet'!$H$12=TRUE,'Crop Calculation Sheet'!N19,0) -> 0 | I133: =IF('Data Validation Sheet'!$H$12=TRUE,'Crop Calculation Sheet'!O19,0) -> 0 | J133: =IF('Data Validation Sheet'!$H$12=TRUE,'Crop Calculation Sheet'!P19,0) -> 0 | K133: =IF('Data Validation Sheet'!$H$12=TRUE,'Crop Calculation Sheet'!Q19,0) -> 0 | L133: =IF('Data Validation Sheet'!$H$12=TRUE,'Crop Calculation Sheet'!R19,0) -> 0 | M133: =IF('Data Validation Sheet'!$H$12=TRUE,'Crop Calculation Sheet'!S19,0) -> 0 | N133: =IF('Data Validation Sheet'!$H$12=TRUE,'Crop Calculation Sheet'!T19,0) -> 0 | O133: =IF('Data Validation Sheet'!$H$12=TRUE,'Crop Calculation Sheet'!U19,0) -> 0 | P133: ="Area in "&'3 Irrigation Schedule'!$C$8 -> Area in ha | Q133: Actual Area in ha
B134: m3/month | C134: =C133 -> 0 | D134: =D133*10*$Q$134 -> 0 | E134: 0 | F134: 0 | G134: 0 | H134: 0 | I134: 0 | J134: 0 | K134: 0 | L134: 0 | M134: 0 | N134: 0 | O134: 0 | P134: ='3 Irrigation Schedule'!$E$19 -> 1 | Q134: =P134/'3 Irrigation Schedule'!$H$8 -> 1
B135: mm/day | C135: =IF('Data Validation Sheet'!$H$12=TRUE,'Crop Calculation Sheet'!I20,0) -> 0 | D135: =IF('Data Validation Sheet'!$H$12=TRUE,'Crop Calculation Sheet'!J20,0) -> 0 | E135: =IF('Data Validation Sheet'!$H$12=TRUE,'Crop Calculation Sheet'!K20,0) -> 0 | F135: =IF('Data Validation Sheet'!$H$12=TRUE,'Crop Calculation Sheet'!L20,0) -> 0 | G135: =IF('Data Validation Sheet'!$H$12=TRUE,'Crop Calculation Sheet'!M20,0) -> 0 | H135: =IF('Data Validation Sheet'!$H$12=TRUE,'Crop Calculation Sheet'!N20,0) -> 0 | I135: =IF('Data Validation Sheet'!$H$12=TRUE,'Crop Calculation Sheet'!O20,0) -> 0 | J135: =IF('Data Validation Sheet'!$H$12=TRUE,'Crop Calculation Sheet'!P20,0) -> 0 | K135: =IF('Data Validation Sheet'!$H$12=TRUE,'Crop Calculation Sheet'!Q20,0) -> 0 | L135: =IF('Data Validation Sheet'!$H$12=TRUE,'Crop Calculation Sheet'!R20,0) -> 0 | M135: =IF('Data Validation Sheet'!$H$12=TRUE,'Crop Calculation Sheet'!S20,0) -> 0 | N135: =IF('Data Validation Sheet'!$H$12=TRUE,'Crop Calculation Sheet'!T20,0) -> 0 | O135: =IF('Data Validation Sheet'!$H$12=TRUE,'Crop Calculation Sheet'!U20,0) -> 0
B136: m3/day | C136: =IF('Data Validation Sheet'!$H$12=TRUE,'Crop Calculation Sheet'!I20,0) -> 0 | D136: =D135*10*$Q$134 -> 0 | E136: =E135*10*$Q$134 -> 0 | F136: 0 | G136: 0 | H136: 0 | I136: 0 | J136: =J135*10*$Q$134 -> 0 | K136: =K135*10*$Q$134 -> 0 | L136: =L135*10*$Q$134 -> 0 | M136: =M135*10*$Q$134 -> 0 | N136: =N135*10*$Q$134 -> 0 | O136: =O135*10*$Q$134 -> 0
C137: =IF('Data Validation Sheet'!$H$12=TRUE,'Crop Calculation Sheet'!I21,0) -> 0 | D137: =IF('Data Validation Sheet'!$H$12=TRUE,'Crop Calculation Sheet'!J21,0) -> 0 | E137: =IF('Data Validation Sheet'!$H$12=TRUE,'Crop Calculation Sheet'!K21,0) -> 0 | F137: =IF('Data Validation Sheet'!$H$12=TRUE,'Crop Calculation Sheet'!L21,0) -> 0 | G137: =IF('Data Validation Sheet'!$H$12=TRUE,'Crop Calculation Sheet'!M21,0) -> 0 | H137: =IF('Data Validation Sheet'!$H$12=TRUE,'Crop Calculation Sheet'!N21,0) -> 0 | I137: =IF('Data Validation Sheet'!$H$12=TRUE,'Crop Calculation Sheet'!O21,0) -> 0 | J137: =IF('Data Validation Sheet'!$H$12=TRUE,'Crop Calculation Sheet'!P21,0) -> 0 | K137: =IF('Data Validation Sheet'!$H$12=TRUE,'Crop Calculation Sheet'!Q21,0) -> 0 | L137: =IF('Data Validation Sheet'!$H$12=TRUE,'Crop Calculation Sheet'!R21,0) -> 0 | M137: =IF('Data Validation Sheet'!$H$12=TRUE,'Crop Calculation Sheet'!S21,0) -> 0 | N137: =IF('Data Validation Sheet'!$H$12=TRUE,'Crop Calculation Sheet'!T21,0) -> 0 | O137: =IF('Data Validation Sheet'!$H$12=TRUE,'Crop Calculation Sheet'!U21,0) -> 0
B141: Irrigation Method | C141: Efficiency %
B143: =Translate!C181 -> Surface: Graded furrow | C143: 65
B144: =Translate!C182 -> Surface: with tailwater reuse | C144: 75
B145: =Translate!C183 -> Surface: Graded border/basins | C145: 65
B146: =Translate!C184 -> Sprinkler: Periodic move | C146: 75
B147: =Translate!C185 -> Sprinkler: Side roll | C147: 75
B148: =Translate!C186 -> Sprinkler: Moving big gun | C148: 65
B149: =Translate!C187 -> Center pivot: Impact heads with end gun | C149: 80
B150: =Translate!C188 -> Center pivot: Spray heads without end gun | C150: 90
B151: =Translate!C189 -> Center pivot: LEPA without end gun | C151: 95
B152: =Translate!C190 -> Lateral move: Spray heads with hose feed | C152: 90
B153: =Translate!C191 -> Lateral move: Spray heads with canal feed | C153: 85
B154: =Translate!C192 -> Microirrigation: Drip irrigation | C154: 90
B155: =Translate!C193 -> Microirrigation: Subsurface drip | C155: 90
B156: =Translate!C194 -> Microirrigation: Microspray | C156: 85
B157: =Translate!C195 -> Garden hose | C157: 70

Sheet Crop Calculation Sheet (hidden)
B2: Do not modify
B3: Date format
B4: Year | D4: yyyy
B5: Month | D5: mmmm
B6: Selected language | D6: ='READ ME'!$G$11 -> English
B7: Selected code | D7: =VLOOKUP($D$6,$B$9:$C$14,2,FALSE) -> [$-409] | I7: Earliest planting date: | J7: ='3 Irrigation Schedule'!$G$19 -> 2020-03-15 | L7: Last simulated date: | N7: =DATE(YEAR($J$7)+3,MONTH($J$7),0) -> 2023-02-28
B8: Language | C8: Code
B9: =Translate!D6 -> English | C9: =Translate!D7 -> [$-409]
B10: =Translate!E6 -> Français | C10: =Translate!E7 -> [$-40C] | I10: Month after Planthing | J10: 1 | K10: 2 | L10: 3 | M10: 4 | N10: 5 | O10: 6 | P10: 7 | Q10: 8 | R10: 9 | S10: 10 | T10: 11 | U10: 12
B11: =Translate!F6 -> Español | C11: =Translate!F7 -> [$-C0A] | I11: Year | J11: =TEXT(DATE(YEAR($J$7),MONTH($J$7),1),$D$7&$D$4) -> 2020 | K11: =TEXT((DATE(YEAR($J$7),MONTH($J$7)+K10-1,1)),$D$7&$D$4) -> 2020 | L11: 2020 | M11: 2020 | N11: 2020 | O11: 2020 | P11: 2020 | Q11: 2020 | R11: 2020 | S11: 2020 | T11: 2021 | U11: 2021
B12: =Translate!G6 -> العربية | C12: =Translate!G7 -> [$-401] | I12: Month of the year | J12: =TEXT(DATE(YEAR($J$7),MONTH($J$7),1),$D$7&$D$5) -> March | K12: =TEXT(DATE(YEAR($J$7),MONTH($J$7)+K10-1,1),$D$7&$D$5) -> April | L12: May | M12: June | N12: July | O12: August | P12: September | Q12: October | R12: November | S12: December | T12: January | U12: February
B13: =Translate!H6 -> 0 | C13: =Translate!H7 -> 0 | I13: 1st day of the month | J13: =(DATE(YEAR($J$7),MONTH($J$7)+J10-1,1)) -> 2020-03-01 | K13: 2020-04-01 | L13: 2020-05-01 | M13: 2020-06-01 | N13: 2020-07-01 | O13: 2020-08-01 | P13: 2020-09-01 | Q13: 2020-10-01 | R13: 2020-11-01 | S13: 2020-12-01 | T13: 2021-01-01 | U13: 2021-02-01
B14: =Translate!I6 -> 0 | C14: =Translate!I7 -> 0 | I14: Days per month | J14: =DAY(DATE(YEAR(J13),MONTH(J13)+1,1)-1) -> 31 | K14: =DAY(DATE(YEAR(K13),MONTH(K13)+1,1)-1) -> 30 | L14: =DAY(DATE(YEAR(L13),MONTH(L13)+1,1)-1) -> 31 | M14: 30 | N14: 31 | O14: 31 | P14: 30 | Q14: 31 | R14: 30 | S14: 31 | T14: 31 | U14: 28
I15: Reference Evapotranspiration | J15: =VLOOKUP($I$15,'General Calculation'!$C$115:$O$115,MATCH(J12,'General Calculation'!$C$114:$O$114,0)) -> 5.21532 | K15: 5.30544 | L15: 5.31832 | M15: 5.2668 | N15: 5.2024 | O15: 5.2024 | P15: 5.27968 | Q15: 5.12838 | R15: 5.09112 | S15: 5.1408 | T15: 5.3271 | U15: 5.265
C17: ETo | D17: Eff. Rainfall | G17: Crop 1 | H17: =IFERROR(LEFT($H$24,FIND("(",$H$24)-1),$H$24) ->  | I17: Crop Water Requirement | J17: =SUMIFS($M$34:$M$399,$D$34:$D$399,J$11,$E$34:$E$399,J$12) -> 39.55298688 | K17: 152.351015 | L17: 119.928116 | M17: 0 | N17: 0 | O17: 0 | P17: 0 | Q17: 0 | R17: 0 | S17: 0 | T17: 0 | U17: 0
B18: Month | C18: mm/day | D18: mm/day | I18: Number of day/month | J18: =COUNTIFS($M$34:$M$399,">0",$D$34:$D$399,J$11,$E$34:$E$399,J$12) -> 17 | K18: 30 | L18: 21 | M18: 0 | N18: 0 | O18: 0 | P18: 0 | Q18: 0 | R18: 0 | S18: 0 | T18: 0 | U18: 0
B19: =TRANSPOSE(J12:U12) -> March | C19: =TRANSPOSE(J15:U15) -> 5.21532 | D19: =TRANSPOSE('General Calculation'!D129:O129) -> 1.018709677 | I19: Total Gross Irrigation | J19: =SUMIFS($W$34:$W$399,$D$34:$D$399,J$11,$E$34:$E$399,J$12) ->  | M19: 0 | N19: 0 | O19: 0 | P19: 0 | Q19: 0 | R19: 0 | S19: 0 | T19: 0 | U19: 0
B20: April | C20: 5.30544 | D20: 3.008 | I20: Max Gross Irrigation per event | J20: =_xlfn.AGGREGATE(14,3,($D$34:$D$399=J$11)*($E$34:$E$399=J$12)*$W$34:$W$399,1) -> 
B21: May | C21: 5.31832 | D21: 2.059354839 | I21: Irrigation days | J21: =COUNTIFS($W$34:$W$399,">0",$D$34:$D$399,J$11,$E$34:$E$399,J$12) -> 0 | K21: 0 | L21: 0 | M21: 0 | N21: 0 | O21: 0 | P21: 0 | Q21: 0 | R21: 0 | S21: 0 | T21: 0 | U21: 0
B22: June | C22: 5.2668 | D22: 0.4286666667
B23: July | C23: 5.2024 | D23: 0.2
B24: August | C24: 5.2024 | D24: 0.09548387097 | G24: Crop 1 | H24: =IF(OR('3 Irrigation Schedule'!$B$19="",'3 Irrigation Schedule'!$B$19="none"),"",'3 Irrigation Schedule'!$B$19) ->  | L24: =IFERROR(VLOOKUP($H$24,'Crop Information'!$B$7:$C$216,2,FALSE),2) -> 2
B25: September | C25: 5.27968 | D25: 0.03266666667 | I25: Date after Sowing
B26: October | C26: 5.12838 | D26: 0.6122580645 | G26: Crop 1 | H26: Days | I26: DAS | J26: From | K26: To | L26: Crop Factor | M26: Root Depth | N26: Depletion
B27: November | C27: 5.09112 | D27: 1.792 | G27: Initial: | H27: =IFERROR(INDEX('Crop Information'!$D$7:$D$216,$L$24),NA()) -> 10 | I27: =H27 -> 10 | J27: =$J$7 -> 2020-03-15 | K27: =J27+H27-1 -> 2020-03-24 | L27: =INDEX('Crop Information'!$I$7:$I$216,$L$24) -> 0.4 | M27: =INDEX('Crop Information'!$L$7:$L$216,$L$24) -> 1.2 | N27: =INDEX('Crop Information'!$N$7:$N$216,$L$24) -> 0.55
B28: December | C28: 5.1408 | D28: 1.447741935 | G28: Development: | H28: =IFERROR(INDEX('Crop Information'!$E$7:$E$216,$L$24),NA()) -> 25 | I28: =I27+H28 -> 35 | J28: =K27+1 -> 2020-03-25 | K28: =K27+H28 -> 2020-04-18 | L28: ="-" -> - | M28: =INDEX('Crop Information'!$M$7:$M$216,$L$24) -> 1.2 | N28: ="-" -> -
B29: January | C29: 5.3271 | D29: 0.5483870968 | G29: Mid season: | H29: =IFERROR(INDEX('Crop Information'!$F$7:$F$216,$L$24),NA()) -> 23 | I29: =I28+H29 -> 58 | J29: =K28+1 -> 2020-04-19 | K29: =K28+H29 -> 2020-05-11 | L29: =INDEX('Crop Information'!$J$7:$J$216,$L$24) -> 1.1 | M29: =INDEX('Crop Information'!$M$7:$M$216,$L$24) -> 1.2 | N29: ="-" -> -
B30: February | C30: 5.265 | D30: 0.35 | G30: Late season: | H30: =IFERROR(INDEX('Crop Information'!$G$7:$G$216,$L$24),NA()) -> 10 | I30: =I29+H30 -> 68 | J30: =K29+1 -> 2020-05-12 | K30: =H30+K29 -> 2020-05-21 | L30: =INDEX('Crop Information'!$K$7:$K$216,$L$24) -> 1 | M30: =INDEX('Crop Information'!$M$7:$M$216,$L$24) -> 1.2 | N30: ="-" -> -
G31: Total growing days: | H31: =IFERROR(SUM(H27:H30),NA()) -> 68
J32: mm | K32: mm | M32: mm | N32: m | O32: mm | P32: mm | Q32: mm | S32: mm | T32: mm | U32: mm | V32: mm | W32: mm
D33: Year | E33: Month | F33: Date | H33: DAS | I33: Stage: | J33: ETo | K33: Rainfall | L33: Kc | M33: ETc | N33: Rooting Depth | O33: TAW | P33: RAW | Q33: Dep. Start | R33: Ks | S33: ETc adj | T33: Dep. End | U33: Threshold | V33: NIR | W33: GIR
D34: =IFERROR(TEXT(DATE(YEAR($F34),MONTH($F34),1),$D$7&$D$4),"") -> 2020 | E34: =IFERROR(TEXT(DATE(YEAR($F34),MONTH($F34),1),$D$7&$D$5),"") -> March | F34: =DATE(YEAR($J$7),MONTH($J$7),1) -> 2020-03-01 | H34: =IFERROR(IF(OR($F34-$J$27+1<=0,$F34>$K$30),"",$F34-$J$27+1),"") ->  | I34: =IF(H34="","",IF(H34<=$I$27,"Initial",IF(AND(H34>$I$27,H34<=$I$28),"Development",IF(AND(H34>$I$28,H34<=$I$29),"Mid Season","Late Season")))) ->  | J34: =IFERROR(VLOOKUP($E34,$B$19:$C$30,2,FALSE),"") -> 5.21532 | K34: =IFERROR(VLOOKUP($E34,$B$19:$D$30,3,FALSE),"") -> 1.018709677 | L34: =IF(H34="","",IF(H34<=$I$27,$L$27,IF(AND(H34>$I$27,H34<=$I$28),$L$27+((H34-$I$27)/$H$28)*($L$29-$L$27),IF(AND(H34>$I$28,H34<=$I$29),$L$29,$L$29+((H34-$I$29)/$H$30)*($L$30-$L$29))))) ->  | M34: =IFERROR((J34*L34),0) -> 0 | N34: =IF(H34="","",IF(OR(H34=1,H34<$I$28),$M$27+(($M$28-$M$27)*((H34-1)/($I$28-1))),$M$28)) ->  | O34: =IF(OR('3 Irrigation Schedule'!$C$29="",'3 Irrigation Schedule'!$C$31="",H34=""),"",(('3 Irrigation Schedule'!$C$29-'3 Irrigation Schedule'!$C$31)/100)*1000*N34) ->  | P34: =IF(H34="","",O34*$N$27) ->  | Q34: =IF(H34="","",IF(H34=1,O34*(1-'3 Irrigation Schedule'!$C$27),T33-V33)) ->  | R34: =IF(H34="","",IF(Q34>P34,(O34-Q34)/(O34-P34),1)) ->  | S34: =IF(H34="","",M34*R34) ->  | T34: =IF(H34="","",IF(Q34+S34-K34<0,0,Q34+S34-K34)) ->  | U34: =IF(H34="","",IF('3 Irrigation Schedule'!$P$19<P34,'3 Irrigation Schedule'!$P$19,P34)) ->  | V34: =IF(H34="","",IF(U34<=T34,U34,0)) ->  | W34: =IF(H34="","",V34/'3 Irrigation Schedule'!$M$19) -> 
D35: 2020 | E35: March | F35: =IFERROR(IF(F34+1<=$N$7, F34+1,""),"") -> 2020-03-02 | H35: =IFERROR(IF(OR($F35-$J$27+1<=0,$F35>$K$30),"",$F35-$J$27+1),"") ->  | J35: 5.21532 | K35: =IFERROR(VLOOKUP($E35,$B$19:$D$30,3,FALSE),"") -> 1.018709677 | M35: 0 | O35: =IF(OR('3 Irrigation Schedule'!$C$29="",'3 Irrigation Schedule'!$C$31="",H35=""),"",(('3 Irrigation Schedule'!$C$29-'3 Irrigation Schedule'!$C$31)/100)*1000*N35) ->  | Q35: =IF(H35="","",IF(H35=1,O35*(1-'3 Irrigation Schedule'!$C$27),T34-V34)) ->  | U35: =IF(H35="","",IF('3 Irrigation Schedule'!$P$19<P35,'3 Irrigation Schedule'!$P$19,P35)) ->  | W35: =IF(H35="","",V35/'3 Irrigation Schedule'!$M$19) -> 
D36: 2020 | E36: March | F36: 2020-03-03 | J36: 5.21532 | K36: 1.018709677 | M36: 0 | O36: =IF(OR('3 Irrigation Schedule'!$C$29="",'3 Irrigation Schedule'!$C$31="",H36=""),"",(('3 Irrigation Schedule'!$C$29-'3 Irrigation Schedule'!$C$31)/100)*1000*N36) ->  | Q36: =IF(H36="","",IF(H36=1,O36*(1-'3 Irrigation Schedule'!$C$27),T35-V35)) ->  | U36: =IF(H36="","",IF('3 Irrigation Schedule'!$P$19<P36,'3 Irrigation Schedule'!$P$19,P36)) ->  | W36: =IF(H36="","",V36/'3 Irrigation Schedule'!$M$19) -> 
D37: 2020 | E37: March | F37: 2020-03-04 | J37: 5.21532 | K37: 1.018709677 | M37: 0 | O37: =IF(OR('3 Irrigation Schedule'!$C$29="",'3 Irrigation Schedule'!$C$31="",H37=""),"",(('3 Irrigation Schedule'!$C$29-'3 Irrigation Schedule'!$C$31)/100)*1000*N37) ->  | Q37: =IF(H37="","",IF(H37=1,O37*(1-'3 Irrigation Schedule'!$C$27),T36-V36)) ->  | U37: =IF(H37="","",IF('3 Irrigation Schedule'!$P$19<P37,'3 Irrigation Schedule'!$P$19,P37)) ->  | W37: =IF(H37="","",V37/'3 Irrigation Schedule'!$M$19) -> 
D38: 2020 | E38: March | F38: 2020-03-05 | J38: 5.21532 | K38: 1.018709677 | M38: 0 | O38: =IF(OR('3 Irrigation Schedule'!$C$29="",'3 Irrigation Schedule'!$C$31="",H38=""),"",(('3 Irrigation Schedule'!$C$29-'3 Irrigation Schedule'!$C$31)/100)*1000*N38) ->  | Q38: =IF(H38="","",IF(H38=1,O38*(1-'3 Irrigation Schedule'!$C$27),T37-V37)) ->  | U38: =IF(H38="","",IF('3 Irrigation Schedule'!$P$19<P38,'3 Irrigation Schedule'!$P$19,P38)) ->  | W38: =IF(H38="","",V38/'3 Irrigation Schedule'!$M$19) -> 
D39: 2020 | E39: March | F39: 2020-03-06 | J39: 5.21532 | K39: 1.018709677 | M39: 0 | O39: =IF(OR('3 Irrigation Schedule'!$C$29="",'3 Irrigation Schedule'!$C$31="",H39=""),"",(('3 Irrigation Schedule'!$C$29-'3 Irrigation Schedule'!$C$31)/100)*1000*N39) ->  | Q39: =IF(H39="","",IF(H39=1,O39*(1-'3 Irrigation Schedule'!$C$27),T38-V38)) ->  | U39: =IF(H39="","",IF('3 Irrigation Schedule'!$P$19<P39,'3 Irrigation Schedule'!$P$19,P39)) ->  | W39: =IF(H39="","",V39/'3 Irrigation Schedule'!$M$19) -> 
D40: 2020 | E40: March | F40: 2020-03-07 | J40: 5.21532 | K40: 1.018709677 | M40: 0 | O40: =IF(OR('3 Irrigation Schedule'!$C$29="",'3 Irrigation Schedule'!$C$31="",H40=""),"",(('3 Irrigation Schedule'!$C$29-'3 Irrigation Schedule'!$C$31)/100)*1000*N40) ->  | Q40: =IF(H40="","",IF(H40=1,O40*(1-'3 Irrigation Schedule'!$C$27),T39-V39)) ->  | U40: =IF(H40="","",IF('3 Irrigation Schedule'!$P$19<P40,'3 Irrigation Schedule'!$P$19,P40)) ->  | W40: =IF(H40="","",V40/'3 Irrigation Schedule'!$M$19) -> 
D41: 2020 | E41: March | F41: 2020-03-08 | J41: 5.21532 | K41: 1.018709677 | M41: 0 | O41: =IF(OR('3 Irrigation Schedule'!$C$29="",'3 Irrigation Schedule'!$C$31="",H41=""),"",(('3 Irrigation Schedule'!$C$29-'3 Irrigation Schedule'!$C$31)/100)*1000*N41) ->  | Q41: =IF(H41="","",IF(H41=1,O41*(1-'3 Irrigation Schedule'!$C$27),T40-V40)) ->  | U41: =IF(H41="","",IF('3 Irrigation Schedule'!$P$19<P41,'3 Irrigation Schedule'!$P$19,P41)) ->  | W41: =IF(H41="","",V41/'3 Irrigation Schedule'!$M$19) -> 
D42: 2020 | E42: March | F42: 2020-03-09 | J42: 5.21532 | K42: 1.018709677 | M42: 0 | O42: =IF(OR('3 Irrigation Schedule'!$C$29="",'3 Irrigation Schedule'!$C$31="",H42=""),"",(('3 Irrigation Schedule'!$C$29-'3 Irrigation Schedule'!$C$31)/100)*1000*N42) ->  | Q42: =IF(H42="","",IF(H42=1,O42*(1-'3 Irrigation Schedule'!$C$27),T41-V41)) ->  | U42: =IF(H42="","",IF('3 Irrigation Schedule'!$P$19<P42,'3 Irrigation Schedule'!$P$19,P42)) ->  | W42: =IF(H42="","",V42/'3 Irrigation Schedule'!$M$19) -> 
D43: 2020 | E43: March | F43: 2020-03-10 | J43: 5.21532 | K43: 1.018709677 | M43: 0 | O43: =IF(OR('3 Irrigation Schedule'!$C$29="",'3 Irrigation Schedule'!$C$31="",H43=""),"",(('3 Irrigation Schedule'!$C$29-'3 Irrigation Schedule'!$C$31)/100)*1000*N43) ->  | Q43: =IF(H43="","",IF(H43=1,O43*(1-'3 Irrigation Schedule'!$C$27),T42-V42)) ->  | U43: =IF(H43="","",IF('3 Irrigation Schedule'!$P$19<P43,'3 Irrigation Schedule'!$P$19,P43)) ->  | W43: =IF(H43="","",V43/'3 Irrigation Schedule'!$M$19) -> 
D44: 2020 | E44: March | F44: 2020-03-11 | J44: 5.21532 | K44: 1.018709677 | M44: 0 | O44: =IF(OR('3 Irrigation Schedule'!$C$29="",'3 Irrigation Schedule'!$C$31="",H44=""),"",(('3 Irrigation Schedule'!$C$29-'3 Irrigation Schedule'!$C$31)/100)*1000*N44) ->  | Q44: =IF(H44="","",IF(H44=1,O44*(1-'3 Irrigation Schedule'!$C$27),T43-V43)) ->  | U44: =IF(H44="","",IF('3 Irrigation Schedule'!$P$19<P44,'3 Irrigation Schedule'!$P$19,P44)) ->  | W44: =IF(H44="","",V44/'3 Irrigation Schedule'!$M$19) -> 
D45: 2020 | E45: March | F45: 2020-03-12 | J45: 5.21532 | K45: 1.018709677 | M45: 0 | O45: =IF(OR('3 Irrigation Schedule'!$C$29="",'3 Irrigation Schedule'!$C$31="",H45=""),"",(('3 Irrigation Schedule'!$C$29-'3 Irrigation Schedule'!$C$31)/100)*1000*N45) ->  | Q45: =IF(H45="","",IF(H45=1,O45*(1-'3 Irrigation Schedule'!$C$27),T44-V44)) ->  | U45: =IF(H45="","",IF('3 Irrigation Schedule'!$P$19<P45,'3 Irrigation Schedule'!$P$19,P45)) ->  | W45: =IF(H45="","",V45/'3 Irrigation Schedule'!$M$19) -> 
D46: 2020 | E46: March | F46: 2020-03-13 | J46: 5.21532 | K46: 1.018709677 | M46: 0 | O46: =IF(OR('3 Irrigation Schedule'!$C$29="",'3 Irrigation Schedule'!$C$31="",H46=""),"",(('3 Irrigation Schedule'!$C$29-'3 Irrigation Schedule'!$C$31)/100)*1000*N46) ->  | Q46: =IF(H46="","",IF(H46=1,O46*(1-'3 Irrigation Schedule'!$C$27),T45-V45)) ->  | U46: =IF(H46="","",IF('3 Irrigation Schedule'!$P$19<P46,'3 Irrigation Schedule'!$P$19,P46)) ->  | W46: =IF(H46="","",V46/'3 Irrigation Schedule'!$M$19) -> 
D47: 2020 | E47: March | F47: 2020-03-14 | J47: 5.21532 | K47: 1.018709677 | M47: 0 | O47: =IF(OR('3 Irrigation Schedule'!$C$29="",'3 Irrigation Schedule'!$C$31="",H47=""),"",(('3 Irrigation Schedule'!$C$29-'3 Irrigation Schedule'!$C$31)/100)*1000*N47) ->  | Q47: =IF(H47="","",IF(H47=1,O47*(1-'3 Irrigation Schedule'!$C$27),T46-V46)) ->  | U47: =IF(H47="","",IF('3 Irrigation Schedule'!$P$19<P47,'3 Irrigation Schedule'!$P$19,P47)) ->  | W47: =IF(H47="","",V47/'3 Irrigation Schedule'!$M$19) -> 
D48: 2020 | E48: March | F48: 2020-03-15 | H48: 1 | I48: Initial | J48: 5.21532 | K48: 1.018709677 | L48: 0.4 | M48: 2.086128 | N48: 1.2 | O48: =IF(OR('3 Irrigation Schedule'!$C$29="",'3 Irrigation Schedule'!$C$31="",H48=""),"",(('3 Irrigation Schedule'!$C$29-'3 Irrigation Schedule'!$C$31)/100)*1000*N48) ->  | Q48: =IF(H48="","",IF(H48=1,O48*(1-'3 Irrigation Schedule'!$C$27),T47-V47)) ->  | U48: =IF(H48="","",IF('3 Irrigation Schedule'!$P$19<P48,'3 Irrigation Schedule'!$P$19,P48)) ->  | W48: =IF(H48="","",V48/'3 Irrigation Schedule'!$M$19) -> 
D49: 2020 | E49: March | F49: 2020-03-16 | H49: 2 | I49: Initial | J49: 5.21532 | K49: 1.018709677 | L49: 0.4 | M49: 2.086128 | N49: 1.2 | O49: =IF(OR('3 Irrigation Schedule'!$C$29="",'3 Irrigation Schedule'!$C$31="",H49=""),"",(('3 Irrigation Schedule'!$C$29-'3 Irrigation Schedule'!$C$31)/100)*1000*N49) ->  | Q49: =IF(H49="","",IF(H49=1,O49*(1-'3 Irrigation Schedule'!$C$27),T48-V48)) ->  | U49: =IF(H49="","",IF('3 Irrigation Schedule'!$P$19<P49,'3 Irrigation Schedule'!$P$19,P49)) ->  | W49: =IF(H49="","",V49/'3 Irrigation Schedule'!$M$19) -> 
D50: 2020 | E50: March | F50: 2020-03-17 | H50: 3 | I50: Initial | J50: 5.21532 | K50: 1.018709677 | L50: 0.4 | M50: 2.086128 | N50: 1.2 | O50: =IF(OR('3 Irrigation Schedule'!$C$29="",'3 Irrigation Schedule'!$C$31="",H50=""),"",(('3 Irrigation Schedule'!$C$29-'3 Irrigation Schedule'!$C$31)/100)*1000*N50) ->  | Q50: =IF(H50="","",IF(H50=1,O50*(1-'3 Irrigation Schedule'!$C$27),T49-V49)) ->  | U50: =IF(H50="","",IF('3 Irrigation Schedule'!$P$19<P50,'3 Irrigation Schedule'!$P$19,P50)) ->  | W50: =IF(H50="","",V50/'3 Irrigation Schedule'!$M$19) -> 
D51: 2020 | E51: March | F51: 2020-03-18 | H51: 4 | I51: Initial | J51: 5.21532 | K51: 1.018709677 | L51: 0.4 | M51: 2.086128 | N51: 1.2 | O51: =IF(OR('3 Irrigation Schedule'!$C$29="",'3 Irrigation Schedule'!$C$31="",H51=""),"",(('3 Irrigation Schedule'!$C$29-'3 Irrigation Schedule'!$C$31)/100)*1000*N51) ->  | Q51: =IF(H51="","",IF(H51=1,O51*(1-'3 Irrigation Schedule'!$C$27),T50-V50)) ->  | U51: =IF(H51="","",IF('3 Irrigation Schedule'!$P$19<P51,'3 Irrigation Schedule'!$P$19,P51)) ->  | W51: =IF(H51="","",V51/'3 Irrigation Schedule'!$M$19) -> 
D52: 2020 | E52: March | F52: 2020-03-19 | H52: 5 | I52: Initial | J52: 5.21532 | K52: 1.018709677 | L52: 0.4 | M52: 2.086128 | N52: 1.2 | O52: =IF(OR('3 Irrigation Schedule'!$C$29="",'3 Irrigation Schedule'!$C$31="",H52=""),"",(('3 Irrigation Schedule'!$C$29-'3 Irrigation Schedule'!$C$31)/100)*1000*N52) ->  | Q52: =IF(H52="","",IF(H52=1,O52*(1-'3 Irrigation Schedule'!$C$27),T51-V51)) ->  | U52: =IF(H52="","",IF('3 Irrigation Schedule'!$P$19<P52,'3 Irrigation Schedule'!$P$19,P52)) ->  | W52: =IF(H52="","",V52/'3 Irrigation Schedule'!$M$19) -> 
D53: 2020 | E53: March | F53: 2020-03-20 | H53: 6 | I53: Initial | J53: 5.21532 | K53: 1.018709677 | L53: 0.4 | M53: 2.086128 | N53: 1.2 | O53: =IF(OR('3 Irrigation Schedule'!$C$29="",'3 Irrigation Schedule'!$C$31="",H53=""),"",(('3 Irrigation Schedule'!$C$29-'3 Irrigation Schedule'!$C$31)/100)*1000*N53) ->  | Q53: =IF(H53="","",IF(H53=1,O53*(1-'3 Irrigation Schedule'!$C$27),T52-V52)) ->  | U53: =IF(H53="","",IF('3 Irrigation Schedule'!$P$19<P53,'3 Irrigation Schedule'!$P$19,P53)) ->  | W53: =IF(H53="","",V53/'3 Irrigation Schedule'!$M$19) -> 
D54: 2020 | E54: March | F54: 2020-03-21 | H54: 7 | I54: Initial | J54: 5.21532 | K54: 1.018709677 | L54: 0.4 | M54: 2.086128 | N54: 1.2 | O54: =IF(OR('3 Irrigation Schedule'!$C$29="",'3 Irrigation Schedule'!$C$31="",H54=""),"",(('3 Irrigation Schedule'!$C$29-'3 Irrigation Schedule'!$C$31)/100)*1000*N54) ->  | Q54: =IF(H54="","",IF(H54=1,O54*(1-'3 Irrigation Schedule'!$C$27),T53-V53)) ->  | U54: =IF(H54="","",IF('3 Irrigation Schedule'!$P$19<P54,'3 Irrigation Schedule'!$P$19,P54)) ->  | W54: =IF(H54="","",V54/'3 Irrigation Schedule'!$M$19) -> 
D55: 2020 | E55: March | F55: 2020-03-22 | H55: 8 | I55: Initial | J55: 5.21532 | K55: 1.018709677 | L55: 0.4 | M55: 2.086128 | N55: 1.2 | O55: =IF(OR('3 Irrigation Schedule'!$C$29="",'3 Irrigation Schedule'!$C$31="",H55=""),"",(('3 Irrigation Schedule'!$C$29-'3 Irrigation Schedule'!$C$31)/100)*1000*N55) ->  | Q55: =IF(H55="","",IF(H55=1,O55*(1-'3 Irrigation Schedule'!$C$27),T54-V54)) ->  | U55: =IF(H55="","",IF('3 Irrigation Schedule'!$P$19<P55,'3 Irrigation Schedule'!$P$19,P55)) ->  | W55: =IF(H55="","",V55/'3 Irrigation Schedule'!$M$19) -> 
D56: 2020 | E56: March | F56: 2020-03-23 | H56: 9 | I56: Initial | J56: 5.21532 | K56: 1.018709677 | L56: 0.4 | M56: 2.086128 | N56: 1.2 | O56: =IF(OR('3 Irrigation Schedule'!$C$29="",'3 Irrigation Schedule'!$C$31="",H56=""),"",(('3 Irrigation Schedule'!$C$29-'3 Irrigation Schedule'!$C$31)/100)*1000*N56) ->  | Q56: =IF(H56="","",IF(H56=1,O56*(1-'3 Irrigation Schedule'!$C$27),T55-V55)) ->  | U56: =IF(H56="","",IF('3 Irrigation Schedule'!$P$19<P56,'3 Irrigation Schedule'!$P$19,P56)) ->  | W56: =IF(H56="","",V56/'3 Irrigation Schedule'!$M$19) -> 
D57: 2020 | E57: March | F57: 2020-03-24 | H57: 10 | I57: Initial | J57: 5.21532 | K57: 1.018709677 | L57: 0.4 | M57: 2.086128 | N57: 1.2 | O57: =IF(OR('3 Irrigation Schedule'!$C$29="",'3 Irrigation Schedule'!$C$31="",H57=""),"",(('3 Irrigation Schedule'!$C$29-'3 Irrigation Schedule'!$C$31)/100)*1000*N57) ->  | Q57: =IF(H57="","",IF(H57=1,O57*(1-'3 Irrigation Schedule'!$C$27),T56-V56)) ->  | U57: =IF(H57="","",IF('3 Irrigation Schedule'!$P$19<P57,'3 Irrigation Schedule'!$P$19,P57)) ->  | W57: =IF(H57="","",V57/'3 Irrigation Schedule'!$M$19) -> 
D58: 2020 | E58: March | F58: 2020-03-25 | H58: 11 | I58: Development | J58: 5.21532 | K58: 1.018709677 | L58: 0.428 | M58: 2.23215696 | N58: 1.2 | O58: =IF(OR('3 Irrigation Schedule'!$C$29="",'3 Irrigation Schedule'!$C$31="",H58=""),"",(('3 Irrigation Schedule'!$C$29-'3 Irrigation Schedule'!$C$31)/100)*1000*N58) ->  | Q58: =IF(H58="","",IF(H58=1,O58*(1-'3 Irrigation Schedule'!$C$27),T57-V57)) ->  | U58: =IF(H58="","",IF('3 Irrigation Schedule'!$P$19<P58,'3 Irrigation Schedule'!$P$19,P58)) ->  | W58: =IF(H58="","",V58/'3 Irrigation Schedule'!$M$19) -> 
D59: 2020 | E59: March | F59: 2020-03-26 | H59: 12 | I59: Development | J59: 5.21532 | K59: 1.018709677 | L59: 0.456 | M59: 2.37818592 | N59: 1.2 | O59: =IF(OR('3 Irrigation Schedule'!$C$29="",'3 Irrigation Schedule'!$C$31="",H59=""),"",(('3 Irrigation Schedule'!$C$29-'3 Irrigation Schedule'!$C$31)/100)*1000*N59) ->  | Q59: =IF(H59="","",IF(H59=1,O59*(1-'3 Irrigation Schedule'!$C$27),T58-V58)) ->  | U59: =IF(H59="","",IF('3 Irrigation Schedule'!$P$19<P59,'3 Irrigation Schedule'!$P$19,P59)) ->  | W59: =IF(H59="","",V59/'3 Irrigation Schedule'!$M$19) -> 
D60: 2020 | E60: March | F60: 2020-03-27 | H60: 13 | I60: Development | J60: 5.21532 | K60: 1.018709677 | L60: 0.484 | M60: 2.52421488 | N60: 1.2 | O60: =IF(OR('3 Irrigation Schedule'!$C$29="",'3 Irrigation Schedule'!$C$31="",H60=""),"",(('3 Irrigation Schedule'!$C$29-'3 Irrigation Schedule'!$C$31)/100)*1000*N60) ->  | Q60: =IF(H60="","",IF(H60=1,O60*(1-'3 Irrigation Schedule'!$C$27),T59-V59)) ->  | U60: =IF(H60="","",IF('3 Irrigation Schedule'!$P$19<P60,'3 Irrigation Schedule'!$P$19,P60)) ->  | W60: =IF(H60="","",V60/'3 Irrigation Schedule'!$M$19) -> 
D61: 2020 | E61: March | F61: 2020-03-28 | H61: 14 | I61: Development | J61: 5.21532 | K61: 1.018709677 | L61: 0.512 | M61: 2.67024384 | N61: 1.2 | O61: =IF(OR('3 Irrigation Schedule'!$C$29="",'3 Irrigation Schedule'!$C$31="",H61=""),"",(('3 Irrigation Schedule'!$C$29-'3 Irrigation Schedule'!$C$31)/100)*1000*N61) ->  | Q61: =IF(H61="","",IF(H61=1,O61*(1-'3 Irrigation Schedule'!$C$27),T60-V60)) ->  | U61: =IF(H61="","",IF('3 Irrigation Schedule'!$P$19<P61,'3 Irrigation Schedule'!$P$19,P61)) ->  | W61: =IF(H61="","",V61/'3 Irrigation Schedule'!$M$19) -> 
D62: 2020 | E62: March | F62: 2020-03-29 | H62: 15 | I62: Development | J62: 5.21532 | K62: 1.018709677 | L62: 0.54 | M62: 2.8162728 | N62: 1.2 | O62: =IF(OR('3 Irrigation Schedule'!$C$29="",'3 Irrigation Schedule'!$C$31="",H62=""),"",(('3 Irrigation Schedule'!$C$29-'3 Irrigation Schedule'!$C$31)/100)*1000*N62) ->  | Q62: =IF(H62="","",IF(H62=1,O62*(1-'3 Irrigation Schedule'!$C$27),T61-V61)) ->  | U62: =IF(H62="","",IF('3 Irrigation Schedule'!$P$19<P62,'3 Irrigation Schedule'!$P$19,P62)) ->  | W62: =IF(H62="","",V62/'3 Irrigation Schedule'!$M$19) -> 
D63: 2020 | E63: March | F63: 2020-03-30 | H63: 16 | I63: Development | J63: 5.21532 | K63: 1.018709677 | L63: 0.568 | M63: 2.96230176 | N63: 1.2 | O63: =IF(OR('3 Irrigation Schedule'!$C$29="",'3 Irrigation Schedule'!$C$31="",H63=""),"",(('3 Irrigation Schedule'!$C$29-'3 Irrigation Schedule'!$C$31)/100)*1000*N63) ->  | Q63: =IF(H63="","",IF(H63=1,O63*(1-'3 Irrigation Schedule'!$C$27),T62-V62)) ->  | U63: =IF(H63="","",IF('3 Irrigation Schedule'!$P$19<P63,'3 Irrigation Schedule'!$P$19,P63)) ->  | W63: =IF(H63="","",V63/'3 Irrigation Schedule'!$M$19) -> 
D64: 2020 | E64: March | F64: 2020-03-31 | H64: 17 | I64: Development | J64: 5.21532 | K64: 1.018709677 | L64: 0.596 | M64: 3.10833072 | N64: 1.2 | O64: =IF(OR('3 Irrigation Schedule'!$C$29="",'3 Irrigation Schedule'!$C$31="",H64=""),"",(('3 Irrigation Schedule'!$C$29-'3 Irrigation Schedule'!$C$31)/100)*1000*N64) ->  | Q64: =IF(H64="","",IF(H64=1,O64*(1-'3 Irrigation Schedule'!$C$27),T63-V63)) ->  | U64: =IF(H64="","",IF('3 Irrigation Schedule'!$P$19<P64,'3 Irrigation Schedule'!$P$19,P64)) ->  | W64: =IF(H64="","",V64/'3 Irrigation Schedule'!$M$19) -> 
D65: 2020 | E65: April | F65: 2020-04-01 | H65: 18 | I65: Development | J65: 5.30544 | K65: 3.008 | L65: 0.624 | M65: 3.31059456 | N65: 1.2 | O65: =IF(OR('3 Irrigation Schedule'!$C$29="",'3 Irrigation Schedule'!$C$31="",H65=""),"",(('3 Irrigation Schedule'!$C$29-'3 Irrigation Schedule'!$C$31)/100)*1000*N65) ->  | Q65: =IF(H65="","",IF(H65=1,O65*(1-'3 Irrigation Schedule'!$C$27),T64-V64)) ->  | U65: =IF(H65="","",IF('3 Irrigation Schedule'!$P$19<P65,'3 Irrigation Schedule'!$P$19,P65)) ->  | W65: =IF(H65="","",V65/'3 Irrigation Schedule'!$M$19) -> 
D66: 2020 | E66: April | F66: 2020-04-02 | H66: 19 | I66: Development | J66: 5.30544 | K66: 3.008 | L66: 0.652 | M66: 3.45914688 | N66: 1.2 | O66: =IF(OR('3 Irrigation Schedule'!$C$29="",'3 Irrigation Schedule'!$C$31="",H66=""),"",(('3 Irrigation Schedule'!$C$29-'3 Irrigation Schedule'!$C$31)/100)*1000*N66) ->  | Q66: =IF(H66="","",IF(H66=1,O66*(1-'3 Irrigation Schedule'!$C$27),T65-V65)) ->  | U66: =IF(H66="","",IF('3 Irrigation Schedule'!$P$19<P66,'3 Irrigation Schedule'!$P$19,P66)) ->  | W66: =IF(H66="","",V66/'3 Irrigation Schedule'!$M$19) -> 
D67: 2020 | E67: April | F67: 2020-04-03 | H67: 20 | I67: Development | J67: 5.30544 | K67: 3.008 | L67: 0.68 | M67: 3.6076992 | N67: 1.2 | O67: =IF(OR('3 Irrigation Schedule'!$C$29="",'3 Irrigation Schedule'!$C$31="",H67=""),"",(('3 Irrigation Schedule'!$C$29-'3 Irrigation Schedule'!$C$31)/100)*1000*N67) ->  | Q67: =IF(H67="","",IF(H67=1,O67*(1-'3 Irrigation Schedule'!$C$27),T66-V66)) ->  | U67: =IF(H67="","",IF('3 Irrigation Schedule'!$P$19<P67,'3 Irrigation Schedule'!$P$19,P67)) ->  | W67: =IF(H67="","",V67/'3 Irrigation Schedule'!$M$19) -> 
D68: 2020 | E68: April | F68: 2020-04-04 | H68: 21 | I68: Development | J68: 5.30544 | K68: 3.008 | L68: 0.708 | M68: 3.75625152 | N68: 1.2 | O68: =IF(OR('3 Irrigation Schedule'!$C$29="",'3 Irrigation Schedule'!$C$31="",H68=""),"",(('3 Irrigation Schedule'!$C$29-'3 Irrigation Schedule'!$C$31)/100)*1000*N68) ->  | Q68: =IF(H68="","",IF(H68=1,O68*(1-'3 Irrigation Schedule'!$C$27),T67-V67)) ->  | U68: =IF(H68="","",IF('3 Irrigation Schedule'!$P$19<P68,'3 Irrigation Schedule'!$P$19,P68)) ->  | W68: =IF(H68="","",V68/'3 Irrigation Schedule'!$M$19) -> 
D69: 2020 | E69: April | F69: 2020-04-05 | H69: 22 | I69: Development | J69: 5.30544 | K69: 3.008 | L69: 0.736 | M69: 3.90480384 | N69: 1.2 | O69: =IF(OR('3 Irrigation Schedule'!$C$29="",'3 Irrigation Schedule'!$C$31="",H69=""),"",(('3 Irrigation Schedule'!$C$29-'3 Irrigation Schedule'!$C$31)/100)*1000*N69) ->  | Q69: =IF(H69="","",IF(H69=1,O69*(1-'3 Irrigation Schedule'!$C$27),T68-V68)) ->  | U69: =IF(H69="","",IF('3 Irrigation Schedule'!$P$19<P69,'3 Irrigation Schedule'!$P$19,P69)) ->  | W69: =IF(H69="","",V69/'3 Irrigation Schedule'!$M$19) -> 
D70: 2020 | E70: April | F70: 2020-04-06 | H70: 23 | I70: Development | J70: 5.30544 | K70: 3.008 | L70: 0.764 | M70: 4.05335616 | N70: 1.2 | O70: =IF(OR('3 Irrigation Schedule'!$C$29="",'3 Irrigation Schedule'!$C$31="",H70=""),"",(('3 Irrigation Schedule'!$C$29-'3 Irrigation Schedule'!$C$31)/100)*1000*N70) ->  | Q70: =IF(H70="","",IF(H70=1,O70*(1-'3 Irrigation Schedule'!$C$27),T69-V69)) ->  | U70: =IF(H70="","",IF('3 Irrigation Schedule'!$P$19<P70,'3 Irrigation Schedule'!$P$19,P70)) ->  | W70: =IF(H70="","",V70/'3 Irrigation Schedule'!$M$19) -> 
D71: 2020 | E71: April | F71: 2020-04-07 | H71: 24 | I71: Development | J71: 5.30544 | K71: 3.008 | L71: 0.792 | M71: 4.20190848 | N71: 1.2 | O71: =IF(OR('3 Irrigation Schedule'!$C$29="",'3 Irrigation Schedule'!$C$31="",H71=""),"",(('3 Irrigation Schedule'!$C$29-'3 Irrigation Schedule'!$C$31)/100)*1000*N71) ->  | Q71: =IF(H71="","",IF(H71=1,O71*(1-'3 Irrigation Schedule'!$C$27),T70-V70)) ->  | U71: =IF(H71="","",IF('3 Irrigation Schedule'!$P$19<P71,'3 Irrigation Schedule'!$P$19,P71)) ->  | W71: =IF(H71="","",V71/'3 Irrigation Schedule'!$M$19) -> 
D72: 2020 | E72: April | F72: 2020-04-08 | H72: 25 | I72: Development | J72: 5.30544 | K72: 3.008 | L72: 0.82 | M72: 4.3504608 | N72: 1.2 | O72: =IF(OR('3 Irrigation Schedule'!$C$29="",'3 Irrigation Schedule'!$C$31="",H72=""),"",(('3 Irrigation Schedule'!$C$29-'3 Irrigation Schedule'!$C$31)/100)*1000*N72) ->  | Q72: =IF(H72="","",IF(H72=1,O72*(1-'3 Irrigation Schedule'!$C$27),T71-V71)) ->  | U72: =IF(H72="","",IF('3 Irrigation Schedule'!$P$19<P72,'3 Irrigation Schedule'!$P$19,P72)) ->  | W72: =IF(H72="","",V72/'3 Irrigation Schedule'!$M$19) -> 
D73: 2020 | E73: April | F73: 2020-04-09 | H73: 26 | I73: Development | J73: 5.30544 | K73: 3.008 | L73: 0.848 | M73: 4.49901312 | N73: 1.2 | O73: =IF(OR('3 Irrigation Schedule'!$C$29="",'3 Irrigation Schedule'!$C$31="",H73=""),"",(('3 Irrigation Schedule'!$C$29-'3 Irrigation Schedule'!$C$31)/100)*1000*N73) ->  | Q73: =IF(H73="","",IF(H73=1,O73*(1-'3 Irrigation Schedule'!$C$27),T72-V72)) ->  | U73: =IF(H73="","",IF('3 Irrigation Schedule'!$P$19<P73,'3 Irrigation Schedule'!$P$19,P73)) ->  | W73: =IF(H73="","",V73/'3 Irrigation Schedule'!$M$19) -> 
D74: 2020 | E74: April | F74: 2020-04-10 | H74: 27 | I74: Development | J74: 5.30544 | K74: 3.008 | L74: 0.876 | M74: 4.64756544 | N74: 1.2 | O74: =IF(OR('3 Irrigation Schedule'!$C$29="",'3 Irrigation Schedule'!$C$31="",H74=""),"",(('3 Irrigation Schedule'!$C$29-'3 Irrigation Schedule'!$C$31)/100)*1000*N74) ->  | Q74: =IF(H74="","",IF(H74=1,O74*(1-'3 Irrigation Schedule'!$C$27),T73-V73)) ->  | U74: =IF(H74="","",IF('3 Irrigation Schedule'!$P$19<P74,'3 Irrigation Schedule'!$P$19,P74)) ->  | W74: =IF(H74="","",V74/'3 Irrigation Schedule'!$M$19) -> 
D75: 2020 | E75: April | F75: 2020-04-11 | H75: 28 | I75: Development | J75: 5.30544 | K75: 3.008 | L75: 0.904 | M75: 4.79611776 | N75: 1.2 | O75: =IF(OR('3 Irrigation Schedule'!$C$29="",'3 Irrigation Schedule'!$C$31="",H75=""),"",(('3 Irrigation Schedule'!$C$29-'3 Irrigation Schedule'!$C$31)/100)*1000*N75) ->  | Q75: =IF(H75="","",IF(H75=1,O75*(1-'3 Irrigation Schedule'!$C$27),T74-V74)) ->  | U75: =IF(H75="","",IF('3 Irrigation Schedule'!$P$19<P75,'3 Irrigation Schedule'!$P$19,P75)) ->  | W75: =IF(H75="","",V75/'3 Irrigation Schedule'!$M$19) -> 
D76: 2020 | E76: April | F76: 2020-04-12 | H76: 29 | I76: Development | J76: 5.30544 | K76: 3.008 | L76: 0.932 | M76: 4.94467008 | N76: 1.2 | O76: =IF(OR('3 Irrigation Schedule'!$C$29="",'3 Irrigation Schedule'!$C$31="",H76=""),"",(('3 Irrigation Schedule'!$C$29-'3 Irrigation Schedule'!$C$31)/100)*1000*N76) ->  | Q76: =IF(H76="","",IF(H76=1,O76*(1-'3 Irrigation Schedule'!$C$27),T75-V75)) ->  | U76: =IF(H76="","",IF('3 Irrigation Schedule'!$P$19<P76,'3 Irrigation Schedule'!$P$19,P76)) ->  | W76: =IF(H76="","",V76/'3 Irrigation Schedule'!$M$19) -> 
D77: 2020 | E77: April | F77: 2020-04-13 | H77: 30 | I77: Development | J77: 5.30544 | K77: 3.008 | L77: 0.96 | M77: 5.0932224 | N77: 1.2 | O77: =IF(OR('3 Irrigation Schedule'!$C$29="",'3 Irrigation Schedule'!$C$31="",H77=""),"",(('3 Irrigation Schedule'!$C$29-'3 Irrigation Schedule'!$C$31)/100)*1000*N77) ->  | Q77: =IF(H77="","",IF(H77=1,O77*(1-'3 Irrigation Schedule'!$C$27),T76-V76)) ->  | U77: =IF(H77="","",IF('3 Irrigation Schedule'!$P$19<P77,'3 Irrigation Schedule'!$P$19,P77)) ->  | W77: =IF(H77="","",V77/'3 Irrigation Schedule'!$M$19) -> 
D78: 2020 | E78: April | F78: 2020-04-14 | H78: 31 | I78: Development | J78: 5.30544 | K78: 3.008 | L78: 0.988 | M78: 5.24177472 | N78: 1.2 | O78: =IF(OR('3 Irrigation Schedule'!$C$29="",'3 Irrigation Schedule'!$C$31="",H78=""),"",(('3 Irrigation Schedule'!$C$29-'3 Irrigation Schedule'!$C$31)/100)*1000*N78) ->  | Q78: =IF(H78="","",IF(H78=1,O78*(1-'3 Irrigation Schedule'!$C$27),T77-V77)) ->  | U78: =IF(H78="","",IF('3 Irrigation Schedule'!$P$19<P78,'3 Irrigation Schedule'!$P$19,P78)) ->  | W78: =IF(H78="","",V78/'3 Irrigation Schedule'!$M$19) -> 
D79: 2020 | E79: April | F79: 2020-04-15 | H79: 32 | I79: Development | J79: 5.30544 | K79: 3.008 | L79: 1.016 | M79: 5.39032704 | N79: 1.2 | O79: =IF(OR('3 Irrigation Schedule'!$C$29="",'3 Irrigation Schedule'!$C$31="",H79=""),"",(('3 Irrigation Schedule'!$C$29-'3 Irrigation Schedule'!$C$31)/100)*1000*N79) ->  | Q79: =IF(H79="","",IF(H79=1,O79*(1-'3 Irrigation Schedule'!$C$27),T78-V78)) ->  | U79: =IF(H79="","",IF('3 Irrigation Schedule'!$P$19<P79,'3 Irrigation Schedule'!$P$19,P79)) ->  | W79: =IF(H79="","",V79/'3 Irrigation Schedule'!$M$19) -> 
D80: 2020 | E80: April | F80: 2020-04-16 | H80: 33 | I80: Development | J80: 5.30544 | K80: 3.008 | L80: 1.044 | M80: 5.53887936 | N80: 1.2 | O80: =IF(OR('3 Irrigation Schedule'!$C$29="",'3 Irrigation Schedule'!$C$31="",H80=""),"",(('3 Irrigation Schedule'!$C$29-'3 Irrigation Schedule'!$C$31)/100)*1000*N80) ->  | Q80: =IF(H80="","",IF(H80=1,O80*(1-'3 Irrigation Schedule'!$C$27),T79-V79)) ->  | U80: =IF(H80="","",IF('3 Irrigation Schedule'!$P$19<P80,'3 Irrigation Schedule'!$P$19,P80)) ->  | W80: =IF(H80="","",V80/'3 Irrigation Schedule'!$M$19) -> 
D81: 2020 | E81: April | F81: 2020-04-17 | H81: 34 | I81: Development | J81: 5.30544 | K81: 3.008 | L81: 1.072 | M81: 5.68743168 | N81: 1.2 | O81: =IF(OR('3 Irrigation Schedule'!$C$29="",'3 Irrigation Schedule'!$C$31="",H81=""),"",(('3 Irrigation Schedule'!$C$29-'3 Irrigation Schedule'!$C$31)/100)*1000*N81) ->  | Q81: =IF(H81="","",IF(H81=1,O81*(1-'3 Irrigation Schedule'!$C$27),T80-V80)) ->  | U81: =IF(H81="","",IF('3 Irrigation Schedule'!$P$19<P81,'3 Irrigation Schedule'!$P$19,P81)) ->  | W81: =IF(H81="","",V81/'3 Irrigation Schedule'!$M$19) -> 
D82: 2020 | E82: April | F82: 2020-04-18 | H82: 35 | I82: Development | J82: 5.30544 | K82: 3.008 | L82: 1.1 | M82: 5.835984 | N82: 1.2 | O82: =IF(OR('3 Irrigation Schedule'!$C$29="",'3 Irrigation Schedule'!$C$31="",H82=""),"",(('3 Irrigation Schedule'!$C$29-'3 Irrigation Schedule'!$C$31)/100)*1000*N82) ->  | Q82: =IF(H82="","",IF(H82=1,O82*(1-'3 Irrigation Schedule'!$C$27),T81-V81)) ->  | U82: =IF(H82="","",IF('3 Irrigation Schedule'!$P$19<P82,'3 Irrigation Schedule'!$P$19,P82)) ->  | W82: =IF(H82="","",V82/'3 Irrigation Schedule'!$M$19) -> 
D83: 2020 | E83: April | F83: 2020-04-19 | H83: 36 | I83: Mid Season | J83: 5.30544 | K83: 3.008 | L83: 1.1 | M83: 5.835984 | N83: 1.2 | O83: =IF(OR('3 Irrigation Schedule'!$C$29="",'3 Irrigation Schedule'!$C$31="",H83=""),"",(('3 Irrigation Schedule'!$C$29-'3 Irrigation Schedule'!$C$31)/100)*1000*N83) ->  | Q83: =IF(H83="","",IF(H83=1,O83*(1-'3 Irrigation Schedule'!$C$27),T82-V82)) ->  | U83: =IF(H83="","",IF('3 Irrigation Schedule'!$P$19<P83,'3 Irrigation Schedule'!$P$19,P83)) ->  | W83: =IF(H83="","",V83/'3 Irrigation Schedule'!$M$19) -> 
D84: 2020 | E84: April | F84: 2020-04-20 | H84: 37 | I84: Mid Season | J84: 5.30544 | K84: 3.008 | L84: 1.1 | M84: 5.835984 | N84: 1.2 | O84: =IF(OR('3 Irrigation Schedule'!$C$29="",'3 Irrigation Schedule'!$C$31="",H84=""),"",(('3 Irrigation Schedule'!$C$29-'3 Irrigation Schedule'!$C$31)/100)*1000*N84) ->  | Q84: =IF(H84="","",IF(H84=1,O84*(1-'3 Irrigation Schedule'!$C$27),T83-V83)) ->  | U84: =IF(H84="","",IF('3 Irrigation Schedule'!$P$19<P84,'3 Irrigation Schedule'!$P$19,P84)) ->  | W84: =IF(H84="","",V84/'3 Irrigation Schedule'!$M$19) -> 
D85: 2020 | E85: April | F85: 2020-04-21 | H85: 38 | I85: Mid Season | J85: 5.30544 | K85: 3.008 | L85: 1.1 | M85: 5.835984 | N85: 1.2 | O85: =IF(OR('3 Irrigation Schedule'!$C$29="",'3 Irrigation Schedule'!$C$31="",H85=""),"",(('3 Irrigation Schedule'!$C$29-'3 Irrigation Schedule'!$C$31)/100)*1000*N85) ->  | Q85: =IF(H85="","",IF(H85=1,O85*(1-'3 Irrigation Schedule'!$C$27),T84-V84)) ->  | U85: =IF(H85="","",IF('3 Irrigation Schedule'!$P$19<P85,'3 Irrigation Schedule'!$P$19,P85)) ->  | W85: =IF(H85="","",V85/'3 Irrigation Schedule'!$M$19) -> 
D86: 2020 | E86: April | F86: 2020-04-22 | H86: 39 | I86: Mid Season | J86: 5.30544 | K86: 3.008 | L86: 1.1 | M86: 5.835984 | N86: 1.2 | O86: =IF(OR('3 Irrigation Schedule'!$C$29="",'3 Irrigation Schedule'!$C$31="",H86=""),"",(('3 Irrigation Schedule'!$C$29-'3 Irrigation Schedule'!$C$31)/100)*1000*N86) ->  | Q86: =IF(H86="","",IF(H86=1,O86*(1-'3 Irrigation Schedule'!$C$27),T85-V85)) ->  | U86: =IF(H86="","",IF('3 Irrigation Schedule'!$P$19<P86,'3 Irrigation Schedule'!$P$19,P86)) ->  | W86: =IF(H86="","",V86/'3 Irrigation Schedule'!$M$19) -> 
D87: 2020 | E87: April | F87: 2020-04-23 | H87: 40 | I87: Mid Season | J87: 5.30544 | K87: 3.008 | L87: 1.1 | M87: 5.835984 | N87: 1.2 | O87: =IF(OR('3 Irrigation Schedule'!$C$29="",'3 Irrigation Schedule'!$C$31="",H87=""),"",(('3 Irrigation Schedule'!$C$29-'3 Irrigation Schedule'!$C$31)/100)*1000*N87) ->  | Q87: =IF(H87="","",IF(H87=1,O87*(1-'3 Irrigation Schedule'!$C$27),T86-V86)) ->  | U87: =IF(H87="","",IF('3 Irrigation Schedule'!$P$19<P87,'3 Irrigation Schedule'!$P$19,P87)) ->  | W87: =IF(H87="","",V87/'3 Irrigation Schedule'!$M$19) -> 
D88: 2020 | E88: April | F88: 2020-04-24 | H88: 41 | I88: Mid Season | J88: 5.30544 | K88: 3.008 | L88: 1.1 | M88: 5.835984 | N88: 1.2 | O88: =IF(OR('3 Irrigation Schedule'!$C$29="",'3 Irrigation Schedule'!$C$31="",H88=""),"",(('3 Irrigation Schedule'!$C$29-'3 Irrigation Schedule'!$C$31)/100)*1000*N88) ->  | Q88: =IF(H88="","",IF(H88=1,O88*(1-'3 Irrigation Schedule'!$C$27),T87-V87)) ->  | U88: =IF(H88="","",IF('3 Irrigation Schedule'!$P$19<P88,'3 Irrigation Schedule'!$P$19,P88)) ->  | W88: =IF(H88="","",V88/'3 Irrigation Schedule'!$M$19) -> 
D89: 2020 | E89: April | F89: 2020-04-25 | H89: 42 | I89: Mid Season | J89: 5.30544 | K89: 3.008 | L89: 1.1 | M89: 5.835984 | N89: 1.2 | O89: =IF(OR('3 Irrigation Schedule'!$C$29="",'3 Irrigation Schedule'!$C$31="",H89=""),"",(('3 Irrigation Schedule'!$C$29-'3 Irrigation Schedule'!$C$31)/100)*1000*N89) ->  | Q89: =IF(H89="","",IF(H89=1,O89*(1-'3 Irrigation Schedule'!$C$27),T88-V88)) ->  | U89: =IF(H89="","",IF('3 Irrigation Schedule'!$P$19<P89,'3 Irrigation Schedule'!$P$19,P89)) ->  | W89: =IF(H89="","",V89/'3 Irrigation Schedule'!$M$19) -> 
D90: 2020 | E90: April | F90: 2020-04-26 | H90: 43 | I90: Mid Season | J90: 5.30544 | K90: 3.008 | L90: 1.1 | M90: 5.835984 | N90: 1.2 | O90: =IF(OR('3 Irrigation Schedule'!$C$29="",'3 Irrigation Schedule'!$C$31="",H90=""),"",(('3 Irrigation Schedule'!$C$29-'3 Irrigation Schedule'!$C$31)/100)*1000*N90) ->  | Q90: =IF(H90="","",IF(H90=1,O90*(1-'3 Irrigation Schedule'!$C$27),T89-V89)) ->  | U90: =IF(H90="","",IF('3 Irrigation Schedule'!$P$19<P90,'3 Irrigation Schedule'!$P$19,P90)) ->  | W90: =IF(H90="","",V90/'3 Irrigation Schedule'!$M$19) -> 
D91: 2020 | E91: April | F91: 2020-04-27 | H91: 44 | I91: Mid Season | J91: 5.30544 | K91: 3.008 | L91: 1.1 | M91: 5.835984 | N91: 1.2 | O91: =IF(OR('3 Irrigation Schedule'!$C$29="",'3 Irrigation Schedule'!$C$31="",H91=""),"",(('3 Irrigation Schedule'!$C$29-'3 Irrigation Schedule'!$C$31)/100)*1000*N91) ->  | Q91: =IF(H91="","",IF(H91=1,O91*(1-'3 Irrigation Schedule'!$C$27),T90-V90)) ->  | U91: =IF(H91="","",IF('3 Irrigation Schedule'!$P$19<P91,'3 Irrigation Schedule'!$P$19,P91)) ->  | W91: =IF(H91="","",V91/'3 Irrigation Schedule'!$M$19) -> 
D92: 2020 | E92: April | F92: 2020-04-28 | H92: 45 | I92: Mid Season | J92: 5.30544 | K92: 3.008 | L92: 1.1 | M92: 5.835984 | N92: 1.2 | O92: =IF(OR('3 Irrigation Schedule'!$C$29="",'3 Irrigation Schedule'!$C$31="",H92=""),"",(('3 Irrigation Schedule'!$C$29-'3 Irrigation Schedule'!$C$31)/100)*1000*N92) ->  | Q92: =IF(H92="","",IF(H92=1,O92*(1-'3 Irrigation Schedule'!$C$27),T91-V91)) ->  | U92: =IF(H92="","",IF('3 Irrigation Schedule'!$P$19<P92,'3 Irrigation Schedule'!$P$19,P92)) ->  | W92: =IF(H92="","",V92/'3 Irrigation Schedule'!$M$19) -> 
D93: 2020 | E93: April | F93: 2020-04-29 | H93: 46 | I93: Mid Season | J93: 5.30544 | K93: 3.008 | L93: 1.1 | M93: 5.835984 | N93: 1.2 | O93: =IF(OR('3 Irrigation Schedule'!$C$29="",'3 Irrigation Schedule'!$C$31="",H93=""),"",(('3 Irrigation Schedule'!$C$29-'3 Irrigation Schedule'!$C$31)/100)*1000*N93) ->  | Q93: =IF(H93="","",IF(H93=1,O93*(1-'3 Irrigation Schedule'!$C$27),T92-V92)) ->  | U93: =IF(H93="","",IF('3 Irrigation Schedule'!$P$19<P93,'3 Irrigation Schedule'!$P$19,P93)) ->  | W93: =IF(H93="","",V93/'3 Irrigation Schedule'!$M$19) -> 
D94: 2020 | E94: April | F94: 2020-04-30 | H94: 47 | I94: Mid Season | J94: 5.30544 | K94: 3.008 | L94: 1.1 | M94: 5.835984 | N94: 1.2 | O94: =IF(OR('3 Irrigation Schedule'!$C$29="",'3 Irrigation Schedule'!$C$31="",H94=""),"",(('3 Irrigation Schedule'!$C$29-'3 Irrigation Schedule'!$C$31)/100)*1000*N94) ->  | Q94: =IF(H94="","",IF(H94=1,O94*(1-'3 Irrigation Schedule'!$C$27),T93-V93)) ->  | U94: =IF(H94="","",IF('3 Irrigation Schedule'!$P$19<P94,'3 Irrigation Schedule'!$P$19,P94)) ->  | W94: =IF(H94="","",V94/'3 Irrigation Schedule'!$M$19) -> 
D95: 2020 | E95: May | F95: 2020-05-01 | H95: 48 | I95: Mid Season | J95: 5.31832 | K95: 2.059354839 | L95: 1.1 | M95: 5.850152 | N95: 1.2 | O95: =IF(OR('3 Irrigation Schedule'!$C$29="",'3 Irrigation Schedule'!$C$31="",H95=""),"",(('3 Irrigation Schedule'!$C$29-'3 Irrigation Schedule'!$C$31)/100)*1000*N95) ->  | Q95: =IF(H95="","",IF(H95=1,O95*(1-'3 Irrigation Schedule'!$C$27),T94-V94)) ->  | U95: =IF(H95="","",IF('3 Irrigation Schedule'!$P$19<P95,'3 Irrigation Schedule'!$P$19,P95)) ->  | W95: =IF(H95="","",V95/'3 Irrigation Schedule'!$M$19) -> 
D96: 2020 | E96: May | F96: 2020-05-02 | H96: 49 | I96: Mid Season | J96: 5.31832 | K96: 2.059354839 | L96: 1.1 | M96: 5.850152 | N96: 1.2 | O96: =IF(OR('3 Irrigation Schedule'!$C$29="",'3 Irrigation Schedule'!$C$31="",H96=""),"",(('3 Irrigation Schedule'!$C$29-'3 Irrigation Schedule'!$C$31)/100)*1000*N96) ->  | Q96: =IF(H96="","",IF(H96=1,O96*(1-'3 Irrigation Schedule'!$C$27),T95-V95)) ->  | U96: =IF(H96="","",IF('3 Irrigation Schedule'!$P$19<P96,'3 Irrigation Schedule'!$P$19,P96)) ->  | W96: =IF(H96="","",V96/'3 Irrigation Schedule'!$M$19) -> 
D97: 2020 | E97: May | F97: 2020-05-03 | H97: 50 | I97: Mid Season | J97: 5.31832 | K97: 2.059354839 | L97: 1.1 | M97: 5.850152 | N97: 1.2 | O97: =IF(OR('3 Irrigation Schedule'!$C$29="",'3 Irrigation Schedule'!$C$31="",H97=""),"",(('3 Irrigation Schedule'!$C$29-'3 Irrigation Schedule'!$C$31)/100)*1000*N97) ->  | Q97: =IF(H97="","",IF(H97=1,O97*(1-'3 Irrigation Schedule'!$C$27),T96-V96)) ->  | U97: =IF(H97="","",IF('3 Irrigation Schedule'!$P$19<P97,'3 Irrigation Schedule'!$P$19,P97)) ->  | W97: =IF(H97="","",V97/'3 Irrigation Schedule'!$M$19) -> 
D98: =IFERROR(TEXT(DATE(YEAR($F98),MONTH($F98),1),$D$7&$D$4),"") -> 2020 | E98: =IFERROR(TEXT(DATE(YEAR($F98),MONTH($F98),1),$D$7&$D$5),"") -> May | F98: 2020-05-04 | H98: 51 | I98: =IF(H98="","",IF(H98<=$I$27,"Initial",IF(AND(H98>$I$27,H98<=$I$28),"Development",IF(AND(H98>$I$28,H98<=$I$29),"Mid Season","Late Season")))) -> Mid Season | J98: =IFERROR(VLOOKUP($E98,$B$19:$C$30,2,FALSE),"") -> 5.31832 | K98: 2.059354839 | L98: =IF(H98="","",IF(H98<=$I$27,$L$27,IF(AND(H98>$I$27,H98<=$I$28),$L$27+((H98-$I$27)/$H$28)*($L$29-$L$27),IF(AND(H98>$I$28,H98<=$I$29),$L$29,$L$29+((H98-$I$29)/$H$30)*($L$30-$L$29))))) -> 1.1 | M98: =IFERROR((J98*L98),0) -> 5.850152 | N98: =IF(H98="","",IF(OR(H98=1,H98<$I$28),$M$27+(($M$28-$M$27)*((H98-1)/($I$28-1))),$M$28)) -> 1.2 | O98: =IF(OR('3 Irrigation Schedule'!$C$29="",'3 Irrigation Schedule'!$C$31="",H98=""),"",(('3 Irrigation Schedule'!$C$29-'3 Irrigation Schedule'!$C$31)/100)*1000*N98) ->  | P98: =IF(H98="","",O98*$N$27) ->  | Q98: =IF(H98="","",IF(H98=1,O98*(1-'3 Irrigation Schedule'!$C$27),T97-V97)) ->  | R98: =IF(H98="","",IF(Q98>P98,(O98-Q98)/(O98-P98),1)) ->  | S98: =IF(H98="","",M98*R98) ->  | T98: =IF(H98="","",IF(Q98+S98-K98<0,0,Q98+S98-K98)) ->  | U98: =IF(H98="","",IF('3 Irrigation Schedule'!$P$19<P98,'3 Irrigation Schedule'!$P$19,P98)) ->  | V98: =IF(H98="","",IF(U98<=T98,U98,0)) ->  | W98: =IF(H98="","",V98/'3 Irrigation Schedule'!$M$19) -> 
D99: 2020 | E99: May | F99: =IFERROR(IF(F98+1<=$N$7, F98+1,""),"") -> 2020-05-05 | H99: =IFERROR(IF(OR($F99-$J$27+1<=0,$F99>$K$30),"",$F99-$J$27+1),"") -> 52 | I99: Mid Season | J99: 5.31832 | K99: =IFERROR(VLOOKUP($E99,$B$19:$D$30,3,FALSE),"") -> 2.059354839 | L99: 1.1 | M99: 5.850152 | N99: 1.2 | O99: =IF(OR('3 Irrigation Schedule'!$C$29="",'3 Irrigation Schedule'!$C$31="",H99=""),"",(('3 Irrigation Schedule'!$C$29-'3 Irrigation Schedule'!$C$31)/100)*1000*N99) ->  | Q99: =IF(H99="","",IF(H99=1,O99*(1-'3 Irrigation Schedule'!$C$27),T98-V98)) ->  | U99: =IF(H99="","",IF('3 Irrigation Schedule'!$P$19<P99,'3 Irrigation Schedule'!$P$19,P99)) ->  | W99: =IF(H99="","",V99/'3 Irrigation Schedule'!$M$19) -> 
D100: 2020 | E100: May | F100: 2020-05-06 | H100: 53 | I100: Mid Season | J100: 5.31832 | K100: 2.059354839 | L100: 1.1 | M100: 5.850152 | N100: 1.2 | O100: =IF(OR('3 Irrigation Schedule'!$C$29="",'3 Irrigation Schedule'!$C$31="",H100=""),"",(('3 Irrigation Schedule'!$C$29-'3 Irrigation Schedule'!$C$31)/100)*1000*N100) ->  | Q100: =IF(H100="","",IF(H100=1,O100*(1-'3 Irrigation Schedule'!$C$27),T99-V99)) ->  | U100: =IF(H100="","",IF('3 Irrigation Schedule'!$P$19<P100,'3 Irrigation Schedule'!$P$19,P100)) ->  | W100: =IF(H100="","",V100/'3 Irrigation Schedule'!$M$19) -> 
D101: 2020 | E101: May | F101: 2020-05-07 | H101: 54 | I101: Mid Season | J101: 5.31832 | K101: 2.059354839 | L101: 1.1 | M101: 5.850152 | N101: 1.2 | O101: =IF(OR('3 Irrigation Schedule'!$C$29="",'3 Irrigation Schedule'!$C$31="",H101=""),"",(('3 Irrigation Schedule'!$C$29-'3 Irrigation Schedule'!$C$31)/100)*1000*N101) ->  | Q101: =IF(H101="","",IF(H101=1,O101*(1-'3 Irrigation Schedule'!$C$27),T100-V100)) ->  | U101: =IF(H101="","",IF('3 Irrigation Schedule'!$P$19<P101,'3 Irrigation Schedule'!$P$19,P101)) ->  | W101: =IF(H101="","",V101/'3 Irrigation Schedule'!$M$19) -> 
D102: 2020 | E102: May | F102: 2020-05-08 | H102: 55 | I102: Mid Season | J102: 5.31832 | K102: 2.059354839 | L102: 1.1 | M102: 5.850152 | N102: 1.2 | O102: =IF(OR('3 Irrigation Schedule'!$C$29="",'3 Irrigation Schedule'!$C$31="",H102=""),"",(('3 Irrigation Schedule'!$C$29-'3 Irrigation Schedule'!$C$31)/100)*1000*N102) ->  | Q102: =IF(H102="","",IF(H102=1,O102*(1-'3 Irrigation Schedule'!$C$27),T101-V101)) ->  | U102: =IF(H102="","",IF('3 Irrigation Schedule'!$P$19<P102,'3 Irrigation Schedule'!$P$19,P102)) ->  | W102: =IF(H102="","",V102/'3 Irrigation Schedule'!$M$19) -> 
D103: 2020 | E103: May | F103: 2020-05-09 | H103: 56 | I103: Mid Season | J103: 5.31832 | K103: 2.059354839 | L103: 1.1 | M103: 5.850152 | N103: 1.2 | O103: =IF(OR('3 Irrigation Schedule'!$C$29="",'3 Irrigation Schedule'!$C$31="",H103=""),"",(('3 Irrigation Schedule'!$C$29-'3 Irrigation Schedule'!$C$31)/100)*1000*N103) ->  | Q103: =IF(H103="","",IF(H103=1,O103*(1-'3 Irrigation Schedule'!$C$27),T102-V102)) ->  | U103: =IF(H103="","",IF('3 Irrigation Schedule'!$P$19<P103,'3 Irrigation Schedule'!$P$19,P103)) ->  | W103: =IF(H103="","",V103/'3 Irrigation Schedule'!$M$19) -> 
D104: 2020 | E104: May | F104: 2020-05-10 | H104: 57 | I104: Mid Season | J104: 5.31832 | K104: 2.059354839 | L104: 1.1 | M104: 5.850152 | N104: 1.2 | O104: =IF(OR('3 Irrigation Schedule'!$C$29="",'3 Irrigation Schedule'!$C$31="",H104=""),"",(('3 Irrigation Schedule'!$C$29-'3 Irrigation Schedule'!$C$31)/100)*1000*N104) ->  | Q104: =IF(H104="","",IF(H104=1,O104*(1-'3 Irrigation Schedule'!$C$27),T103-V103)) ->  | U104: =IF(H104="","",IF('3 Irrigation Schedule'!$P$19<P104,'3 Irrigation Schedule'!$P$19,P104)) ->  | W104: =IF(H104="","",V104/'3 Irrigation Schedule'!$M$19) -> 
D105: 2020 | E105: May | F105: 2020-05-11 | H105: 58 | I105: Mid Season | J105: 5.31832 | K105: 2.059354839 | L105: 1.1 | M105: 5.850152 | N105: 1.2 | O105: =IF(OR('3 Irrigation Schedule'!$C$29="",'3 Irrigation Schedule'!$C$31="",H105=""),"",(('3 Irrigation Schedule'!$C$29-'3 Irrigation Schedule'!$C$31)/100)*1000*N105) ->  | Q105: =IF(H105="","",IF(H105=1,O105*(1-'3 Irrigation Schedule'!$C$27),T104-V104)) ->  | U105: =IF(H105="","",IF('3 Irrigation Schedule'!$P$19<P105,'3 Irrigation Schedule'!$P$19,P105)) ->  | W105: =IF(H105="","",V105/'3 Irrigation Schedule'!$M$19) -> 
D106: 2020 | E106: May | F106: 2020-05-12 | H106: 59 | I106: Late Season | J106: 5.31832 | K106: 2.059354839 | L106: 1.09 | M106: 5.7969688 | N106: 1.2 | O106: =IF(OR('3 Irrigation Schedule'!$C$29="",'3 Irrigation Schedule'!$C$31="",H106=""),"",(('3 Irrigation Schedule'!$C$29-'3 Irrigation Schedule'!$C$31)/100)*1000*N106) ->  | Q106: =IF(H106="","",IF(H106=1,O106*(1-'3 Irrigation Schedule'!$C$27),T105-V105)) ->  | U106: =IF(H106="","",IF('3 Irrigation Schedule'!$P$19<P106,'3 Irrigation Schedule'!$P$19,P106)) ->  | W106: =IF(H106="","",V106/'3 Irrigation Schedule'!$M$19) -> 
D107: 2020 | E107: May | F107: 2020-05-13 | H107: 60 | I107: Late Season | J107: 5.31832 | K107: 2.059354839 | L107: 1.08 | M107: 5.7437856 | N107: 1.2 | O107: =IF(OR('3 Irrigation Schedule'!$C$29="",'3 Irrigation Schedule'!$C$31="",H107=""),"",(('3 Irrigation Schedule'!$C$29-'3 Irrigation Schedule'!$C$31)/100)*1000*N107) ->  | Q107: =IF(H107="","",IF(H107=1,O107*(1-'3 Irrigation Schedule'!$C$27),T106-V106)) ->  | U107: =IF(H107="","",IF('3 Irrigation Schedule'!$P$19<P107,'3 Irrigation Schedule'!$P$19,P107)) ->  | W107: =IF(H107="","",V107/'3 Irrigation Schedule'!$M$19) -> 
D108: 2020 | E108: May | F108: 2020-05-14 | H108: 61 | I108: Late Season | J108: 5.31832 | K108: 2.059354839 | L108: 1.07 | M108: 5.6906024 | N108: 1.2 | O108: =IF(OR('3 Irrigation Schedule'!$C$29="",'3 Irrigation Schedule'!$C$31="",H108=""),"",(('3 Irrigation Schedule'!$C$29-'3 Irrigation Schedule'!$C$31)/100)*1000*N108) ->  | Q108: =IF(H108="","",IF(H108=1,O108*(1-'3 Irrigation Schedule'!$C$27),T107-V107)) ->  | U108: =IF(H108="","",IF('3 Irrigation Schedule'!$P$19<P108,'3 Irrigation Schedule'!$P$19,P108)) ->  | W108: =IF(H108="","",V108/'3 Irrigation Schedule'!$M$19) -> 
D109: 2020 | E109: May | F109: 2020-05-15 | H109: 62 | I109: Late Season | J109: 5.31832 | K109: 2.059354839 | L109: 1.06 | M109: 5.6374192 | N109: 1.2 | O109: =IF(OR('3 Irrigation Schedule'!$C$29="",'3 Irrigation Schedule'!$C$31="",H109=""),"",(('3 Irrigation Schedule'!$C$29-'3 Irrigation Schedule'!$C$31)/100)*1000*N109) ->  | Q109: =IF(H109="","",IF(H109=1,O109*(1-'3 Irrigation Schedule'!$C$27),T108-V108)) ->  | U109: =IF(H109="","",IF('3 Irrigation Schedule'!$P$19<P109,'3 Irrigation Schedule'!$P$19,P109)) ->  | W109: =IF(H109="","",V109/'3 Irrigation Schedule'!$M$19) -> 
D110: 2020 | E110: May | F110: 2020-05-16 | H110: 63 | I110: Late Season | J110: 5.31832 | K110: 2.059354839 | L110: 1.05 | M110: 5.584236 | N110: 1.2 | O110: =IF(OR('3 Irrigation Schedule'!$C$29="",'3 Irrigation Schedule'!$C$31="",H110=""),"",(('3 Irrigation Schedule'!$C$29-'3 Irrigation Schedule'!$C$31)/100)*1000*N110) ->  | Q110: =IF(H110="","",IF(H110=1,O110*(1-'3 Irrigation Schedule'!$C$27),T109-V109)) ->  | U110: =IF(H110="","",IF('3 Irrigation Schedule'!$P$19<P110,'3 Irrigation Schedule'!$P$19,P110)) ->  | W110: =IF(H110="","",V110/'3 Irrigation Schedule'!$M$19) -> 
D111: 2020 | E111: May | F111: 2020-05-17 | H111: 64 | I111: Late Season | J111: 5.31832 | K111: 2.059354839 | L111: 1.04 | M111: 5.5310528 | N111: 1.2 | O111: =IF(OR('3 Irrigation Schedule'!$C$29="",'3 Irrigation Schedule'!$C$31="",H111=""),"",(('3 Irrigation Schedule'!$C$29-'3 Irrigation Schedule'!$C$31)/100)*1000*N111) ->  | Q111: =IF(H111="","",IF(H111=1,O111*(1-'3 Irrigation Schedule'!$C$27),T110-V110)) ->  | U111: =IF(H111="","",IF('3 Irrigation Schedule'!$P$19<P111,'3 Irrigation Schedule'!$P$19,P111)) ->  | W111: =IF(H111="","",V111/'3 Irrigation Schedule'!$M$19) -> 
D112: 2020 | E112: May | F112: 2020-05-18 | H112: 65 | I112: Late Season | J112: 5.31832 | K112: 2.059354839 | L112: 1.03 | M112: 5.4778696 | N112: 1.2 | O112: =IF(OR('3 Irrigation Schedule'!$C$29="",'3 Irrigation Schedule'!$C$31="",H112=""),"",(('3 Irrigation Schedule'!$C$29-'3 Irrigation Schedule'!$C$31)/100)*1000*N112) ->  | Q112: =IF(H112="","",IF(H112=1,O112*(1-'3 Irrigation Schedule'!$C$27),T111-V111)) ->  | U112: =IF(H112="","",IF('3 Irrigation Schedule'!$P$19<P112,'3 Irrigation Schedule'!$P$19,P112)) ->  | W112: =IF(H112="","",V112/'3 Irrigation Schedule'!$M$19) -> 
D113: 2020 | E113: May | F113: 2020-05-19 | H113: 66 | I113: Late Season | J113: 5.31832 | K113: 2.059354839 | L113: 1.02 | M113: 5.4246864 | N113: 1.2 | O113: =IF(OR('3 Irrigation Schedule'!$C$29="",'3 Irrigation Schedule'!$C$31="",H113=""),"",(('3 Irrigation Schedule'!$C$29-'3 Irrigation Schedule'!$C$31)/100)*1000*N113) ->  | Q113: =IF(H113="","",IF(H113=1,O113*(1-'3 Irrigation Schedule'!$C$27),T112-V112)) ->  | U113: =IF(H113="","",IF('3 Irrigation Schedule'!$P$19<P113,'3 Irrigation Schedule'!$P$19,P113)) ->  | W113: =IF(H113="","",V113/'3 Irrigation Schedule'!$M$19) -> 
D114: 2020 | E114: May | F114: 2020-05-20 | H114: 67 | I114: Late Season | J114: 5.31832 | K114: 2.059354839 | L114: 1.01 | M114: 5.3715032 | N114: 1.2 | O114: =IF(OR('3 Irrigation Schedule'!$C$29="",'3 Irrigation Schedule'!$C$31="",H114=""),"",(('3 Irrigation Schedule'!$C$29-'3 Irrigation Schedule'!$C$31)/100)*1000*N114) ->  | Q114: =IF(H114="","",IF(H114=1,O114*(1-'3 Irrigation Schedule'!$C$27),T113-V113)) ->  | U114: =IF(H114="","",IF('3 Irrigation Schedule'!$P$19<P114,'3 Irrigation Schedule'!$P$19,P114)) ->  | W114: =IF(H114="","",V114/'3 Irrigation Schedule'!$M$19) -> 
D115: 2020 | E115: May | F115: 2020-05-21 | H115: 68 | I115: Late Season | J115: 5.31832 | K115: 2.059354839 | L115: 1 | M115: 5.31832 | N115: 1.2 | O115: =IF(OR('3 Irrigation Schedule'!$C$29="",'3 Irrigation Schedule'!$C$31="",H115=""),"",(('3 Irrigation Schedule'!$C$29-'3 Irrigation Schedule'!$C$31)/100)*1000*N115) ->  | Q115: =IF(H115="","",IF(H115=1,O115*(1-'3 Irrigation Schedule'!$C$27),T114-V114)) ->  | U115: =IF(H115="","",IF('3 Irrigation Schedule'!$P$19<P115,'3 Irrigation Schedule'!$P$19,P115)) ->  | W115: =IF(H115="","",V115/'3 Irrigation Schedule'!$M$19) -> 
D116: 2020 | E116: May | F116: 2020-05-22 | J116: 5.31832 | K116: 2.059354839 | M116: 0 | O116: =IF(OR('3 Irrigation Schedule'!$C$29="",'3 Irrigation Schedule'!$C$31="",H116=""),"",(('3 Irrigation Schedule'!$C$29-'3 Irrigation Schedule'!$C$31)/100)*1000*N116) ->  | Q116: =IF(H116="","",IF(H116=1,O116*(1-'3 Irrigation Schedule'!$C$27),T115-V115)) ->  | U116: =IF(H116="","",IF('3 Irrigation Schedule'!$P$19<P116,'3 Irrigation Schedule'!$P$19,P116)) ->  | W116: =IF(H116="","",V116/'3 Irrigation Schedule'!$M$19) -> 
D117: 2020 | E117: May | F117: 2020-05-23 | J117: 5.31832 | K117: 2.059354839 | M117: 0 | O117: =IF(OR('3 Irrigation Schedule'!$C$29="",'3 Irrigation Schedule'!$C$31="",H117=""),"",(('3 Irrigation Schedule'!$C$29-'3 Irrigation Schedule'!$C$31)/100)*1000*N117) ->  | Q117: =IF(H117="","",IF(H117=1,O117*(1-'3 Irrigation Schedule'!$C$27),T116-V116)) ->  | U117: =IF(H117="","",IF('3 Irrigation Schedule'!$P$19<P117,'3 Irrigation Schedule'!$P$19,P117)) ->  | W117: =IF(H117="","",V117/'3 Irrigation Schedule'!$M$19) -> 
D118: 2020 | E118: May | F118: 2020-05-24 | J118: 5.31832 | K118: 2.059354839 | M118: 0 | O118: =IF(OR('3 Irrigation Schedule'!$C$29="",'3 Irrigation Schedule'!$C$31="",H118=""),"",(('3 Irrigation Schedule'!$C$29-'3 Irrigation Schedule'!$C$31)/100)*1000*N118) ->  | Q118: =IF(H118="","",IF(H118=1,O118*(1-'3 Irrigation Schedule'!$C$27),T117-V117)) ->  | U118: =IF(H118="","",IF('3 Irrigation Schedule'!$P$19<P118,'3 Irrigation Schedule'!$P$19,P118)) ->  | W118: =IF(H118="","",V118/'3 Irrigation Schedule'!$M$19) -> 
D119: 2020 | E119: May | F119: 2020-05-25 | J119: 5.31832 | K119: 2.059354839 | M119: 0 | O119: =IF(OR('3 Irrigation Schedule'!$C$29="",'3 Irrigation Schedule'!$C$31="",H119=""),"",(('3 Irrigation Schedule'!$C$29-'3 Irrigation Schedule'!$C$31)/100)*1000*N119) ->  | Q119: =IF(H119="","",IF(H119=1,O119*(1-'3 Irrigation Schedule'!$C$27),T118-V118)) ->  | U119: =IF(H119="","",IF('3 Irrigation Schedule'!$P$19<P119,'3 Irrigation Schedule'!$P$19,P119)) ->  | W119: =IF(H119="","",V119/'3 Irrigation Schedule'!$M$19) -> 
D120: 2020 | E120: May | F120: 2020-05-26 | J120: 5.31832 | K120: 2.059354839 | M120: 0 | O120: =IF(OR('3 Irrigation Schedule'!$C$29="",'3 Irrigation Schedule'!$C$31="",H120=""),"",(('3 Irrigation Schedule'!$C$29-'3 Irrigation Schedule'!$C$31)/100)*1000*N120) ->  | Q120: =IF(H120="","",IF(H120=1,O120*(1-'3 Irrigation Schedule'!$C$27),T119-V119)) ->  | U120: =IF(H120="","",IF('3 Irrigation Schedule'!$P$19<P120,'3 Irrigation Schedule'!$P$19,P120)) ->  | W120: =IF(H120="","",V120/'3 Irrigation Schedule'!$M$19) -> 
D121: 2020 | E121: May | F121: 2020-05-27 | J121: 5.31832 | K121: 2.059354839 | M121: 0 | O121: =IF(OR('3 Irrigation Schedule'!$C$29="",'3 Irrigation Schedule'!$C$31="",H121=""),"",(('3 Irrigation Schedule'!$C$29-'3 Irrigation Schedule'!$C$31)/100)*1000*N121) ->  | Q121: =IF(H121="","",IF(H121=1,O121*(1-'3 Irrigation Schedule'!$C$27),T120-V120)) ->  | U121: =IF(H121="","",IF('3 Irrigation Schedule'!$P$19<P121,'3 Irrigation Schedule'!$P$19,P121)) ->  | W121: =IF(H121="","",V121/'3 Irrigation Schedule'!$M$19) -> 
D122: 2020 | E122: May | F122: 2020-05-28 | J122: 5.31832 | K122: 2.059354839 | M122: 0 | O122: =IF(OR('3 Irrigation Schedule'!$C$29="",'3 Irrigation Schedule'!$C$31="",H122=""),"",(('3 Irrigation Schedule'!$C$29-'3 Irrigation Schedule'!$C$31)/100)*1000*N122) ->  | Q122: =IF(H122="","",IF(H122=1,O122*(1-'3 Irrigation Schedule'!$C$27),T121-V121)) ->  | U122: =IF(H122="","",IF('3 Irrigation Schedule'!$P$19<P122,'3 Irrigation Schedule'!$P$19,P122)) ->  | W122: =IF(H122="","",V122/'3 Irrigation Schedule'!$M$19) -> 
D123: 2020 | E123: May | F123: 2020-05-29 | J123: 5.31832 | K123: 2.059354839 | M123: 0 | O123: =IF(OR('3 Irrigation Schedule'!$C$29="",'3 Irrigation Schedule'!$C$31="",H123=""),"",(('3 Irrigation Schedule'!$C$29-'3 Irrigation Schedule'!$C$31)/100)*1000*N123) ->  | Q123: =IF(H123="","",IF(H123=1,O123*(1-'3 Irrigation Schedule'!$C$27),T122-V122)) ->  | U123: =IF(H123="","",IF('3 Irrigation Schedule'!$P$19<P123,'3 Irrigation Schedule'!$P$19,P123)) ->  | W123: =IF(H123="","",V123/'3 Irrigation Schedule'!$M$19) -> 
D124: 2020 | E124: May | F124: 2020-05-30 | J124: 5.31832 | K124: 2.059354839 | M124: 0 | O124: =IF(OR('3 Irrigation Schedule'!$C$29="",'3 Irrigation Schedule'!$C$31="",H124=""),"",(('3 Irrigation Schedule'!$C$29-'3 Irrigation Schedule'!$C$31)/100)*1000*N124) ->  | Q124: =IF(H124="","",IF(H124=1,O124*(1-'3 Irrigation Schedule'!$C$27),T123-V123)) ->  | U124: =IF(H124="","",IF('3 Irrigation Schedule'!$P$19<P124,'3 Irrigation Schedule'!$P$19,P124)) ->  | W124: =IF(H124="","",V124/'3 Irrigation Schedule'!$M$19) -> 
D125: 2020 | E125: May | F125: 2020-05-31 | J125: 5.31832 | K125: 2.059354839 | M125: 0 | O125: =IF(OR('3 Irrigation Schedule'!$C$29="",'3 Irrigation Schedule'!$C$31="",H125=""),"",(('3 Irrigation Schedule'!$C$29-'3 Irrigation Schedule'!$C$31)/100)*1000*N125) ->  | Q125: =IF(H125="","",IF(H125=1,O125*(1-'3 Irrigation Schedule'!$C$27),T124-V124)) ->  | U125: =IF(H125="","",IF('3 Irrigation Schedule'!$P$19<P125,'3 Irrigation Schedule'!$P$19,P125)) ->  | W125: =IF(H125="","",V125/'3 Irrigation Schedule'!$M$19) -> 
D126: 2020 | E126: June | F126: 2020-06-01 | J126: 5.2668 | K126: 0.4286666667 | M126: 0 | O126: =IF(OR('3 Irrigation Schedule'!$C$29="",'3 Irrigation Schedule'!$C$31="",H126=""),"",(('3 Irrigation Schedule'!$C$29-'3 Irrigation Schedule'!$C$31)/100)*1000*N126) ->  | Q126: =IF(H126="","",IF(H126=1,O126*(1-'3 Irrigation Schedule'!$C$27),T125-V125)) ->  | U126: =IF(H126="","",IF('3 Irrigation Schedule'!$P$19<P126,'3 Irrigation Schedule'!$P$19,P126)) ->  | W126: =IF(H126="","",V126/'3 Irrigation Schedule'!$M$19) -> 
D127: 2020 | E127: June | F127: 2020-06-02 | J127: 5.2668 | K127: 0.4286666667 | M127: 0 | O127: =IF(OR('3 Irrigation Schedule'!$C$29="",'3 Irrigation Schedule'!$C$31="",H127=""),"",(('3 Irrigation Schedule'!$C$29-'3 Irrigation Schedule'!$C$31)/100)*1000*N127) ->  | Q127: =IF(H127="","",IF(H127=1,O127*(1-'3 Irrigation Schedule'!$C$27),T126-V126)) ->  | U127: =IF(H127="","",IF('3 Irrigation Schedule'!$P$19<P127,'3 Irrigation Schedule'!$P$19,P127)) ->  | W127: =IF(H127="","",V127/'3 Irrigation Schedule'!$M$19) -> 
D128: 2020 | E128: June | F128: 2020-06-03 | J128: 5.2668 | K128: 0.4286666667 | M128: 0 | O128: =IF(OR('3 Irrigation Schedule'!$C$29="",'3 Irrigation Schedule'!$C$31="",H128=""),"",(('3 Irrigation Schedule'!$C$29-'3 Irrigation Schedule'!$C$31)/100)*1000*N128) ->  | Q128: =IF(H128="","",IF(H128=1,O128*(1-'3 Irrigation Schedule'!$C$27),T127-V127)) ->  | U128: =IF(H128="","",IF('3 Irrigation Schedule'!$P$19<P128,'3 Irrigation Schedule'!$P$19,P128)) ->  | W128: =IF(H128="","",V128/'3 Irrigation Schedule'!$M$19) -> 
D129: 2020 | E129: June | F129: 2020-06-04 | J129: 5.2668 | K129: 0.4286666667 | M129: 0 | O129: =IF(OR('3 Irrigation Schedule'!$C$29="",'3 Irrigation Schedule'!$C$31="",H129=""),"",(('3 Irrigation Schedule'!$C$29-'3 Irrigation Schedule'!$C$31)/100)*1000*N129) ->  | Q129: =IF(H129="","",IF(H129=1,O129*(1-'3 Irrigation Schedule'!$C$27),T128-V128)) ->  | U129: =IF(H129="","",IF('3 Irrigation Schedule'!$P$19<P129,'3 Irrigation Schedule'!$P$19,P129)) ->  | W129: =IF(H129="","",V129/'3 Irrigation Schedule'!$M$19) -> 
D130: 2020 | E130: June | F130: 2020-06-05 | J130: 5.2668 | K130: 0.4286666667 | M130: 0 | O130: =IF(OR('3 Irrigation Schedule'!$C$29="",'3 Irrigation Schedule'!$C$31="",H130=""),"",(('3 Irrigation Schedule'!$C$29-'3 Irrigation Schedule'!$C$31)/100)*1000*N130) ->  | Q130: =IF(H130="","",IF(H130=1,O130*(1-'3 Irrigation Schedule'!$C$27),T129-V129)) ->  | U130: =IF(H130="","",IF('3 Irrigation Schedule'!$P$19<P130,'3 Irrigation Schedule'!$P$19,P130)) ->  | W130: =IF(H130="","",V130/'3 Irrigation Schedule'!$M$19) -> 
D131: 2020 | E131: June | F131: 2020-06-06 | J131: 5.2668 | K131: 0.4286666667 | M131: 0 | O131: =IF(OR('3 Irrigation Schedule'!$C$29="",'3 Irrigation Schedule'!$C$31="",H131=""),"",(('3 Irrigation Schedule'!$C$29-'3 Irrigation Schedule'!$C$31)/100)*1000*N131) ->  | Q131: =IF(H131="","",IF(H131=1,O131*(1-'3 Irrigation Schedule'!$C$27),T130-V130)) ->  | U131: =IF(H131="","",IF('3 Irrigation Schedule'!$P$19<P131,'3 Irrigation Schedule'!$P$19,P131)) ->  | W131: =IF(H131="","",V131/'3 Irrigation Schedule'!$M$19) -> 
D132: 2020 | E132: June | F132: 2020-06-07 | J132: 5.2668 | K132: 0.4286666667 | M132: 0 | O132: =IF(OR('3 Irrigation Schedule'!$C$29="",'3 Irrigation Schedule'!$C$31="",H132=""),"",(('3 Irrigation Schedule'!$C$29-'3 Irrigation Schedule'!$C$31)/100)*1000*N132) ->  | Q132: =IF(H132="","",IF(H132=1,O132*(1-'3 Irrigation Schedule'!$C$27),T131-V131)) ->  | U132: =IF(H132="","",IF('3 Irrigation Schedule'!$P$19<P132,'3 Irrigation Schedule'!$P$19,P132)) ->  | W132: =IF(H132="","",V132/'3 Irrigation Schedule'!$M$19) -> 
D133: 2020 | E133: June | F133: 2020-06-08 | J133: 5.2668 | K133: 0.4286666667 | M133: 0 | O133: =IF(OR('3 Irrigation Schedule'!$C$29="",'3 Irrigation Schedule'!$C$31="",H133=""),"",(('3 Irrigation Schedule'!$C$29-'3 Irrigation Schedule'!$C$31)/100)*1000*N133) ->  | Q133: =IF(H133="","",IF(H133=1,O133*(1-'3 Irrigation Schedule'!$C$27),T132-V132)) ->  | U133: =IF(H133="","",IF('3 Irrigation Schedule'!$P$19<P133,'3 Irrigation Schedule'!$P$19,P133)) ->  | W133: =IF(H133="","",V133/'3 Irrigation Schedule'!$M$19) -> 
D134: 2020 | E134: June | F134: 2020-06-09 | J134: 5.2668 | K134: 0.4286666667 | M134: 0 | O134: =IF(OR('3 Irrigation Schedule'!$C$29="",'3 Irrigation Schedule'!$C$31="",H134=""),"",(('3 Irrigation Schedule'!$C$29-'3 Irrigation Schedule'!$C$31)/100)*1000*N134) ->  | Q134: =IF(H134="","",IF(H134=1,O134*(1-'3 Irrigation Schedule'!$C$27),T133-V133)) ->  | U134: =IF(H134="","",IF('3 Irrigation Schedule'!$P$19<P134,'3 Irrigation Schedule'!$P$19,P134)) ->  | W134: =IF(H134="","",V134/'3 Irrigation Schedule'!$M$19) -> 
D135: 2020 | E135: June | F135: 2020-06-10 | J135: 5.2668 | K135: 0.4286666667 | M135: 0 | O135: =IF(OR('3 Irrigation Schedule'!$C$29="",'3 Irrigation Schedule'!$C$31="",H135=""),"",(('3 Irrigation Schedule'!$C$29-'3 Irrigation Schedule'!$C$31)/100)*1000*N135) ->  | Q135: =IF(H135="","",IF(H135=1,O135*(1-'3 Irrigation Schedule'!$C$27),T134-V134)) ->  | U135: =IF(H135="","",IF('3 Irrigation Schedule'!$P$19<P135,'3 Irrigation Schedule'!$P$19,P135)) ->  | W135: =IF(H135="","",V135/'3 Irrigation Schedule'!$M$19) -> 
D136: 2020 | E136: June | F136: 2020-06-11 | J136: 5.2668 | K136: 0.4286666667 | M136: 0 | O136: =IF(OR('3 Irrigation Schedule'!$C$29="",'3 Irrigation Schedule'!$C$31="",H136=""),"",(('3 Irrigation Schedule'!$C$29-'3 Irrigation Schedule'!$C$31)/100)*1000*N136) ->  | Q136: =IF(H136="","",IF(H136=1,O136*(1-'3 Irrigation Schedule'!$C$27),T135-V135)) ->  | U136: =IF(H136="","",IF('3 Irrigation Schedule'!$P$19<P136,'3 Irrigation Schedule'!$P$19,P136)) ->  | W136: =IF(H136="","",V136/'3 Irrigation Schedule'!$M$19) -> 
D137: 2020 | E137: June | F137: 2020-06-12 | J137: 5.2668 | K137: 0.4286666667 | M137: 0 | O137: =IF(OR('3 Irrigation Schedule'!$C$29="",'3 Irrigation Schedule'!$C$31="",H137=""),"",(('3 Irrigation Schedule'!$C$29-'3 Irrigation Schedule'!$C$31)/100)*1000*N137) ->  | Q137: =IF(H137="","",IF(H137=1,O137*(1-'3 Irrigation Schedule'!$C$27),T136-V136)) ->  | U137: =IF(H137="","",IF('3 Irrigation Schedule'!$P$19<P137,'3 Irrigation Schedule'!$P$19,P137)) ->  | W137: =IF(H137="","",V137/'3 Irrigation Schedule'!$M$19) -> 
D138: 2020 | E138: June | F138: 2020-06-13 | J138: 5.2668 | K138: 0.4286666667 | M138: 0 | O138: =IF(OR('3 Irrigation Schedule'!$C$29="",'3 Irrigation Schedule'!$C$31="",H138=""),"",(('3 Irrigation Schedule'!$C$29-'3 Irrigation Schedule'!$C$31)/100)*1000*N138) ->  | Q138: =IF(H138="","",IF(H138=1,O138*(1-'3 Irrigation Schedule'!$C$27),T137-V137)) ->  | U138: =IF(H138="","",IF('3 Irrigation Schedule'!$P$19<P138,'3 Irrigation Schedule'!$P$19,P138)) ->  | W138: =IF(H138="","",V138/'3 Irrigation Schedule'!$M$19) -> 
D139: 2020 | E139: June | F139: 2020-06-14 | J139: 5.2668 | K139: 0.4286666667 | M139: 0 | O139: =IF(OR('3 Irrigation Schedule'!$C$29="",'3 Irrigation Schedule'!$C$31="",H139=""),"",(('3 Irrigation Schedule'!$C$29-'3 Irrigation Schedule'!$C$31)/100)*1000*N139) ->  | Q139: =IF(H139="","",IF(H139=1,O139*(1-'3 Irrigation Schedule'!$C$27),T138-V138)) ->  | U139: =IF(H139="","",IF('3 Irrigation Schedule'!$P$19<P139,'3 Irrigation Schedule'!$P$19,P139)) ->  | W139: =IF(H139="","",V139/'3 Irrigation Schedule'!$M$19) -> 
D140: 2020 | E140: June | F140: 2020-06-15 | J140: 5.2668 | K140: 0.4286666667 | M140: 0 | O140: =IF(OR('3 Irrigation Schedule'!$C$29="",'3 Irrigation Schedule'!$C$31="",H140=""),"",(('3 Irrigation Schedule'!$C$29-'3 Irrigation Schedule'!$C$31)/100)*1000*N140) ->  | Q140: =IF(H140="","",IF(H140=1,O140*(1-'3 Irrigation Schedule'!$C$27),T139-V139)) ->  | U140: =IF(H140="","",IF('3 Irrigation Schedule'!$P$19<P140,'3 Irrigation Schedule'!$P$19,P140)) ->  | W140: =IF(H140="","",V140/'3 Irrigation Schedule'!$M$19) -> 
D141: 2020 | E141: June | F141: 2020-06-16 | J141: 5.2668 | K141: 0.4286666667 | M141: 0 | O141: =IF(OR('3 Irrigation Schedule'!$C$29="",'3 Irrigation Schedule'!$C$31="",H141=""),"",(('3 Irrigation Schedule'!$C$29-'3 Irrigation Schedule'!$C$31)/100)*1000*N141) ->  | Q141: =IF(H141="","",IF(H141=1,O141*(1-'3 Irrigation Schedule'!$C$27),T140-V140)) ->  | U141: =IF(H141="","",IF('3 Irrigation Schedule'!$P$19<P141,'3 Irrigation Schedule'!$P$19,P141)) ->  | W141: =IF(H141="","",V141/'3 Irrigation Schedule'!$M$19) -> 
D142: 2020 | E142: June | F142: 2020-06-17 | J142: 5.2668 | K142: 0.4286666667 | M142: 0 | O142: =IF(OR('3 Irrigation Schedule'!$C$29="",'3 Irrigation Schedule'!$C$31="",H142=""),"",(('3 Irrigation Schedule'!$C$29-'3 Irrigation Schedule'!$C$31)/100)*1000*N142) ->  | Q142: =IF(H142="","",IF(H142=1,O142*(1-'3 Irrigation Schedule'!$C$27),T141-V141)) ->  | U142: =IF(H142="","",IF('3 Irrigation Schedule'!$P$19<P142,'3 Irrigation Schedule'!$P$19,P142)) ->  | W142: =IF(H142="","",V142/'3 Irrigation Schedule'!$M$19) -> 
D143: 2020 | E143: June | F143: 2020-06-18 | J143: 5.2668 | K143: 0.4286666667 | M143: 0 | O143: =IF(OR('3 Irrigation Schedule'!$C$29="",'3 Irrigation Schedule'!$C$31="",H143=""),"",(('3 Irrigation Schedule'!$C$29-'3 Irrigation Schedule'!$C$31)/100)*1000*N143) ->  | Q143: =IF(H143="","",IF(H143=1,O143*(1-'3 Irrigation Schedule'!$C$27),T142-V142)) ->  | U143: =IF(H143="","",IF('3 Irrigation Schedule'!$P$19<P143,'3 Irrigation Schedule'!$P$19,P143)) ->  | W143: =IF(H143="","",V143/'3 Irrigation Schedule'!$M$19) -> 
D144: 2020 | E144: June | F144: 2020-06-19 | J144: 5.2668 | K144: 0.4286666667 | M144: 0 | O144: =IF(OR('3 Irrigation Schedule'!$C$29="",'3 Irrigation Schedule'!$C$31="",H144=""),"",(('3 Irrigation Schedule'!$C$29-'3 Irrigation Schedule'!$C$31)/100)*1000*N144) ->  | Q144: =IF(H144="","",IF(H144=1,O144*(1-'3 Irrigation Schedule'!$C$27),T143-V143)) ->  | U144: =IF(H144="","",IF('3 Irrigation Schedule'!$P$19<P144,'3 Irrigation Schedule'!$P$19,P144)) ->  | W144: =IF(H144="","",V144/'3 Irrigation Schedule'!$M$19) -> 
D145: 2020 | E145: June | F145: 2020-06-20 | J145: 5.2668 | K145: 0.4286666667 | M145: 0 | O145: =IF(OR('3 Irrigation Schedule'!$C$29="",'3 Irrigation Schedule'!$C$31="",H145=""),"",(('3 Irrigation Schedule'!$C$29-'3 Irrigation Schedule'!$C$31)/100)*1000*N145) ->  | Q145: =IF(H145="","",IF(H145=1,O145*(1-'3 Irrigation Schedule'!$C$27),T144-V144)) ->  | U145: =IF(H145="","",IF('3 Irrigation Schedule'!$P$19<P145,'3 Irrigation Schedule'!$P$19,P145)) ->  | W145: =IF(H145="","",V145/'3 Irrigation Schedule'!$M$19) -> 
D146: 2020 | E146: June | F146: 2020-06-21 | J146: 5.2668 | K146: 0.4286666667 | M146: 0 | O146: =IF(OR('3 Irrigation Schedule'!$C$29="",'3 Irrigation Schedule'!$C$31="",H146=""),"",(('3 Irrigation Schedule'!$C$29-'3 Irrigation Schedule'!$C$31)/100)*1000*N146) ->  | Q146: =IF(H146="","",IF(H146=1,O146*(1-'3 Irrigation Schedule'!$C$27),T145-V145)) ->  | U146: =IF(H146="","",IF('3 Irrigation Schedule'!$P$19<P146,'3 Irrigation Schedule'!$P$19,P146)) ->  | W146: =IF(H146="","",V146/'3 Irrigation Schedule'!$M$19) -> 
D147: 2020 | E147: June | F147: 2020-06-22 | J147: 5.2668 | K147: 0.4286666667 | M147: 0 | O147: =IF(OR('3 Irrigation Schedule'!$C$29="",'3 Irrigation Schedule'!$C$31="",H147=""),"",(('3 Irrigation Schedule'!$C$29-'3 Irrigation Schedule'!$C$31)/100)*1000*N147) ->  | Q147: =IF(H147="","",IF(H147=1,O147*(1-'3 Irrigation Schedule'!$C$27),T146-V146)) ->  | U147: =IF(H147="","",IF('3 Irrigation Schedule'!$P$19<P147,'3 Irrigation Schedule'!$P$19,P147)) ->  | W147: =IF(H147="","",V147/'3 Irrigation Schedule'!$M$19) -> 
D148: 2020 | E148: June | F148: 2020-06-23 | J148: 5.2668 | K148: 0.4286666667 | M148: 0 | O148: =IF(OR('3 Irrigation Schedule'!$C$29="",'3 Irrigation Schedule'!$C$31="",H148=""),"",(('3 Irrigation Schedule'!$C$29-'3 Irrigation Schedule'!$C$31)/100)*1000*N148) ->  | Q148: =IF(H148="","",IF(H148=1,O148*(1-'3 Irrigation Schedule'!$C$27),T147-V147)) ->  | U148: =IF(H148="","",IF('3 Irrigation Schedule'!$P$19<P148,'3 Irrigation Schedule'!$P$19,P148)) ->  | W148: =IF(H148="","",V148/'3 Irrigation Schedule'!$M$19) -> 
D149: 2020 | E149: June | F149: 2020-06-24 | J149: 5.2668 | K149: 0.4286666667 | M149: 0 | O149: =IF(OR('3 Irrigation Schedule'!$C$29="",'3 Irrigation Schedule'!$C$31="",H149=""),"",(('3 Irrigation Schedule'!$C$29-'3 Irrigation Schedule'!$C$31)/100)*1000*N149) ->  | Q149: =IF(H149="","",IF(H149=1,O149*(1-'3 Irrigation Schedule'!$C$27),T148-V148)) ->  | U149: =IF(H149="","",IF('3 Irrigation Schedule'!$P$19<P149,'3 Irrigation Schedule'!$P$19,P149)) ->  | W149: =IF(H149="","",V149/'3 Irrigation Schedule'!$M$19) -> 
D150: 2020 | E150: June | F150: 2020-06-25 | J150: 5.2668 | K150: 0.4286666667 | M150: 0 | O150: =IF(OR('3 Irrigation Schedule'!$C$29="",'3 Irrigation Schedule'!$C$31="",H150=""),"",(('3 Irrigation Schedule'!$C$29-'3 Irrigation Schedule'!$C$31)/100)*1000*N150) ->  | Q150: =IF(H150="","",IF(H150=1,O150*(1-'3 Irrigation Schedule'!$C$27),T149-V149)) ->  | U150: =IF(H150="","",IF('3 Irrigation Schedule'!$P$19<P150,'3 Irrigation Schedule'!$P$19,P150)) ->  | W150: =IF(H150="","",V150/'3 Irrigation Schedule'!$M$19) -> 
D151: 2020 | E151: June | F151: 2020-06-26 | J151: 5.2668 | K151: 0.4286666667 | M151: 0 | O151: =IF(OR('3 Irrigation Schedule'!$C$29="",'3 Irrigation Schedule'!$C$31="",H151=""),"",(('3 Irrigation Schedule'!$C$29-'3 Irrigation Schedule'!$C$31)/100)*1000*N151) ->  | Q151: =IF(H151="","",IF(H151=1,O151*(1-'3 Irrigation Schedule'!$C$27),T150-V150)) ->  | U151: =IF(H151="","",IF('3 Irrigation Schedule'!$P$19<P151,'3 Irrigation Schedule'!$P$19,P151)) ->  | W151: =IF(H151="","",V151/'3 Irrigation Schedule'!$M$19) -> 
D152: 2020 | E152: June | F152: 2020-06-27 | J152: 5.2668 | K152: 0.4286666667 | M152: 0 | O152: =IF(OR('3 Irrigation Schedule'!$C$29="",'3 Irrigation Schedule'!$C$31="",H152=""),"",(('3 Irrigation Schedule'!$C$29-'3 Irrigation Schedule'!$C$31)/100)*1000*N152) ->  | Q152: =IF(H152="","",IF(H152=1,O152*(1-'3 Irrigation Schedule'!$C$27),T151-V151)) ->  | U152: =IF(H152="","",IF('3 Irrigation Schedule'!$P$19<P152,'3 Irrigation Schedule'!$P$19,P152)) ->  | W152: =IF(H152="","",V152/'3 Irrigation Schedule'!$M$19) -> 
D153: 2020 | E153: June | F153: 2020-06-28 | J153: 5.2668 | K153: 0.4286666667 | M153: 0 | O153: =IF(OR('3 Irrigation Schedule'!$C$29="",'3 Irrigation Schedule'!$C$31="",H153=""),"",(('3 Irrigation Schedule'!$C$29-'3 Irrigation Schedule'!$C$31)/100)*1000*N153) ->  | Q153: =IF(H153="","",IF(H153=1,O153*(1-'3 Irrigation Schedule'!$C$27),T152-V152)) ->  | U153: =IF(H153="","",IF('3 Irrigation Schedule'!$P$19<P153,'3 Irrigation Schedule'!$P$19,P153)) ->  | W153: =IF(H153="","",V153/'3 Irrigation Schedule'!$M$19) -> 
D154: 2020 | E154: June | F154: 2020-06-29 | J154: 5.2668 | K154: 0.4286666667 | M154: 0 | O154: =IF(OR('3 Irrigation Schedule'!$C$29="",'3 Irrigation Schedule'!$C$31="",H154=""),"",(('3 Irrigation Schedule'!$C$29-'3 Irrigation Schedule'!$C$31)/100)*1000*N154) ->  | Q154: =IF(H154="","",IF(H154=1,O154*(1-'3 Irrigation Schedule'!$C$27),T153-V153)) ->  | U154: =IF(H154="","",IF('3 Irrigation Schedule'!$P$19<P154,'3 Irrigation Schedule'!$P$19,P154)) ->  | W154: =IF(H154="","",V154/'3 Irrigation Schedule'!$M$19) -> 
D155: 2020 | E155: June | F155: 2020-06-30 | J155: 5.2668 | K155: 0.4286666667 | M155: 0 | O155: =IF(OR('3 Irrigation Schedule'!$C$29="",'3 Irrigation Schedule'!$C$31="",H155=""),"",(('3 Irrigation Schedule'!$C$29-'3 Irrigation Schedule'!$C$31)/100)*1000*N155) ->  | Q155: =IF(H155="","",IF(H155=1,O155*(1-'3 Irrigation Schedule'!$C$27),T154-V154)) ->  | U155: =IF(H155="","",IF('3 Irrigation Schedule'!$P$19<P155,'3 Irrigation Schedule'!$P$19,P155)) ->  | W155: =IF(H155="","",V155/'3 Irrigation Schedule'!$M$19) -> 
D156: 2020 | E156: July | F156: 2020-07-01 | J156: 5.2024 | K156: 0.2 | M156: 0 | O156: =IF(OR('3 Irrigation Schedule'!$C$29="",'3 Irrigation Schedule'!$C$31="",H156=""),"",(('3 Irrigation Schedule'!$C$29-'3 Irrigation Schedule'!$C$31)/100)*1000*N156) ->  | Q156: =IF(H156="","",IF(H156=1,O156*(1-'3 Irrigation Schedule'!$C$27),T155-V155)) ->  | U156: =IF(H156="","",IF('3 Irrigation Schedule'!$P$19<P156,'3 Irrigation Schedule'!$P$19,P156)) ->  | W156: =IF(H156="","",V156/'3 Irrigation Schedule'!$M$19) -> 
D157: 2020 | E157: July | F157: 2020-07-02 | J157: 5.2024 | K157: 0.2 | M157: 0 | O157: =IF(OR('3 Irrigation Schedule'!$C$29="",'3 Irrigation Schedule'!$C$31="",H157=""),"",(('3 Irrigation Schedule'!$C$29-'3 Irrigation Schedule'!$C$31)/100)*1000*N157) ->  | Q157: =IF(H157="","",IF(H157=1,O157*(1-'3 Irrigation Schedule'!$C$27),T156-V156)) ->  | U157: =IF(H157="","",IF('3 Irrigation Schedule'!$P$19<P157,'3 Irrigation Schedule'!$P$19,P157)) ->  | W157: =IF(H157="","",V157/'3 Irrigation Schedule'!$M$19) -> 
D158: 2020 | E158: July | F158: 2020-07-03 | J158: 5.2024 | K158: 0.2 | M158: 0 | O158: =IF(OR('3 Irrigation Schedule'!$C$29="",'3 Irrigation Schedule'!$C$31="",H158=""),"",(('3 Irrigation Schedule'!$C$29-'3 Irrigation Schedule'!$C$31)/100)*1000*N158) ->  | Q158: =IF(H158="","",IF(H158=1,O158*(1-'3 Irrigation Schedule'!$C$27),T157-V157)) ->  | U158: =IF(H158="","",IF('3 Irrigation Schedule'!$P$19<P158,'3 Irrigation Schedule'!$P$19,P158)) ->  | W158: =IF(H158="","",V158/'3 Irrigation Schedule'!$M$19) -> 
D159: 2020 | E159: July | F159: 2020-07-04 | J159: 5.2024 | K159: 0.2 | M159: 0 | O159: =IF(OR('3 Irrigation Schedule'!$C$29="",'3 Irrigation Schedule'!$C$31="",H159=""),"",(('3 Irrigation Schedule'!$C$29-'3 Irrigation Schedule'!$C$31)/100)*1000*N159) ->  | Q159: =IF(H159="","",IF(H159=1,O159*(1-'3 Irrigation Schedule'!$C$27),T158-V158)) ->  | U159: =IF(H159="","",IF('3 Irrigation Schedule'!$P$19<P159,'3 Irrigation Schedule'!$P$19,P159)) ->  | W159: =IF(H159="","",V159/'3 Irrigation Schedule'!$M$19) -> 
D160: 2020 | E160: July | F160: 2020-07-05 | J160: 5.2024 | K160: 0.2 | M160: 0 | O160: =IF(OR('3 Irrigation Schedule'!$C$29="",'3 Irrigation Schedule'!$C$31="",H160=""),"",(('3 Irrigation Schedule'!$C$29-'3 Irrigation Schedule'!$C$31)/100)*1000*N160) ->  | Q160: =IF(H160="","",IF(H160=1,O160*(1-'3 Irrigation Schedule'!$C$27),T159-V159)) ->  | U160: =IF(H160="","",IF('3 Irrigation Schedule'!$P$19<P160,'3 Irrigation Schedule'!$P$19,P160)) ->  | W160: =IF(H160="","",V160/'3 Irrigation Schedule'!$M$19) -> 
D161: 2020 | E161: July | F161: 2020-07-06 | J161: 5.2024 | K161: 0.2 | M161: 0 | O161: =IF(OR('3 Irrigation Schedule'!$C$29="",'3 Irrigation Schedule'!$C$31="",H161=""),"",(('3 Irrigation Schedule'!$C$29-'3 Irrigation Schedule'!$C$31)/100)*1000*N161) ->  | Q161: =IF(H161="","",IF(H161=1,O161*(1-'3 Irrigation Schedule'!$C$27),T160-V160)) ->  | U161: =IF(H161="","",IF('3 Irrigation Schedule'!$P$19<P161,'3 Irrigation Schedule'!$P$19,P161)) ->  | W161: =IF(H161="","",V161/'3 Irrigation Schedule'!$M$19) -> 
D162: =IFERROR(TEXT(DATE(YEAR($F162),MONTH($F162),1),$D$7&$D$4),"") -> 2020 | E162: =IFERROR(TEXT(DATE(YEAR($F162),MONTH($F162),1),$D$7&$D$5),"") -> July | F162: 2020-07-07 | I162: =IF(H162="","",IF(H162<=$I$27,"Initial",IF(AND(H162>$I$27,H162<=$I$28),"Development",IF(AND(H162>$I$28,H162<=$I$29),"Mid Season","Late Season")))) ->  | J162: =IFERROR(VLOOKUP($E162,$B$19:$C$30,2,FALSE),"") -> 5.2024 | K162: 0.2 | L162: =IF(H162="","",IF(H162<=$I$27,$L$27,IF(AND(H162>$I$27,H162<=$I$28),$L$27+((H162-$I$27)/$H$28)*($L$29-$L$27),IF(AND(H162>$I$28,H162<=$I$29),$L$29,$L$29+((H162-$I$29)/$H$30)*($L$30-$L$29))))) ->  | M162: =IFERROR((J162*L162),0) -> 0 | N162: =IF(H162="","",IF(OR(H162=1,H162<$I$28),$M$27+(($M$28-$M$27)*((H162-1)/($I$28-1))),$M$28)) ->  | O162: =IF(OR('3 Irrigation Schedule'!$C$29="",'3 Irrigation Schedule'!$C$31="",H162=""),"",(('3 Irrigation Schedule'!$C$29-'3 Irrigation Schedule'!$C$31)/100)*1000*N162) ->  | P162: =IF(H162="","",O162*$N$27) ->  | Q162: =IF(H162="","",IF(H162=1,O162*(1-'3 Irrigation Schedule'!$C$27),T161-V161)) ->  | R162: =IF(H162="","",IF(Q162>P162,(O162-Q162)/(O162-P162),1)) ->  | S162: =IF(H162="","",M162*R162) ->  | T162: =IF(H162="","",IF(Q162+S162-K162<0,0,Q162+S162-K162)) ->  | U162: =IF(H162="","",IF('3 Irrigation Schedule'!$P$19<P162,'3 Irrigation Schedule'!$P$19,P162)) ->  | V162: =IF(H162="","",IF(U162<=T162,U162,0)) ->  | W162: =IF(H162="","",V162/'3 Irrigation Schedule'!$M$19) -> 
D163: 2020 | E163: July | F163: =IFERROR(IF(F162+1<=$N$7, F162+1,""),"") -> 2020-07-08 | H163: =IFERROR(IF(OR($F163-$J$27+1<=0,$F163>$K$30),"",$F163-$J$27+1),"") ->  | J163: 5.2024 | K163: =IFERROR(VLOOKUP($E163,$B$19:$D$30,3,FALSE),"") -> 0.2 | M163: 0 | O163: =IF(OR('3 Irrigation Schedule'!$C$29="",'3 Irrigation Schedule'!$C$31="",H163=""),"",(('3 Irrigation Schedule'!$C$29-'3 Irrigation Schedule'!$C$31)/100)*1000*N163) ->  | Q163: =IF(H163="","",IF(H163=1,O163*(1-'3 Irrigation Schedule'!$C$27),T162-V162)) ->  | U163: =IF(H163="","",IF('3 Irrigation Schedule'!$P$19<P163,'3 Irrigation Schedule'!$P$19,P163)) ->  | W163: =IF(H163="","",V163/'3 Irrigation Schedule'!$M$19) -> 
D164: 2020 | E164: July | F164: 2020-07-09 | J164: 5.2024 | K164: 0.2 | M164: 0 | O164: =IF(OR('3 Irrigation Schedule'!$C$29="",'3 Irrigation Schedule'!$C$31="",H164=""),"",(('3 Irrigation Schedule'!$C$29-'3 Irrigation Schedule'!$C$31)/100)*1000*N164) ->  | Q164: =IF(H164="","",IF(H164=1,O164*(1-'3 Irrigation Schedule'!$C$27),T163-V163)) ->  | U164: =IF(H164="","",IF('3 Irrigation Schedule'!$P$19<P164,'3 Irrigation Schedule'!$P$19,P164)) ->  | W164: =IF(H164="","",V164/'3 Irrigation Schedule'!$M$19) -> 
D165: 2020 | E165: July | F165: 2020-07-10 | J165: 5.2024 | K165: 0.2 | M165: 0 | O165: =IF(OR('3 Irrigation Schedule'!$C$29="",'3 Irrigation Schedule'!$C$31="",H165=""),"",(('3 Irrigation Schedule'!$C$29-'3 Irrigation Schedule'!$C$31)/100)*1000*N165) ->  | Q165: =IF(H165="","",IF(H165=1,O165*(1-'3 Irrigation Schedule'!$C$27),T164-V164)) ->  | U165: =IF(H165="","",IF('3 Irrigation Schedule'!$P$19<P165,'3 Irrigation Schedule'!$P$19,P165)) ->  | W165: =IF(H165="","",V165/'3 Irrigation Schedule'!$M$19) -> 
D166: 2020 | E166: July | F166: 2020-07-11 | J166: 5.2024 | K166: 0.2 | M166: 0 | O166: =IF(OR('3 Irrigation Schedule'!$C$29="",'3 Irrigation Schedule'!$C$31="",H166=""),"",(('3 Irrigation Schedule'!$C$29-'3 Irrigation Schedule'!$C$31)/100)*1000*N166) ->  | Q166: =IF(H166="","",IF(H166=1,O166*(1-'3 Irrigation Schedule'!$C$27),T165-V165)) ->  | U166: =IF(H166="","",IF('3 Irrigation Schedule'!$P$19<P166,'3 Irrigation Schedule'!$P$19,P166)) ->  | W166: =IF(H166="","",V166/'3 Irrigation Schedule'!$M$19) -> 
D167: 2020 | E167: July | F167: 2020-07-12 | J167: 5.2024 | K167: 0.2 | M167: 0 | O167: =IF(OR('3 Irrigation Schedule'!$C$29="",'3 Irrigation Schedule'!$C$31="",H167=""),"",(('3 Irrigation Schedule'!$C$29-'3 Irrigation Schedule'!$C$31)/100)*1000*N167) ->  | Q167: =IF(H167="","",IF(H167=1,O167*(1-'3 Irrigation Schedule'!$C$27),T166-V166)) ->  | U167: =IF(H167="","",IF('3 Irrigation Schedule'!$P$19<P167,'3 Irrigation Schedule'!$P$19,P167)) ->  | W167: =IF(H167="","",V167/'3 Irrigation Schedule'!$M$19) -> 
D168: 2020 | E168: July | F168: 2020-07-13 | J168: 5.2024 | K168: 0.2 | M168: 0 | O168: =IF(OR('3 Irrigation Schedule'!$C$29="",'3 Irrigation Schedule'!$C$31="",H168=""),"",(('3 Irrigation Schedule'!$C$29-'3 Irrigation Schedule'!$C$31)/100)*1000*N168) ->  | Q168: =IF(H168="","",IF(H168=1,O168*(1-'3 Irrigation Schedule'!$C$27),T167-V167)) ->  | U168: =IF(H168="","",IF('3 Irrigation Schedule'!$P$19<P168,'3 Irrigation Schedule'!$P$19,P168)) ->  | W168: =IF(H168="","",V168/'3 Irrigation Schedule'!$M$19) -> 
D169: 2020 | E169: July | F169: 2020-07-14 | J169: 5.2024 | K169: 0.2 | M169: 0 | O169: =IF(OR('3 Irrigation Schedule'!$C$29="",'3 Irrigation Schedule'!$C$31="",H169=""),"",(('3 Irrigation Schedule'!$C$29-'3 Irrigation Schedule'!$C$31)/100)*1000*N169) ->  | Q169: =IF(H169="","",IF(H169=1,O169*(1-'3 Irrigation Schedule'!$C$27),T168-V168)) ->  | U169: =IF(H169="","",IF('3 Irrigation Schedule'!$P$19<P169,'3 Irrigation Schedule'!$P$19,P169)) ->  | W169: =IF(H169="","",V169/'3 Irrigation Schedule'!$M$19) -> 
D170: 2020 | E170: July | F170: 2020-07-15 | J170: 5.2024 | K170: 0.2 | M170: 0 | O170: =IF(OR('3 Irrigation Schedule'!$C$29="",'3 Irrigation Schedule'!$C$31="",H170=""),"",(('3 Irrigation Schedule'!$C$29-'3 Irrigation Schedule'!$C$31)/100)*1000*N170) ->  | Q170: =IF(H170="","",IF(H170=1,O170*(1-'3 Irrigation Schedule'!$C$27),T169-V169)) ->  | U170: =IF(H170="","",IF('3 Irrigation Schedule'!$P$19<P170,'3 Irrigation Schedule'!$P$19,P170)) ->  | W170: =IF(H170="","",V170/'3 Irrigation Schedule'!$M$19) -> 
D171: 2020 | E171: July | F171: 2020-07-16 | J171: 5.2024 | K171: 0.2 | M171: 0 | O171: =IF(OR('3 Irrigation Schedule'!$C$29="",'3 Irrigation Schedule'!$C$31="",H171=""),"",(('3 Irrigation Schedule'!$C$29-'3 Irrigation Schedule'!$C$31)/100)*1000*N171) ->  | Q171: =IF(H171="","",IF(H171=1,O171*(1-'3 Irrigation Schedule'!$C$27),T170-V170)) ->  | U171: =IF(H171="","",IF('3 Irrigation Schedule'!$P$19<P171,'3 Irrigation Schedule'!$P$19,P171)) ->  | W171: =IF(H171="","",V171/'3 Irrigation Schedule'!$M$19) -> 
D172: 2020 | E172: July | F172: 2020-07-17 | J172: 5.2024 | K172: 0.2 | M172: 0 | O172: =IF(OR('3 Irrigation Schedule'!$C$29="",'3 Irrigation Schedule'!$C$31="",H172=""),"",(('3 Irrigation Schedule'!$C$29-'3 Irrigation Schedule'!$C$31)/100)*1000*N172) ->  | Q172: =IF(H172="","",IF(H172=1,O172*(1-'3 Irrigation Schedule'!$C$27),T171-V171)) ->  | U172: =IF(H172="","",IF('3 Irrigation Schedule'!$P$19<P172,'3 Irrigation Schedule'!$P$19,P172)) ->  | W172: =IF(H172="","",V172/'3 Irrigation Schedule'!$M$19) -> 
D173: 2020 | E173: July | F173: 2020-07-18 | J173: 5.2024 | K173: 0.2 | M173: 0 | O173: =IF(OR('3 Irrigation Schedule'!$C$29="",'3 Irrigation Schedule'!$C$31="",H173=""),"",(('3 Irrigation Schedule'!$C$29-'3 Irrigation Schedule'!$C$31)/100)*1000*N173) ->  | Q173: =IF(H173="","",IF(H173=1,O173*(1-'3 Irrigation Schedule'!$C$27),T172-V172)) ->  | U173: =IF(H173="","",IF('3 Irrigation Schedule'!$P$19<P173,'3 Irrigation Schedule'!$P$19,P173)) ->  | W173: =IF(H173="","",V173/'3 Irrigation Schedule'!$M$19) -> 
D174: 2020 | E174: July | F174: 2020-07-19 | J174: 5.2024 | K174: 0.2 | M174: 0 | O174: =IF(OR('3 Irrigation Schedule'!$C$29="",'3 Irrigation Schedule'!$C$31="",H174=""),"",(('3 Irrigation Schedule'!$C$29-'3 Irrigation Schedule'!$C$31)/100)*1000*N174) ->  | Q174: =IF(H174="","",IF(H174=1,O174*(1-'3 Irrigation Schedule'!$C$27),T173-V173)) ->  | U174: =IF(H174="","",IF('3 Irrigation Schedule'!$P$19<P174,'3 Irrigation Schedule'!$P$19,P174)) ->  | W174: =IF(H174="","",V174/'3 Irrigation Schedule'!$M$19) -> 
D175: 2020 | E175: July | F175: 2020-07-20 | J175: 5.2024 | K175: 0.2 | M175: 0 | O175: =IF(OR('3 Irrigation Schedule'!$C$29="",'3 Irrigation Schedule'!$C$31="",H175=""),"",(('3 Irrigation Schedule'!$C$29-'3 Irrigation Schedule'!$C$31)/100)*1000*N175) ->  | Q175: =IF(H175="","",IF(H175=1,O175*(1-'3 Irrigation Schedule'!$C$27),T174-V174)) ->  | U175: =IF(H175="","",IF('3 Irrigation Schedule'!$P$19<P175,'3 Irrigation Schedule'!$P$19,P175)) ->  | W175: =IF(H175="","",V175/'3 Irrigation Schedule'!$M$19) -> 
D176: 2020 | E176: July | F176: 2020-07-21 | J176: 5.2024 | K176: 0.2 | M176: 0 | O176: =IF(OR('3 Irrigation Schedule'!$C$29="",'3 Irrigation Schedule'!$C$31="",H176=""),"",(('3 Irrigation Schedule'!$C$29-'3 Irrigation Schedule'!$C$31)/100)*1000*N176) ->  | Q176: =IF(H176="","",IF(H176=1,O176*(1-'3 Irrigation Schedule'!$C$27),T175-V175)) ->  | U176: =IF(H176="","",IF('3 Irrigation Schedule'!$P$19<P176,'3 Irrigation Schedule'!$P$19,P176)) ->  | W176: =IF(H176="","",V176/'3 Irrigation Schedule'!$M$19) -> 
D177: 2020 | E177: July | F177: 2020-07-22 | J177: 5.2024 | K177: 0.2 | M177: 0 | O177: =IF(OR('3 Irrigation Schedule'!$C$29="",'3 Irrigation Schedule'!$C$31="",H177=""),"",(('3 Irrigation Schedule'!$C$29-'3 Irrigation Schedule'!$C$31)/100)*1000*N177) ->  | Q177: =IF(H177="","",IF(H177=1,O177*(1-'3 Irrigation Schedule'!$C$27),T176-V176)) ->  | U177: =IF(H177="","",IF('3 Irrigation Schedule'!$P$19<P177,'3 Irrigation Schedule'!$P$19,P177)) ->  | W177: =IF(H177="","",V177/'3 Irrigation Schedule'!$M$19) -> 
D178: 2020 | E178: July | F178: 2020-07-23 | J178: 5.2024 | K178: 0.2 | M178: 0 | O178: =IF(OR('3 Irrigation Schedule'!$C$29="",'3 Irrigation Schedule'!$C$31="",H178=""),"",(('3 Irrigation Schedule'!$C$29-'3 Irrigation Schedule'!$C$31)/100)*1000*N178) ->  | Q178: =IF(H178="","",IF(H178=1,O178*(1-'3 Irrigation Schedule'!$C$27),T177-V177)) ->  | U178: =IF(H178="","",IF('3 Irrigation Schedule'!$P$19<P178,'3 Irrigation Schedule'!$P$19,P178)) ->  | W178: =IF(H178="","",V178/'3 Irrigation Schedule'!$M$19) -> 
D179: 2020 | E179: July | F179: 2020-07-24 | J179: 5.2024 | K179: 0.2 | M179: 0 | O179: =IF(OR('3 Irrigation Schedule'!$C$29="",'3 Irrigation Schedule'!$C$31="",H179=""),"",(('3 Irrigation Schedule'!$C$29-'3 Irrigation Schedule'!$C$31)/100)*1000*N179) ->  | Q179: =IF(H179="","",IF(H179=1,O179*(1-'3 Irrigation Schedule'!$C$27),T178-V178)) ->  | U179: =IF(H179="","",IF('3 Irrigation Schedule'!$P$19<P179,'3 Irrigation Schedule'!$P$19,P179)) ->  | W179: =IF(H179="","",V179/'3 Irrigation Schedule'!$M$19) -> 
D180: 2020 | E180: July | F180: 2020-07-25 | J180: 5.2024 | K180: 0.2 | M180: 0 | O180: =IF(OR('3 Irrigation Schedule'!$C$29="",'3 Irrigation Schedule'!$C$31="",H180=""),"",(('3 Irrigation Schedule'!$C$29-'3 Irrigation Schedule'!$C$31)/100)*1000*N180) ->  | Q180: =IF(H180="","",IF(H180=1,O180*(1-'3 Irrigation Schedule'!$C$27),T179-V179)) ->  | U180: =IF(H180="","",IF('3 Irrigation Schedule'!$P$19<P180,'3 Irrigation Schedule'!$P$19,P180)) ->  | W180: =IF(H180="","",V180/'3 Irrigation Schedule'!$M$19) -> 
D181: 2020 | E181: July | F181: 2020-07-26 | J181: 5.2024 | K181: 0.2 | M181: 0 | O181: =IF(OR('3 Irrigation Schedule'!$C$29="",'3 Irrigation Schedule'!$C$31="",H181=""),"",(('3 Irrigation Schedule'!$C$29-'3 Irrigation Schedule'!$C$31)/100)*1000*N181) ->  | Q181: =IF(H181="","",IF(H181=1,O181*(1-'3 Irrigation Schedule'!$C$27),T180-V180)) ->  | U181: =IF(H181="","",IF('3 Irrigation Schedule'!$P$19<P181,'3 Irrigation Schedule'!$P$19,P181)) ->  | W181: =IF(H181="","",V181/'3 Irrigation Schedule'!$M$19) -> 
D182: 2020 | E182: July | F182: 2020-07-27 | J182: 5.2024 | K182: 0.2 | M182: 0 | O182: =IF(OR('3 Irrigation Schedule'!$C$29="",'3 Irrigation Schedule'!$C$31="",H182=""),"",(('3 Irrigation Schedule'!$C$29-'3 Irrigation Schedule'!$C$31)/100)*1000*N182) ->  | Q182: =IF(H182="","",IF(H182=1,O182*(1-'3 Irrigation Schedule'!$C$27),T181-V181)) ->  | U182: =IF(H182="","",IF('3 Irrigation Schedule'!$P$19<P182,'3 Irrigation Schedule'!$P$19,P182)) ->  | W182: =IF(H182="","",V182/'3 Irrigation Schedule'!$M$19) -> 
D183: 2020 | E183: July | F183: 2020-07-28 | J183: 5.2024 | K183: 0.2 | M183: 0 | O183: =IF(OR('3 Irrigation Schedule'!$C$29="",'3 Irrigation Schedule'!$C$31="",H183=""),"",(('3 Irrigation Schedule'!$C$29-'3 Irrigation Schedule'!$C$31)/100)*1000*N183) ->  | Q183: =IF(H183="","",IF(H183=1,O183*(1-'3 Irrigation Schedule'!$C$27),T182-V182)) ->  | U183: =IF(H183="","",IF('3 Irrigation Schedule'!$P$19<P183,'3 Irrigation Schedule'!$P$19,P183)) ->  | W183: =IF(H183="","",V183/'3 Irrigation Schedule'!$M$19) -> 
D184: 2020 | E184: July | F184: 2020-07-29 | J184: 5.2024 | K184: 0.2 | M184: 0 | O184: =IF(OR('3 Irrigation Schedule'!$C$29="",'3 Irrigation Schedule'!$C$31="",H184=""),"",(('3 Irrigation Schedule'!$C$29-'3 Irrigation Schedule'!$C$31)/100)*1000*N184) ->  | Q184: =IF(H184="","",IF(H184=1,O184*(1-'3 Irrigation Schedule'!$C$27),T183-V183)) ->  | U184: =IF(H184="","",IF('3 Irrigation Schedule'!$P$19<P184,'3 Irrigation Schedule'!$P$19,P184)) ->  | W184: =IF(H184="","",V184/'3 Irrigation Schedule'!$M$19) -> 
D185: 2020 | E185: July | F185: 2020-07-30 | J185: 5.2024 | K185: 0.2 | M185: 0 | O185: =IF(OR('3 Irrigation Schedule'!$C$29="",'3 Irrigation Schedule'!$C$31="",H185=""),"",(('3 Irrigation Schedule'!$C$29-'3 Irrigation Schedule'!$C$31)/100)*1000*N185) ->  | Q185: =IF(H185="","",IF(H185=1,O185*(1-'3 Irrigation Schedule'!$C$27),T184-V184)) ->  | U185: =IF(H185="","",IF('3 Irrigation Schedule'!$P$19<P185,'3 Irrigation Schedule'!$P$19,P185)) ->  | W185: =IF(H185="","",V185/'3 Irrigation Schedule'!$M$19) -> 
D186: 2020 | E186: July | F186: 2020-07-31 | J186: 5.2024 | K186: 0.2 | M186: 0 | O186: =IF(OR('3 Irrigation Schedule'!$C$29="",'3 Irrigation Schedule'!$C$31="",H186=""),"",(('3 Irrigation Schedule'!$C$29-'3 Irrigation Schedule'!$C$31)/100)*1000*N186) ->  | Q186: =IF(H186="","",IF(H186=1,O186*(1-'3 Irrigation Schedule'!$C$27),T185-V185)) ->  | U186: =IF(H186="","",IF('3 Irrigation Schedule'!$P$19<P186,'3 Irrigation Schedule'!$P$19,P186)) ->  | W186: =IF(H186="","",V186/'3 Irrigation Schedule'!$M$19) -> 
D187: 2020 | E187: August | F187: 2020-08-01 | J187: 5.2024 | K187: 0.09548387097 | M187: 0 | O187: =IF(OR('3 Irrigation Schedule'!$C$29="",'3 Irrigation Schedule'!$C$31="",H187=""),"",(('3 Irrigation Schedule'!$C$29-'3 Irrigation Schedule'!$C$31)/100)*1000*N187) ->  | Q187: =IF(H187="","",IF(H187=1,O187*(1-'3 Irrigation Schedule'!$C$27),T186-V186)) ->  | U187: =IF(H187="","",IF('3 Irrigation Schedule'!$P$19<P187,'3 Irrigation Schedule'!$P$19,P187)) ->  | W187: =IF(H187="","",V187/'3 Irrigation Schedule'!$M$19) -> 
D188: 2020 | E188: August | F188: 2020-08-02 | J188: 5.2024 | K188: 0.09548387097 | M188: 0 | O188: =IF(OR('3 Irrigation Schedule'!$C$29="",'3 Irrigation Schedule'!$C$31="",H188=""),"",(('3 Irrigation Schedule'!$C$29-'3 Irrigation Schedule'!$C$31)/100)*1000*N188) ->  | Q188: =IF(H188="","",IF(H188=1,O188*(1-'3 Irrigation Schedule'!$C$27),T187-V187)) ->  | U188: =IF(H188="","",IF('3 Irrigation Schedule'!$P$19<P188,'3 Irrigation Schedule'!$P$19,P188)) ->  | W188: =IF(H188="","",V188/'3 Irrigation Schedule'!$M$19) -> 
D189: 2020 | E189: August | F189: 2020-08-03 | J189: 5.2024 | K189: 0.09548387097 | M189: 0 | O189: =IF(OR('3 Irrigation Schedule'!$C$29="",'3 Irrigation Schedule'!$C$31="",H189=""),"",(('3 Irrigation Schedule'!$C$29-'3 Irrigation Schedule'!$C$31)/100)*1000*N189) ->  | Q189: =IF(H189="","",IF(H189=1,O189*(1-'3 Irrigation Schedule'!$C$27),T188-V188)) ->  | U189: =IF(H189="","",IF('3 Irrigation Schedule'!$P$19<P189,'3 Irrigation Schedule'!$P$19,P189)) ->  | W189: =IF(H189="","",V189/'3 Irrigation Schedule'!$M$19) -> 
D190: 2020 | E190: August | F190: 2020-08-04 | J190: 5.2024 | K190: 0.09548387097 | M190: 0 | O190: =IF(OR('3 Irrigation Schedule'!$C$29="",'3 Irrigation Schedule'!$C$31="",H190=""),"",(('3 Irrigation Schedule'!$C$29-'3 Irrigation Schedule'!$C$31)/100)*1000*N190) ->  | Q190: =IF(H190="","",IF(H190=1,O190*(1-'3 Irrigation Schedule'!$C$27),T189-V189)) ->  | U190: =IF(H190="","",IF('3 Irrigation Schedule'!$P$19<P190,'3 Irrigation Schedule'!$P$19,P190)) ->  | W190: =IF(H190="","",V190/'3 Irrigation Schedule'!$M$19) -> 
D191: 2020 | E191: August | F191: 2020-08-05 | J191: 5.2024 | K191: 0.09548387097 | M191: 0 | O191: =IF(OR('3 Irrigation Schedule'!$C$29="",'3 Irrigation Schedule'!$C$31="",H191=""),"",(('3 Irrigation Schedule'!$C$29-'3 Irrigation Schedule'!$C$31)/100)*1000*N191) ->  | Q191: =IF(H191="","",IF(H191=1,O191*(1-'3 Irrigation Schedule'!$C$27),T190-V190)) ->  | U191: =IF(H191="","",IF('3 Irrigation Schedule'!$P$19<P191,'3 Irrigation Schedule'!$P$19,P191)) ->  | W191: =IF(H191="","",V191/'3 Irrigation Schedule'!$M$19) -> 
D192: 2020 | E192: August | F192: 2020-08-06 | J192: 5.2024 | K192: 0.09548387097 | M192: 0 | O192: =IF(OR('3 Irrigation Schedule'!$C$29="",'3 Irrigation Schedule'!$C$31="",H192=""),"",(('3 Irrigation Schedule'!$C$29-'3 Irrigation Schedule'!$C$31)/100)*1000*N192) ->  | Q192: =IF(H192="","",IF(H192=1,O192*(1-'3 Irrigation Schedule'!$C$27),T191-V191)) ->  | U192: =IF(H192="","",IF('3 Irrigation Schedule'!$P$19<P192,'3 Irrigation Schedule'!$P$19,P192)) ->  | W192: =IF(H192="","",V192/'3 Irrigation Schedule'!$M$19) -> 
D193: 2020 | E193: August | F193: 2020-08-07 | J193: 5.2024 | K193: 0.09548387097 | M193: 0 | O193: =IF(OR('3 Irrigation Schedule'!$C$29="",'3 Irrigation Schedule'!$C$31="",H193=""),"",(('3 Irrigation Schedule'!$C$29-'3 Irrigation Schedule'!$C$31)/100)*1000*N193) ->  | Q193: =IF(H193="","",IF(H193=1,O193*(1-'3 Irrigation Schedule'!$C$27),T192-V192)) ->  | U193: =IF(H193="","",IF('3 Irrigation Schedule'!$P$19<P193,'3 Irrigation Schedule'!$P$19,P193)) ->  | W193: =IF(H193="","",V193/'3 Irrigation Schedule'!$M$19) -> 
D194: 2020 | E194: August | F194: 2020-08-08 | J194: 5.2024 | K194: 0.09548387097 | M194: 0 | O194: =IF(OR('3 Irrigation Schedule'!$C$29="",'3 Irrigation Schedule'!$C$31="",H194=""),"",(('3 Irrigation Schedule'!$C$29-'3 Irrigation Schedule'!$C$31)/100)*1000*N194) ->  | Q194: =IF(H194="","",IF(H194=1,O194*(1-'3 Irrigation Schedule'!$C$27),T193-V193)) ->  | U194: =IF(H194="","",IF('3 Irrigation Schedule'!$P$19<P194,'3 Irrigation Schedule'!$P$19,P194)) ->  | W194: =IF(H194="","",V194/'3 Irrigation Schedule'!$M$19) -> 
D195: 2020 | E195: August | F195: 2020-08-09 | J195: 5.2024 | K195: 0.09548387097 | M195: 0 | O195: =IF(OR('3 Irrigation Schedule'!$C$29="",'3 Irrigation Schedule'!$C$31="",H195=""),"",(('3 Irrigation Schedule'!$C$29-'3 Irrigation Schedule'!$C$31)/100)*1000*N195) ->  | Q195: =IF(H195="","",IF(H195=1,O195*(1-'3 Irrigation Schedule'!$C$27),T194-V194)) ->  | U195: =IF(H195="","",IF('3 Irrigation Schedule'!$P$19<P195,'3 Irrigation Schedule'!$P$19,P195)) ->  | W195: =IF(H195="","",V195/'3 Irrigation Schedule'!$M$19) -> 
D196: 2020 | E196: August | F196: 2020-08-10 | J196: 5.2024 | K196: 0.09548387097 | M196: 0 | O196: =IF(OR('3 Irrigation Schedule'!$C$29="",'3 Irrigation Schedule'!$C$31="",H196=""),"",(('3 Irrigation Schedule'!$C$29-'3 Irrigation Schedule'!$C$31)/100)*1000*N196) ->  | Q196: =IF(H196="","",IF(H196=1,O196*(1-'3 Irrigation Schedule'!$C$27),T195-V195)) ->  | U196: =IF(H196="","",IF('3 Irrigation Schedule'!$P$19<P196,'3 Irrigation Schedule'!$P$19,P196)) ->  | W196: =IF(H196="","",V196/'3 Irrigation Schedule'!$M$19) -> 
D197: 2020 | E197: August | F197: 2020-08-11 | J197: 5.2024 | K197: 0.09548387097 | M197: 0 | O197: =IF(OR('3 Irrigation Schedule'!$C$29="",'3 Irrigation Schedule'!$C$31="",H197=""),"",(('3 Irrigation Schedule'!$C$29-'3 Irrigation Schedule'!$C$31)/100)*1000*N197) ->  | Q197: =IF(H197="","",IF(H197=1,O197*(1-'3 Irrigation Schedule'!$C$27),T196-V196)) ->  | U197: =IF(H197="","",IF('3 Irrigation Schedule'!$P$19<P197,'3 Irrigation Schedule'!$P$19,P197)) ->  | W197: =IF(H197="","",V197/'3 Irrigation Schedule'!$M$19) -> 
D198: 2020 | E198: August | F198: 2020-08-12 | J198: 5.2024 | K198: 0.09548387097 | M198: 0 | O198: =IF(OR('3 Irrigation Schedule'!$C$29="",'3 Irrigation Schedule'!$C$31="",H198=""),"",(('3 Irrigation Schedule'!$C$29-'3 Irrigation Schedule'!$C$31)/100)*1000*N198) ->  | Q198: =IF(H198="","",IF(H198=1,O198*(1-'3 Irrigation Schedule'!$C$27),T197-V197)) ->  | U198: =IF(H198="","",IF('3 Irrigation Schedule'!$P$19<P198,'3 Irrigation Schedule'!$P$19,P198)) ->  | W198: =IF(H198="","",V198/'3 Irrigation Schedule'!$M$19) -> 
D199: 2020 | E199: August | F199: 2020-08-13 | J199: 5.2024 | K199: 0.09548387097 | M199: 0 | O199: =IF(OR('3 Irrigation Schedule'!$C$29="",'3 Irrigation Schedule'!$C$31="",H199=""),"",(('3 Irrigation Schedule'!$C$29-'3 Irrigation Schedule'!$C$31)/100)*1000*N199) ->  | Q199: =IF(H199="","",IF(H199=1,O199*(1-'3 Irrigation Schedule'!$C$27),T198-V198)) ->  | U199: =IF(H199="","",IF('3 Irrigation Schedule'!$P$19<P199,'3 Irrigation Schedule'!$P$19,P199)) ->  | W199: =IF(H199="","",V199/'3 Irrigation Schedule'!$M$19) -> 
D200: 2020 | E200: August | F200: 2020-08-14 | J200: 5.2024 | K200: 0.09548387097 | M200: 0 | O200: =IF(OR('3 Irrigation Schedule'!$C$29="",'3 Irrigation Schedule'!$C$31="",H200=""),"",(('3 Irrigation Schedule'!$C$29-'3 Irrigation Schedule'!$C$31)/100)*1000*N200) ->  | Q200: =IF(H200="","",IF(H200=1,O200*(1-'3 Irrigation Schedule'!$C$27),T199-V199)) ->  | U200: =IF(H200="","",IF('3 Irrigation Schedule'!$P$19<P200,'3 Irrigation Schedule'!$P$19,P200)) ->  | W200: =IF(H200="","",V200/'3 Irrigation Schedule'!$M$19) -> 
D201: 2020 | E201: August | F201: 2020-08-15 | J201: 5.2024 | K201: 0.09548387097 | M201: 0 | O201: =IF(OR('3 Irrigation Schedule'!$C$29="",'3 Irrigation Schedule'!$C$31="",H201=""),"",(('3 Irrigation Schedule'!$C$29-'3 Irrigation Schedule'!$C$31)/100)*1000*N201) ->  | Q201: =IF(H201="","",IF(H201=1,O201*(1-'3 Irrigation Schedule'!$C$27),T200-V200)) ->  | U201: =IF(H201="","",IF('3 Irrigation Schedule'!$P$19<P201,'3 Irrigation Schedule'!$P$19,P201)) ->  | W201: =IF(H201="","",V201/'3 Irrigation Schedule'!$M$19) -> 
D202: 2020 | E202: August | F202: 2020-08-16 | J202: 5.2024 | K202: 0.09548387097 | M202: 0 | O202: =IF(OR('3 Irrigation Schedule'!$C$29="",'3 Irrigation Schedule'!$C$31="",H202=""),"",(('3 Irrigation Schedule'!$C$29-'3 Irrigation Schedule'!$C$31)/100)*1000*N202) ->  | Q202: =IF(H202="","",IF(H202=1,O202*(1-'3 Irrigation Schedule'!$C$27),T201-V201)) ->  | U202: =IF(H202="","",IF('3 Irrigation Schedule'!$P$19<P202,'3 Irrigation Schedule'!$P$19,P202)) ->  | W202: =IF(H202="","",V202/'3 Irrigation Schedule'!$M$19) -> 
... 926 more rows

Sheet Soil Information-Calculations (hidden)
D2: Soil texture calculation
D3: Status | E3: Soil Type | F3: Formula
D4: =IFERROR(IF('2 Soil Texture Calculator'!$E$16+1.5*'2 Soil Texture Calculator'!$E$13<0.15,TRUE,FALSE),"") -> FALSE | E4: =Translate!C131 -> SAND | F4: ((silt + 1.5*clay) < 15)
D5: =IFERROR(IF(AND('2 Soil Texture Calculator'!$E$16+1.5*'2 Soil Texture Calculator'!$E$13>=0.15, '2 Soil Texture Calculator'!$E$16+2*'2 Soil Texture Calculator'!$E$13<0.3), TRUE,FALSE),"") -> FALSE | E5: =Translate!C132 -> LOAMY SAND | F5: ((silt + 1.5*clay >= 15) && (silt + 2*clay < 30))
D6: =IFERROR(IF(OR(AND('2 Soil Texture Calculator'!$E$13>=0.07, '2 Soil Texture Calculator'!$E$13<0.2,'2 Soil Texture Calculator'!$E$10>0.52,'2 Soil Texture Calculator'!$E$16+2*'2 Soil Texture Calculator'!$E$13>=0.3), AND('2 Soil Texture Calculator'!$E$13<0.07, '2 Soil Texture Calculator'!$E$16<0.5, '2 Soil Texture Calculator'!$E$16+2*'2 Soil Texture Calculator'!$E$13>=0.3)), TRUE,FALSE),"") -> FALSE | E6: =Translate!C133 -> SANDY LOAM | F6: ((clay >= 7 && clay < 20) && (sand > 52) && ((silt + 2*clay) >= 30) || (clay < 7 && silt < 50 && (silt+2*clay)>=30))
D7: =IFERROR(IF(AND('2 Soil Texture Calculator'!$E$13>=0.07, '2 Soil Texture Calculator'!$E$13<0.27, '2 Soil Texture Calculator'!$E$16>=0.28, '2 Soil Texture Calculator'!$E$16<0.5, '2 Soil Texture Calculator'!$E$10<=0.52), TRUE,FALSE),"") -> FALSE | E7: =Translate!C134 -> LOAM | F7: ((clay >= 7 && clay < 27) && (silt >= 28 && silt < 50) && (sand <= 52))
D8: =IFERROR(IF(OR(AND('2 Soil Texture Calculator'!$E$16>=0.5, '2 Soil Texture Calculator'!$E$13>=0.12,'2 Soil Texture Calculator'!$E$13<0.27), AND('2 Soil Texture Calculator'!$E$16>=0.5,'2 Soil Texture Calculator'!$E$16<0.8,'2 Soil Texture Calculator'!$E$13<0.12)), TRUE,FALSE),"") -> FALSE | E8: =Translate!C135 -> SILT LOAM | F8: ((silt >= 50 && (clay >= 12 && clay < 27)) || ((silt >= 50 && silt < 80) && clay < 12))
D9: =IFERROR(IF(AND('2 Soil Texture Calculator'!$E$16>=0.8, '2 Soil Texture Calculator'!$E$13<0.12), TRUE,FALSE),"") -> FALSE | E9: =Translate!C136 -> SILT | F9: (silt >= 80 && clay < 12)
D10: =IFERROR(IF(AND('2 Soil Texture Calculator'!$E$13>=0.2, '2 Soil Texture Calculator'!$E$13<0.35, '2 Soil Texture Calculator'!$E$16<0.28, '2 Soil Texture Calculator'!$E$10>0.45), TRUE,FALSE),"") -> FALSE | E10: =Translate!C137 -> SANDY CLAY LOAM | F10: ((clay >= 20 && clay < 35) && (silt < 28) && (sand > 45))
D11: =IFERROR(IF(AND('2 Soil Texture Calculator'!$E$13>=0.27, '2 Soil Texture Calculator'!$E$13<0.4, '2 Soil Texture Calculator'!$E$10>0.2, '2 Soil Texture Calculator'!$E$10<=0.45), TRUE,FALSE),"") -> FALSE | E11: =Translate!C138 -> CLAY LOAM | F11: ((clay >= 27 && clay < 40) && (sand > 20 && sand <= 45))
D12: =IFERROR(IF(AND('2 Soil Texture Calculator'!$E$13>=0.27, '2 Soil Texture Calculator'!$E$13<0.4, '2 Soil Texture Calculator'!$E$10<=0.2), TRUE,FALSE),"") -> TRUE | E12: =Translate!C139 -> SILTY CLAY LOAM | F12: ((clay >= 27 && clay < 40) && (sand <= 20))
D13: =IFERROR(IF(AND('2 Soil Texture Calculator'!$E$13>=0.35, '2 Soil Texture Calculator'!$E$10>0.45), TRUE,FALSE),"") -> FALSE | E13: =Translate!C140 -> SANDY CLAY | F13: (clay >= 35 && sand > 45)
D14: =IFERROR(IF(AND('2 Soil Texture Calculator'!$E$13>=0.4, '2 Soil Texture Calculator'!$E$16>=0.4), TRUE,FALSE),"") -> FALSE | E14: =Translate!C141 -> SILTY CLAY | F14: (clay >= 40 && silt >= 40)
D15: =IFERROR(IF(AND('2 Soil Texture Calculator'!$E$13>=0.4, '2 Soil Texture Calculator'!$E$10<=0.45,'2 Soil Texture Calculator'!$E$16<0.4), TRUE,FALSE),"") -> FALSE | E15: =Translate!C142 -> CLAY | F15: (clay >= 40 && sand <= 45 && silt < 40)
D17: Soil texture chart Identifier
D18: =(1.095-('2 Soil Texture Calculator'!$E$10*0.0104*100))-((0.52)*(0.0099*'2 Soil Texture Calculator'!$E$13*100)) -> 0.78456 | E18: =0.145+(0.0099*'2 Soil Texture Calculator'!$E$13*100) -> 0.442
B21: Soil water content
B22: Texture | C22: FC (v%) | D22: PWP (v%) | E22: Max infiltration (mm/h)
B23: =Translate!C143 -> Sand | C23: 10 | D23: 5 | E23: 40
B24: =Translate!C144 -> Loamy sand | C24: 12 | D24: 5 | E24: 30
B25: =Translate!C145 -> Sandy loam | C25: 18 | D25: 8 | E25: 30
B26: =Translate!C146 -> Sandy clay loam | C26: 27 | D26: 17 | E26: 30
B27: =Translate!C147 -> Loam | C27: 28 | D27: 14 | E27: 30
B28: =Translate!C148 -> Sandy clay | C28: 36 | D28: 25 | E28: 30
B29: =Translate!C149 -> Silt loam | C29: 31 | D29: 11 | E29: 20
B30: =Translate!C150 -> Silt | C30: 30 | D30: 6 | E30: 20
B31: =Translate!C151 -> Clay loam | C31: 36 | D31: 22 | E31: 20
B32: =Translate!C152 -> Silty clay loam | C32: 38 | D32: 22 | E32: 20
B33: =Translate!C153 -> Silty clay | C33: 41 | D33: 27 | E33: 10
B34: =Translate!C154 -> Clay | C34: 42 | D34: 30 | E34: 10
B37: Initial water content
B38: 0
B39: 0.25
B40: 0.5
B41: 0.75
B42: 1

Sheet Data Validation Sheet (hidden)
A1: Area Conversion | B1: =Translate!$C$163 -> ha | C1: 1 | I1: Crop Data Validation | K1: Calendar | L1: =COUNTIF($M$2:$M$211,"?*") -> 210
B2: =Translate!$C$164 -> acre | C2: 2.47105 | J2: =IF(ISNUMBER(SEARCH('3 Irrigation Schedule'!$B$19,K2)),MAX($J$1:J1)+1,0) -> 1 | K2: ='Crop Information'!B7 -> none | L2: =OFFSET($M$2,,,COUNTIF($M$2:$M$211,"?*")) -> none | M2: =IFERROR(VLOOKUP(ROWS($M$2:M2),$J$2:$K$763,2,FALSE),"") -> none
B3: =Translate!$C$165 -> Sq. km | C3: 0.01 | J3: =IF(ISNUMBER(SEARCH('3 Irrigation Schedule'!$B$19,K3)),MAX($J$1:J2)+1,0) -> 2 | K3: ='Crop Information'!B8 -> Alfalfa (1st cutting cycle - Jan/Apr - USA) | M3: =IFERROR(VLOOKUP(ROWS($M$2:M3),$J$2:$K$763,2,FALSE),"") -> Alfalfa (1st cutting cycle - Jan/Apr - USA)
B4: =Translate!$C$166 -> Sq. m | C4: 10000 | J4: =IF(ISNUMBER(SEARCH('3 Irrigation Schedule'!$B$19,K4)),MAX($J$1:J3)+1,0) -> 3 | K4: ='Crop Information'!B9 -> Alfalfa (other cutting cycle - Mar/Jun - USA) | M4: =IFERROR(VLOOKUP(ROWS($M$2:M4),$J$2:$K$763,2,FALSE),"") -> Alfalfa (other cutting cycle - Mar/Jun - USA)
B5: =Translate!$C$167 -> Sq. yard | C5: 11959.9 | J5: =IF(ISNUMBER(SEARCH('3 Irrigation Schedule'!$B$19,K5)),MAX($J$1:J4)+1,0) -> 4 | K5: ='Crop Information'!B10 -> Alfalfa (seeds - Mar/Jun - USA) | M5: =IFERROR(VLOOKUP(ROWS($M$2:M5),$J$2:$K$763,2,FALSE),"") -> Alfalfa (seeds - Mar/Jun - USA)
B6: =Translate!$C$168 -> Sq. ft | C6: 107639 | J6: =IF(ISNUMBER(SEARCH('3 Irrigation Schedule'!$B$19,K6)),MAX($J$1:J5)+1,0) -> 5 | K6: ='Crop Information'!B11 -> Almond (no ground cover - Apr - USA) | M6: =IFERROR(VLOOKUP(ROWS($M$2:M6),$J$2:$K$763,2,FALSE),"") -> Almond (no ground cover - Apr - USA)
J7: =IF(ISNUMBER(SEARCH('3 Irrigation Schedule'!$B$19,K7)),MAX($J$1:J6)+1,0) -> 6 | K7: ='Crop Information'!B12 -> Artichoke (1st year - Apr - California) | M7: =IFERROR(VLOOKUP(ROWS($M$2:M7),$J$2:$K$763,2,FALSE),"") -> Artichoke (1st year - Apr - California)
J8: =IF(ISNUMBER(SEARCH('3 Irrigation Schedule'!$B$19,K8)),MAX($J$1:J7)+1,0) -> 7 | K8: ='Crop Information'!B13 -> Artichoke (2nd year - May - cut in May) | M8: =IFERROR(VLOOKUP(ROWS($M$2:M8),$J$2:$K$763,2,FALSE),"") -> Artichoke (2nd year - May - cut in May)
J9: =IF(ISNUMBER(SEARCH('3 Irrigation Schedule'!$B$19,K9)),MAX($J$1:J8)+1,0) -> 8 | K9: ='Crop Information'!B14 -> Asparagus (Feb - warm winter) | M9: =IFERROR(VLOOKUP(ROWS($M$2:M9),$J$2:$K$763,2,FALSE),"") -> Asparagus (Feb - warm winter)
J10: =IF(ISNUMBER(SEARCH('3 Irrigation Schedule'!$B$19,K10)),MAX($J$1:J9)+1,0) -> 9 | K10: ='Crop Information'!B15 -> Asparagus (Feb - Mediterranean) | M10: =IFERROR(VLOOKUP(ROWS($M$2:M10),$J$2:$K$763,2,FALSE),"") -> Asparagus (Feb - Mediterranean)
A11: Validation | B11: ='3 Irrigation Schedule'!$B$17 -> Crop to be irrigated | C11: ='3 Irrigation Schedule'!$E$17 -> Area | D11: ='3 Irrigation Schedule'!$G$17 -> Planting Date | E11: ='3 Irrigation Schedule'!$I$17 -> Irrigation method | F11: ='3 Irrigation Schedule'!$B$25 -> Soil: | G11: ='3 Irrigation Schedule'!$N$17 -> Maximum possible irrigation application | H11: Available Crop-Soil | J11: =IF(ISNUMBER(SEARCH('3 Irrigation Schedule'!$B$19,K11)),MAX($J$1:J10)+1,0) -> 10 | K11: ='Crop Information'!B16 -> Avocado (Jan - Florida, USA) | M11: =IFERROR(VLOOKUP(ROWS($M$2:M11),$J$2:$K$763,2,FALSE),"") -> Avocado (Jan - Florida, USA)
B12: =AND('3 Irrigation Schedule'!$B$19<>"none",'3 Irrigation Schedule'!$B$19<>"") -> FALSE | C12: =AND('3 Irrigation Schedule'!$E$19<>0,'3 Irrigation Schedule'!$E$19<>"") -> TRUE | D12: =IFERROR(AND('3 Irrigation Schedule'!$G$19<>0,'3 Irrigation Schedule'!$G$19<>""),FALSE) -> TRUE | E12: ='3 Irrigation Schedule'!$I$19<>"" -> FALSE | F12: ='3 Irrigation Schedule'!$C$25<>"" -> FALSE | G12: ='3 Irrigation Schedule'!$P$19<>"" -> TRUE | H12: =AND(B12,C12,D12,E12,F12,G12) -> FALSE | J12: =IF(ISNUMBER(SEARCH('3 Irrigation Schedule'!$B$19,K12)),MAX($J$1:J11)+1,0) -> 11 | K12: ='Crop Information'!B17 -> Banana (1st year - Mar - Mediterranean) | M12: =IFERROR(VLOOKUP(ROWS($M$2:M12),$J$2:$K$763,2,FALSE),"") -> Banana (1st year - Mar - Mediterranean)
J13: =IF(ISNUMBER(SEARCH('3 Irrigation Schedule'!$B$19,K13)),MAX($J$1:J12)+1,0) -> 12 | K13: ='Crop Information'!B18 -> Banana (1st year - Mar - subtropical/humid/light to moderate wind) | M13: =IFERROR(VLOOKUP(ROWS($M$2:M13),$J$2:$K$763,2,FALSE),"") -> Banana (1st year - Mar - subtropical/humid/light to moderate wind)
J14: =IF(ISNUMBER(SEARCH('3 Irrigation Schedule'!$B$19,K14)),MAX($J$1:J13)+1,0) -> 13 | K14: ='Crop Information'!B19 -> Banana (1st year - Mar - subtropical/tropical) | M14: =IFERROR(VLOOKUP(ROWS($M$2:M14),$J$2:$K$763,2,FALSE),"") -> Banana (1st year - Mar - subtropical/tropical)
J15: =IF(ISNUMBER(SEARCH('3 Irrigation Schedule'!$B$19,K15)),MAX($J$1:J14)+1,0) -> 14 | K15: ='Crop Information'!B20 -> Banana (2nd year - Mar - Mediterranean) | M15: =IFERROR(VLOOKUP(ROWS($M$2:M15),$J$2:$K$763,2,FALSE),"") -> Banana (2nd year - Mar - Mediterranean)
J16: =IF(ISNUMBER(SEARCH('3 Irrigation Schedule'!$B$19,K16)),MAX($J$1:J15)+1,0) -> 15 | K16: ='Crop Information'!B21 -> Banana (2nd year - Feb - subtropical/tropical) | M16: =IFERROR(VLOOKUP(ROWS($M$2:M16),$J$2:$K$763,2,FALSE),"") -> Banana (2nd year - Feb - subtropical/tropical)
J17: =IF(ISNUMBER(SEARCH('3 Irrigation Schedule'!$B$19,K17)),MAX($J$1:J16)+1,0) -> 16 | K17: ='Crop Information'!B22 -> Barley/Oats/Wheat (Nov - central India) | M17: =IFERROR(VLOOKUP(ROWS($M$2:M17),$J$2:$K$763,2,FALSE),"") -> Barley/Oats/Wheat (Nov - central India)
J18: =IF(ISNUMBER(SEARCH('3 Irrigation Schedule'!$B$19,K18)),MAX($J$1:J17)+1,0) -> 17 | K18: ='Crop Information'!B23 -> Barley/Oats/Wheat (Mar/Apr - 35/45 °L)) | M18: =IFERROR(VLOOKUP(ROWS($M$2:M18),$J$2:$K$763,2,FALSE),"") -> Barley/Oats/Wheat (Mar/Apr - 35/45 °L))
J19: =IF(ISNUMBER(SEARCH('3 Irrigation Schedule'!$B$19,K19)),MAX($J$1:J18)+1,0) -> 18 | K19: ='Crop Information'!B24 -> Barley/Oats/Wheat (Jul - East Africa) | M19: =IFERROR(VLOOKUP(ROWS($M$2:M19),$J$2:$K$763,2,FALSE),"") -> Barley/Oats/Wheat (Jul - East Africa)
J20: =IF(ISNUMBER(SEARCH('3 Irrigation Schedule'!$B$19,K20)),MAX($J$1:J19)+1,0) -> 19 | K20: ='Crop Information'!B25 -> Barley/Oats/Wheat (Nov) | M20: =IFERROR(VLOOKUP(ROWS($M$2:M20),$J$2:$K$763,2,FALSE),"") -> Barley/Oats/Wheat (Nov)
J21: =IF(ISNUMBER(SEARCH('3 Irrigation Schedule'!$B$19,K21)),MAX($J$1:J20)+1,0) -> 20 | K21: ='Crop Information'!B26 -> Barley/Oats/Wheat (Dec - California desert) | M21: =IFERROR(VLOOKUP(ROWS($M$2:M21),$J$2:$K$763,2,FALSE),"") -> Barley/Oats/Wheat (Dec - California desert)
J22: =IF(ISNUMBER(SEARCH('3 Irrigation Schedule'!$B$19,K22)),MAX($J$1:J21)+1,0) -> 21 | K22: ='Crop Information'!B27 -> Beans (dry - May/Jun - central climates) | M22: =IFERROR(VLOOKUP(ROWS($M$2:M22),$J$2:$K$763,2,FALSE),"") -> Beans (dry - May/Jun - central climates)
J23: =IF(ISNUMBER(SEARCH('3 Irrigation Schedule'!$B$19,K23)),MAX($J$1:J22)+1,0) -> 22 | K23: ='Crop Information'!B28 -> Beans (dry - Jun - Pakistan/California) | M23: =IFERROR(VLOOKUP(ROWS($M$2:M23),$J$2:$K$763,2,FALSE),"") -> Beans (dry - Jun - Pakistan/California)
J24: =IF(ISNUMBER(SEARCH('3 Irrigation Schedule'!$B$19,K24)),MAX($J$1:J23)+1,0) -> 23 | K24: ='Crop Information'!B29 -> Beans (dry - Jun - Idaho) | M24: =IFERROR(VLOOKUP(ROWS($M$2:M24),$J$2:$K$763,2,FALSE),"") -> Beans (dry - Jun - Idaho)
J25: =IF(ISNUMBER(SEARCH('3 Irrigation Schedule'!$B$19,K25)),MAX($J$1:J24)+1,0) -> 24 | K25: ='Crop Information'!B30 -> Beans (green - Feb/Mar - California/Mediterranean) | M25: =IFERROR(VLOOKUP(ROWS($M$2:M25),$J$2:$K$763,2,FALSE),"") -> Beans (green - Feb/Mar - California/Mediterranean)
J26: =IF(ISNUMBER(SEARCH('3 Irrigation Schedule'!$B$19,K26)),MAX($J$1:J25)+1,0) -> 25 | K26: ='Crop Information'!B31 -> Beans (green - Aug/Sep - California/Egypt/Lebanon) | M26: =IFERROR(VLOOKUP(ROWS($M$2:M26),$J$2:$K$763,2,FALSE),"") -> Beans (green - Aug/Sep - California/Egypt/Lebanon)
J27: =IF(ISNUMBER(SEARCH('3 Irrigation Schedule'!$B$19,K27)),MAX($J$1:J26)+1,0) -> 26 | K27: ='Crop Information'!B32 -> Beets (table - Apr/May - Mediterranean) | M27: =IFERROR(VLOOKUP(ROWS($M$2:M27),$J$2:$K$763,2,FALSE),"") -> Beets (table - Apr/May - Mediterranean)
J28: =IF(ISNUMBER(SEARCH('3 Irrigation Schedule'!$B$19,K28)),MAX($J$1:J27)+1,0) -> 27 | K28: ='Crop Information'!B33 -> Beets (table - Feb/Mar - Mediterranean/Arid) | M28: =IFERROR(VLOOKUP(ROWS($M$2:M28),$J$2:$K$763,2,FALSE),"") -> Beets (table - Feb/Mar - Mediterranean/Arid)
J29: =IF(ISNUMBER(SEARCH('3 Irrigation Schedule'!$B$19,K29)),MAX($J$1:J28)+1,0) -> 28 | K29: ='Crop Information'!B34 -> Broccoli (Sept - California desert) | M29: =IFERROR(VLOOKUP(ROWS($M$2:M29),$J$2:$K$763,2,FALSE),"") -> Broccoli (Sept - California desert)
J30: =IF(ISNUMBER(SEARCH('3 Irrigation Schedule'!$B$19,K30)),MAX($J$1:J29)+1,0) -> 29 | K30: ='Crop Information'!B35 -> Cabbage (Sept - California desert) | M30: =IFERROR(VLOOKUP(ROWS($M$2:M30),$J$2:$K$763,2,FALSE),"") -> Cabbage (Sept - California desert)
J31: =IF(ISNUMBER(SEARCH('3 Irrigation Schedule'!$B$19,K31)),MAX($J$1:J30)+1,0) -> 30 | K31: ='Crop Information'!B36 -> Cantaloupe (Jan - California ) | M31: =IFERROR(VLOOKUP(ROWS($M$2:M31),$J$2:$K$763,2,FALSE),"") -> Cantaloupe (Jan - California )
J32: =IF(ISNUMBER(SEARCH('3 Irrigation Schedule'!$B$19,K32)),MAX($J$1:J31)+1,0) -> 31 | K32: ='Crop Information'!B37 -> Cantaloupe (Aug - California ) | M32: =IFERROR(VLOOKUP(ROWS($M$2:M32),$J$2:$K$763,2,FALSE),"") -> Cantaloupe (Aug - California )
J33: =IF(ISNUMBER(SEARCH('3 Irrigation Schedule'!$B$19,K33)),MAX($J$1:J32)+1,0) -> 32 | K33: ='Crop Information'!B38 -> Carrots (Oct/Jan - Arid climate ) | M33: =IFERROR(VLOOKUP(ROWS($M$2:M33),$J$2:$K$763,2,FALSE),"") -> Carrots (Oct/Jan - Arid climate )
J34: =IF(ISNUMBER(SEARCH('3 Irrigation Schedule'!$B$19,K34)),MAX($J$1:J33)+1,0) -> 33 | K34: ='Crop Information'!B39 -> Carrots (Feb/Mar - Mediterranean ) | M34: =IFERROR(VLOOKUP(ROWS($M$2:M34),$J$2:$K$763,2,FALSE),"") -> Carrots (Feb/Mar - Mediterranean )
J35: =IF(ISNUMBER(SEARCH('3 Irrigation Schedule'!$B$19,K35)),MAX($J$1:J34)+1,0) -> 34 | K35: ='Crop Information'!B40 -> Carrots (Oct - California desert) | M35: =IFERROR(VLOOKUP(ROWS($M$2:M35),$J$2:$K$763,2,FALSE),"") -> Carrots (Oct - California desert)
J36: =IF(ISNUMBER(SEARCH('3 Irrigation Schedule'!$B$19,K36)),MAX($J$1:J35)+1,0) -> 35 | K36: ='Crop Information'!B41 -> Cassava ( 1st year - rainy season - Tropical regions) | M36: =IFERROR(VLOOKUP(ROWS($M$2:M36),$J$2:$K$763,2,FALSE),"") -> Cassava ( 1st year - rainy season - Tropical regions)
J37: =IF(ISNUMBER(SEARCH('3 Irrigation Schedule'!$B$19,K37)),MAX($J$1:J36)+1,0) -> 36 | K37: ='Crop Information'!B42 -> Cassava ( 2nd year - season - Tropical regions) | M37: =IFERROR(VLOOKUP(ROWS($M$2:M37),$J$2:$K$763,2,FALSE),"") -> Cassava ( 2nd year - season - Tropical regions)
J38: =IF(ISNUMBER(SEARCH('3 Irrigation Schedule'!$B$19,K38)),MAX($J$1:J37)+1,0) -> 37 | K38: ='Crop Information'!B43 -> Castor beans (Mar - semiarid climates ) | M38: =IFERROR(VLOOKUP(ROWS($M$2:M38),$J$2:$K$763,2,FALSE),"") -> Castor beans (Mar - semiarid climates )
J39: =IF(ISNUMBER(SEARCH('3 Irrigation Schedule'!$B$19,K39)),MAX($J$1:J38)+1,0) -> 38 | K39: ='Crop Information'!B44 -> Castor beans (Nov - Indonesia ) | M39: =IFERROR(VLOOKUP(ROWS($M$2:M39),$J$2:$K$763,2,FALSE),"") -> Castor beans (Nov - Indonesia )
J40: =IF(ISNUMBER(SEARCH('3 Irrigation Schedule'!$B$19,K40)),MAX($J$1:J39)+1,0) -> 39 | K40: ='Crop Information'!B45 -> Cauliflower (Sept - California desert) | M40: =IFERROR(VLOOKUP(ROWS($M$2:M40),$J$2:$K$763,2,FALSE),"") -> Cauliflower (Sept - California desert)
J41: =IF(ISNUMBER(SEARCH('3 Irrigation Schedule'!$B$19,K41)),MAX($J$1:J40)+1,0) -> 40 | K41: ='Crop Information'!B46 -> Celery (Oct- semiarid) | M41: =IFERROR(VLOOKUP(ROWS($M$2:M41),$J$2:$K$763,2,FALSE),"") -> Celery (Oct- semiarid)
J42: =IF(ISNUMBER(SEARCH('3 Irrigation Schedule'!$B$19,K42)),MAX($J$1:J41)+1,0) -> 41 | K42: ='Crop Information'!B47 -> Celery (Apr - Mediterranean) | M42: =IFERROR(VLOOKUP(ROWS($M$2:M42),$J$2:$K$763,2,FALSE),"") -> Celery (Apr - Mediterranean)
J43: =IF(ISNUMBER(SEARCH('3 Irrigation Schedule'!$B$19,K43)),MAX($J$1:J42)+1,0) -> 42 | K43: ='Crop Information'!B48 -> Celery (Jan - semiarid) | M43: =IFERROR(VLOOKUP(ROWS($M$2:M43),$J$2:$K$763,2,FALSE),"") -> Celery (Jan - semiarid)
J44: =IF(ISNUMBER(SEARCH('3 Irrigation Schedule'!$B$19,K44)),MAX($J$1:J43)+1,0) -> 43 | K44: ='Crop Information'!B49 -> Chilli pepper (Brazil/Tropical) | M44: =IFERROR(VLOOKUP(ROWS($M$2:M44),$J$2:$K$763,2,FALSE),"") -> Chilli pepper (Brazil/Tropical)
J45: =IF(ISNUMBER(SEARCH('3 Irrigation Schedule'!$B$19,K45)),MAX($J$1:J44)+1,0) -> 44 | K45: ='Crop Information'!B50 -> Citrus (no ground cover/70% canopy - Jan - Mediterranean) | M45: =IFERROR(VLOOKUP(ROWS($M$2:M45),$J$2:$K$763,2,FALSE),"") -> Citrus (no ground cover/70% canopy - Jan - Mediterranean)
J46: =IF(ISNUMBER(SEARCH('3 Irrigation Schedule'!$B$19,K46)),MAX($J$1:J45)+1,0) -> 45 | K46: ='Crop Information'!B51 -> Citrus (no ground cover/50% canopy - Jan - Mediterranean) | M46: =IFERROR(VLOOKUP(ROWS($M$2:M46),$J$2:$K$763,2,FALSE),"") -> Citrus (no ground cover/50% canopy - Jan - Mediterranean)
J47: =IF(ISNUMBER(SEARCH('3 Irrigation Schedule'!$B$19,K47)),MAX($J$1:J46)+1,0) -> 46 | K47: ='Crop Information'!B52 -> Citrus (no ground cover/20% canopy - Jan - Mediterranean) | M47: =IFERROR(VLOOKUP(ROWS($M$2:M47),$J$2:$K$763,2,FALSE),"") -> Citrus (no ground cover/20% canopy - Jan - Mediterranean)
J48: =IF(ISNUMBER(SEARCH('3 Irrigation Schedule'!$B$19,K48)),MAX($J$1:J47)+1,0) -> 47 | K48: ='Crop Information'!B53 -> Citrus (with active ground cover or weeds/70% canopy - Jan - Mediterranean) | M48: =IFERROR(VLOOKUP(ROWS($M$2:M48),$J$2:$K$763,2,FALSE),"") -> Citrus (with active ground cover or weeds/70% canopy - Jan - Mediterranean)
J49: =IF(ISNUMBER(SEARCH('3 Irrigation Schedule'!$B$19,K49)),MAX($J$1:J48)+1,0) -> 48 | K49: ='Crop Information'!B54 -> Citrus (with active ground cover or weeds/50% canopy - Jan - Mediterranean) | M49: =IFERROR(VLOOKUP(ROWS($M$2:M49),$J$2:$K$763,2,FALSE),"") -> Citrus (with active ground cover or weeds/50% canopy - Jan - Mediterranean)
J50: =IF(ISNUMBER(SEARCH('3 Irrigation Schedule'!$B$19,K50)),MAX($J$1:J49)+1,0) -> 49 | K50: ='Crop Information'!B55 -> Citrus (with active ground cover or weeds/20% canopy - Jan - Mediterranean) | M50: =IFERROR(VLOOKUP(ROWS($M$2:M50),$J$2:$K$763,2,FALSE),"") -> Citrus (with active ground cover or weeds/20% canopy - Jan - Mediterranean)
J51: =IF(ISNUMBER(SEARCH('3 Irrigation Schedule'!$B$19,K51)),MAX($J$1:J50)+1,0) -> 50 | K51: ='Crop Information'!B56 -> Cotton (Mar/May - Egypt/Pakistan/California) | M51: =IFERROR(VLOOKUP(ROWS($M$2:M51),$J$2:$K$763,2,FALSE),"") -> Cotton (Mar/May - Egypt/Pakistan/California)
J52: =IF(ISNUMBER(SEARCH('3 Irrigation Schedule'!$B$19,K52)),MAX($J$1:J51)+1,0) -> 51 | K52: ='Crop Information'!B57 -> Cotton (Mar - California desert) | M52: =IFERROR(VLOOKUP(ROWS($M$2:M52),$J$2:$K$763,2,FALSE),"") -> Cotton (Mar - California desert)
J53: =IF(ISNUMBER(SEARCH('3 Irrigation Schedule'!$B$19,K53)),MAX($J$1:J52)+1,0) -> 52 | K53: ='Crop Information'!B58 -> Cotton (Sept - Yemen ) | M53: =IFERROR(VLOOKUP(ROWS($M$2:M53),$J$2:$K$763,2,FALSE),"") -> Cotton (Sept - Yemen )
J54: =IF(ISNUMBER(SEARCH('3 Irrigation Schedule'!$B$19,K54)),MAX($J$1:J53)+1,0) -> 53 | K54: ='Crop Information'!B59 -> Cotton (Apr - Texas ) | M54: =IFERROR(VLOOKUP(ROWS($M$2:M54),$J$2:$K$763,2,FALSE),"") -> Cotton (Apr - Texas )
J55: =IF(ISNUMBER(SEARCH('3 Irrigation Schedule'!$B$19,K55)),MAX($J$1:J54)+1,0) -> 54 | K55: ='Crop Information'!B60 -> Cucumber (Jun/Aug - arid region ) | M55: =IFERROR(VLOOKUP(ROWS($M$2:M55),$J$2:$K$763,2,FALSE),"") -> Cucumber (Jun/Aug - arid region )
J56: =IF(ISNUMBER(SEARCH('3 Irrigation Schedule'!$B$19,K56)),MAX($J$1:J55)+1,0) -> 55 | K56: ='Crop Information'!B61 -> Cucumber (Nov/Feb - arid region ) | M56: =IFERROR(VLOOKUP(ROWS($M$2:M56),$J$2:$K$763,2,FALSE),"") -> Cucumber (Nov/Feb - arid region )
J57: =IF(ISNUMBER(SEARCH('3 Irrigation Schedule'!$B$19,K57)),MAX($J$1:J56)+1,0) -> 56 | K57: ='Crop Information'!B62 -> Deciduous Orchard (no ground cover/killing frost - Mar - high latitudes) | M57: =IFERROR(VLOOKUP(ROWS($M$2:M57),$J$2:$K$763,2,FALSE),"") -> Deciduous Orchard (no ground cover/killing frost - Mar - high latitudes)
J58: =IF(ISNUMBER(SEARCH('3 Irrigation Schedule'!$B$19,K58)),MAX($J$1:J57)+1,0) -> 57 | K58: ='Crop Information'!B63 -> Deciduous Orchard (no ground cover/no frosts - Mar - high latitudes) | M58: =IFERROR(VLOOKUP(ROWS($M$2:M58),$J$2:$K$763,2,FALSE),"") -> Deciduous Orchard (no ground cover/no frosts - Mar - high latitudes)
J59: =IF(ISNUMBER(SEARCH('3 Irrigation Schedule'!$B$19,K59)),MAX($J$1:J58)+1,0) -> 58 | K59: ='Crop Information'!B64 -> Deciduous Orchard (active ground cover/killing frost - Mar - high latitudes) | M59: =IFERROR(VLOOKUP(ROWS($M$2:M59),$J$2:$K$763,2,FALSE),"") -> Deciduous Orchard (active ground cover/killing frost - Mar - high latitudes)
J60: =IF(ISNUMBER(SEARCH('3 Irrigation Schedule'!$B$19,K60)),MAX($J$1:J59)+1,0) -> 59 | K60: ='Crop Information'!B65 -> Deciduous Orchard (active ground cover/no frosts - Mar - high latitudes) | M60: =IFERROR(VLOOKUP(ROWS($M$2:M60),$J$2:$K$763,2,FALSE),"") -> Deciduous Orchard (active ground cover/no frosts - Mar - high latitudes)
J61: =IF(ISNUMBER(SEARCH('3 Irrigation Schedule'!$B$19,K61)),MAX($J$1:J60)+1,0) -> 60 | K61: ='Crop Information'!B66 -> Deciduous Orchard (no ground cover/killing frost - Mar - low latitudes) | M61: =IFERROR(VLOOKUP(ROWS($M$2:M61),$J$2:$K$763,2,FALSE),"") -> Deciduous Orchard (no ground cover/killing frost - Mar - low latitudes)
J62: =IF(ISNUMBER(SEARCH('3 Irrigation Schedule'!$B$19,K62)),MAX($J$1:J61)+1,0) -> 61 | K62: ='Crop Information'!B67 -> Deciduous Orchard (no ground cover/no frosts - Mar - low latitudes) | M62: =IFERROR(VLOOKUP(ROWS($M$2:M62),$J$2:$K$763,2,FALSE),"") -> Deciduous Orchard (no ground cover/no frosts - Mar - low latitudes)
J63: =IF(ISNUMBER(SEARCH('3 Irrigation Schedule'!$B$19,K63)),MAX($J$1:J62)+1,0) -> 62 | K63: ='Crop Information'!B68 -> Deciduous Orchard (active ground cover/killing frost - Mar - low latitudes) | M63: =IFERROR(VLOOKUP(ROWS($M$2:M63),$J$2:$K$763,2,FALSE),"") -> Deciduous Orchard (active ground cover/killing frost - Mar - low latitudes)
J64: =IF(ISNUMBER(SEARCH('3 Irrigation Schedule'!$B$19,K64)),MAX($J$1:J63)+1,0) -> 63 | K64: ='Crop Information'!B69 -> Deciduous Orchard (active ground cover/no frosts - Mar - low latitudes) | M64: =IFERROR(VLOOKUP(ROWS($M$2:M64),$J$2:$K$763,2,FALSE),"") -> Deciduous Orchard (active ground cover/no frosts - Mar - low latitudes)
J65: =IF(ISNUMBER(SEARCH('3 Irrigation Schedule'!$B$19,K65)),MAX($J$1:J64)+1,0) -> 64 | K65: ='Crop Information'!B70 -> Deciduous Orchard (no ground cover/killing frost - Mar - California) | M65: =IFERROR(VLOOKUP(ROWS($M$2:M65),$J$2:$K$763,2,FALSE),"") -> Deciduous Orchard (no ground cover/killing frost - Mar - California)
J66: =IF(ISNUMBER(SEARCH('3 Irrigation Schedule'!$B$19,K66)),MAX($J$1:J65)+1,0) -> 65 | K66: ='Crop Information'!B71 -> Deciduous Orchard (no ground cover/no frosts - Mar - California) | M66: =IFERROR(VLOOKUP(ROWS($M$2:M66),$J$2:$K$763,2,FALSE),"") -> Deciduous Orchard (no ground cover/no frosts - Mar - California)
J67: =IF(ISNUMBER(SEARCH('3 Irrigation Schedule'!$B$19,K67)),MAX($J$1:J66)+1,0) -> 66 | K67: ='Crop Information'!B72 -> Deciduous Orchard (active ground cover/killing frost - California) | M67: =IFERROR(VLOOKUP(ROWS($M$2:M67),$J$2:$K$763,2,FALSE),"") -> Deciduous Orchard (active ground cover/killing frost - California)
J68: =IF(ISNUMBER(SEARCH('3 Irrigation Schedule'!$B$19,K68)),MAX($J$1:J67)+1,0) -> 67 | K68: ='Crop Information'!B73 -> Deciduous Orchard (active ground cover/no frosts - Mar - California) | M68: =IFERROR(VLOOKUP(ROWS($M$2:M68),$J$2:$K$763,2,FALSE),"") -> Deciduous Orchard (active ground cover/no frosts - Mar - California)
J69: =IF(ISNUMBER(SEARCH('3 Irrigation Schedule'!$B$19,K69)),MAX($J$1:J68)+1,0) -> 68 | K69: ='Crop Information'!B74 -> Eggplant (Oct - arid region) | M69: =IFERROR(VLOOKUP(ROWS($M$2:M69),$J$2:$K$763,2,FALSE),"") -> Eggplant (Oct - arid region)
J70: =IF(ISNUMBER(SEARCH('3 Irrigation Schedule'!$B$19,K70)),MAX($J$1:J69)+1,0) -> 69 | K70: ='Crop Information'!B75 -> Eggplant (May/Jun - Mediterranean) | M70: =IFERROR(VLOOKUP(ROWS($M$2:M70),$J$2:$K$763,2,FALSE),"") -> Eggplant (May/Jun - Mediterranean)
J71: =IF(ISNUMBER(SEARCH('3 Irrigation Schedule'!$B$19,K71)),MAX($J$1:J70)+1,0) -> 70 | K71: ='Crop Information'!B76 -> Faba bean, broad bean (May - Europe) | M71: =IFERROR(VLOOKUP(ROWS($M$2:M71),$J$2:$K$763,2,FALSE),"") -> Faba bean, broad bean (May - Europe)
J72: =IF(ISNUMBER(SEARCH('3 Irrigation Schedule'!$B$19,K72)),MAX($J$1:J71)+1,0) -> 71 | K72: ='Crop Information'!B77 -> Faba bean, broad bean (Mar/Apr - Mediterranean) | M72: =IFERROR(VLOOKUP(ROWS($M$2:M72),$J$2:$K$763,2,FALSE),"") -> Faba bean, broad bean (Mar/Apr - Mediterranean)
J73: =IF(ISNUMBER(SEARCH('3 Irrigation Schedule'!$B$19,K73)),MAX($J$1:J72)+1,0) -> 72 | K73: ='Crop Information'!B78 -> Faba bean, broad bean (dry - Nov - Europe) | M73: =IFERROR(VLOOKUP(ROWS($M$2:M73),$J$2:$K$763,2,FALSE),"") -> Faba bean, broad bean (dry - Nov - Europe)
J74: =IF(ISNUMBER(SEARCH('3 Irrigation Schedule'!$B$19,K74)),MAX($J$1:J73)+1,0) -> 73 | K74: ='Crop Information'!B79 -> Faba bean, broad bean (green - Nov - Europe) | M74: =IFERROR(VLOOKUP(ROWS($M$2:M74),$J$2:$K$763,2,FALSE),"") -> Faba bean, broad bean (green - Nov - Europe)
J75: =IF(ISNUMBER(SEARCH('3 Irrigation Schedule'!$B$19,K75)),MAX($J$1:J74)+1,0) -> 74 | K75: ='Crop Information'!B80 -> Flax (Apr - Europe) | M75: =IFERROR(VLOOKUP(ROWS($M$2:M75),$J$2:$K$763,2,FALSE),"") -> Flax (Apr - Europe)
J76: =IF(ISNUMBER(SEARCH('3 Irrigation Schedule'!$B$19,K76)),MAX($J$1:J75)+1,0) -> 75 | K76: ='Crop Information'!B81 -> Flax (Oct - Arizona) | M76: =IFERROR(VLOOKUP(ROWS($M$2:M76),$J$2:$K$763,2,FALSE),"") -> Flax (Oct - Arizona)
J77: =IF(ISNUMBER(SEARCH('3 Irrigation Schedule'!$B$19,K77)),MAX($J$1:J76)+1,0) -> 76 | K77: ='Crop Information'!B82 -> Grapes (Apr - low latitudes) | M77: =IFERROR(VLOOKUP(ROWS($M$2:M77),$J$2:$K$763,2,FALSE),"") -> Grapes (Apr - low latitudes)
J78: =IF(ISNUMBER(SEARCH('3 Irrigation Schedule'!$B$19,K78)),MAX($J$1:J77)+1,0) -> 77 | K78: ='Crop Information'!B83 -> Grapes (Mar - California) | M78: =IFERROR(VLOOKUP(ROWS($M$2:M78),$J$2:$K$763,2,FALSE),"") -> Grapes (Mar - California)
J79: =IF(ISNUMBER(SEARCH('3 Irrigation Schedule'!$B$19,K79)),MAX($J$1:J78)+1,0) -> 78 | K79: ='Crop Information'!B84 -> Grapes (May - high latitudes ) | M79: =IFERROR(VLOOKUP(ROWS($M$2:M79),$J$2:$K$763,2,FALSE),"") -> Grapes (May - high latitudes )
J80: =IF(ISNUMBER(SEARCH('3 Irrigation Schedule'!$B$19,K80)),MAX($J$1:J79)+1,0) -> 79 | K80: ='Crop Information'!B85 -> Grapes (wine - Apr - mid latitudes) | M80: =IFERROR(VLOOKUP(ROWS($M$2:M80),$J$2:$K$763,2,FALSE),"") -> Grapes (wine - Apr - mid latitudes)
J81: =IF(ISNUMBER(SEARCH('3 Irrigation Schedule'!$B$19,K81)),MAX($J$1:J80)+1,0) -> 80 | K81: ='Crop Information'!B86 -> Green gram, cowpeas (harvest fresh - Mar -Mediterranean) | M81: =IFERROR(VLOOKUP(ROWS($M$2:M81),$J$2:$K$763,2,FALSE),"") -> Green gram, cowpeas (harvest fresh - Mar -Mediterranean)
J82: =IF(ISNUMBER(SEARCH('3 Irrigation Schedule'!$B$19,K82)),MAX($J$1:J81)+1,0) -> 81 | K82: ='Crop Information'!B87 -> Green gram, cowpeas (harvest dry - Mar -Mediterranean) | M82: =IFERROR(VLOOKUP(ROWS($M$2:M82),$J$2:$K$763,2,FALSE),"") -> Green gram, cowpeas (harvest dry - Mar -Mediterranean)
J83: =IF(ISNUMBER(SEARCH('3 Irrigation Schedule'!$B$19,K83)),MAX($J$1:J82)+1,0) -> 82 | K83: ='Crop Information'!B88 -> Groundnut (Dry - West Africa ) | M83: =IFERROR(VLOOKUP(ROWS($M$2:M83),$J$2:$K$763,2,FALSE),"") -> Groundnut (Dry - West Africa )
J84: =IF(ISNUMBER(SEARCH('3 Irrigation Schedule'!$B$19,K84)),MAX($J$1:J83)+1,0) -> 83 | K84: ='Crop Information'!B89 -> Groundnut (season - high latitudes) | M84: =IFERROR(VLOOKUP(ROWS($M$2:M84),$J$2:$K$763,2,FALSE),"") -> Groundnut (season - high latitudes)
J85: =IF(ISNUMBER(SEARCH('3 Irrigation Schedule'!$B$19,K85)),MAX($J$1:J84)+1,0) -> 84 | K85: ='Crop Information'!B90 -> Groundnut (May/Jun - Mediterranean) | M85: =IFERROR(VLOOKUP(ROWS($M$2:M85),$J$2:$K$763,2,FALSE),"") -> Groundnut (May/Jun - Mediterranean)
J86: =IF(ISNUMBER(SEARCH('3 Irrigation Schedule'!$B$19,K86)),MAX($J$1:J85)+1,0) -> 85 | K86: ='Crop Information'!B91 -> Hops (Apr - Idaho) | M86: =IFERROR(VLOOKUP(ROWS($M$2:M86),$J$2:$K$763,2,FALSE),"") -> Hops (Apr - Idaho)
J87: =IF(ISNUMBER(SEARCH('3 Irrigation Schedule'!$B$19,K87)),MAX($J$1:J86)+1,0) -> 86 | K87: ='Crop Information'!B92 -> Kale, Rape | M87: =IFERROR(VLOOKUP(ROWS($M$2:M87),$J$2:$K$763,2,FALSE),"") -> Kale, Rape
J88: =IF(ISNUMBER(SEARCH('3 Irrigation Schedule'!$B$19,K88)),MAX($J$1:J87)+1,0) -> 87 | K88: ='Crop Information'!B93 -> Lentil (Apr - Europe) | M88: =IFERROR(VLOOKUP(ROWS($M$2:M88),$J$2:$K$763,2,FALSE),"") -> Lentil (Apr - Europe)
J89: =IF(ISNUMBER(SEARCH('3 Irrigation Schedule'!$B$19,K89)),MAX($J$1:J88)+1,0) -> 88 | K89: ='Crop Information'!B94 -> Lentil (Oct/Nov -arid region) | M89: =IFERROR(VLOOKUP(ROWS($M$2:M89),$J$2:$K$763,2,FALSE),"") -> Lentil (Oct/Nov -arid region)
J90: =IF(ISNUMBER(SEARCH('3 Irrigation Schedule'!$B$19,K90)),MAX($J$1:J89)+1,0) -> 89 | K90: ='Crop Information'!B95 -> Lettuce (Apr - Mediterranean) | M90: =IFERROR(VLOOKUP(ROWS($M$2:M90),$J$2:$K$763,2,FALSE),"") -> Lettuce (Apr - Mediterranean)
J91: =IF(ISNUMBER(SEARCH('3 Irrigation Schedule'!$B$19,K91)),MAX($J$1:J90)+1,0) -> 90 | K91: ='Crop Information'!B96 -> Lettuce (Nov/Jan - Mediterranean) | M91: =IFERROR(VLOOKUP(ROWS($M$2:M91),$J$2:$K$763,2,FALSE),"") -> Lettuce (Nov/Jan - Mediterranean)
J92: =IF(ISNUMBER(SEARCH('3 Irrigation Schedule'!$B$19,K92)),MAX($J$1:J91)+1,0) -> 91 | K92: ='Crop Information'!B97 -> Lettuce (Oct/Nov - arid region) | M92: =IFERROR(VLOOKUP(ROWS($M$2:M92),$J$2:$K$763,2,FALSE),"") -> Lettuce (Oct/Nov - arid region)
J93: =IF(ISNUMBER(SEARCH('3 Irrigation Schedule'!$B$19,K93)),MAX($J$1:J92)+1,0) -> 92 | K93: ='Crop Information'!B98 -> Lettuce (Feb - Mediterranean) | M93: =IFERROR(VLOOKUP(ROWS($M$2:M93),$J$2:$K$763,2,FALSE),"") -> Lettuce (Feb - Mediterranean)
J94: =IF(ISNUMBER(SEARCH('3 Irrigation Schedule'!$B$19,K94)),MAX($J$1:J93)+1,0) -> 93 | K94: ='Crop Information'!B99 -> Maize (grain - Apr - East Africa (alt.)) | M94: =IFERROR(VLOOKUP(ROWS($M$2:M94),$J$2:$K$763,2,FALSE),"") -> Maize (grain - Apr - East Africa (alt.))
J95: =IF(ISNUMBER(SEARCH('3 Irrigation Schedule'!$B$19,K95)),MAX($J$1:J94)+1,0) -> 94 | K95: ='Crop Information'!B100 -> Maize (grain - Dec/Jan - arid climate) | M95: =IFERROR(VLOOKUP(ROWS($M$2:M95),$J$2:$K$763,2,FALSE),"") -> Maize (grain - Dec/Jan - arid climate)
J96: =IF(ISNUMBER(SEARCH('3 Irrigation Schedule'!$B$19,K96)),MAX($J$1:J95)+1,0) -> 95 | K96: ='Crop Information'!B101 -> Maize (grain - Jun - Nigeria (humid)) | M96: =IFERROR(VLOOKUP(ROWS($M$2:M96),$J$2:$K$763,2,FALSE),"") -> Maize (grain - Jun - Nigeria (humid))
J97: =IF(ISNUMBER(SEARCH('3 Irrigation Schedule'!$B$19,K97)),MAX($J$1:J96)+1,0) -> 96 | K97: ='Crop Information'!B102 -> Maize (grain - Oct - India (dry, cool)) | M97: =IFERROR(VLOOKUP(ROWS($M$2:M97),$J$2:$K$763,2,FALSE),"") -> Maize (grain - Oct - India (dry, cool))
J98: =IF(ISNUMBER(SEARCH('3 Irrigation Schedule'!$B$19,K98)),MAX($J$1:J97)+1,0) -> 97 | K98: ='Crop Information'!B103 -> Maize (grain - Apr - Spain (spring, summer)/California) | M98: =IFERROR(VLOOKUP(ROWS($M$2:M98),$J$2:$K$763,2,FALSE),"") -> Maize (grain - Apr - Spain (spring, summer)/California)
J99: =IF(ISNUMBER(SEARCH('3 Irrigation Schedule'!$B$19,K99)),MAX($J$1:J98)+1,0) -> 98 | K99: ='Crop Information'!B104 -> Maize (grain - Apr - Idaho) | M99: =IFERROR(VLOOKUP(ROWS($M$2:M99),$J$2:$K$763,2,FALSE),"") -> Maize (grain - Apr - Idaho)
J100: =IF(ISNUMBER(SEARCH('3 Irrigation Schedule'!$B$19,K100)),MAX($J$1:J99)+1,0) -> 99 | K100: ='Crop Information'!B105 -> Maize (sweet - Mar - Philippines) | M100: =IFERROR(VLOOKUP(ROWS($M$2:M100),$J$2:$K$763,2,FALSE),"") -> Maize (sweet - Mar - Philippines)
J101: =IF(ISNUMBER(SEARCH('3 Irrigation Schedule'!$B$19,K101)),MAX($J$1:J100)+1,0) -> 100 | K101: ='Crop Information'!B106 -> Maize (sweet - May/Jun - Mediterranean) | M101: =IFERROR(VLOOKUP(ROWS($M$2:M101),$J$2:$K$763,2,FALSE),"") -> Maize (sweet - May/Jun - Mediterranean)
J102: =IF(ISNUMBER(SEARCH('3 Irrigation Schedule'!$B$19,K102)),MAX($J$1:J101)+1,0) -> 101 | K102: ='Crop Information'!B107 -> Maize (sweet - Oct/Dec - arid climate) | M102: =IFERROR(VLOOKUP(ROWS($M$2:M102),$J$2:$K$763,2,FALSE),"") -> Maize (sweet - Oct/Dec - arid climate)
J103: =IF(ISNUMBER(SEARCH('3 Irrigation Schedule'!$B$19,K103)),MAX($J$1:J102)+1,0) -> 102 | K103: ='Crop Information'!B108 -> Maize (sweet - Apr - Idaho) | M103: =IFERROR(VLOOKUP(ROWS($M$2:M103),$J$2:$K$763,2,FALSE),"") -> Maize (sweet - Apr - Idaho)
J104: =IF(ISNUMBER(SEARCH('3 Irrigation Schedule'!$B$19,K104)),MAX($J$1:J103)+1,0) -> 103 | K104: ='Crop Information'!B109 -> Maize (sweet - Jan - California desert) | M104: =IFERROR(VLOOKUP(ROWS($M$2:M104),$J$2:$K$763,2,FALSE),"") -> Maize (sweet - Jan - California desert)
J105: =IF(ISNUMBER(SEARCH('3 Irrigation Schedule'!$B$19,K105)),MAX($J$1:J104)+1,0) -> 104 | K105: ='Crop Information'!B110 -> Mango (Jun) | M105: =IFERROR(VLOOKUP(ROWS($M$2:M105),$J$2:$K$763,2,FALSE),"") -> Mango (Jun)
J106: =IF(ISNUMBER(SEARCH('3 Irrigation Schedule'!$B$19,K106)),MAX($J$1:J105)+1,0) -> 105 | K106: ='Crop Information'!B111 -> Millet (Jun - Pakistan) | M106: =IFERROR(VLOOKUP(ROWS($M$2:M106),$J$2:$K$763,2,FALSE),"") -> Millet (Jun - Pakistan)
J107: =IF(ISNUMBER(SEARCH('3 Irrigation Schedule'!$B$19,K107)),MAX($J$1:J106)+1,0) -> 106 | K107: ='Crop Information'!B112 -> Millet (Apr - Central USA) | M107: =IFERROR(VLOOKUP(ROWS($M$2:M107),$J$2:$K$763,2,FALSE),"") -> Millet (Apr - Central USA)
J108: =IF(ISNUMBER(SEARCH('3 Irrigation Schedule'!$B$19,K108)),MAX($J$1:J107)+1,0) -> 107 | K108: ='Crop Information'!B113 -> Okra (sub humid) | M108: =IFERROR(VLOOKUP(ROWS($M$2:M108),$J$2:$K$763,2,FALSE),"") -> Okra (sub humid)
J109: =IF(ISNUMBER(SEARCH('3 Irrigation Schedule'!$B$19,K109)),MAX($J$1:J108)+1,0) -> 108 | K109: ='Crop Information'!B114 -> Olives (Mar - Mediterranean) | M109: =IFERROR(VLOOKUP(ROWS($M$2:M109),$J$2:$K$763,2,FALSE),"") -> Olives (Mar - Mediterranean)
J110: =IF(ISNUMBER(SEARCH('3 Irrigation Schedule'!$B$19,K110)),MAX($J$1:J109)+1,0) -> 109 | K110: ='Crop Information'!B115 -> Onion (dry - Apr - Mediterranean) | M110: =IFERROR(VLOOKUP(ROWS($M$2:M110),$J$2:$K$763,2,FALSE),"") -> Onion (dry - Apr - Mediterranean)
J111: =IF(ISNUMBER(SEARCH('3 Irrigation Schedule'!$B$19,K111)),MAX($J$1:J110)+1,0) -> 110 | K111: ='Crop Information'!B116 -> Onion (dry - Oct/Jan - arid region/California) | M111: =IFERROR(VLOOKUP(ROWS($M$2:M111),$J$2:$K$763,2,FALSE),"") -> Onion (dry - Oct/Jan - arid region/California)
J112: =IF(ISNUMBER(SEARCH('3 Irrigation Schedule'!$B$19,K112)),MAX($J$1:J111)+1,0) -> 111 | K112: ='Crop Information'!B117 -> Onion (green - Apr/May - Mediterranean) | M112: =IFERROR(VLOOKUP(ROWS($M$2:M112),$J$2:$K$763,2,FALSE),"") -> Onion (green - Apr/May - Mediterranean)
J113: =IF(ISNUMBER(SEARCH('3 Irrigation Schedule'!$B$19,K113)),MAX($J$1:J112)+1,0) -> 112 | K113: ='Crop Information'!B118 -> Onion (green - Oct - arid region) | M113: =IFERROR(VLOOKUP(ROWS($M$2:M113),$J$2:$K$763,2,FALSE),"") -> Onion (green - Oct - arid region)
J114: =IF(ISNUMBER(SEARCH('3 Irrigation Schedule'!$B$19,K114)),MAX($J$1:J113)+1,0) -> 113 | K114: ='Crop Information'!B119 -> Onion (green - Mar - California) | M114: =IFERROR(VLOOKUP(ROWS($M$2:M114),$J$2:$K$763,2,FALSE),"") -> Onion (green - Mar - California)
J115: =IF(ISNUMBER(SEARCH('3 Irrigation Schedule'!$B$19,K115)),MAX($J$1:J114)+1,0) -> 114 | K115: ='Crop Information'!B120 -> Onion (seed - Sept - California desert) | M115: =IFERROR(VLOOKUP(ROWS($M$2:M115),$J$2:$K$763,2,FALSE),"") -> Onion (seed - Sept - California desert)
J116: =IF(ISNUMBER(SEARCH('3 Irrigation Schedule'!$B$19,K116)),MAX($J$1:J115)+1,0) -> 115 | K116: ='Crop Information'!B121 -> Peas (fresh - May - Europe) | M116: =IFERROR(VLOOKUP(ROWS($M$2:M116),$J$2:$K$763,2,FALSE),"") -> Peas (fresh - May - Europe)
J117: =IF(ISNUMBER(SEARCH('3 Irrigation Schedule'!$B$19,K117)),MAX($J$1:J116)+1,0) -> 116 | K117: ='Crop Information'!B122 -> Peas (fresh - Mar/Apr - Mediterranean) | M117: =IFERROR(VLOOKUP(ROWS($M$2:M117),$J$2:$K$763,2,FALSE),"") -> Peas (fresh - Mar/Apr - Mediterranean)
J118: =IF(ISNUMBER(SEARCH('3 Irrigation Schedule'!$B$19,K118)),MAX($J$1:J117)+1,0) -> 117 | K118: ='Crop Information'!B123 -> Peas (fresh - Apr - Idaho) | M118: =IFERROR(VLOOKUP(ROWS($M$2:M118),$J$2:$K$763,2,FALSE),"") -> Peas (fresh - Apr - Idaho)
J119: =IF(ISNUMBER(SEARCH('3 Irrigation Schedule'!$B$19,K119)),MAX($J$1:J118)+1,0) -> 118 | K119: ='Crop Information'!B124 -> Peas (dry - May - Europe) | M119: =IFERROR(VLOOKUP(ROWS($M$2:M119),$J$2:$K$763,2,FALSE),"") -> Peas (dry - May - Europe)
J120: =IF(ISNUMBER(SEARCH('3 Irrigation Schedule'!$B$19,K120)),MAX($J$1:J119)+1,0) -> 119 | K120: ='Crop Information'!B125 -> Peas (dry - Mar/Apr - Mediterranean) | M120: =IFERROR(VLOOKUP(ROWS($M$2:M120),$J$2:$K$763,2,FALSE),"") -> Peas (dry - Mar/Apr - Mediterranean)
J121: =IF(ISNUMBER(SEARCH('3 Irrigation Schedule'!$B$19,K121)),MAX($J$1:J120)+1,0) -> 120 | K121: ='Crop Information'!B126 -> Peas (dry - Apr - Idaho) | M121: =IFERROR(VLOOKUP(ROWS($M$2:M121),$J$2:$K$763,2,FALSE),"") -> Peas (dry - Apr - Idaho)
J122: =IF(ISNUMBER(SEARCH('3 Irrigation Schedule'!$B$19,K122)),MAX($J$1:J121)+1,0) -> 121 | K122: ='Crop Information'!B127 -> Pigeon peas | M122: =IFERROR(VLOOKUP(ROWS($M$2:M122),$J$2:$K$763,2,FALSE),"") -> Pigeon peas
J123: =IF(ISNUMBER(SEARCH('3 Irrigation Schedule'!$B$19,K123)),MAX($J$1:J122)+1,0) -> 122 | K123: ='Crop Information'!B128 -> Pineapple (bare soil - Hawaii) | M123: =IFERROR(VLOOKUP(ROWS($M$2:M123),$J$2:$K$763,2,FALSE),"") -> Pineapple (bare soil - Hawaii)
J124: =IF(ISNUMBER(SEARCH('3 Irrigation Schedule'!$B$19,K124)),MAX($J$1:J123)+1,0) -> 123 | K124: ='Crop Information'!B129 -> Pineapple (with grass cover - Hawaii) | M124: =IFERROR(VLOOKUP(ROWS($M$2:M124),$J$2:$K$763,2,FALSE),"") -> Pineapple (with grass cover - Hawaii)
J125: =IF(ISNUMBER(SEARCH('3 Irrigation Schedule'!$B$19,K125)),MAX($J$1:J124)+1,0) -> 124 | K125: ='Crop Information'!B130 -> Pistachios (no ground cover - Feb - Mediterranean) | M125: =IFERROR(VLOOKUP(ROWS($M$2:M125),$J$2:$K$763,2,FALSE),"") -> Pistachios (no ground cover - Feb - Mediterranean)
J126: =IF(ISNUMBER(SEARCH('3 Irrigation Schedule'!$B$19,K126)),MAX($J$1:J125)+1,0) -> 125 | K126: ='Crop Information'!B131 -> Potato (Jan/Nov - semiarid climate) | M126: =IFERROR(VLOOKUP(ROWS($M$2:M126),$J$2:$K$763,2,FALSE),"") -> Potato (Jan/Nov - semiarid climate)
J127: =IF(ISNUMBER(SEARCH('3 Irrigation Schedule'!$B$19,K127)),MAX($J$1:J126)+1,0) -> 126 | K127: ='Crop Information'!B132 -> Potato (May - Continental Climate ) | M127: =IFERROR(VLOOKUP(ROWS($M$2:M127),$J$2:$K$763,2,FALSE),"") -> Potato (May - Continental Climate )
J128: =IF(ISNUMBER(SEARCH('3 Irrigation Schedule'!$B$19,K128)),MAX($J$1:J127)+1,0) -> 127 | K128: ='Crop Information'!B133 -> Potato (Apr - Europe) | M128: =IFERROR(VLOOKUP(ROWS($M$2:M128),$J$2:$K$763,2,FALSE),"") -> Potato (Apr - Europe)
J129: =IF(ISNUMBER(SEARCH('3 Irrigation Schedule'!$B$19,K129)),MAX($J$1:J128)+1,0) -> 128 | K129: ='Crop Information'!B134 -> Potato (Apr/May - Idaho, USA ) | M129: =IFERROR(VLOOKUP(ROWS($M$2:M129),$J$2:$K$763,2,FALSE),"") -> Potato (Apr/May - Idaho, USA )
J130: =IF(ISNUMBER(SEARCH('3 Irrigation Schedule'!$B$19,K130)),MAX($J$1:J129)+1,0) -> 129 | K130: ='Crop Information'!B135 -> Potato (Dec - California desert) | M130: =IFERROR(VLOOKUP(ROWS($M$2:M130),$J$2:$K$763,2,FALSE),"") -> Potato (Dec - California desert)
J131: =IF(ISNUMBER(SEARCH('3 Irrigation Schedule'!$B$19,K131)),MAX($J$1:J130)+1,0) -> 130 | K131: ='Crop Information'!B136 -> Pumpkin, Winter squash (Mar/Aug - Mediterranean) | M131: =IFERROR(VLOOKUP(ROWS($M$2:M131),$J$2:$K$763,2,FALSE),"") -> Pumpkin, Winter squash (Mar/Aug - Mediterranean)
J132: =IF(ISNUMBER(SEARCH('3 Irrigation Schedule'!$B$19,K132)),MAX($J$1:J131)+1,0) -> 131 | K132: ='Crop Information'!B137 -> Pumpkin, Winter squash (Jun - Europe) | M132: =IFERROR(VLOOKUP(ROWS($M$2:M132),$J$2:$K$763,2,FALSE),"") -> Pumpkin, Winter squash (Jun - Europe)
J133: =IF(ISNUMBER(SEARCH('3 Irrigation Schedule'!$B$19,K133)),MAX($J$1:J132)+1,0) -> 132 | K133: ='Crop Information'!B138 -> Radish (Mar/Apr - Mediterranean/Europe) | M133: =IFERROR(VLOOKUP(ROWS($M$2:M133),$J$2:$K$763,2,FALSE),"") -> Radish (Mar/Apr - Mediterranean/Europe)
J134: =IF(ISNUMBER(SEARCH('3 Irrigation Schedule'!$B$19,K134)),MAX($J$1:J133)+1,0) -> 133 | K134: ='Crop Information'!B139 -> Radish (Winter - arid region) | M134: =IFERROR(VLOOKUP(ROWS($M$2:M134),$J$2:$K$763,2,FALSE),"") -> Radish (Winter - arid region)
J135: =IF(ISNUMBER(SEARCH('3 Irrigation Schedule'!$B$19,K135)),MAX($J$1:J134)+1,0) -> 134 | K135: ='Crop Information'!B140 -> Rice (Dec/May - Tropics/Mediterranean) | M135: =IFERROR(VLOOKUP(ROWS($M$2:M135),$J$2:$K$763,2,FALSE),"") -> Rice (Dec/May - Tropics/Mediterranean)
J136: =IF(ISNUMBER(SEARCH('3 Irrigation Schedule'!$B$19,K136)),MAX($J$1:J135)+1,0) -> 135 | K136: ='Crop Information'!B141 -> Safflower (Apr - California) | M136: =IFERROR(VLOOKUP(ROWS($M$2:M136),$J$2:$K$763,2,FALSE),"") -> Safflower (Apr - California)
J137: =IF(ISNUMBER(SEARCH('3 Irrigation Schedule'!$B$19,K137)),MAX($J$1:J136)+1,0) -> 136 | K137: ='Crop Information'!B142 -> Safflower (Mar - high latitudes) | M137: =IFERROR(VLOOKUP(ROWS($M$2:M137),$J$2:$K$763,2,FALSE),"") -> Safflower (Mar - high latitudes)
J138: =IF(ISNUMBER(SEARCH('3 Irrigation Schedule'!$B$19,K138)),MAX($J$1:J137)+1,0) -> 137 | K138: ='Crop Information'!B143 -> Safflower (Oct/Nov - arid region) | M138: =IFERROR(VLOOKUP(ROWS($M$2:M138),$J$2:$K$763,2,FALSE),"") -> Safflower (Oct/Nov - arid region)
J139: =IF(ISNUMBER(SEARCH('3 Irrigation Schedule'!$B$19,K139)),MAX($J$1:J138)+1,0) -> 138 | K139: ='Crop Information'!B144 -> Sesame (Jun - China) | M139: =IFERROR(VLOOKUP(ROWS($M$2:M139),$J$2:$K$763,2,FALSE),"") -> Sesame (Jun - China)
J140: =IF(ISNUMBER(SEARCH('3 Irrigation Schedule'!$B$19,K140)),MAX($J$1:J139)+1,0) -> 139 | K140: ='Crop Information'!B145 -> Sorghum (grain - May/Jun - USA/Pakistan/Mediterranean) | M140: =IFERROR(VLOOKUP(ROWS($M$2:M140),$J$2:$K$763,2,FALSE),"") -> Sorghum (grain - May/Jun - USA/Pakistan/Mediterranean)
J141: =IF(ISNUMBER(SEARCH('3 Irrigation Schedule'!$B$19,K141)),MAX($J$1:J140)+1,0) -> 140 | K141: ='Crop Information'!B146 -> Sorghum (grain - Mar/Apr - arid region) | M141: =IFERROR(VLOOKUP(ROWS($M$2:M141),$J$2:$K$763,2,FALSE),"") -> Sorghum (grain - Mar/Apr - arid region)
J142: =IF(ISNUMBER(SEARCH('3 Irrigation Schedule'!$B$19,K142)),MAX($J$1:J141)+1,0) -> 141 | K142: ='Crop Information'!B147 -> Sorghum (sweet - May/Jun - USA/Pakistan/Mediterranean) | M142: =IFERROR(VLOOKUP(ROWS($M$2:M142),$J$2:$K$763,2,FALSE),"") -> Sorghum (sweet - May/Jun - USA/Pakistan/Mediterranean)
J143: =IF(ISNUMBER(SEARCH('3 Irrigation Schedule'!$B$19,K143)),MAX($J$1:J142)+1,0) -> 142 | K143: ='Crop Information'!B148 -> Sorghum (sweet - Mar/Apr - arid region) | M143: =IFERROR(VLOOKUP(ROWS($M$2:M143),$J$2:$K$763,2,FALSE),"") -> Sorghum (sweet - Mar/Apr - arid region)
J144: =IF(ISNUMBER(SEARCH('3 Irrigation Schedule'!$B$19,K144)),MAX($J$1:J143)+1,0) -> 143 | K144: ='Crop Information'!B149 -> Soybeans (Dec - Tropics) | M144: =IFERROR(VLOOKUP(ROWS($M$2:M144),$J$2:$K$763,2,FALSE),"") -> Soybeans (Dec - Tropics)
J145: =IF(ISNUMBER(SEARCH('3 Irrigation Schedule'!$B$19,K145)),MAX($J$1:J144)+1,0) -> 144 | K145: ='Crop Information'!B150 -> Soybeans (May - Central USA) | M145: =IFERROR(VLOOKUP(ROWS($M$2:M145),$J$2:$K$763,2,FALSE),"") -> Soybeans (May - Central USA)
J146: =IF(ISNUMBER(SEARCH('3 Irrigation Schedule'!$B$19,K146)),MAX($J$1:J145)+1,0) -> 145 | K146: ='Crop Information'!B151 -> Soybeans (Jun - Japan ) | M146: =IFERROR(VLOOKUP(ROWS($M$2:M146),$J$2:$K$763,2,FALSE),"") -> Soybeans (Jun - Japan )
J147: =IF(ISNUMBER(SEARCH('3 Irrigation Schedule'!$B$19,K147)),MAX($J$1:J146)+1,0) -> 146 | K147: ='Crop Information'!B152 -> Spinach (Apr/Sep/Oct - Mediterranean) | M147: =IFERROR(VLOOKUP(ROWS($M$2:M147),$J$2:$K$763,2,FALSE),"") -> Spinach (Apr/Sep/Oct - Mediterranean)
J148: =IF(ISNUMBER(SEARCH('3 Irrigation Schedule'!$B$19,K148)),MAX($J$1:J147)+1,0) -> 147 | K148: ='Crop Information'!B153 -> Spinach (Nov - arid region) | M148: =IFERROR(VLOOKUP(ROWS($M$2:M148),$J$2:$K$763,2,FALSE),"") -> Spinach (Nov - arid region)
J149: =IF(ISNUMBER(SEARCH('3 Irrigation Schedule'!$B$19,K149)),MAX($J$1:J148)+1,0) -> 148 | K149: ='Crop Information'!B154 -> Squash, Zucchini (Apr/Dec - Mediterranean/arid region) | M149: =IFERROR(VLOOKUP(ROWS($M$2:M149),$J$2:$K$763,2,FALSE),"") -> Squash, Zucchini (Apr/Dec - Mediterranean/arid region)
J150: =IF(ISNUMBER(SEARCH('3 Irrigation Schedule'!$B$19,K150)),MAX($J$1:J149)+1,0) -> 149 | K150: ='Crop Information'!B155 -> Squash, Zucchini (May/Jun - Mediterranean/Europe) | M150: =IFERROR(VLOOKUP(ROWS($M$2:M150),$J$2:$K$763,2,FALSE),"") -> Squash, Zucchini (May/Jun - Mediterranean/Europe)
J151: =IF(ISNUMBER(SEARCH('3 Irrigation Schedule'!$B$19,K151)),MAX($J$1:J150)+1,0) -> 150 | K151: ='Crop Information'!B156 -> Sudan (1st cutting cycle - Apr - California desert) | M151: =IFERROR(VLOOKUP(ROWS($M$2:M151),$J$2:$K$763,2,FALSE),"") -> Sudan (1st cutting cycle - Apr - California desert)
J152: =IF(ISNUMBER(SEARCH('3 Irrigation Schedule'!$B$19,K152)),MAX($J$1:J151)+1,0) -> 151 | K152: ='Crop Information'!B157 -> Sudan (other cutting cycles - Jun -California desert) | M152: =IFERROR(VLOOKUP(ROWS($M$2:M152),$J$2:$K$763,2,FALSE),"") -> Sudan (other cutting cycles - Jun -California desert)
J153: =IF(ISNUMBER(SEARCH('3 Irrigation Schedule'!$B$19,K153)),MAX($J$1:J152)+1,0) -> 152 | K153: ='Crop Information'!B158 -> Sugarbeet (Mar - California) | M153: =IFERROR(VLOOKUP(ROWS($M$2:M153),$J$2:$K$763,2,FALSE),"") -> Sugarbeet (Mar - California)
J154: =IF(ISNUMBER(SEARCH('3 Irrigation Schedule'!$B$19,K154)),MAX($J$1:J153)+1,0) -> 153 | K154: ='Crop Information'!B159 -> Sugarbeet (Jun - California) | M154: =IFERROR(VLOOKUP(ROWS($M$2:M154),$J$2:$K$763,2,FALSE),"") -> Sugarbeet (Jun - California)
J155: =IF(ISNUMBER(SEARCH('3 Irrigation Schedule'!$B$19,K155)),MAX($J$1:J154)+1,0) -> 154 | K155: ='Crop Information'!B160 -> Sugarbeet (Sep - California desert) | M155: =IFERROR(VLOOKUP(ROWS($M$2:M155),$J$2:$K$763,2,FALSE),"") -> Sugarbeet (Sep - California desert)
J156: =IF(ISNUMBER(SEARCH('3 Irrigation Schedule'!$B$19,K156)),MAX($J$1:J155)+1,0) -> 155 | K156: ='Crop Information'!B161 -> Sugarbeet (Apr - Idaho) | M156: =IFERROR(VLOOKUP(ROWS($M$2:M156),$J$2:$K$763,2,FALSE),"") -> Sugarbeet (Apr - Idaho)
J157: =IF(ISNUMBER(SEARCH('3 Irrigation Schedule'!$B$19,K157)),MAX($J$1:J156)+1,0) -> 156 | K157: ='Crop Information'!B162 -> Sugarbeet (May - Mediterranean) | M157: =IFERROR(VLOOKUP(ROWS($M$2:M157),$J$2:$K$763,2,FALSE),"") -> Sugarbeet (May - Mediterranean)
J158: =IF(ISNUMBER(SEARCH('3 Irrigation Schedule'!$B$19,K158)),MAX($J$1:J157)+1,0) -> 157 | K158: ='Crop Information'!B163 -> Sugarbeet (Nov - Mediterranean) | M158: =IFERROR(VLOOKUP(ROWS($M$2:M158),$J$2:$K$763,2,FALSE),"") -> Sugarbeet (Nov - Mediterranean)
J159: =IF(ISNUMBER(SEARCH('3 Irrigation Schedule'!$B$19,K159)),MAX($J$1:J158)+1,0) -> 158 | K159: ='Crop Information'!B164 -> Sugarbeet (Nov - arid regions) | M159: =IFERROR(VLOOKUP(ROWS($M$2:M159),$J$2:$K$763,2,FALSE),"") -> Sugarbeet (Nov - arid regions)
J160: =IF(ISNUMBER(SEARCH('3 Irrigation Schedule'!$B$19,K160)),MAX($J$1:J159)+1,0) -> 159 | K160: ='Crop Information'!B165 -> Sugarcane (ratoon - low latitudes) | M160: =IFERROR(VLOOKUP(ROWS($M$2:M160),$J$2:$K$763,2,FALSE),"") -> Sugarcane (ratoon - low latitudes)
J161: =IF(ISNUMBER(SEARCH('3 Irrigation Schedule'!$B$19,K161)),MAX($J$1:J160)+1,0) -> 160 | K161: ='Crop Information'!B166 -> Sugarcane (ratoon - Tropics) | M161: =IFERROR(VLOOKUP(ROWS($M$2:M161),$J$2:$K$763,2,FALSE),"") -> Sugarcane (ratoon - Tropics)
J162: =IF(ISNUMBER(SEARCH('3 Irrigation Schedule'!$B$19,K162)),MAX($J$1:J161)+1,0) -> 161 | K162: ='Crop Information'!B167 -> Sugarcane (ratoon - Hawaii) | M162: =IFERROR(VLOOKUP(ROWS($M$2:M162),$J$2:$K$763,2,FALSE),"") -> Sugarcane (ratoon - Hawaii)
J163: =IF(ISNUMBER(SEARCH('3 Irrigation Schedule'!$B$19,K163)),MAX($J$1:J162)+1,0) -> 162 | K163: ='Crop Information'!B168 -> Sugarcane (virgin - low latitudes) | M163: =IFERROR(VLOOKUP(ROWS($M$2:M163),$J$2:$K$763,2,FALSE),"") -> Sugarcane (virgin - low latitudes)
J164: =IF(ISNUMBER(SEARCH('3 Irrigation Schedule'!$B$19,K164)),MAX($J$1:J163)+1,0) -> 163 | K164: ='Crop Information'!B169 -> Sugarcane (virgin - Tropics) | M164: =IFERROR(VLOOKUP(ROWS($M$2:M164),$J$2:$K$763,2,FALSE),"") -> Sugarcane (virgin - Tropics)
J165: =IF(ISNUMBER(SEARCH('3 Irrigation Schedule'!$B$19,K165)),MAX($J$1:J164)+1,0) -> 164 | K165: ='Crop Information'!B170 -> Sugarcane (virgin - Hawaii) | M165: =IFERROR(VLOOKUP(ROWS($M$2:M165),$J$2:$K$763,2,FALSE),"") -> Sugarcane (virgin - Hawaii)
J166: =IF(ISNUMBER(SEARCH('3 Irrigation Schedule'!$B$19,K166)),MAX($J$1:J165)+1,0) -> 165 | K166: ='Crop Information'!B171 -> Sunflower (Apr/May - Mediterranean/California) | M166: =IFERROR(VLOOKUP(ROWS($M$2:M166),$J$2:$K$763,2,FALSE),"") -> Sunflower (Apr/May - Mediterranean/California)
J167: =IF(ISNUMBER(SEARCH('3 Irrigation Schedule'!$B$19,K167)),MAX($J$1:J166)+1,0) -> 166 | K167: ='Crop Information'!B172 -> Sweet melons (May - Mediterranean) | M167: =IFERROR(VLOOKUP(ROWS($M$2:M167),$J$2:$K$763,2,FALSE),"") -> Sweet melons (May - Mediterranean)
J168: =IF(ISNUMBER(SEARCH('3 Irrigation Schedule'!$B$19,K168)),MAX($J$1:J167)+1,0) -> 167 | K168: ='Crop Information'!B173 -> Sweet melons (Mar - California) | M168: =IFERROR(VLOOKUP(ROWS($M$2:M168),$J$2:$K$763,2,FALSE),"") -> Sweet melons (Mar - California)
J169: =IF(ISNUMBER(SEARCH('3 Irrigation Schedule'!$B$19,K169)),MAX($J$1:J168)+1,0) -> 168 | K169: ='Crop Information'!B174 -> Sweet melons (Aug - California desert) | M169: =IFERROR(VLOOKUP(ROWS($M$2:M169),$J$2:$K$763,2,FALSE),"") -> Sweet melons (Aug - California desert)
J170: =IF(ISNUMBER(SEARCH('3 Irrigation Schedule'!$B$19,K170)),MAX($J$1:J169)+1,0) -> 169 | K170: ='Crop Information'!B175 -> Sweet melons (Dec/Jan - arid region) | M170: =IFERROR(VLOOKUP(ROWS($M$2:M170),$J$2:$K$763,2,FALSE),"") -> Sweet melons (Dec/Jan - arid region)
J171: =IF(ISNUMBER(SEARCH('3 Irrigation Schedule'!$B$19,K171)),MAX($J$1:J170)+1,0) -> 170 | K171: ='Crop Information'!B176 -> Sweet peppers (Apr/Jun - Europe/Mediterranean) | M171: =IFERROR(VLOOKUP(ROWS($M$2:M171),$J$2:$K$763,2,FALSE),"") -> Sweet peppers (Apr/Jun - Europe/Mediterranean)
J172: =IF(ISNUMBER(SEARCH('3 Irrigation Schedule'!$B$19,K172)),MAX($J$1:J171)+1,0) -> 171 | K172: ='Crop Information'!B177 -> Sweet peppers (Oct - arid region) | M172: =IFERROR(VLOOKUP(ROWS($M$2:M172),$J$2:$K$763,2,FALSE),"") -> Sweet peppers (Oct - arid region)
J173: =IF(ISNUMBER(SEARCH('3 Irrigation Schedule'!$B$19,K173)),MAX($J$1:J172)+1,0) -> 172 | K173: ='Crop Information'!B178 -> Sweet potato (Apr - Mediterranean) | M173: =IFERROR(VLOOKUP(ROWS($M$2:M173),$J$2:$K$763,2,FALSE),"") -> Sweet potato (Apr - Mediterranean)
J174: =IF(ISNUMBER(SEARCH('3 Irrigation Schedule'!$B$19,K174)),MAX($J$1:J173)+1,0) -> 173 | K174: ='Crop Information'!B179 -> Sweet potato (rainy season - Tropical regions) | M174: =IFERROR(VLOOKUP(ROWS($M$2:M174),$J$2:$K$763,2,FALSE),"") -> Sweet potato (rainy season - Tropical regions)
J175: =IF(ISNUMBER(SEARCH('3 Irrigation Schedule'!$B$19,K175)),MAX($J$1:J174)+1,0) -> 174 | K175: ='Crop Information'!B180 -> Tomato (Jan - arid region) | M175: =IFERROR(VLOOKUP(ROWS($M$2:M175),$J$2:$K$763,2,FALSE),"") -> Tomato (Jan - arid region)
J176: =IF(ISNUMBER(SEARCH('3 Irrigation Schedule'!$B$19,K176)),MAX($J$1:J175)+1,0) -> 175 | K176: ='Crop Information'!B181 -> Tomato (Apr/May - California) | M176: =IFERROR(VLOOKUP(ROWS($M$2:M176),$J$2:$K$763,2,FALSE),"") -> Tomato (Apr/May - California)
J177: =IF(ISNUMBER(SEARCH('3 Irrigation Schedule'!$B$19,K177)),MAX($J$1:J176)+1,0) -> 176 | K177: ='Crop Information'!B182 -> Tomato (Jan - California desert) | M177: =IFERROR(VLOOKUP(ROWS($M$2:M177),$J$2:$K$763,2,FALSE),"") -> Tomato (Jan - California desert)
J178: =IF(ISNUMBER(SEARCH('3 Irrigation Schedule'!$B$19,K178)),MAX($J$1:J177)+1,0) -> 177 | K178: ='Crop Information'!B183 -> Tomato (Oct/Nov - arid region) | M178: =IFERROR(VLOOKUP(ROWS($M$2:M178),$J$2:$K$763,2,FALSE),"") -> Tomato (Oct/Nov - arid region)
J179: =IF(ISNUMBER(SEARCH('3 Irrigation Schedule'!$B$19,K179)),MAX($J$1:J178)+1,0) -> 178 | K179: ='Crop Information'!B184 -> Tomato (Apr/May - Mediterranean) | M179: =IFERROR(VLOOKUP(ROWS($M$2:M179),$J$2:$K$763,2,FALSE),"") -> Tomato (Apr/May - Mediterranean)
J180: =IF(ISNUMBER(SEARCH('3 Irrigation Schedule'!$B$19,K180)),MAX($J$1:J179)+1,0) -> 179 | K180: ='Crop Information'!B185 -> Walnuts (Apr - Utah) | M180: =IFERROR(VLOOKUP(ROWS($M$2:M180),$J$2:$K$763,2,FALSE),"") -> Walnuts (Apr - Utah)
J181: =IF(ISNUMBER(SEARCH('3 Irrigation Schedule'!$B$19,K181)),MAX($J$1:J180)+1,0) -> 180 | K181: ='Crop Information'!B186 -> Water melons (Apr - Italy) | M181: =IFERROR(VLOOKUP(ROWS($M$2:M181),$J$2:$K$763,2,FALSE),"") -> Water melons (Apr - Italy)
J182: =IF(ISNUMBER(SEARCH('3 Irrigation Schedule'!$B$19,K182)),MAX($J$1:J181)+1,0) -> 181 | K182: ='Crop Information'!B187 -> Water melons (Mat/Aug - Near East (desert)) | M182: =IFERROR(VLOOKUP(ROWS($M$2:M182),$J$2:$K$763,2,FALSE),"") -> Water melons (Mat/Aug - Near East (desert))
J183: =IF(ISNUMBER(SEARCH('3 Irrigation Schedule'!$B$19,K183)),MAX($J$1:J182)+1,0) -> 182 | K183: ='Crop Information'!B188 -> Winter Wheat (Dec - California) | M183: =IFERROR(VLOOKUP(ROWS($M$2:M183),$J$2:$K$763,2,FALSE),"") -> Winter Wheat (Dec - California)
J184: =IF(ISNUMBER(SEARCH('3 Irrigation Schedule'!$B$19,K184)),MAX($J$1:J183)+1,0) -> 183 | K184: ='Crop Information'!B189 -> Winter Wheat (Nov - Mediterranean) | M184: =IFERROR(VLOOKUP(ROWS($M$2:M184),$J$2:$K$763,2,FALSE),"") -> Winter Wheat (Nov - Mediterranean)
J185: =IF(ISNUMBER(SEARCH('3 Irrigation Schedule'!$B$19,K185)),MAX($J$1:J184)+1,0) -> 184 | K185: ='Crop Information'!B190 -> Winter Wheat (Oct - Idaho) | M185: =IFERROR(VLOOKUP(ROWS($M$2:M185),$J$2:$K$763,2,FALSE),"") -> Winter Wheat (Oct - Idaho)
J186: =IF(ISNUMBER(SEARCH('3 Irrigation Schedule'!$B$19,K186)),MAX($J$1:J185)+1,0) -> 185 | K186: ='Crop Information'!B191 -> New crop | M186: =IFERROR(VLOOKUP(ROWS($M$2:M186),$J$2:$K$763,2,FALSE),"") -> New crop
J187: =IF(ISNUMBER(SEARCH('3 Irrigation Schedule'!$B$19,K187)),MAX($J$1:J186)+1,0) -> 186 | K187: ='Crop Information'!B192 -> New crop | M187: =IFERROR(VLOOKUP(ROWS($M$2:M187),$J$2:$K$763,2,FALSE),"") -> New crop
